Workbook

Sheet Carátula
B6: GERENCIA DE REGULACIÓN Y ESTUDIOS ECONÓMICOS
B9: MODELO DE LAS TARIFAS DE LOS SERVICIOS DE NAVEGACIÓN AÉREA BRINDADOS POR CORPAC S.A.
B13: 2022

Sheet Índice
B2: Contenido
B4: Tarifas aprobadas por el Ositrán
B6: I. Flujos de Caja
B7: Modelo 1: SNAR y Sobrevuelo
B8: Modelo 2: Aproximación
B10: II. Ingresos de los servicios de aeronavegación
B11: a. Proyección de demanda
B12: SNAR Nacional
B13: SNAR Internacional
B14: Aproximación
B15: Sobrevuelo
B16: Tasas de crecimiento de la demanda
B17: b. Tarifas de los servicios de aeronavegación
B18: c. Ingresos proyectados (usuarios atribuibles)
B20: III. Egresos de los servicios de aeronavegación
B21: a. Costos operativos - OPEX (usuarios atribuibles)
B22: Gastos de Personal
B23: OPEX incremental
B24: Pagos a la CGR por Control Concurrente
B25: b. Gastos de Capital - CAPEX
B26: Base de activos existentes
B27: Inversiones programadas
B28: Inversiones ejecutadas (2017 - 2021)
B29: BD Activos de aeronavegación al 2021
B30: Consumo de capital fijo no ejecutado - SNAR-APROX
B31: Consumo de capital fijo no ejecutado - SOBREV
B33: IV. Otros Ingresos y Egresos
B34: Pago de contribuciones
B35: Ingresos y Costos por usuarios no atribuibles
B36: Transferencias del AIJCh
B38: V. Tasa de descuento
B39: Costo Promedio Ponderado del Capital (WACC) al 2021
B41: VI. Información complementaria
B42: Variables macroeconómicas y supuestos generales
B43: BD Variables macroeconómicas

Sheet Tarifa aprobada
B1: Servicios Regulados de Aeronavegación de CORPAC | F1: Índice
B2: Revisión tarifaria 2022
B4: Servicio / Peso Máximo de Despegue (PMD) | C4: Unidad de cobro | D4: Tarifa 10/11/2021 | E4: Tarifa aprobada | F4: Var%
B5: A. SNAR Nacional
B6: (En soles)
B7: - Por rango de PMD:
B8: Hasta 5,7TM | C8: Por kilómetro recorrido | D8: =+'2. Tarifas'!H9 -> 0.17 | E8: =+'2. Tarifas'!R9 -> 0.1298786945 | F8: =+E8/D8-1 -> -0.2360076795
B9: Más de 5,7TM a 10TM | C9: Por kilómetro recorrido | D9: =+'2. Tarifas'!H10 -> 0.33 | E9: =+'2. Tarifas'!R10 -> 0.2521174658 | F9: -0.2360076795
B10: Más de 10TM a 35TM | C10: Por kilómetro recorrido | D10: =+'2. Tarifas'!H11 -> 0.36 | E10: =+'2. Tarifas'!R11 -> 0.2750372354 | F10: -0.2360076795
B11: Más de 35TM a 70TM | C11: Por kilómetro recorrido | D11: =+'2. Tarifas'!H12 -> 0.48 | E11: =+'2. Tarifas'!R12 -> 0.3667163138 | F11: -0.2360076795
B12: Más de 70TM a 105TM | C12: Por kilómetro recorrido | D12: =+'2. Tarifas'!H13 -> 0.73 | E12: =+'2. Tarifas'!R13 -> 0.5577143939 | F12: -0.2360076795
B13: Más de 105TM | C13: Por kilómetro recorrido | D13: =+'2. Tarifas'!H14 -> 0.96 | E13: =+'2. Tarifas'!R14 -> 0.7334326276 | F13: -0.2360076795
B14: - Cargo mínimo: | C14: Por operación | D14: =+'2. Tarifas'!H15 -> 15.97 | E14: =+'2. Tarifas'!R15 -> 12.20095736 | F14: -0.2360076795
B16: B. SNAR Internacional
B17: (En dólares)
B18: - Por rango de PMD:
B19: Hasta 5,7TM | C19: Por kilómetro recorrido | D19: =+'2. Tarifas'!H20 -> 0.07 | E19: =+'2. Tarifas'!R20 -> 0.05490246754 | F19: =+E19/D19-1 -> -0.2156790351
B20: Más de 5,7TM a 10TM | C20: Por kilómetro recorrido | D20: =+'2. Tarifas'!H21 -> 0.14 | E20: =+'2. Tarifas'!R21 -> 0.1098049351 | F20: -0.2156790351
B21: Más de 10TM a 35TM | C21: Por kilómetro recorrido | D21: =+'2. Tarifas'!H22 -> 0.15 | E21: =+'2. Tarifas'!R22 -> 0.1176481447 | F21: -0.2156790351
B22: Más de 35TM a 70TM | C22: Por kilómetro recorrido | D22: =+'2. Tarifas'!H23 -> 0.2 | E22: =+'2. Tarifas'!R23 -> 0.156864193 | F22: -0.2156790351
B23: Más de 70TM a 105TM | C23: Por kilómetro recorrido | D23: =+'2. Tarifas'!H24 -> 0.31 | E23: =+'2. Tarifas'!R24 -> 0.2431394991 | F23: -0.2156790351
B24: Más de 105TM | C24: Por kilómetro recorrido | D24: =+'2. Tarifas'!H25 -> 0.43 | E24: =+'2. Tarifas'!R25 -> 0.3372580149 | F24: -0.2156790351
B25: - Cargo mínimo: | C25: Por operación | D25: =+'2. Tarifas'!H26 -> 7.43 | E25: =+'2. Tarifas'!R26 -> 5.827504769 | F25: -0.2156790351
B27: C. Aproximación
B28: (En soles)
B29: - Por rango de PMD:
B30: Hasta 10TM | C30: Por Tonelada (PMD) | D30: =+'2. Tarifas'!H31 -> 3.37 | E30: =+'2. Tarifas'!R31 -> 4.191525316 | F30: =+E30/D30-1 -> 0.2437760583
B31: Más de 10TM a 35TM | C31: Por Tonelada (PMD) | D31: =+'2. Tarifas'!H32 -> 3.76 | E31: =+'2. Tarifas'!R32 -> 4.676597979 | F31: 0.2437760583
B32: Más de 35TM a 70TM | C32: Por Tonelada (PMD) | D32: =+'2. Tarifas'!H33 -> 4.19 | E32: =+'2. Tarifas'!R33 -> 5.211421684 | F32: 0.2437760583
B33: Más de 70TM a 105TM | C33: Por Tonelada (PMD) | D33: =+'2. Tarifas'!H34 -> 4.61 | E33: =+'2. Tarifas'!R34 -> 5.733807629 | F33: 0.2437760583
B34: Más de 105TM | C34: Por Tonelada (PMD) | D34: =+'2. Tarifas'!H35 -> 5.05 | E34: =+'2. Tarifas'!R35 -> 6.281069094 | F34: 0.2437760583
B35: - Cargo mínimo: | C35: Por operación | D35: =+'2. Tarifas'!H36 -> 8.4 | E35: =+'2. Tarifas'!R36 -> 10.44771889 | F35: 0.2437760583
B37: D. Sobrevuelo
B38: (En dólares)
B39: - Por rango de PMD:
B40: Hasta 55TM | C40: Por kilómetro recorrido | D40: =+'2. Tarifas'!H41 -> 0.19 | E40: =+'2. Tarifas'!R41 -> 0.1490209833 | F40: =+E40/D40-1 -> -0.2156790351
B41: Más de 55TM a 115TM | C41: Por kilómetro recorrido | D41: =+'2. Tarifas'!H42 -> 0.3 | E41: =+'2. Tarifas'!R42 -> 0.2352962895 | F41: =+E41/D41-1 -> -0.2156790351
B42: Más de 115TM a 200TM | C42: Por kilómetro recorrido | D42: =+'2. Tarifas'!H43 -> 0.6 | E42: =+'2. Tarifas'!R43 -> 0.4705925789 | F42: =+E42/D42-1 -> -0.2156790351
B43: Más de 200TM | C43: Por kilómetro recorrido | D43: =+'2. Tarifas'!H44 -> 0.89 | E43: =+'2. Tarifas'!R44 -> 0.6980456587 | F43: =+E43/D43-1 -> -0.2156790351

Sheet 0. FC-SNAR_SV
B1: 0. Flujo de caja: Servicio de SNAR (Nacional e Internacional) y Sobrevuelo | G1: Índice
B2: Montos expresados en miles de soles
B3: Año | D3: 2021 | E3: =+D3+1 -> 2022 | F3: =+E3+1 -> 2023 | G3: 2024
B5: Ingresos por prestación del servicio | E5: =('3. Ingresos'!C8+'3. Ingresos'!C21+'3. Ingresos'!C46)/1000 -> 165480.274 | F5: =('3. Ingresos'!D8+'3. Ingresos'!D21+'3. Ingresos'!D46)/1000 -> 203668.0295 | G5: =('3. Ingresos'!E8+'3. Ingresos'!E21+'3. Ingresos'!E46)/1000 -> 216397.2814
B7: Ingresos por Usuarios no atribuibles | E7: =('7. No atribuibles'!F59+'7. No atribuibles'!F60+'7. No atribuibles'!F62)/1000 -> 167.8598066 | F7: =('7. No atribuibles'!G59+'7. No atribuibles'!G60+'7. No atribuibles'!G62)/1000 -> 206.596685 | G7: =('7. No atribuibles'!H59+'7. No atribuibles'!H60+'7. No atribuibles'!H62)/1000 -> 219.5089778
B9: Ingreso Bruto total | E9: =E5+SUM(E7:E7) -> 165648.1338 | F9: =F5+SUM(F7:F7) -> 203874.6262 | G9: =G5+SUM(G7:G7) -> 216616.7904
B11: Pago al MTC | C11: 0.1 | E11: =-'6. Contribuciones'!D34/1000 -> -8723.991693 | F11: =-'6. Contribuciones'!E34/1000 -> -10737.22054 | G11: =-'6. Contribuciones'!F34/1000 -> -11408.29683
B12: Aporte por Regulación | C12: 0.01 | E12: =-SUM('6. Contribuciones'!D39:D40,'6. Contribuciones'!D42)/1000 -> -1656.481338 | F12: =-SUM('6. Contribuciones'!E39:E40,'6. Contribuciones'!E42)/1000 -> -2038.746262 | G12: =-SUM('6. Contribuciones'!F39:F40,'6. Contribuciones'!F42)/1000 -> -2166.167904
B13: Contribuciones | E13: =SUM(E11:E12) -> -10380.47303 | F13: =SUM(F11:F12) -> -12775.96681 | G13: -13574.46473
B15: Ingresos Netos | E15: =E9+E13 -> 155267.6608 | F15: 191098.6594 | G15: 203042.3256
B17: Suministros y Materiales | E17: =-('4. OPEX'!F56+'4. OPEX'!F67+'4. OPEX'!F89)/1000 -> -5753.00674 | F17: =-('4. OPEX'!G56+'4. OPEX'!G67+'4. OPEX'!G89)/1000 -> -5868.066875 | G17: =-('4. OPEX'!H56+'4. OPEX'!H67+'4. OPEX'!H89)/1000 -> -5985.428212
B18: Gastos de Personal | E18: =-('4. OPEX'!F57+'4. OPEX'!F68+'4. OPEX'!F90)/1000 -> -87625.29735 | F18: =-('4. OPEX'!G57+'4. OPEX'!G68+'4. OPEX'!G90)/1000 -> -100224.3065 | G18: =-('4. OPEX'!H57+'4. OPEX'!H68+'4. OPEX'!H90)/1000 -> -101973.4068
B19: Participación de los trabajadores | E19: =-E49 -> -98.59884074 | F19: =-F49 -> -1181.741056 | G19: -1521.26082
B20: Servicios prestados por terceros | E20: =-('4. OPEX'!F58+'4. OPEX'!F69+'4. OPEX'!F91)/1000 -> -24979.44765 | F20: =-('4. OPEX'!G58+'4. OPEX'!G69+'4. OPEX'!G91)/1000 -> -25479.0366 | G20: =-('4. OPEX'!H58+'4. OPEX'!H69+'4. OPEX'!H91)/1000 -> -25988.61734
B21: Mantenimiento | E21: =-('4. OPEX'!F59+'4. OPEX'!F70+'4. OPEX'!F92)/1000 -> -3824.505116 | F21: =-('4. OPEX'!G59+'4. OPEX'!G70+'4. OPEX'!G92)/1000 -> -3900.995219 | G21: =-('4. OPEX'!H59+'4. OPEX'!H70+'4. OPEX'!H92)/1000 -> -3979.015123
B22: Seguros y tributos | E22: =-('4. OPEX'!F60+'4. OPEX'!F71+'4. OPEX'!F93)/1000 -> -4557.289635 | F22: =-('4. OPEX'!G60+'4. OPEX'!G71+'4. OPEX'!G93)/1000 -> -4648.435428 | G22: =-('4. OPEX'!H60+'4. OPEX'!H71+'4. OPEX'!H93)/1000 -> -4741.404136
B23: Otros Costos | E23: =-('4. OPEX'!F61+'4. OPEX'!F72+'4. OPEX'!F94)/1000 -> -4330.086793 | F23: =-('4. OPEX'!G61+'4. OPEX'!G72+'4. OPEX'!G94)/1000 -> -4416.688529 | G23: =-('4. OPEX'!H61+'4. OPEX'!H72+'4. OPEX'!H94)/1000 -> -4505.022299
B24: Costos incrementales | E24: =-('4. OPEX'!F62+'4. OPEX'!F73+'4. OPEX'!F95)/1000 -> -599.5589694 | F24: =-('4. OPEX'!G62+'4. OPEX'!G73+'4. OPEX'!G95)/1000 -> -1188.073824 | G24: =-('4. OPEX'!H62+'4. OPEX'!H73+'4. OPEX'!H95)/1000 -> -1384.809784
B25: Costo de operación (Usuarios no atribuibles) | E25: =-('7. No atribuibles'!D77+'7. No atribuibles'!D78+'7. No atribuibles'!D80)/1000 -> -136.7070588 | F25: =-('7. No atribuibles'!E77+'7. No atribuibles'!E78+'7. No atribuibles'!E80)/1000 -> -150.3817223 | G25: =-('7. No atribuibles'!F77+'7. No atribuibles'!F78+'7. No atribuibles'!F80)/1000 -> -153.385397
B26: Total Costos de Operación | E26: =SUM(E17:E25) -> -131904.4982 | F26: =SUM(F17:F25) -> -147057.7257 | G26: -150232.3499
B28: Pago de IR | E28: =-E50 -> -552.6465024 | F28: =-F50 -> -6623.658622 | G28: -8526.666897
B30: Flujo de Caja Operativo | E30: =E15+E26+E28 -> 22810.51611 | F30: =F15+F26+F28 -> 37417.27508 | G30: 44283.30878
B32: Valor inicial de los activos | D32: =-SUM('5. CAPEX'!C59,'5. CAPEX'!C76,'5. CAPEX'!C110)+('5.5. CKF-SNAR_S'!H246/1000) -> -231982.31 | E32: =-SUM('5. CAPEX'!D59,'5. CAPEX'!D76,'5. CAPEX'!D110) -> 0 | F32: =-SUM('5. CAPEX'!E59,'5. CAPEX'!E76,'5. CAPEX'!E110) -> 0 | G32: =-SUM('5. CAPEX'!F59,'5. CAPEX'!F76,'5. CAPEX'!F110) -> 0
B33: Inversiones | D33: =-SUM('5. CAPEX'!C60,'5. CAPEX'!C77,'5. CAPEX'!C111) -> 0 | E33: =-SUM('5. CAPEX'!D60,'5. CAPEX'!D77,'5. CAPEX'!D111) -> -13823.24591 | F33: =-SUM('5. CAPEX'!E60,'5. CAPEX'!E77,'5. CAPEX'!E111) -> -32523.07045 | G33: =-SUM('5. CAPEX'!F60,'5. CAPEX'!F77,'5. CAPEX'!F111) -> -19027.70671
B34: Recuperación de la inversión | D34: =-SUM('5. CAPEX'!C61,'5. CAPEX'!C78,'5. CAPEX'!C112) -> 0 | E34: =-SUM('5. CAPEX'!D61,'5. CAPEX'!D78,'5. CAPEX'!D112) -> 0 | F34: =-SUM('5. CAPEX'!E61,'5. CAPEX'!E78,'5. CAPEX'!E112) -> 0 | G34: =SUM('5. CAPEX'!F61,'5. CAPEX'!F78,'5. CAPEX'!F112) -> 231372.142
B36: Flujo de Caja Económico | D36: =SUM(D32:D34) -> -231982.31 | E36: =SUM(E30,E32:E34) -> 8987.270205 | F36: 4894.204631 | G36: =SUM(G30,G32:G34) -> 256627.744
B38: WACC | C38: =+'9. WACC'!C18 -> 0.0541881198
B39: VAN | C39: =NPV(C38,E36:G36)+D36 -> 0
B41: EGyP | E41: 2022 | F41: =+E41+1 -> 2023 | G41: 2024
B42: Ingresos Brutos | E42: =E9 -> 165648.1338 | F42: 203874.6262 | G42: 216616.7904
B43: Contribuciones | E43: =E13 -> -10380.47303 | F43: =F13 -> -12775.96681 | G43: -13574.46473
B44: Costos de operación, neto de participaciones | E44: =SUM(E17:E18,E20:E25) -> -131805.8993 | F44: =SUM(F17:F18,F20:F25) -> -145875.9847 | G44: -148711.0891
B45: Depreciación y Amortización | E45: =-SUM('5. CAPEX'!D29,'5. CAPEX'!D30,'5. CAPEX'!D32,'5. CAPEX'!D38,'5. CAPEX'!D39,'5. CAPEX'!D41) -> -21489.78464 | F45: =-SUM('5. CAPEX'!E29,'5. CAPEX'!E30,'5. CAPEX'!E32,'5. CAPEX'!E38,'5. CAPEX'!E39,'5. CAPEX'!E41) -> -21587.85363 | G45: =-SUM('5. CAPEX'!F29,'5. CAPEX'!F30,'5. CAPEX'!F32,'5. CAPEX'!F38,'5. CAPEX'!F39,'5. CAPEX'!F41) -> -23906.02009
B46: Utilidad Operativa | E46: =SUM(E42:E45) -> 1971.976815 | F46: =SUM(F42:F45) -> 23634.82113 | G46: 30425.2164
B48: Pago de IR y Participación de los trabajadores
B49: Participación de los trabajadores | E49: ='10. Var-Sup-Gen'!I15*IF(E46<0,0,E46) -> 98.59884074 | F49: ='10. Var-Sup-Gen'!J15*IF(F46<0,0,F46) -> 1181.741056 | G49: ='10. Var-Sup-Gen'!K15*IF(G46<0,0,G46) -> 1521.26082
B50: Impuesto a la renta | E50: ='10. Var-Sup-Gen'!I14*IF(E46-E49<0,0,E46-E49) -> 552.6465024 | F50: ='10. Var-Sup-Gen'!J14*IF(F46-F49<0,0,F46-F49) -> 6623.658622 | G50: ='10. Var-Sup-Gen'!K14*IF(G46-G49<0,0,G46-G49) -> 8526.666897

Sheet 0. FC-APRX
B1: 0. Flujo de caja: Servicio de Aproximación | G1: Índice
B2: Montos expresados en miles de soles
B3: Año | D3: 2021 | E3: =+D3+1 -> 2022 | F3: =+E3+1 -> 2023 | G3: 2024
B5: Ingresos por prestación del servicio | E5: =+'3. Ingresos'!C34/1000 -> 17389.51609 | F5: =+'3. Ingresos'!D34/1000 -> 21402.48135 | G5: =+'3. Ingresos'!E34/1000 -> 22740.13643
B7: Ingresos por Usuarios no atribuibles | E7: =+'7. No atribuibles'!F61/1000 -> 23.49136407 | F7: =+'7. No atribuibles'!G61/1000 -> 28.91244809 | G7: =+'7. No atribuibles'!H61/1000 -> 30.71947609
B8: Transferencias del AIJCh | E8: =+'8. Transferencias'!F31/1000 -> 53711.17171 | F8: =+'8. Transferencias'!G31/1000 -> 70491.29128 | G8: =+'8. Transferencias'!H31/1000 -> 77576.01311
B10: Ingreso Bruto total | E10: =E5+SUM(E7:E8) -> 71124.17917 | F10: =F5+SUM(F7:F8) -> 91922.68507 | G10: 100346.869
B12: Aporte por Regulación | C12: 0.01 | E12: =-'6. Contribuciones'!D41/1000 -> -711.2417917 | F12: =-'6. Contribuciones'!E41/1000 -> -919.2268507 | G12: =-'6. Contribuciones'!F41/1000 -> -1003.46869
B13: Contribuciones | E13: =SUM(E12:E12) -> -711.2417917 | F13: =SUM(F12:F12) -> -919.2268507 | G13: =SUM(G12:G12) -> -1003.46869
B15: Ingresos Netos | E15: =E10+E13 -> 70412.93738 | F15: =F10+F13 -> 91003.45822 | G15: =G10+G13 -> 99343.40033
B17: Suministros y Materiales | E17: =-'4. OPEX'!F78/1000 -> -2435.865496 | F17: =-'4. OPEX'!G78/1000 -> -2484.582806 | G17: =-'4. OPEX'!H78/1000 -> -2534.274462
B18: Gastos de Personal | E18: =-'4. OPEX'!F79/1000 -> -37489.28509 | F18: =-'4. OPEX'!G79/1000 -> -42879.59883 | G18: =-'4. OPEX'!H79/1000 -> -43627.92751
B19: Participación de los trabajadores | E19: =-E49 -> 0 | F19: -570.7878008 | G19: -780.2019677
B20: Servicios prestados por terceros | E20: =-'4. OPEX'!F80/1000 -> -13080.17395 | F20: =-'4. OPEX'!G80/1000 -> -13341.77742 | G20: =-'4. OPEX'!H80/1000 -> -13608.61297
B21: Mantenimiento | E21: =-'4. OPEX'!F81/1000 -> -2106.043671 | F21: =-'4. OPEX'!G81/1000 -> -2148.164545 | G21: =-'4. OPEX'!H81/1000 -> -2191.127836
B22: Seguros y tributos | E22: =-'4. OPEX'!F82/1000 -> -1814.815968 | F22: =-'4. OPEX'!G82/1000 -> -1851.112287 | G22: =-'4. OPEX'!H82/1000 -> -1888.134533
B23: Otros Costos | E23: =-'4. OPEX'!F83/1000 -> -2252.488408 | F23: =-'4. OPEX'!G83/1000 -> -2297.538177 | G23: =-'4. OPEX'!H83/1000 -> -2343.48894
B24: Costos incrementales | E24: =-'4. OPEX'!F84/1000 -> -1365.768749 | F24: =-'4. OPEX'!G84/1000 -> -1932.121552 | G24: =-'4. OPEX'!H84/1000 -> -2388.581583
B25: Costo de operación (Usuarios no atribuibles) | E25: =-'7. No atribuibles'!D79/1000 -> -94.96710339 | F25: =-'7. No atribuibles'!E79/1000 -> -104.7834155 | G25: =-'7. No atribuibles'!F79/1000 -> -107.362111
B26: Total Costos de Operación | E26: =SUM(E17:E25) -> -60639.40843 | F26: =SUM(F17:F25) -> -67610.46684 | G26: -69469.71191
B28: Pago de IR | E28: =-E50 -> 0 | F28: =-F50 -> -3199.265624 | G28: -4373.032029
B30: Flujo de Caja Operativo | E30: =E15+E26+E28 -> 9773.528946 | F30: 20193.72576 | G30: 25500.65638
B32: Valor inicial de los activos | D32: =-'5. CAPEX'!C93+('5.5. CKF-Aprox'!H186/1000) -> -128305.6705 | E32: =-'5. CAPEX'!D93 -> 0 | F32: =-'5. CAPEX'!E93 -> 0 | G32: =-'5. CAPEX'!F93 -> 0
B33: Inversiones | D33: =-'5. CAPEX'!C94 -> 0 | E33: =-'5. CAPEX'!D94 -> -8229.965754 | F33: =-'5. CAPEX'!E94 -> -28502.13386 | G33: =-'5. CAPEX'!F94 -> -14818.417
B34: Recuperación de la inversión | D34: =-'5. CAPEX'!C95 -> 0 | E34: =-'5. CAPEX'!D95 -> 0 | F34: =-'5. CAPEX'!E95 -> 0 | G34: ='5. CAPEX'!F95 -> 146675.2715
B36: Flujo de Caja Económico | D36: =SUM(D32:D34) -> -128305.6705 | E36: =SUM(E30,E32:E34) -> 1543.563192 | F36: -8308.408099 | G36: 157357.5109
B38: WACC | C38: =+'9. WACC'!C18 -> 0.0541881198
B39: VAN | C39: =NPV(C38,E36:G36)+D36 -> 0
B41: EGyP | E41: 2022 | F41: =E41+1 -> 2023 | G41: 2024
B42: Ingresos Brutos | E42: =E10 -> 71124.17917 | F42: =F10 -> 91922.68507 | G42: =G10 -> 100346.869
B43: Contribuciones | E43: =E13 -> -711.2417917 | F43: -919.2268507 | G43: -1003.46869
B44: Costos de operación, neto de participaciones | E44: =SUM(E17:E18,E20:E25) -> -60639.40843 | F44: =SUM(F17:F18,F20:F25) -> -67039.67904 | G44: -68689.50995
B45: Depreciación y Amortización | E45: =-SUM('5. CAPEX'!D31,'5. CAPEX'!D40) -> -12469.89466 | F45: =-SUM('5. CAPEX'!E31,'5. CAPEX'!E40) -> -12548.02317 | G45: =-SUM('5. CAPEX'!F31,'5. CAPEX'!F40) -> -15049.85103
B46: Utilidad Operativa | E46: =SUM(E42:E45) -> -2696.365716 | F46: =SUM(F42:F45) -> 11415.75602 | G46: 15604.03935
B48: Pago de IR y Participación de los trabajadores
B49: Participación de los trabajadores | E49: ='10. Var-Sup-Gen'!I15*IF(E46<0,0,E46) -> 0 | F49: ='10. Var-Sup-Gen'!J15*IF(F46<0,0,F46) -> 570.7878008 | G49: ='10. Var-Sup-Gen'!K15*IF(G46<0,0,G46) -> 780.2019677
B50: Impuesto a la renta | E50: ='10. Var-Sup-Gen'!I14*IF(E46-E49<0,0,E46-E49) -> 0 | F50: ='10. Var-Sup-Gen'!J14*IF(F46-F49<0,0,F46-F49) -> 3199.265624 | G50: ='10. Var-Sup-Gen'!K14*IF(G46-G49<0,0,G46-G49) -> 4373.032029

Sheet 1. Demanda
B1: 1. Proyecciones de demanda | J1: Índice
B3: Servicio / Peso Máximo de Despegue (PMD) | H3: Proyecciones
C4: 2017 | D4: =+C4+1 -> 2018 | E4: 2019 | F4: 2020 | G4: 2021 | H4: 2022 | I4: 2023 | J4: 2024
B6: A. SNAR Nacional
B7: En Kilómetros recorridos
B9: Usuarios atribuibles | C9: =C11+C20 -> 75128319.21 | D9: 80835290.16 | E9: 86859755.46 | F9: 32977805.86 | G9: 52195747.65 | H9: 69516534.75 | I9: 85558812 | J9: 90906237.76
B11: 1. Por rango de PMD: | C11: =SUM(C12:C17) -> 74998878.17 | D11: 80473216.4 | E11: 86849565.34 | F11: 32856368.28 | G11: 51958127.61 | H11: 69314182.04 | I11: 85309762.51 | J11: 90641622.67
B12: Hasta 5,7TM | C12: =+'1.1 SNAR Nac'!C8 -> 6939199.39 | D12: =+'1.1 SNAR Nac'!D8 -> 8508094.66 | E12: =+'1.1 SNAR Nac'!E8 -> 8030860.25 | F12: =+'1.1 SNAR Nac'!F8 -> 3764264.61 | G12: =+'1.1 SNAR Nac'!G8 -> 5206134.57 | H12: ='1.1 SNAR Nac'!C61 -> 7006745.874 | I12: ='1.1 SNAR Nac'!D61 -> 8623687.229 | J12: ='1.1 SNAR Nac'!E61 -> 9162667.681
B13: Más de 5,7TM a 10TM | C13: =+'1.1 SNAR Nac'!C9 -> 1245673.92 | D13: =+'1.1 SNAR Nac'!D9 -> 1831020.14 | E13: =+'1.1 SNAR Nac'!E9 -> 2926524.77 | F13: =+'1.1 SNAR Nac'!F9 -> 1969449.46 | G13: =+'1.1 SNAR Nac'!G9 -> 2200070.67 | H13: ='1.1 SNAR Nac'!C62 -> 2430231.68 | I13: ='1.1 SNAR Nac'!D62 -> 2991054.376 | J13: ='1.1 SNAR Nac'!E62 -> 3177995.274
B14: Más de 10TM a 35TM | C14: =+'1.1 SNAR Nac'!C10 -> 3715496.84 | D14: =+'1.1 SNAR Nac'!D10 -> 3337703.41 | E14: =+'1.1 SNAR Nac'!E10 -> 3403595.85 | F14: =+'1.1 SNAR Nac'!F10 -> 960343.17 | G14: =+'1.1 SNAR Nac'!G10 -> 2035358.31 | H14: ='1.1 SNAR Nac'!C63 -> 2753495.532 | I14: ='1.1 SNAR Nac'!D63 -> 3388917.578 | J14: ='1.1 SNAR Nac'!E63 -> 3600724.926
B15: Más de 35TM a 70TM | C15: =+'1.1 SNAR Nac'!C11 -> 26323247.19 | D15: =+'1.1 SNAR Nac'!D11 -> 25384535.14 | E15: =+'1.1 SNAR Nac'!E11 -> 21563981.99 | F15: =+'1.1 SNAR Nac'!F11 -> 5441464.51 | G15: =+'1.1 SNAR Nac'!G11 -> 7394673.77 | H15: ='1.1 SNAR Nac'!C64 -> 16952898.65 | I15: ='1.1 SNAR Nac'!D64 -> 20865106.03 | J15: ='1.1 SNAR Nac'!E64 -> 22169175.16
B16: Más de 70TM a 105TM | C16: =+'1.1 SNAR Nac'!C12 -> 36774553.35 | D16: =+'1.1 SNAR Nac'!D12 -> 41410605.13 | E16: =+'1.1 SNAR Nac'!E12 -> 50920249.78 | F16: =+'1.1 SNAR Nac'!F12 -> 20718475.22 | G16: =+'1.1 SNAR Nac'!G12 -> 35119196.68 | H16: ='1.1 SNAR Nac'!C65 -> 40168049.08 | I16: ='1.1 SNAR Nac'!D65 -> 49437598.86 | J16: ='1.1 SNAR Nac'!E65 -> 52527448.79
B17: Más de 105TM | C17: =+'1.1 SNAR Nac'!C13 -> 707.48 | D17: =+'1.1 SNAR Nac'!D13 -> 1257.92 | E17: =+'1.1 SNAR Nac'!E13 -> 4352.7 | F17: =+'1.1 SNAR Nac'!F13 -> 2371.31 | G17: =+'1.1 SNAR Nac'!G13 -> 2693.61 | H17: ='1.1 SNAR Nac'!C66 -> 2761.230929 | I17: ='1.1 SNAR Nac'!D66 -> 3398.438067 | J17: ='1.1 SNAR Nac'!E66 -> 3610.840446
B19: 2. Cargo mínimo:
B20: Kilómetros recorridos | C20: =+'1.1 SNAR Nac'!C14 -> 129441.04 | D20: =+'1.1 SNAR Nac'!D14 -> 362073.76 | E20: =+'1.1 SNAR Nac'!E14 -> 10190.12 | F20: =+'1.1 SNAR Nac'!F14 -> 121437.58 | G20: =+'1.1 SNAR Nac'!G14 -> 237620.04 | H20: ='1.1 SNAR Nac'!C67 -> 202352.7114 | I20: ='1.1 SNAR Nac'!D67 -> 249049.4909 | J20: ='1.1 SNAR Nac'!E67 -> 264615.0841
B21: N° Operaciones | C21: =+'1.1 SNAR Nac'!C39 -> 1177 | D21: =+'1.1 SNAR Nac'!D39 -> 3729 | E21: =+'1.1 SNAR Nac'!E39 -> 164 | F21: =+'1.1 SNAR Nac'!F39 -> 2030 | G21: =+'1.1 SNAR Nac'!G39 -> 3825 | H21: =IFERROR(G21*(H20/G20),0) -> 3257.297326 | I21: =IFERROR(H21*(I20/H20),0) -> 4008.981325 | J21: 4259.542658
B23: B. SNAR Internacional
B24: En Kilómetros recorridos
B26: Usuarios atribuibles (KM) | C26: =C28+C37 -> 76765499.64 | D26: 80424520.97 | E26: 80707610.26 | F26: 24869238.11 | G26: 29618643.68 | H26: 56937868.35 | I26: 70077376.43 | J26: 74457212.45
B28: 1. Por rango de PMD: | C28: =SUM(C29:C34) -> 76737612.83 | D28: 80357152.08 | E28: 80617724.71 | F28: 24791413.34 | G28: 29547601.2 | H28: 56848560.29 | I28: 69967458.81 | J28: 74340424.99
B29: Hasta 5,7TM | C29: =+'1.2 SNAR Int'!C8 -> 485407.28 | D29: =+'1.2 SNAR Int'!D8 -> 378017.84 | E29: =+'1.2 SNAR Int'!E8 -> 370572.65 | F29: =+'1.2 SNAR Int'!F8 -> 230598.49 | G29: =+'1.2 SNAR Int'!G8 -> 309126.13 | H29: ='1.2 SNAR Int'!C61 -> 402259.0884 | I29: ='1.2 SNAR Int'!D61 -> 495088.1088 | J29: ='1.2 SNAR Int'!E61 -> 526031.1156
B30: Más de 5,7TM a 10TM | C30: =+'1.2 SNAR Int'!C9 -> 615817.42 | D30: =+'1.2 SNAR Int'!D9 -> 618794.82 | E30: =+'1.2 SNAR Int'!E9 -> 689532.75 | F30: =+'1.2 SNAR Int'!F9 -> 340332.44 | G30: =+'1.2 SNAR Int'!G9 -> 691237.92 | H30: ='1.2 SNAR Int'!C62 -> 697859.7263 | I30: ='1.2 SNAR Int'!D62 -> 858904.2786 | J30: ='1.2 SNAR Int'!E62 -> 912585.796
B31: Más de 10TM a 35TM | C31: =+'1.2 SNAR Int'!C10 -> 1116701.69 | D31: =+'1.2 SNAR Int'!D10 -> 1153058.11 | E31: =+'1.2 SNAR Int'!E10 -> 1203435.4 | F31: =+'1.2 SNAR Int'!F10 -> 371663.46 | G31: =+'1.2 SNAR Int'!G10 -> 526865.73 | H31: ='1.2 SNAR Int'!C63 -> 871469.8327 | I31: ='1.2 SNAR Int'!D63 -> 1072578.256 | J31: ='1.2 SNAR Int'!E63 -> 1139614.397
B32: Más de 35TM a 70TM | C32: =+'1.2 SNAR Int'!C11 -> 9122469.82 | D32: =+'1.2 SNAR Int'!D11 -> 6029414.03 | E32: =+'1.2 SNAR Int'!E11 -> 5793638.12 | F32: =+'1.2 SNAR Int'!F11 -> 1885698.23 | G32: =+'1.2 SNAR Int'!G11 -> 2912792.67 | H32: ='1.2 SNAR Int'!C64 -> 5007784.11 | I32: ='1.2 SNAR Int'!D64 -> 6163426.597 | J32: ='1.2 SNAR Int'!E64 -> 6548640.759
B33: Más de 70TM a 105TM | C33: =+'1.2 SNAR Int'!C12 -> 42803624.45 | D33: =+'1.2 SNAR Int'!D12 -> 49903206.61 | E33: =+'1.2 SNAR Int'!E12 -> 50457353.21 | F33: =+'1.2 SNAR Int'!F12 -> 12254787.1 | G33: =+'1.2 SNAR Int'!G12 -> 13724697.82 | H33: ='1.2 SNAR Int'!C65 -> 31423133.43 | I33: ='1.2 SNAR Int'!D65 -> 38674625.76 | J33: ='1.2 SNAR Int'!E65 -> 41091789.87
B34: Más de 105TM | C34: =+'1.2 SNAR Int'!C13 -> 22593592.17 | D34: =+'1.2 SNAR Int'!D13 -> 22274660.67 | E34: =+'1.2 SNAR Int'!E13 -> 22103192.58 | F34: =+'1.2 SNAR Int'!F13 -> 9708333.62 | G34: =+'1.2 SNAR Int'!G13 -> 11382880.93 | H34: ='1.2 SNAR Int'!C66 -> 18446054.1 | I34: ='1.2 SNAR Int'!D66 -> 22702835.81 | J34: ='1.2 SNAR Int'!E66 -> 24121763.05
B36: 2. Cargo mínimo:
B37: Kilómetros recorridos | C37: =+'1.2 SNAR Int'!C14 -> 27886.81 | D37: =+'1.2 SNAR Int'!D14 -> 67368.89 | E37: =+'1.2 SNAR Int'!E14 -> 89885.55 | F37: =+'1.2 SNAR Int'!F14 -> 77824.77 | G37: =+'1.2 SNAR Int'!G14 -> 71042.48 | H37: ='1.2 SNAR Int'!C67 -> 89308.05996 | I37: ='1.2 SNAR Int'!D67 -> 109917.6123 | J37: ='1.2 SNAR Int'!E67 -> 116787.463
B38: N° Operaciones | C38: =+'1.2 SNAR Int'!C39 -> 474 | D38: =+'1.2 SNAR Int'!D39 -> 956 | E38: =+'1.2 SNAR Int'!E39 -> 1348 | F38: =+'1.2 SNAR Int'!F39 -> 1051 | G38: =+'1.2 SNAR Int'!G39 -> 1191 | H38: =IFERROR(G38*(H37/G37),0) -> 1497.21546 | I38: =IFERROR(H38*(I37/H37),0) -> 1842.726721 | J38: =IFERROR(I38*(J37/I37),0) -> 1957.897141
B40: C. Aproximación
B41: En Toneladas (PMD)
B43: Usuarios atribuibles (TM): | C43: =C45+C53 -> 3651843.52 | D43: 3965713.13 | E43: 4220184.13 | F43: 1538493.82 | G43: 2464258.42 | H43: 3140065.469 | I43: 3864695.962 | J43: 4106239.459
B45: 1. Por rango de PMD: | C45: =SUM(C46:C50) -> 3647244.13 | D45: 3959311.65 | E45: 4212495.73 | F45: 1533036.51 | G45: 2457841.78 | H45: 3133253.691 | I45: 3856312.236 | J45: 4097331.75
B46: Hasta 10TM | C46: =+'1.3 Aprox'!C8 -> 66306.96 | D46: =+'1.3 Aprox'!D8 -> 65464.57 | E46: =+'1.3 Aprox'!E8 -> 64816.56 | F46: =+'1.3 Aprox'!F8 -> 48547.29 | G46: =+'1.3 Aprox'!G8 -> 69705.41 | H46: ='1.3 Aprox'!C57 -> 68996.72659 | I46: ='1.3 Aprox'!D57 -> 84919.04811 | J46: ='1.3 Aprox'!E57 -> 90226.48861
B47: Más de 10TM a 35TM | C47: =+'1.3 Aprox'!C9 -> 81510.94 | D47: =+'1.3 Aprox'!D9 -> 74015.19 | E47: =+'1.3 Aprox'!E9 -> 49962.25 | F47: =+'1.3 Aprox'!F9 -> 14328.59 | G47: =+'1.3 Aprox'!G9 -> 37157.66 | H47: ='1.3 Aprox'!C58 -> 48492.14031 | I47: ='1.3 Aprox'!D58 -> 59682.63423 | J47: ='1.3 Aprox'!E58 -> 63412.79887
B48: Más de 35TM a 70TM | C48: =+'1.3 Aprox'!C10 -> 1394281.98 | D48: =+'1.3 Aprox'!D10 -> 1396165.82 | E48: =+'1.3 Aprox'!E10 -> 1198967.94 | F48: =+'1.3 Aprox'!F10 -> 334333.06 | G48: =+'1.3 Aprox'!G10 -> 440702.69 | H48: ='1.3 Aprox'!C59 -> 888082.3877 | I48: ='1.3 Aprox'!D59 -> 1093024.477 | J48: ='1.3 Aprox'!E59 -> 1161338.507
B49: Más de 70TM a 105TM | C49: =+'1.3 Aprox'!C11 -> 2103748.95 | D49: =+'1.3 Aprox'!D11 -> 2420836.48 | E49: =+'1.3 Aprox'!E11 -> 2897645.34 | F49: =+'1.3 Aprox'!F11 -> 1135596.67 | G49: =+'1.3 Aprox'!G11 -> 1909436.6 | H49: ='1.3 Aprox'!C60 -> 2126521.976 | I49: ='1.3 Aprox'!D60 -> 2617257.817 | J49: ='1.3 Aprox'!E60 -> 2780836.43
B50: Más de 105TM | C50: =+'1.3 Aprox'!C12 -> 1395.3 | D50: =+'1.3 Aprox'!D12 -> 2829.59 | E50: =+'1.3 Aprox'!E12 -> 1103.64 | F50: =+'1.3 Aprox'!F12 -> 230.9 | G50: =+'1.3 Aprox'!G12 -> 839.42 | H50: ='1.3 Aprox'!C61 -> 1160.460815 | I50: ='1.3 Aprox'!D61 -> 1428.259464 | J50: ='1.3 Aprox'!E61 -> 1517.525681
B52: 2. Cargo mínimo:
B53: Toneladas (PMD) | C53: =+'1.3 Aprox'!C13 -> 4599.39 | D53: =+'1.3 Aprox'!D13 -> 6401.48 | E53: =+'1.3 Aprox'!E13 -> 7688.4 | F53: =+'1.3 Aprox'!F13 -> 5457.31 | G53: =+'1.3 Aprox'!G13 -> 6416.64 | H53: ='1.3 Aprox'!C62 -> 6811.777503 | I53: ='1.3 Aprox'!D62 -> 8383.726157 | J53: ='1.3 Aprox'!E62 -> 8907.709042
B54: N° Operaciones | C54: =+'1.3 Aprox'!C36 -> 2891 | D54: =+'1.3 Aprox'!D36 -> 4034 | E54: =+'1.3 Aprox'!E36 -> 4778 | F54: =+'1.3 Aprox'!F36 -> 3423 | G54: =+'1.3 Aprox'!G36 -> 4058 | H54: =IFERROR(G54*(H53/G53),0) -> 4307.892153 | I54: =IFERROR(H54*(I53/H53),0) -> 5302.021112 | J54: =IFERROR(I54*(J53/I53),0) -> 5633.397431
B56: D. Sobrevuelo
B57: En Kilómetros recorridos
B59: Usuarios atribuibles (KM): | C59: =C61 -> 44112792.8 | D59: 45840674.03 | E59: 45342728.73 | F59: 23258811.94 | G59: 28747071.59 | H59: 40944957.25 | I59: 50393793.54 | J59: 53543405.64
B61: 1. Por rango de PMD: | C61: =SUM(C62:C65) -> 44112792.8 | D61: 45840674.03 | E61: 45342728.73 | F61: 23258811.94 | G61: 28747071.59 | H61: 40944957.25 | I61: 50393793.54 | J61: 53543405.64
B62: Hasta 55TM | C62: =+'1.4 Sobrev'!C8 -> 1760455.98 | D62: =+'1.4 Sobrev'!D8 -> 1911435.67 | E62: =+'1.4 Sobrev'!E8 -> 1720224.35 | F62: =+'1.4 Sobrev'!F8 -> 1198678.62 | G62: =+'1.4 Sobrev'!G8 -> 1877258.96 | H62: ='1.4 Sobrev'!C49 -> 1935737.118 | I62: ='1.4 Sobrev'!D49 -> 2382445.683 | J62: ='1.4 Sobrev'!E49 -> 2531348.539
B63: Más de 55TM a 115TM | C63: =+'1.4 Sobrev'!C9 -> 15802264.12 | D63: =+'1.4 Sobrev'!D9 -> 16906620.63 | E63: =+'1.4 Sobrev'!E9 -> 15901396.1 | F63: =+'1.4 Sobrev'!F9 -> 5252411.84 | G63: =+'1.4 Sobrev'!G9 -> 7073044.82 | H63: ='1.4 Sobrev'!C50 -> 12689650.83 | I63: ='1.4 Sobrev'!D50 -> 15618031.8 | J63: ='1.4 Sobrev'!E50 -> 16594158.78
B64: Más de 115TM a 200TM | C64: =+'1.4 Sobrev'!C10 -> 3938980.86 | D64: =+'1.4 Sobrev'!D10 -> 4527278.58 | E64: =+'1.4 Sobrev'!E10 -> 4167078.07 | F64: =+'1.4 Sobrev'!F10 -> 2400663.64 | G64: =+'1.4 Sobrev'!G10 -> 3334285.46 | H64: ='1.4 Sobrev'!C51 -> 4087605.057 | I64: ='1.4 Sobrev'!D51 -> 5030898.531 | J64: ='1.4 Sobrev'!E51 -> 5345329.69
B65: Más de 200TM | C65: =+'1.4 Sobrev'!C11 -> 22611091.84 | D65: =+'1.4 Sobrev'!D11 -> 22495339.15 | E65: =+'1.4 Sobrev'!E11 -> 23554030.21 | F65: =+'1.4 Sobrev'!F11 -> 14407057.84 | G65: =+'1.4 Sobrev'!G11 -> 16462482.35 | H65: ='1.4 Sobrev'!C52 -> 22231964.24 | I65: ='1.4 Sobrev'!D52 -> 27362417.53 | J65: ='1.4 Sobrev'!E52 -> 29072568.62

Sheet 1.1 SNAR Nac
B1: 1.1 SNAR NACIONAL - Información de demanda | H1: Índice
B3: 1. Información histórica: Expresada en kilómetros recorridos facturados (Fuente: CORPAC S.A.)
B5: 1.1 Por tipo de usuario / Rango de PMD:
C6: 2017 | D6: 2018 | E6: 2019 | F6: 2020 | G6: 2021
B7: A. Usuarios atribuibles: | C7: =SUM(C8:C14) -> 75128319.21 | D7: 80835290.16 | E7: 86859755.46 | F7: 32977805.86 | G7: 52195747.65
B8: (>0-5,7) | C8: 6939199.39 | D8: 8508094.66 | E8: 8030860.25 | F8: 3764264.61 | G8: 5206134.57
B9: (>5,7-10) | C9: 1245673.92 | D9: 1831020.14 | E9: 2926524.77 | F9: 1969449.46 | G9: 2200070.67
B10: (>10-35) | C10: 3715496.84 | D10: 3337703.41 | E10: 3403595.85 | F10: 960343.17 | G10: 2035358.31
B11: (>35-70) | C11: 26323247.19 | D11: 25384535.14 | E11: 21563981.99 | F11: 5441464.51 | G11: 7394673.77
B12: (>70-105) | C12: 36774553.35 | D12: 41410605.13 | E12: 50920249.78 | F12: 20718475.22 | G12: 35119196.68
B13: (>105) | C13: 707.48 | D13: 1257.92 | E13: 4352.7 | F13: 2371.31 | G13: 2693.61
B14: Cargo mínimo | C14: 129441.04 | D14: 362073.76 | E14: 10190.12 | F14: 121437.58 | G14: 237620.04
B15: B. Otros usuarios: | C15: =SUM(C16) -> 4637591.19 | D15: 3887712.14 | E15: 787330.93 | F15: 5722267 | G15: 4266231.23
B16: Tarifa de USD 1 | C16: 4637591.19 | D16: 3887712.14 | E16: 787330.93 | F16: 5722267 | G16: 4266231.23
B17: Total | C17: =C7+C15 -> 79765910.4 | D17: 84723002.3 | E17: 87647086.39 | F17: 38700072.86 | G17: 56461978.88
B19: * Estructura de distribución * | C19: 2017 | D19: 2018 | E19: 2019 | F19: 2020 | G19: 2021 | H19: Prom 2017-21
B20: A. Atribuibles: | C20: =C7/C$17 -> 0.9418599855 | D20: 0.9541126727 | E20: 0.9910170325 | F20: 0.852138082 | G20: 0.9244406357 | H20: =AVERAGE(C20:G20) -> 0.9327136817
B21: (>0-5,7) | C21: =C8/C$7 -> 0.09236462978 | D21: 0.1052522313 | E21: 0.09245778102 | F21: 0.114145393 | G21: 0.09974250402 | H21: =AVERAGE(C21:G21) -> 0.1007925078
B22: (>5,7-10) | C22: 0.01658061744 | D22: 0.0226512472 | E22: 0.03369252831 | F22: 0.05972045164 | G22: 0.04215038138 | H22: 0.0349590452
B23: (>10-35) | C23: 0.04945534359 | D23: 0.04129017665 | E23: 0.03918495777 | F23: 0.02912089343 | G23: 0.03899471512 | H23: 0.03960921731
B24: (>35-70) | C24: 0.3503771609 | D24: 0.3140278842 | E24: 0.2482620619 | F24: 0.1650038372 | G24: 0.141671958 | H24: 0.2438685805
B25: (>70-105) | C25: 0.4894898986 | D25: 0.5122837445 | E25: 0.5862352422 | F25: 0.6282551152 | G25: 0.6728363566 | H25: 0.5778200714
B26: (>105) | C26: 9.416954984e-06 | D26: 1.556152019e-05 | E26: 5.011181504e-05 | F26: 7.190623931e-05 | G26: 5.160592809e-05 | H26: 3.972049152e-05
B27: Cargo mínimo | C27: 0.001722932728 | D27: 0.004479154578 | E27: 0.0001173169317 | F27: 0.003682403266 | G27: 0.004552478903 | H27: 0.002910857281
B28: B. Otros usuarios: | C28: =C15/C$17 -> 0.05814001453 | D28: 0.04588732734 | E28: 0.008982967517 | F28: 0.147861918 | G28: 0.07555936428 | H28: 0.06728631834
B30: 1.2 Por tipo de cobro / Rango de PMD: Expresado en número de operaciones (Fuente: CORPAC S.A.)
C31: 2017 | D31: 2018 | E31: 2019 | F31: 2020 | G31: 2021
B32: A. Usuarios atribuibles: | C32: =SUM(C33:C39) -> 149952 | D32: 155992 | E32: 172462 | F32: 63562 | G32: 99723
B33: (>0-5,7) | C33: 40323 | D33: 37755 | E33: 45551 | F33: 16499 | G33: 24035
B34: (>5,7-10) | C34: 3720 | D34: 5422 | E34: 8268 | F34: 5345 | G34: 6463
B35: (>10-35) | C35: 9333 | D35: 7945 | E35: 10474 | F35: 2097 | G35: 4609
B36: (>35-70) | C36: 42855 | D36: 41425 | E36: 34592 | F36: 8846 | G36: 11814
B37: (>70-105) | C37: 52543 | D37: 59714 | E37: 73409 | F37: 28741 | G37: 48974
B38: (>105) | C38: 1 | D38: 2 | E38: 4 | F38: 4 | G38: 3
B39: Cargo mínimo | C39: 1177 | D39: 3729 | E39: 164 | F39: 2030 | G39: 3825
B40: B. Otros usuarios: | C40: =SUM(C41) -> 15839 | D40: 16074 | E40: 3885 | F40: 21676 | G40: 18295
B41: Tarifa de USD 1 | C41: 15839 | D41: 16074 | E41: 3885 | F41: 21676 | G41: 18295
B42: Total | C42: =C32+C40 -> 165791 | D42: 172066 | E42: 176347 | F42: 85238 | G42: 118018
B44: * Estructura de distribución * | C44: 2017 | D44: 2018 | E44: 2019 | F44: 2020 | G44: 2021
B45: A. Atribuibles: | C45: =C32/C$42 -> 0.9044640541 | D45: 0.9065823579 | E45: 0.9779695714 | F45: 0.7457002745 | G45: 0.844981274
B46: (>0-5,7) | C46: =C33/C$32 -> 0.2689060499 | D46: 0.2420316426 | E46: 0.2641219515 | F46: 0.25957333 | G46: 0.2410176188
B47: (>5,7-10) | C47: =C34/C$32 -> 0.02480793854 | D47: 0.03475819273 | E47: 0.0479409957 | F47: 0.08409112363 | G47: 0.06480952238
B48: (>10-35) | C48: 0.06223991677 | D48: 0.05093209908 | E48: 0.06073221927 | F48: 0.03299140996 | G48: 0.04621802393
B49: (>35-70) | C49: 0.2857914533 | D49: 0.2655584902 | E49: 0.2005775185 | F49: 0.1391712029 | G49: 0.1184681568
B50: (>70-105) | C50: 0.3503987943 | D50: 0.3828016821 | E50: 0.4256531874 | F50: 0.4521726818 | G50: 0.491100348
B51: (>105) | C51: 6.668800683e-06 | D51: 1.282117032e-05 | E51: 2.319351509e-05 | F51: 6.293068185e-05 | G51: 3.008333083e-05
B52: Cargo mínimo | C52: =C39/C$32 -> 0.007849178404 | D52: 0.02390507205 | E52: 0.0009509341188 | F52: 0.03193732104 | G52: 0.0383562468
B53: B. Otros usuarios: | C53: =C40/C$42 -> 0.09553594586 | D53: 0.09341764207 | E53: 0.02203042864 | F53: 0.2542997255 | G53: 0.155018726
B55: 2. Proyección de demanda para SNAR Nacional
B56: (Expresada en kilómetros recorridos)
B58: 2.1 Por tipo de usuario / Rango de PMD:
C60: 2022 | D60: 2023 | E60: 2024
B61: Hasta 5,7TM | C61: =+C$68*$H21 -> 7006745.874 | D61: 8623687.229 | E61: 9162667.681
B62: Más de 5,7TM a 10TM | C62: 2430231.68 | D62: 2991054.376 | E62: 3177995.274
B63: Más de 10TM a 35TM | C63: 2753495.532 | D63: 3388917.578 | E63: 3600724.926
B64: Más de 35TM a 70TM | C64: 16952898.65 | D64: 20865106.03 | E64: 22169175.16
B65: Más de 70TM a 105TM | C65: 40168049.08 | D65: 49437598.86 | E65: 52527448.79
B66: Más de 105TM | C66: 2761.230929 | D66: 3398.438067 | E66: 3610.840446
B67: Cargo mínimo | C67: 202352.7114 | D67: 249049.4909 | E67: 264615.0841
B68: Total Usuarios atribuibles | C68: =+G7*(1+'1.5 Tasas'!F38) -> 69516534.75 | D68: =C68*(1+'1.5 Tasas'!G38) -> 85558812 | E68: =D68*(1+'1.5 Tasas'!H38) -> 90906237.76

Sheet 1.2 SNAR Int
B1: 1.2 SNAR INTERNACIONAL - Información de demanda | H1: Índice
B3: 1. Información histórica: Expresada en kilómetros recorridos facturados (Fuente: CORPAC S.A.)
B5: 1.1 Por tipo de usuario / Rango de PMD:
C6: 2017 | D6: 2018 | E6: 2019 | F6: 2020 | G6: 2021
B7: A. Usuarios atribuibles: | C7: =SUM(C8:C14) -> 76765499.64 | D7: 80424520.97 | E7: 80707610.26 | F7: 24869238.11 | G7: 29618643.68
B8: (>0-5,7) | C8: 485407.28 | D8: 378017.84 | E8: 370572.65 | F8: 230598.49 | G8: 309126.13
B9: (>5,7-10) | C9: 615817.42 | D9: 618794.82 | E9: 689532.75 | F9: 340332.44 | G9: 691237.92
B10: (>10-35) | C10: 1116701.69 | D10: 1153058.11 | E10: 1203435.4 | F10: 371663.46 | G10: 526865.73
B11: (>35-70) | C11: 9122469.82 | D11: 6029414.03 | E11: 5793638.12 | F11: 1885698.23 | G11: 2912792.67
B12: (>70-105) | C12: 42803624.45 | D12: 49903206.61 | E12: 50457353.21 | F12: 12254787.1 | G12: 13724697.82
B13: (>105) | C13: 22593592.17 | D13: 22274660.67 | E13: 22103192.58 | F13: 9708333.62 | G13: 11382880.93
B14: Cargo mínimo | C14: 27886.81 | D14: 67368.89 | E14: 89885.55 | F14: 77824.77 | G14: 71042.48
B15: B. Otros usuarios: | C15: =SUM(C16) -> 146303.54 | D15: 131091.61 | E15: 107600.64 | F15: 788671.45 | G15: 29103.2
B16: Tarifa de USD 1 | C16: 146303.54 | D16: 131091.61 | E16: 107600.64 | F16: 788671.45 | G16: 29103.2
B17: Total | C17: =C7+C15 -> 76911803.18 | D17: 80555612.58 | E17: 80815210.9 | F17: 25657909.56 | G17: 29647746.88
B19: Estructura de distribución | C19: 2017 | D19: 2018 | E19: 2019 | F19: 2020 | G19: 2021 | H19: Prom 2017-21
B20: A. Atribuibles: | C20: =C7/C$17 -> 0.9980977752 | D20: 0.998372657 | E20: 0.9986685596 | F20: 0.9692620536 | G20: 0.9990183672 | H20: =AVERAGE(C20:G20) -> 0.9926838825
B21: (>0-5,7) | C21: =C8/C$7 -> 0.006323247843 | D21: 0.004700280902 | E21: 0.004591545318 | F21: 0.009272438865 | G21: 0.01043687663 | H21: =AVERAGE(C21:G21) -> 0.007064877911
B22: (>5,7-10) | C22: 0.008022059687 | D22: 0.007694106381 | E22: 0.008543590224 | F22: 0.01368487601 | G22: 0.02333793294 | H22: 0.01225651305
B23: (>10-35) | C23: 0.01454692141 | D23: 0.01433714614 | E23: 0.01491105233 | F23: 0.01494470632 | G23: 0.01778831386 | H23: 0.01530562801
B24: (>35-70) | C24: 0.1188355428 | D24: 0.07496984697 | E24: 0.07178552433 | F24: 0.07582452754 | G24: 0.0983432159 | H24: 0.08795173151
B25: (>70-105) | C25: 0.5575893422 | D25: 0.6204974056 | E25: 0.6251870554 | F25: 0.4927688997 | G25: 0.4633803616 | H25: 0.5518846129
B26: (>105) | C26: 0.2943196133 | D26: 0.2769635479 | E26: 0.273867514 | F26: 0.3903751927 | G26: 0.384314726 | H26: 0.3239681188
B27: Cargo mínimo | C27: 0.0003632726958 | D27: 0.00083766604 | E27: 0.001113718393 | F27: 0.003129358835 | G27: 0.002398573033 | H27: 0.001568517799
B28: B. Otros usuarios: | C28: =C15/C$17 -> 0.001902224808 | D28: 0.001627342972 | E28: 0.001331440441 | F28: 0.03073794645 | G28: 0.0009816327736 | H28: 0.007316117488
B30: 1.2 Por tipo de cobro / Rango de PMD: Expresado en número de operaciones (Fuente: CORPAC S.A.)
C31: 2017 | D31: 2018 | E31: 2019 | F31: 2020 | G31: 2021
B32: A. Usuarios atribuibles: | C32: =SUM(C33:C39) -> 83565 | D32: 87406 | E32: 89512 | F32: 28555 | G32: 33232
B33: (>0-5,7) | C33: 2106 | D33: 1340 | E33: 1539 | F33: 1099 | G33: 1232
B34: (>5,7-10) | C34: 1021 | D34: 924 | E34: 1067 | F34: 500 | G34: 1019
B35: (>10-35) | C35: 1369 | D35: 1429 | E35: 1848 | F35: 419 | G35: 598
B36: (>35-70) | C36: 9877 | D36: 6687 | E36: 6248 | F36: 2161 | G36: 2966
B37: (>70-105) | C37: 44350 | D37: 52219 | E37: 53386 | F37: 12995 | G37: 14330
B38: (>105) | C38: 24368 | D38: 23851 | E38: 24076 | F38: 10330 | G38: 11896
B39: Cargo mínimo | C39: 474 | D39: 956 | E39: 1348 | F39: 1051 | G39: 1191
B40: B. Otros usuarios: | C40: =SUM(C41) -> 200 | D40: 157 | E40: 130 | F40: 885 | G40: 46
B41: Tarifa de USD 1 | C41: 200 | D41: 157 | E41: 130 | F41: 885 | G41: 46
B42: Total | C42: =C32+C40 -> 83765 | D42: 87563 | E42: 89642 | F42: 29440 | G42: 33278
B44: Estructura de distribución | C44: 2017 | D44: 2018 | E44: 2019 | F44: 2020 | G44: 2021
B45: A. Atribuibles: | C45: =C32/C$42 -> 0.9976123679 | D45: 0.9982070052 | E45: 0.9985497869 | F45: 0.9699388587 | G45: 0.9986177054
B46: (>0-5,7) | C46: =C33/C$32 -> 0.02520193861 | D46: 0.01533075533 | E46: 0.01719322549 | F46: 0.0384871301 | G46: 0.03707270101
B47: (>5,7-10) | C47: =C34/C$32 -> 0.01221803387 | D47: 0.01057135666 | E47: 0.01192018947 | F47: 0.01751006829 | G47: 0.03066321618
B48: (>10-35) | C48: 0.01638245677 | D48: 0.01634899206 | E48: 0.02064527661 | F48: 0.01467343723 | G48: 0.0179947039
B49: (>35-70) | C49: 0.1181954167 | D49: 0.07650504542 | E49: 0.06980069711 | F49: 0.07567851515 | G49: 0.08925132403
B50: (>70-105) | C50: 0.5307245857 | D50: 0.5974303824 | E50: 0.5964116543 | F50: 0.4550866748 | G50: 0.4312108811
B51: (>105) | C51: 0.2916053372 | D51: 0.2728760039 | E51: 0.2689695236 | F51: 0.3617580109 | G51: 0.3579682234
B52: Cargo mínimo | C52: 0.005672231197 | D52: 0.01093746425 | E52: 0.01505943337 | F52: 0.03680616354 | G52: 0.03583895041
B53: B. Otros usuarios: | C53: =C40/C$42 -> 0.002387632066 | D53: 0.001792994758 | E53: 0.00145021307 | F53: 0.0300611413 | G53: 0.001382294609
B55: 2. Proyección de demanda para SNAR Internacional
B56: (Expresada en kilómetros recorridos)
B58: 2.1 Por tipo de usuario / Rango de PMD:
C60: 2022 | D60: 2023 | E60: 2024
B61: Hasta 5,7TM | C61: =+C$68*$H21 -> 402259.0884 | D61: 495088.1088 | E61: 526031.1156
B62: Más de 5,7TM a 10TM | C62: 697859.7263 | D62: 858904.2786 | E62: 912585.796
B63: Más de 10TM a 35TM | C63: 871469.8327 | D63: 1072578.256 | E63: 1139614.397
B64: Más de 35TM a 70TM | C64: 5007784.11 | D64: 6163426.597 | E64: 6548640.759
B65: Más de 70TM a 105TM | C65: 31423133.43 | D65: 38674625.76 | E65: 41091789.87
B66: Más de 105TM | C66: 18446054.1 | D66: 22702835.81 | E66: 24121763.05
B67: Cargo mínimo | C67: 89308.05996 | D67: 109917.6123 | E67: 116787.463
B68: Total Usuarios atribuibles | C68: =+G7*(1+'1.5 Tasas'!F39) -> 56937868.35 | D68: =C68*(1+'1.5 Tasas'!G39) -> 70077376.43 | E68: =D68*(1+'1.5 Tasas'!H39) -> 74457212.45

Sheet 1.3 Aprox
B1: 1.3 APROXIMACIÓN - Información de demanda | H1: Índice
B3: 1. Información histórica: Expresada en toneladas/PMD facturados (Fuente: CORPAC S.A.)
B5: 1.1 Por tipo de usuario / Rango de PMD:
C6: 2017 | D6: 2018 | E6: 2019 | F6: 2020 | G6: 2021
B7: A. Usuarios atribuibles: | C7: =SUM(C8:C13) -> 3651843.52 | D7: 3965713.13 | E7: 4220184.13 | F7: 1538493.82 | G7: 2464258.42
B8: (>0-10) | C8: 66306.96 | D8: 65464.57 | E8: 64816.56 | F8: 48547.29 | G8: 69705.41
B9: (>10-35) | C9: 81510.94 | D9: 74015.19 | E9: 49962.25 | F9: 14328.59 | G9: 37157.66
B10: (>35-70) | C10: 1394281.98 | D10: 1396165.82 | E10: 1198967.94 | F10: 334333.06 | G10: 440702.69
B11: (>70-105) | C11: 2103748.95 | D11: 2420836.48 | E11: 2897645.34 | F11: 1135596.67 | G11: 1909436.6
B12: (>105) | C12: 1395.3 | D12: 2829.59 | E12: 1103.64 | F12: 230.9 | G12: 839.42
B13: Cargo mínimo | C13: 4599.39 | D13: 6401.48 | E13: 7688.4 | F13: 5457.31 | G13: 6416.64
B14: B. Otros usuarios: | C14: =SUM(C15) -> 116430.21 | D14: 93347.33 | E14: 108165.82 | F14: 138188.05 | G14: 109054.48
B15: Tarifa de USD1 | C15: 116430.21 | D15: 93347.33 | E15: 108165.82 | F15: 138188.05 | G15: 109054.48
B16: Total | C16: =C7+C14 -> 3768273.73 | D16: 4059060.46 | E16: 4328349.95 | F16: 1676681.87 | G16: 2573312.9
B18: Estructura de distribución | C18: 2017 | D18: 2018 | E18: 2019 | F18: 2020 | G18: 2021 | H18: Prom 2017-21
B19: A. Atribuibles: | C19: =C7/C$16 -> 0.9691025073 | D19: 0.9770027249 | E19: 0.975009918 | F19: 0.9175824272 | G19: 0.9576209796 | H19: =AVERAGE(C19:G19) -> 0.9592637114
B20: (>0-10) | C20: =C8/C$7 -> 0.01815711972 | D20: 0.01650764134 | E20: 0.01535870427 | F20: 0.03155507638 | G20: 0.02828656663 | H20: =AVERAGE(C20:G20) -> 0.02197302167
B21: (>10-35) | C21: 0.02232049088 | D21: 0.01866377813 | E21: 0.01183887917 | F21: 0.009313388077 | G21: 0.01507863773 | H21: 0.0154430348
B22: (>35-70) | C22: 0.3818022246 | D22: 0.3520592071 | E22: 0.2841032294 | F22: 0.2173119291 | G22: 0.178837855 | H22: 0.2828228891
B23: (>70-105) | C23: 0.576078613 | D23: 0.6104416534 | E23: 0.6866158563 | F23: 0.7381223475 | G23: 0.7748524199 | H23: 0.677222178
B24: (>105) | C24: 0.0003820809934 | D24: 0.0007135135365 | E24: 0.0002615146558 | F24: 0.0001500818508 | G24: 0.0003406379758 | H24: 0.0003695658025
B25: Cargo mínimo | C25: 0.001259470723 | D25: 0.001614206522 | E25: 0.001821816244 | F25: 0.00354717707 | G25: 0.002603882753 | H25: 0.002169310663
B26: B. Otros usuarios: | C26: =C14/C$16 -> 0.03089749268 | D26: 0.02299727509 | E26: 0.02499008196 | F26: 0.08241757275 | G26: 0.04237902044 | H26: 0.04073628859
B28: 1.2 Por tipo de cobro / Rango de PMD: Expresado en número de operaciones (Fuente: CORPAC S.A.)
C29: 2017 | D29: 2018 | E29: 2019 | F29: 2020 | G29: 2021
B30: A. Usuarios atribuibles: | C30: =SUM(C31:C36) -> 72346 | D30: 76014 | E30: 77068 | F30: 33263 | G30: 51149
B31: (>0-10) | C31: 13993 | D31: 13287 | E31: 12762 | F31: 9168 | G31: 13682
B32: (>10-35) | C32: 3578 | D32: 3167 | E32: 2753 | F32: 713 | G32: 1783
B33: (>35-70) | C33: 24360 | D33: 23816 | E33: 18726 | F33: 5041 | G33: 6629
B34: (>70-105) | C34: 27520 | D34: 31697 | E34: 38044 | F34: 14917 | G34: 24992
B35: (>105) | C35: 4 | D35: 13 | E35: 5 | F35: 1 | G35: 5
B36: Cargo mínimo | C36: 2891 | D36: 4034 | E36: 4778 | F36: 3423 | G36: 4058
B37: B. Otros usuarios: | C37: =SUM(C38) -> 6559 | D37: 6078 | E37: 7497 | F37: 11450 | G37: 11924
B38: Tarifa de USD 1 | C38: 6559 | D38: 6078 | E38: 7497 | F38: 11450 | G38: 11924
B39: Total | C39: =C30+C37 -> 78905 | D39: 82092 | E39: 84565 | F39: 44713 | G39: 63073
B41: Estructura de distribución | C41: 2017 | D41: 2018 | E41: 2019 | F41: 2020 | G41: 2021
B42: A. Atribuibles: | C42: =C30/C$39 -> 0.9168747228 | D42: 0.9259611168 | E42: 0.9113463017 | F42: 0.7439223492 | G42: 0.8109492176
B43: (>0-10) | C43: =C31/C$30 -> 0.1934177425 | D43: 0.174796748 | E43: 0.1655940209 | F43: 0.2756215615 | G43: 0.2674930106
B44: (>10-35) | C44: =C32/C$30 -> 0.04945677715 | D44: 0.0416633778 | E44: 0.03572170032 | F44: 0.02143522833 | G44: 0.03485894152
B45: (>35-70) | C45: 0.3367152296 | D45: 0.3133107059 | E45: 0.2429802253 | F45: 0.15154977 | G45: 0.1296017517
B46: (>70-105) | C46: 0.3803942167 | D46: 0.4169889757 | E46: 0.4936419785 | F46: 0.4484562427 | G46: 0.4886117031
B47: (>105) | C47: 5.528985708e-05 | D47: 0.0001710211277 | E47: 6.487777028e-05 | F47: 3.006343385e-05 | G47: 9.775362177e-05
B48: Cargo mínimo | C48: =C36/C$30 -> 0.0399607442 | D48: 0.05306917147 | E48: 0.06199719728 | F48: 0.1029071341 | G48: 0.07933683943
B49: B. Otros usuarios: | C49: =C37/C$39 -> 0.08312527723 | D49: 0.0740388832 | E49: 0.08865369834 | F49: 0.2560776508 | G49: 0.1890507824
B51: 2. Proyección de demanda para Aproximación
B52: (Expresada en toneladas/PMD facturados)
B54: 2.1 Por tipo de usuario / Rango de PMD:
C56: 2022 | D56: 2023 | E56: 2024
B57: Hasta 10TM | C57: =+C$63*$H20 -> 68996.72659 | D57: 84919.04811 | E57: 90226.48861
B58: Más de 10TM a 35TM | C58: 48492.14031 | D58: 59682.63423 | E58: 63412.79887
B59: Más de 35TM a 70TM | C59: 888082.3877 | D59: 1093024.477 | E59: 1161338.507
B60: Más de 70TM a 105TM | C60: 2126521.976 | D60: 2617257.817 | E60: 2780836.43
B61: Más de 105TM | C61: 1160.460815 | D61: 1428.259464 | E61: 1517.525681
B62: Cargo mínimo | C62: 6811.777503 | D62: 8383.726157 | E62: 8907.709042
B63: Total Usuarios atribuibles | C63: =G7*(1+'1.5 Tasas'!F40) -> 3140065.469 | D63: =C63*(1+'1.5 Tasas'!G40) -> 3864695.962 | E63: =D63*(1+'1.5 Tasas'!H40) -> 4106239.459

Sheet 1.4 Sobrev
B1: 1.4 SOBREVUELO - Información de demanda | H1: Índice
B3: 1. Información histórica: Expresada en kilómetros recorridos facturados (Fuente: CORPAC S.A.)
B5: 1.1 Por tipo de usuario / Rango de PMD:
C6: 2017 | D6: 2018 | E6: 2019 | F6: 2020 | G6: 2021
B7: A. Usuarios atribuibles: | C7: =SUM(C8:C11) -> 44112792.8 | D7: 45840674.03 | E7: 45342728.73 | F7: 23258811.94 | G7: 28747071.59
B8: (>0-55) | C8: 1760455.98 | D8: 1911435.67 | E8: 1720224.35 | F8: 1198678.62 | G8: 1877258.96
B9: (>55-115) | C9: 15802264.12 | D9: 16906620.63 | E9: 15901396.1 | F9: 5252411.84 | G9: 7073044.82
B10: (>115-200) | C10: 3938980.86 | D10: 4527278.58 | E10: 4167078.07 | F10: 2400663.64 | G10: 3334285.46
B11: (>200) | C11: 22611091.84 | D11: 22495339.15 | E11: 23554030.21 | F11: 14407057.84 | G11: 16462482.35
B12: B. Otros usuarios: | C12: =SUM(C13) -> 119173.05 | D12: 121701.84 | E12: 129442.92 | F12: 59094.3 | G12: 56762.9
B13: Tarifa de USD 1 | C13: 119173.05 | D13: 121701.84 | E13: 129442.92 | F13: 59094.3 | G13: 56762.9
B14: Total | C14: =C7+C12 -> 44231965.85 | D14: 45962375.87 | E14: 45472171.65 | F14: 23317906.24 | G14: 28803834.49
B16: Estructura de distribución | C16: 2017 | D16: 2018 | E16: 2019 | F16: 2020 | G16: 2021 | H16: Prom 2017-21
B17: A. Atribuibles: | C17: =C7/C$14 -> 0.9973057257 | D17: 0.9973521421 | E17: 0.9971533596 | F17: 0.9974657116 | G17: 0.9980293284 | H17: =AVERAGE(C17:G17) -> 0.9974612535
B18: (>0-55) | C18: =C8/C$7 -> 0.03990805996 | D18: 0.0416973727 | E18: 0.03793826261 | F18: 0.05153653691 | G18: 0.0653026154 | H18: =AVERAGE(C18:G18) -> 0.04727656952
B19: (>55-115) | C19: 0.3582240687 | D19: 0.3688126536 | E19: 0.3506934087 | F19: 0.2258245973 | G19: 0.2460440117 | H19: 0.309919748
B20: (>115-200) | C20: 0.0892933911 | D20: 0.09876116955 | E20: 0.091901793 | F20: 0.1032152307 | G20: 0.1159869606 | H20: 0.09983170899
B21: (>200) | C21: 0.5125744802 | D21: 0.4907288042 | E21: 0.5194665356 | F21: 0.6194236351 | G21: 0.5726664122 | H21: 0.5429719735
B22: B. Otros usuarios: | C22: =C12/C$14 -> 0.002694274326 | D22: 0.002647857899 | E22: 0.00284664038 | F22: 0.00253428843 | G22: 0.001970671649 | H22: 0.002538746537
B24: 1.2 Por tipo de cobro / Rango de PMD: Expresado en número de operaciones (Fuente: CORPAC S.A.)
C25: 2017 | D25: 2018 | E25: 2019 | F25: 2020 | G25: 2021
B26: A. Usuarios atribuibles: | C26: =SUM(C27:C30) -> 34572 | D26: 36287 | E26: 35821 | F26: 16852 | G26: 21426
B27: (>0-55) | C27: 1153 | D27: 1224 | E27: 1110 | F27: 750 | G27: 1152
B28: (>55-115) | C28: 15181 | D28: 16695 | E28: 15861 | F28: 4867 | G28: 7307
B29: (>115-200) | C29: 3577 | D29: 3636 | E29: 3658 | F29: 1989 | G29: 2576
B30: (>200) | C30: 14661 | D30: 14732 | E30: 15192 | F30: 9246 | G30: 10391
B31: B. Otros usuarios: | C31: =SUM(C32) -> 81 | D31: 72 | E31: 83 | F31: 34 | G31: 41
B32: Tarifa de USD 1 | C32: 81 | D32: 72 | E32: 83 | F32: 34 | G32: 41
B33: Total | C33: =C26+C31 -> 34653 | D33: 36359 | E33: 35904 | F33: 16886 | G33: 21467
B35: Estructura de distribución | C35: 2017 | D35: 2018 | E35: 2019 | F35: 2020 | G35: 2021
B36: A. Atribuibles: | C36: =C26/C$33 -> 0.99766254 | D36: 0.9980197475 | E36: 0.9976882799 | F36: 0.9979864977 | G36: 0.9980900918
B37: (>0-55) | C37: =C27/C$26 -> 0.03335068842 | D37: 0.03373108827 | E37: 0.03098740962 | F37: 0.04450510325 | G37: 0.05376645197
B38: (>55-115) | C38: =C28/C$26 -> 0.4391125767 | D38: 0.4600821231 | E38: 0.4427849585 | F38: 0.28880845 | G38: 0.3410342574
B39: (>115-200) | C39: 0.103465232 | D39: 0.100201174 | E39: 0.1021188688 | F39: 0.1180275338 | G39: 0.1202277607
B40: (>200) | C40: 0.424071503 | D40: 0.4059856147 | E40: 0.424108763 | F40: 0.5486589129 | G40: 0.4849715299
B41: B. Otros usuarios: | C41: =C31/C$33 -> 0.00233745996 | D41: 0.001980252482 | E41: 0.002311720143 | F41: 0.00201350231 | G41: 0.001909908231
B43: 2. Proyección de demanda para Sobrevuelo
B44: (Expresada en kilómetros recorridos)
B46: 2.2 Por tipo de usuario / Rango de PMD:
C48: 2022 | D48: 2023 | E48: 2024
B49: Hasta 55TM | C49: =+C$53*$H18 -> 1935737.118 | D49: 2382445.683 | E49: 2531348.539
B50: Más de 55TM a 115TM | C50: 12689650.83 | D50: 15618031.8 | E50: 16594158.78
B51: Más de 115TM a 200TM | C51: 4087605.057 | D51: 5030898.531 | E51: 5345329.69
B52: Más de 200TM | C52: 22231964.24 | D52: 27362417.53 | E52: 29072568.62
B53: Total Usuarios atribuibles | C53: =G7*(1+'1.5 Tasas'!F41) -> 40944957.25 | D53: =C53*(1+'1.5 Tasas'!G41) -> 50393793.54 | E53: =D53*(1+'1.5 Tasas'!H41) -> 53543405.64

Sheet 1.5 Tasas
B1: 1.5 Tasas de crecimiento aplicadas a la proyección de demanda | H1: Índice
B3: 1. Proyecciones de recuperación del tráfico aéreo de pasajeros respecto del año 2019:
C4: 2019 | D4: 2020 | E4: 2021 | F4: 2022 | G4: 2023 | H4: 2024
B5: Recuperación esperada del tráfico respecto del año 2019 (en niveles)/1 | C5: 100 | D5: 40 | E5: 59 | F5: 78 | G5: 96 | H5: 102
B6: Variación esperada del tráfico respecto del año 2019 | C6: - | D6: =+D5/$C$5-1 -> -0.6 | E6: =+E5/$C$5-1 -> -0.41 | F6: =+F5/$C$5-1 -> -0.22 | G6: =+G5/$C$5-1 -> -0.04 | H6: =+H5/$C$5-1 -> 0.02
B7: /1 De acuerdo con las proyecciones de ICF a junio de 2021 (https://www.icf.com/insights/transportation/covid-19-air-traffic-recovery-update)
B9: 2. Evolución de las operaciones relacionadas a los servicios de aeronavegación de CORPAC:
C10: 2017 | D10: 2018 | E10: 2019 | F10: 2020 | G10: 2021
B11: SNAR Nacional | C11: =+'1.1 SNAR Nac'!C32 -> 149952 | D11: =+'1.1 SNAR Nac'!D32 -> 155992 | E11: =+'1.1 SNAR Nac'!E32 -> 172462 | F11: =+'1.1 SNAR Nac'!F32 -> 63562 | G11: =+'1.1 SNAR Nac'!G32 -> 99723
B12: SNAR Internacional | C12: =+'1.2 SNAR Int'!C32 -> 83565 | D12: =+'1.2 SNAR Int'!D32 -> 87406 | E12: =+'1.2 SNAR Int'!E32 -> 89512 | F12: =+'1.2 SNAR Int'!F32 -> 28555 | G12: =+'1.2 SNAR Int'!G32 -> 33232
B13: Aproximación | C13: =+'1.3 Aprox'!C30 -> 72346 | D13: =+'1.3 Aprox'!D30 -> 76014 | E13: =+'1.3 Aprox'!E30 -> 77068 | F13: =+'1.3 Aprox'!F30 -> 33263 | G13: =+'1.3 Aprox'!G30 -> 51149
B14: Sobrevuelo | C14: =+'1.4 Sobrev'!C26 -> 34572 | D14: =+'1.4 Sobrev'!D26 -> 36287 | E14: =+'1.4 Sobrev'!E26 -> 35821 | F14: =+'1.4 Sobrev'!F26 -> 16852 | G14: =+'1.4 Sobrev'!G26 -> 21426
B15: Total Operaciones relacionadas a los servicios de aeronavegación | C15: =SUM(C11:C14) -> 340435 | D15: =SUM(D11:D14) -> 355699 | E15: =SUM(E11:E14) -> 374863 | F15: =SUM(F11:F14) -> 142232 | G15: =SUM(G11:G14) -> 205530
B16: Variación de las operaciones respecto del año 2019 | C16: - | D16: =+D15/$E$15-1 -> -0.05112267682 | E16: =+E15/$E$15-1 -> 0 | F16: =+F15/$E$15-1 -> -0.6205760505 | G16: =+G15/$E$15-1 -> -0.4517196949
B18: * Estructura de distribución * | C18: 2017 | D18: 2018 | E18: 2019 | F18: 2020 | G18: 2021 | H18: Prom. 2017-21
B19: SNAR Nacional | C19: =+C11/C$15 -> 0.4404717494 | D19: 0.4385505723 | E19: 0.4600667444 | F19: 0.4468895888 | G19: 0.485199241 | H19: =AVERAGE(C19:G19) -> 0.4542355792
B20: SNAR Internacional | C20: 0.2454653605 | D20: 0.2457302382 | E20: 0.2387859031 | F20: 0.2007635413 | G20: 0.1616892911 | H20: =AVERAGE(C20:G20) -> 0.2184868668
B21: Aproximación | C21: 0.2125104646 | D21: 0.2137031591 | E21: 0.2055897755 | F21: 0.2338643906 | G21: 0.2488639128 | H21: =AVERAGE(C21:G21) -> 0.2229063405
B22: Sobrevuelo | C22: 0.1015524256 | D22: 0.1020160304 | E22: 0.09555757703 | F22: 0.1184824793 | G22: 0.1042475551 | H22: =AVERAGE(C22:G22) -> 0.1043712135
B24: 3. Estimación de tasas de crecimiento para los servicios de aeronavegación de CORPAC:
B26: 3.1. Proyección de operaciones, por servicio de aeronavegación:
C27: 2019 | D27: 2020 | E27: 2021 | F27: 2022 | G27: 2023 | H27: 2024
B28: Variación esperada del tráfico respecto del año 2019 | C28: =+C6 -> - | D28: -0.6 | E28: -0.41 | F28: -0.22 | G28: -0.04 | H28: 0.02
B29: Variación de las operaciones de CORPAC respecto del año 2019 | C29: =+E16 -> 0 | D29: =+F16 -> -0.6205760505 | E29: =+G16 -> -0.4517196949 | F29: =+F28 -> -0.22 | G29: =+G28 -> -0.04 | H29: =+H28 -> 0.02
B30: Total Operaciones relacionadas con los servicios de aeronavegación | C30: =+E15 -> 374863 | D30: =+F15 -> 142232 | E30: =+G15 -> 205530 | F30: =$C30*(1+F29) -> 292393.14 | G30: =$C30*(1+G29) -> 359868.48 | H30: =$C30*(1+H29) -> 382360.26
B31: SNAR Nacional | C31: =+E11 -> 172462 | D31: 63562 | E31: 99723 | F31: =+F$30*$H19 -> 132815.3673 | G31: 163465.0674 | H31: 173681.6342
B32: SNAR Internacional | C32: 89512 | D32: 28555 | E32: 33232 | F32: 63884.06104 | G32: 78626.53667 | H32: 83540.69521
B33: Aproximación | C33: 77068 | D33: 33263 | E33: 51149 | F33: 65176.28483 | G33: 80216.96594 | H33: 85230.52631
B34: Sobrevuelo | C34: 35821 | D34: 16852 | E34: 21426 | F34: 30517.42684 | G34: 37559.90995 | H34: 39907.40433
B36: 3.2. Cálculo de la tasa de crecimiento anual de la demanda, por servicio:
C37: 2019 | D37: 2020 | E37: 2021 | F37: 2022 | G37: 2023 | H37: 2024
B38: SNAR Nacional | C38: - | D38: =+D31/C31-1 -> -0.6314434484 | E38: 0.5689090966 | F38: 0.3318428777 | G38: 0.2307692308 | H38: 0.0625
B39: SNAR Internacional | C39: - | D39: -0.6809924926 | E39: 0.1637891788 | F39: 0.9223658234 | G39: 0.2307692308 | H39: 0.0625
B40: Aproximación | C40: - | D40: -0.5683941454 | E40: 0.5377145778 | F40: 0.2742435791 | G40: 0.2307692308 | H40: 0.0625
B41: Sobrevuelo | C41: - | D41: -0.5295497055 | E41: 0.2714217897 | F41: 0.4243175039 | G41: 0.2307692308 | H41: 0.0625

Sheet 2. Tarifas
B1: 2. Tarifas reguladas | S1: Índice
B3: Servicio / Peso Máximo de Despegue (PMD) | C3: Unidad de cobro | D3: Tarifas vigentes (según moneda) | J3: Tarifas vigentes (en Soles) | P3: Tarifa revisada (en Soles) | R3: Tarifa revisada (según moneda) | S3: Var% sobre Tarifa vigente
D4: 2017-11-10 | E4: 2018-11-10 | F4: 2019-11-10 | G4: 2020-11-10 | H4: 2021-11-10 | J4: 2017-11-10 | K4: 2018-11-10 | L4: 2019-11-10 | M4: 2020-11-10 | N4: 2021-11-10
B6: A. SNAR Nacional | P6: -0.2360076795
B7: (En soles)
B8: - Por rango de PMD:
B9: Hasta 5,7TM | C9: Por kilómetro recorrido | D9: 0.16 | E9: 0.16 | F9: 0.16 | G9: 0.16 | H9: 0.17 | J9: =D9 -> 0.16 | K9: 0.16 | L9: 0.16 | M9: 0.16 | N9: =H9 -> 0.17 | P9: =N9*(1+$P$6) -> 0.1298786945 | R9: =P9 -> 0.1298786945 | S9: =R9/H9-1 -> -0.2360076795
B10: Más de 5,7TM a 10TM | C10: Por kilómetro recorrido | D10: 0.29 | E10: 0.29 | F10: 0.3 | G10: 0.31 | H10: 0.33 | J10: 0.29 | K10: 0.29 | L10: 0.3 | M10: 0.31 | N10: 0.33 | P10: 0.2521174658 | R10: 0.2521174658 | S10: -0.2360076795
B11: Más de 10TM a 35TM | C11: Por kilómetro recorrido | D11: 0.32 | E11: 0.32 | F11: 0.33 | G11: 0.34 | H11: 0.36 | J11: 0.32 | K11: 0.32 | L11: 0.33 | M11: 0.34 | N11: 0.36 | P11: 0.2750372354 | R11: 0.2750372354 | S11: -0.2360076795
B12: Más de 35TM a 70TM | C12: Por kilómetro recorrido | D12: 0.43 | E12: 0.44 | F12: 0.45 | G12: 0.46 | H12: 0.48 | J12: 0.43 | K12: 0.44 | L12: 0.45 | M12: 0.46 | N12: 0.48 | P12: 0.3667163138 | R12: 0.3667163138 | S12: -0.2360076795
B13: Más de 70TM a 105TM | C13: Por kilómetro recorrido | D13: 0.66 | E13: 0.67 | F13: 0.68 | G13: 0.69 | H13: 0.73 | J13: 0.66 | K13: 0.67 | L13: 0.68 | M13: 0.69 | N13: 0.73 | P13: 0.5577143939 | R13: 0.5577143939 | S13: -0.2360076795
B14: Más de 105TM | C14: Por kilómetro recorrido | D14: 0.86 | E14: 0.87 | F14: 0.89 | G14: 0.91 | H14: 0.96 | J14: 0.86 | K14: 0.87 | L14: 0.89 | M14: 0.91 | N14: 0.96 | P14: 0.7334326276 | R14: 0.7334326276 | S14: -0.2360076795
B15: - Cargo mínimo: | C15: Por operación | D15: 14.45 | E15: 14.64 | F15: 14.91 | G15: 15.18 | H15: 15.97 | J15: =D15 -> 14.45 | K15: =E15 -> 14.64 | L15: =F15 -> 14.91 | M15: =G15 -> 15.18 | N15: =H15 -> 15.97 | P15: 12.20095736 | R15: 12.20095736 | S15: -0.2360076795
B17: B. SNAR Internacional | P17: =+P6 -> -0.2360076795
B18: (En dólares)
B19: - Por rango de PMD:
B20: Hasta 5,7TM | C20: Por kilómetro recorrido | D20: 0.07 | E20: 0.07 | F20: 0.07 | G20: 0.07 | H20: 0.07 | J20: =D20*'10. Var-Sup-Gen'!D$11 -> 0.2282775904 | K20: =E20*'10. Var-Sup-Gen'!E$11 -> 0.2300369309 | L20: =F20*'10. Var-Sup-Gen'!F$11 -> 0.2335842369 | M20: =G20*'10. Var-Sup-Gen'!G$11 -> 0.244724685 | N20: =H20*'10. Var-Sup-Gen'!H$11 -> 0.2717840637 | P20: =N20*(1+$P$17) -> 0.2076409375 | R20: =P20/'10. Var-Sup-Gen'!$I$11 -> 0.05490246754 | S20: =R20/H20-1 -> -0.2156790351
B21: Más de 5,7TM a 10TM | C21: Por kilómetro recorrido | D21: 0.13 | E21: 0.13 | F21: 0.13 | G21: 0.13 | H21: 0.14 | J21: =D21*'10. Var-Sup-Gen'!D$11 -> 0.4239440964 | K21: =E21*'10. Var-Sup-Gen'!E$11 -> 0.4272114431 | L21: =F21*'10. Var-Sup-Gen'!F$11 -> 0.4337992972 | M21: =G21*'10. Var-Sup-Gen'!G$11 -> 0.4544887008 | N21: =H21*'10. Var-Sup-Gen'!H$11 -> 0.5435681275 | P21: =N21*(1+$P$17) -> 0.415281875 | R21: =P21/'10. Var-Sup-Gen'!$I$11 -> 0.1098049351 | S21: -0.2156790351
B22: Más de 10TM a 35TM | C22: Por kilómetro recorrido | D22: 0.14 | E22: 0.14 | F22: 0.14 | G22: 0.14 | H22: 0.15 | J22: =D22*'10. Var-Sup-Gen'!D$11 -> 0.4565551807 | K22: =E22*'10. Var-Sup-Gen'!E$11 -> 0.4600738618 | L22: =F22*'10. Var-Sup-Gen'!F$11 -> 0.4671684739 | M22: =G22*'10. Var-Sup-Gen'!G$11 -> 0.4894493701 | N22: =H22*'10. Var-Sup-Gen'!H$11 -> 0.5823944223 | P22: 0.4449448661 | R22: =P22/'10. Var-Sup-Gen'!$I$11 -> 0.1176481447 | S22: -0.2156790351
B23: Más de 35TM a 70TM | C23: Por kilómetro recorrido | D23: 0.19 | E23: 0.19 | F23: 0.19 | G23: 0.2 | H23: 0.2 | J23: =D23*'10. Var-Sup-Gen'!D$11 -> 0.6196106024 | K23: =E23*'10. Var-Sup-Gen'!E$11 -> 0.6243859553 | L23: =F23*'10. Var-Sup-Gen'!F$11 -> 0.6340143574 | M23: =G23*'10. Var-Sup-Gen'!G$11 -> 0.6992133858 | N23: =H23*'10. Var-Sup-Gen'!H$11 -> 0.7765258964 | P23: 0.5932598215 | R23: =P23/'10. Var-Sup-Gen'!$I$11 -> 0.156864193 | S23: -0.2156790351
B24: Más de 70TM a 105TM | C24: Por kilómetro recorrido | D24: 0.28 | E24: 0.29 | F24: 0.29 | G24: 0.3 | H24: 0.31 | J24: =D24*'10. Var-Sup-Gen'!D$11 -> 0.9131103614 | K24: =E24*'10. Var-Sup-Gen'!E$11 -> 0.9530101423 | L24: =F24*'10. Var-Sup-Gen'!F$11 -> 0.9677061245 | M24: =G24*'10. Var-Sup-Gen'!G$11 -> 1.048820079 | N24: =H24*'10. Var-Sup-Gen'!H$11 -> 1.203615139 | P24: 0.9195527233 | R24: =P24/'10. Var-Sup-Gen'!$I$11 -> 0.2431394991 | S24: -0.2156790351
B25: Más de 105TM | C25: Por kilómetro recorrido | D25: 0.38 | E25: 0.39 | F25: 0.4 | G25: 0.4 | H25: 0.43 | J25: =D25*'10. Var-Sup-Gen'!D$11 -> 1.239221205 | K25: =E25*'10. Var-Sup-Gen'!E$11 -> 1.281634329 | L25: =F25*'10. Var-Sup-Gen'!F$11 -> 1.334767068 | M25: =G25*'10. Var-Sup-Gen'!G$11 -> 1.398426772 | N25: =H25*'10. Var-Sup-Gen'!H$11 -> 1.669530677 | P25: 1.275508616 | R25: =P25/'10. Var-Sup-Gen'!$I$11 -> 0.3372580149 | S25: -0.2156790351
B26: - Cargo mínimo: | C26: Por operación | D26: 6.68 | E26: 6.83 | F26: 6.95 | G26: 7.05 | H26: 7.43 | J26: =D26*'10. Var-Sup-Gen'!D$11 -> 21.78420434 | K26: =E26*'10. Var-Sup-Gen'!E$11 -> 22.44503197 | L26: =F26*'10. Var-Sup-Gen'!F$11 -> 23.19157781 | M26: =G26*'10. Var-Sup-Gen'!G$11 -> 24.64727185 | N26: =H26*'10. Var-Sup-Gen'!H$11 -> 28.84793705 | P26: 22.03960237 | R26: =P26/'10. Var-Sup-Gen'!$I$11 -> 5.827504769 | S26: -0.2156790351
B28: C. Aproximación | P28: 0.2437760583
B29: (En soles)
B30: - Por rango de PMD:
B31: Hasta 10TM | C31: Por Tonelada (PMD) | D31: 3.04 | E31: 3.08 | F31: 3.14 | G31: 3.19 | H31: 3.37 | J31: =D31 -> 3.04 | K31: 3.08 | L31: 3.14 | M31: 3.19 | N31: =H31 -> 3.37 | P31: =N31*(1+$P$28) -> 4.191525316 | R31: =P31 -> 4.191525316 | S31: =R31/H31-1 -> 0.2437760583
B32: Más de 10TM a 35TM | C32: Por Tonelada (PMD) | D32: 3.41 | E32: 3.45 | F32: 3.51 | G32: 3.58 | H32: 3.76 | J32: 3.41 | K32: 3.45 | L32: 3.51 | M32: 3.58 | N32: 3.76 | P32: 4.676597979 | R32: 4.676597979 | S32: 0.2437760583
B33: Más de 35TM a 70TM | C33: Por Tonelada (PMD) | D33: 3.79 | E33: 3.84 | F33: 3.91 | G33: 3.98 | H33: 4.19 | J33: 3.79 | K33: 3.84 | L33: 3.91 | M33: 3.98 | N33: 4.19 | P33: 5.211421684 | R33: 5.211421684 | S33: 0.2437760583
B34: Más de 70TM a 105TM | C34: Por Tonelada (PMD) | D34: 4.17 | E34: 4.22 | F34: 4.3 | G34: 4.37 | H34: 4.61 | J34: 4.17 | K34: 4.22 | L34: 4.3 | M34: 4.37 | N34: 4.61 | P34: 5.733807629 | R34: 5.733807629 | S34: 0.2437760583
B35: Más de 105TM | C35: Por Tonelada (PMD) | D35: 4.56 | E35: 4.62 | F35: 4.71 | G35: 4.8 | H35: 5.05 | J35: 4.56 | K35: 4.62 | L35: 4.71 | M35: 4.8 | N35: 5.05 | P35: 6.281069094 | R35: 6.281069094 | S35: 0.2437760583
B36: - Cargo mínimo: | C36: Por operación | D36: 7.6 | E36: 7.7 | F36: 7.84 | G36: 7.98 | H36: 8.4 | J36: =D36 -> 7.6 | K36: =E36 -> 7.7 | L36: =F36 -> 7.84 | M36: =G36 -> 7.98 | N36: 8.4 | P36: 10.44771889 | R36: 10.44771889 | S36: 0.2437760583
B38: D. Sobrevuelo | P38: =+P6 -> -0.2360076795
B39: (En dólares)
B40: - Por rango de PMD:
B41: Hasta 55TM | C41: Por kilómetro recorrido | D41: 0.18 | E41: 0.18 | F41: 0.18 | G41: 0.18 | H41: 0.19 | J41: =D41*'10. Var-Sup-Gen'!D$11 -> 0.5869995181 | K41: =E41*'10. Var-Sup-Gen'!E$11 -> 0.5915235366 | L41: =F41*'10. Var-Sup-Gen'!F$11 -> 0.6006451807 | M41: =G41*'10. Var-Sup-Gen'!G$11 -> 0.6292920472 | N41: =H41*'10. Var-Sup-Gen'!H$11 -> 0.7376996016 | P41: =N41*(1+$P$38) -> 0.5635968304 | R41: =P41/'10. Var-Sup-Gen'!$I$11 -> 0.1490209833 | S41: =R41/H41-1 -> -0.2156790351
B42: Más de 55TM a 115TM | C42: Por kilómetro recorrido | D42: 0.27 | E42: 0.28 | F42: 0.28 | G42: 0.29 | H42: 0.3 | J42: =D42*'10. Var-Sup-Gen'!D$11 -> 0.8804992771 | K42: =E42*'10. Var-Sup-Gen'!E$11 -> 0.9201477236 | L42: =F42*'10. Var-Sup-Gen'!F$11 -> 0.9343369478 | M42: =G42*'10. Var-Sup-Gen'!G$11 -> 1.013859409 | N42: =H42*'10. Var-Sup-Gen'!H$11 -> 1.164788845 | P42: =N42*(1+$P$38) -> 0.8898897322 | R42: =P42/'10. Var-Sup-Gen'!$I$11 -> 0.2352962895 | S42: =R42/H42-1 -> -0.2156790351
B43: Más de 115TM a 200TM | C43: Por kilómetro recorrido | D43: 0.54 | E43: 0.55 | F43: 0.56 | G43: 0.56 | H43: 0.6 | J43: =D43*'10. Var-Sup-Gen'!D$11 -> 1.760998554 | K43: =E43*'10. Var-Sup-Gen'!E$11 -> 1.807433028 | L43: =F43*'10. Var-Sup-Gen'!F$11 -> 1.868673896 | M43: =G43*'10. Var-Sup-Gen'!G$11 -> 1.95779748 | N43: =H43*'10. Var-Sup-Gen'!H$11 -> 2.329577689 | P43: 1.779779464 | R43: =P43/'10. Var-Sup-Gen'!$I$11 -> 0.4705925789 | S43: =R43/H43-1 -> -0.2156790351
B44: Más de 200TM | C44: Por kilómetro recorrido | D44: 0.8 | E44: 0.82 | F44: 0.83 | G44: 0.84 | H44: 0.89 | J44: =D44*'10. Var-Sup-Gen'!D$11 -> 2.608886747 | K44: =E44*'10. Var-Sup-Gen'!E$11 -> 2.694718333 | L44: =F44*'10. Var-Sup-Gen'!F$11 -> 2.769641667 | M44: =G44*'10. Var-Sup-Gen'!G$11 -> 2.93669622 | N44: =H44*'10. Var-Sup-Gen'!H$11 -> 3.455540239 | P44: 2.640006206 | R44: =P44/'10. Var-Sup-Gen'!$I$11 -> 0.6980456587 | S44: =R44/H44-1 -> -0.2156790351

Sheet 3. Ingresos
B1: 3. Ingresos totales (Usuarios atribuibles) | E1: Índice
B3: Servicio / Peso Máximo de Despegue (PMD) | C3: Proyecciones
C4: 2022 | D4: =C4+1 -> 2023 | E4: =D4+1 -> 2024
B6: A. SNAR Nacional
B7: (En soles)
B8: Ingresos totales | C8: =SUM(C11:C16,C17) -> 30941015.63 | D8: =SUM(D11:D16,D17) -> 38081250 | E8: =SUM(E11:E16,E17) -> 40461328.13
B10: - Por rango de PMD:
B11: Hasta 5,7TM | C11: ='2. Tarifas'!$P9*'1. Demanda'!H12 -> 910027.0066 | D11: ='2. Tarifas'!$P9*'1. Demanda'!I12 -> 1120033.239 | E11: ='2. Tarifas'!$P9*'1. Demanda'!J12 -> 1190035.316
B12: Más de 5,7TM a 10TM | C12: ='2. Tarifas'!$P10*'1. Demanda'!H13 -> 612703.8524 | D12: ='2. Tarifas'!$P10*'1. Demanda'!I13 -> 754097.0491 | E12: ='2. Tarifas'!$P10*'1. Demanda'!J13 -> 801228.1147
B13: Más de 10TM a 35TM | C13: ='2. Tarifas'!$P11*'1. Demanda'!H14 -> 757313.7987 | D13: ='2. Tarifas'!$P11*'1. Demanda'!I14 -> 932078.5214 | E13: ='2. Tarifas'!$P11*'1. Demanda'!J14 -> 990333.429
B14: Más de 35TM a 70TM | C14: ='2. Tarifas'!$P12*'1. Demanda'!H15 -> 6216904.501 | D14: ='2. Tarifas'!$P12*'1. Demanda'!I15 -> 7651574.771 | E14: ='2. Tarifas'!$P12*'1. Demanda'!J15 -> 8129798.194
B15: Más de 70TM a 105TM | C15: ='2. Tarifas'!$P13*'1. Demanda'!H16 -> 22402299.15 | D15: ='2. Tarifas'!$P13*'1. Demanda'!I16 -> 27572060.49 | E15: ='2. Tarifas'!$P13*'1. Demanda'!J16 -> 29295314.27
B16: Más de 105TM | C16: ='2. Tarifas'!$P14*'1. Demanda'!H17 -> 2025.176856 | D16: ='2. Tarifas'!$P14*'1. Demanda'!I17 -> 2492.525361 | E16: ='2. Tarifas'!$P14*'1. Demanda'!J17 -> 2648.308196
B17: - Cargo mínimo: | C17: ='2. Tarifas'!$P15*'1. Demanda'!H21 -> 39742.14578 | D17: ='2. Tarifas'!$P15*'1. Demanda'!I21 -> 48913.41019 | E17: ='2. Tarifas'!$P15*'1. Demanda'!J21 -> 51970.49833
B19: B. SNAR Internacional
B20: (En dólares)
B21: Ingresos totales | C21: =SUM(C24:C29,C30) -> 56188333.98 | D21: =SUM(D24:D29,D30) -> 69154872.59 | E21: =SUM(E24:E29,E30) -> 73477052.12
B23: - Por rango de PMD:
B24: Hasta 5,7TM | C24: ='2. Tarifas'!$P20*'1. Demanda'!H29 -> 83525.45424 | D24: ='2. Tarifas'!$P20*'1. Demanda'!I29 -> 102800.5591 | E24: ='2. Tarifas'!$P20*'1. Demanda'!J29 -> 109225.594
B25: Más de 5,7TM a 10TM | C25: ='2. Tarifas'!$P21*'1. Demanda'!H30 -> 289808.4957 | D25: ='2. Tarifas'!$P21*'1. Demanda'!I30 -> 356687.3793 | E25: ='2. Tarifas'!$P21*'1. Demanda'!J30 -> 378980.3405
B26: Más de 10TM a 35TM | C26: ='2. Tarifas'!$P22*'1. Demanda'!H31 -> 387756.028 | D26: ='2. Tarifas'!$P22*'1. Demanda'!I31 -> 477238.1883 | E26: ='2. Tarifas'!$P22*'1. Demanda'!J31 -> 507065.5751
B27: Más de 35TM a 70TM | C27: ='2. Tarifas'!$P23*'1. Demanda'!H32 -> 2970917.107 | D27: ='2. Tarifas'!$P23*'1. Demanda'!I32 -> 3656513.362 | E27: ='2. Tarifas'!$P23*'1. Demanda'!J32 -> 3885045.448
B28: Más de 70TM a 105TM | C28: ='2. Tarifas'!$P24*'1. Demanda'!H33 -> 28895227.92 | D28: ='2. Tarifas'!$P24*'1. Demanda'!I33 -> 35563357.44 | E28: ='2. Tarifas'!$P24*'1. Demanda'!J33 -> 37786067.28
B29: Más de 105TM | C29: ='2. Tarifas'!$P25*'1. Demanda'!H34 -> 23528100.93 | D29: ='2. Tarifas'!$P25*'1. Demanda'!I34 -> 28957662.69 | E29: ='2. Tarifas'!$P25*'1. Demanda'!J34 -> 30767516.61
B30: - Cargo mínimo: | C30: ='2. Tarifas'!$P26*'1. Demanda'!H38 -> 32998.03341 | D30: ='2. Tarifas'!$P26*'1. Demanda'!I38 -> 40612.9642 | E30: ='2. Tarifas'!$P26*'1. Demanda'!J38 -> 43151.27446
B32: C. Aproximación
B33: (En soles)
B34: Ingresos totales | C34: =SUM(C37:C41,C42) -> 17389516.09 | D34: =SUM(D37:D41,D42) -> 21402481.35 | E34: =SUM(E37:E41,E42) -> 22740136.43
B36: - Por rango de PMD:
B37: Hasta 10TM | C37: ='2. Tarifas'!$P31*'1. Demanda'!H46 -> 289201.5262 | D37: ='2. Tarifas'!$P31*'1. Demanda'!I46 -> 355940.34 | E37: ='2. Tarifas'!$P31*'1. Demanda'!J46 -> 378186.6112
B38: Más de 10TM a 35TM | C38: ='2. Tarifas'!$P32*'1. Demanda'!H47 -> 226778.2454 | D38: ='2. Tarifas'!$P32*'1. Demanda'!I47 -> 279111.6866 | E38: ='2. Tarifas'!$P32*'1. Demanda'!J47 -> 296556.167
B39: Más de 35TM a 70TM | C39: ='2. Tarifas'!$P33*'1. Demanda'!H48 -> 4628171.813 | D39: ='2. Tarifas'!$P33*'1. Demanda'!I48 -> 5696211.462 | E39: ='2. Tarifas'!$P33*'1. Demanda'!J48 -> 6052224.678
B40: Más de 70TM a 105TM | C40: ='2. Tarifas'!$P34*'1. Demanda'!H49 -> 12193067.93 | D40: ='2. Tarifas'!$P34*'1. Demanda'!I49 -> 15006852.84 | E40: ='2. Tarifas'!$P34*'1. Demanda'!J49 -> 15944781.14
B41: Más de 105TM | C41: ='2. Tarifas'!$P35*'1. Demanda'!H50 -> 7288.934559 | D41: ='2. Tarifas'!$P35*'1. Demanda'!I50 -> 8970.99638 | E41: ='2. Tarifas'!$P35*'1. Demanda'!J50 -> 9531.683654
B42: - Cargo mínimo: | C42: ='2. Tarifas'!$P36*'1. Demanda'!H54 -> 45007.64622 | D42: ='2. Tarifas'!$P36*'1. Demanda'!I54 -> 55394.02612 | E42: ='2. Tarifas'!$P36*'1. Demanda'!J54 -> 58856.15275
B44: D. Sobrevuelo
B45: (En dólares)
B46: Ingresos totales | C46: =SUM(C49:C52) -> 78350924.39 | D46: =SUM(D49:D52) -> 96431906.94 | E46: =SUM(E49:E52) -> 102458901.1
B48: - Por rango de PMD:
B49: Hasta 55TM | C49: ='2. Tarifas'!$P41*'1. Demanda'!H62 -> 1090975.304 | D49: ='2. Tarifas'!$P41*'1. Demanda'!I62 -> 1342738.836 | E49: ='2. Tarifas'!$P41*'1. Demanda'!J62 -> 1426660.013
B50: Más de 55TM a 115TM | C50: ='2. Tarifas'!$P42*'1. Demanda'!H63 -> 11292389.98 | D50: ='2. Tarifas'!$P42*'1. Demanda'!I63 -> 13898326.13 | E50: ='2. Tarifas'!$P42*'1. Demanda'!J63 -> 14766971.52
B51: Más de 115TM a 200TM | C51: ='2. Tarifas'!$P43*'1. Demanda'!H64 -> 7275035.539 | D51: ='2. Tarifas'!$P43*'1. Demanda'!I64 -> 8953889.894 | E51: ='2. Tarifas'!$P43*'1. Demanda'!J64 -> 9513508.013
B52: Más de 200TM | C52: ='2. Tarifas'!$P44*'1. Demanda'!H65 -> 58692523.56 | D52: ='2. Tarifas'!$P44*'1. Demanda'!I65 -> 72236952.08 | E52: ='2. Tarifas'!$P44*'1. Demanda'!J65 -> 76751761.58

Sheet 4. OPEX
B1: 4. Costos de operación - OPEX (Usuarios atribuibles) | J1: Índice
B3: I. Información histórica
B4: (Expresado en soles. Fuente: Contabilidad regulatoria de CORPAC S.A.)
B5: Servicio / Partida de Costo | E5: 2017 | F5: =+E5+1 -> 2018 | G5: =+F5+1 -> 2019 | H5: =+G5+1 -> 2020 | I5: =+H5+1 -> 2021 | J5: Promedio 2017-2021
B7: A. SNAR NACIONAL
B8: Suministros y Materiales | E8: 3289056.576 | F8: 1577965.411 | G8: 1155468.467 | H8: 2340184.393 | I8: 7185955.799 | J8: =+AVERAGE(E8:I8) -> 3109726.129
B9: Gastos de Personal | E9: 44982994.65 | F9: 43469412.72 | G9: 47572068.82 | H9: 33033225.59 | I9: 37503597.09 | J9: =+AVERAGE(E9:I9) -> 41312259.77
B10: Servicios prestados por terceros | E10: 15668345.12 | F10: 16381705.98 | G10: 17445248 | H10: 15552886.46 | I10: 18281068.59 | J10: 16665850.83
B11: Mantenimiento | E11: 3333235.414 | F11: 1675655.664 | G11: 1591671.761 | H11: 1968143.27 | I11: 2475459.882 | J11: 2208833.198
B12: Depreciación de activos | E12: 6835035.443 | F12: 12487023.9 | G12: 11029813.9 | H12: 12408747.99 | I12: 11822902.36 | J12: 10916704.72
B13: Amortización de Intangibles | E13: 294736.5731 | F13: 458227.3593 | G13: 454393.872 | H13: 399791.7453 | I13: 454781.6462 | J13: 412386.2392
B14: Seguros y tributos | E14: 1906831.882 | F14: 1567839.956 | G14: 1628183.945 | H14: 1935379.45 | I14: 2940098.973 | J14: 1995666.841
B15: Otros Costos | E15: 2850954.959 | F15: 2606800.097 | G15: 2393711.066 | H15: 985951.8093 | I15: 1466212.233 | J15: 2060726.033
B16: Costos totales | E16: =SUM(E8:E15) -> 79161190.62 | F16: =SUM(F8:F15) -> 80224631.09 | G16: =SUM(G8:G15) -> 83270559.82 | H16: =SUM(H8:H15) -> 68624310.71 | I16: =SUM(I8:I15) -> 82130076.57 | J16: 78682153.76
B18: B. SNAR INTERNACIONAL
B19: Suministros y Materiales | E19: 697692.9185 | F19: 726028.5137 | G19: 398910.3457 | H19: 1533497.356 | I19: 1925586.999 | J19: =+AVERAGE(E19:I19) -> 1056343.227
B20: Gastos de Personal | E20: 28616588.65 | F20: 22559704.08 | G20: 24415540.2 | H20: 13855129.54 | I20: 13779767.21 | J20: =+AVERAGE(E20:I20) -> 20645345.93
B21: Servicios prestados por terceros | E21: 4771371.041 | F21: 4218914.586 | G21: 4338777.859 | H21: 2862225.183 | I21: 2909420.602 | J21: 3820141.854
B22: Mantenimiento | E22: 932230.9842 | F22: 551253.9388 | G22: 679078.0808 | H22: 730018.8934 | I22: 610815.5538 | J22: 700679.4902
B23: Depreciación de activos | E23: 2260837.732 | F23: 3539683.968 | G23: 3878310.05 | H23: 3458358.388 | I23: 1998854.813 | J23: 3027208.99
B24: Amortización de Intangibles | E24: 191180.7705 | F24: 247952.6883 | G24: 240045.9216 | H24: 167390.0481 | I24: 154593.3243 | J24: 200232.5506
B25: Seguros y tributos | E25: 1350909.092 | F25: 1092669.096 | G25: 1214508.321 | H25: 1143183.153 | I25: 820295.1747 | J25: 1124312.967
B26: Otros Costos | E26: 1782922.451 | F26: 1285526.757 | G26: 1212083.631 | H26: 405411.1431 | I26: 467346.3771 | J26: 1030658.072
B27: Costos totales | E27: =SUM(E19:E26) -> 40603733.63 | F27: =SUM(F19:F26) -> 34221733.62 | G27: =SUM(G19:G26) -> 36377254.4 | H27: =SUM(H19:H26) -> 24155213.71 | I27: =SUM(I19:I26) -> 22666680.05 | J27: 31604923.08
B29: C. APROXIMACIÓN
B30: Suministros y Materiales | E30: 2104704.063 | F30: 1554098.939 | G30: 2591206.703 | H30: 1187833.793 | I30: 4502673.639 | J30: =+AVERAGE(E30:I30) -> 2388103.427
B31: Gastos de Personal | E31: 40193356.01 | F31: 40666721.61 | G31: 43319229.27 | H31: 29692596.61 | I31: 30710125.83 | J31: =+AVERAGE(E31:I31) -> 36916405.87
B32: Servicios prestados por terceros | E32: 12913170.55 | F32: 13440364.98 | G32: 13250307.05 | H32: 11228710.84 | I32: 13285946.32 | J32: 12823699.95
B33: Mantenimiento | E33: 2584395.357 | F33: 1601774.357 | G33: 1436201.778 | H33: 2410679.39 | I33: 2290692.605 | J33: 2064748.697
B34: Depreciación de activos | E34: 7015121.353 | F34: 11539124.6 | G34: 10391075.27 | H34: 13021985.23 | I34: 10770665.48 | J34: 10547594.39
B35: Amortización de Intangibles | E35: 336569.1653 | F35: 610725.3533 | G35: 555408.4373 | H35: 471860.538 | I35: 487919.5054 | J35: 492496.5999
B36: Seguros y tributos | E36: 1690828.444 | F36: 1622683.591 | G36: 1489054.951 | H36: 1760215.381 | I36: 2333374.337 | J36: 1779231.341
B37: Otros Costos | E37: 2820258.301 | F37: 2898779.389 | G37: 3163480.538 | H37: 917789.4116 | I37: 1241302.205 | J37: 2208321.969
B38: Costos totales | E38: =SUM(E30:E37) -> 69658403.25 | F38: =SUM(F30:F37) -> 73934272.81 | G38: =SUM(G30:G37) -> 76195964 | H38: =SUM(H30:H37) -> 60691671.2 | I38: =SUM(I30:I37) -> 65622699.92 | J38: 69220602.23
B40: D. SOBREVUELO
B41: Suministros y Materiales | E41: 564375.0402 | F41: 752948.593 | G41: 410242.3799 | H41: 2435395.427 | I41: 3207705.212 | J41: =+AVERAGE(E41:I41) -> 1474133.33
B42: Gastos de Personal | E42: 27644886.08 | F42: 23813240.98 | G42: 26394622.14 | H42: 20906579.2 | I42: 23131281.49 | J42: =+AVERAGE(E42:I42) -> 24378121.98
B43: Servicios prestados por terceros | E43: 4171236.129 | F43: 3934712.005 | G43: 4024961.75 | H43: 3701216.39 | I43: 4186183.107 | J43: 4003661.876
B44: Mantenimiento | E44: 850310.3331 | F44: 551161.9197 | G44: 705166.8236 | H44: 1101715.655 | I44: 991655.9266 | J44: 840002.1316
B45: Depreciación de activos | E45: 2530012.859 | F45: 4502331.029 | G45: 4688213.838 | H45: 5831606.592 | I45: 3562932.536 | J45: 4223019.371
B46: Amortización de Intangibles | E46: 184950.7558 | F46: 271424.5159 | G46: 257873.6802 | H46: 256979.5646 | I46: 259793.9452 | J46: 246204.4923
B47: Seguros y tributos | E47: 1339964.301 | F47: 1125307.993 | G47: 1253040.834 | H47: 1686822.111 | I47: 1334620.791 | J47: 1347951.206
B48: Otros Costos | E48: 1719967.172 | F48: 1356158.505 | G48: 1294505.091 | H48: 610677.5857 | I48: 787686.7733 | J48: 1153799.025
B49: Costos totales | E49: =SUM(E41:E48) -> 39005702.67 | F49: =SUM(F41:F48) -> 36307285.54 | G49: =SUM(G41:G48) -> 39028626.54 | H49: =SUM(H41:H48) -> 36530992.53 | I49: =SUM(I41:I48) -> 37461859.78 | J49: 37666893.41
B51: II. Proyección de costos de operación, por servicio de aeronavegación
B52: (Expresado en soles)
D53: 2020 | E53: =D53+1 -> 2021 | F53: =E53+1 -> 2022 | G53: =F53+1 -> 2023 | H53: =G53+1 -> 2024
B55: A. SNAR Nacional
B56: Suministros y Materiales | D56: =VLOOKUP(B56,$B$8:$H$15,7,FALSE) -> 2340184.393 | E56: =VLOOKUP(B56,$B$8:$I$15,8,FALSE) -> 7185955.799 | F56: =J8*'10. Var-Sup-Gen'!I19 -> 3171920.652 | G56: =+F56*'10. Var-Sup-Gen'!J19 -> 3235359.065 | H56: =+G56*'10. Var-Sup-Gen'!K19 -> 3300066.246
B57: Gastos de Personal | D57: =VLOOKUP(B57,$B$8:$H$15,7,FALSE) -> 33033225.59 | E57: =VLOOKUP(B57,$B$8:$I$15,8,FALSE) -> 37503597.09 | F57: ='4.1. OPEX (Personal)'!F125 -> 42099668.4 | G57: ='4.1. OPEX (Personal)'!G125 -> 48152875.88 | H57: ='4.1. OPEX (Personal)'!H125 -> 48993233.05
B58: Servicios prestados por terceros | D58: 15552886.46 | E58: 18281068.59 | F58: =J10*'10. Var-Sup-Gen'!I20 -> 16999167.85 | G58: =+F58*'10. Var-Sup-Gen'!J20 -> 17339151.2 | H58: =+G58*'10. Var-Sup-Gen'!K20 -> 17685934.23
B59: Mantenimiento | D59: 1968143.27 | E59: 2475459.882 | F59: =J11*'10. Var-Sup-Gen'!I21 -> 2253009.862 | G59: =+F59*'10. Var-Sup-Gen'!J21 -> 2298070.059 | H59: =+G59*'10. Var-Sup-Gen'!K21 -> 2344031.461
B60: Seguros y tributos | D60: 1935379.45 | E60: 2940098.973 | F60: =J14*'10. Var-Sup-Gen'!I22 -> 2035580.178 | G60: =+F60*'10. Var-Sup-Gen'!J22 -> 2076291.782 | H60: =+G60*'10. Var-Sup-Gen'!K22 -> 2117817.617
B61: Otros Costos | D61: =VLOOKUP(B61,$B$8:$H$15,7,FALSE) -> 985951.8093 | E61: =VLOOKUP(B61,$B$8:$I$15,8,FALSE) -> 1466212.233 | F61: =J15*'10. Var-Sup-Gen'!I23 -> 2101940.554 | G61: =+F61*'10. Var-Sup-Gen'!J23 -> 2143979.365 | H61: =+G61*'10. Var-Sup-Gen'!K23 -> 2186858.952
B62: Costos incrementales | F62: =+'4.2. OPEX (Incremental)'!E208 -> 488792.3905 | G62: =+'4.2. OPEX (Incremental)'!F208 -> 914849.5965 | H62: =+'4.2. OPEX (Incremental)'!G208 -> 1085329.774
B63: CGR-control concurrente | F63: ='4.3. Pagos a CGR'!K44+'4.3. Pagos a CGR'!K45 -> 188712.742
B64: Costo total | D64: =SUM(D56:D63) -> 55815770.97 | E64: =SUM(E56:E63) -> 69852392.56 | F64: =SUM(F56:F63) -> 69338792.63 | G64: =SUM(G56:G63) -> 76160576.95 | H64: =SUM(H56:H63) -> 77713271.32
B66: B. SNAR Internacional
B67: Suministros y Materiales | D67: =VLOOKUP(B67,$B$19:$H$26,7,FALSE) -> 1533497.356 | E67: =VLOOKUP(B67,$B$19:$I$26,8,FALSE) -> 1925586.999 | F67: =J19*'10. Var-Sup-Gen'!I19 -> 1077470.091 | G67: =+F67*'10. Var-Sup-Gen'!J19 -> 1099019.493 | H67: =+G67*'10. Var-Sup-Gen'!K19 -> 1120999.883
B68: Gastos de Personal | D68: 13855129.54 | E68: =VLOOKUP(B68,$B$19:$I$26,8,FALSE) -> 13779767.21 | F68: ='4.1. OPEX (Personal)'!F126 -> 20535595.33 | G68: ='4.1. OPEX (Personal)'!G126 -> 23488260.38 | H68: ='4.1. OPEX (Personal)'!H126 -> 23898174.17
B69: Servicios prestados por terceros | D69: 2862225.183 | E69: 2909420.602 | F69: =J21*'10. Var-Sup-Gen'!I20 -> 3896544.691 | G69: =+F69*'10. Var-Sup-Gen'!J20 -> 3974475.585 | H69: =+G69*'10. Var-Sup-Gen'!K20 -> 4053965.097
B70: Mantenimiento | D70: 730018.8934 | E70: 610815.5538 | F70: =J22*'10. Var-Sup-Gen'!I21 -> 714693.08 | G70: =+F70*'10. Var-Sup-Gen'!J21 -> 728986.9416 | H70: =+G70*'10. Var-Sup-Gen'!K21 -> 743566.6804
B71: Seguros y tributos | D71: 1143183.153 | E71: 820295.1747 | F71: =J25*'10. Var-Sup-Gen'!I22 -> 1146799.227 | G71: =+F71*'10. Var-Sup-Gen'!J22 -> 1169735.211 | H71: =+G71*'10. Var-Sup-Gen'!K22 -> 1193129.915
B72: Otros Costos | D72: 405411.1431 | E72: =VLOOKUP(B72,$B$19:$I$26,8,FALSE) -> 467346.3771 | F72: =J26*'10. Var-Sup-Gen'!I23 -> 1051271.233 | G72: =+F72*'10. Var-Sup-Gen'!J23 -> 1072296.658 | H72: =+G72*'10. Var-Sup-Gen'!K23 -> 1093742.591
B73: Costos incrementales | F73: =+'4.2. OPEX (Incremental)'!E218 -> 51294.02518 | G73: =+'4.2. OPEX (Incremental)'!F218 -> 126525.2621 | H73: =+'4.2. OPEX (Incremental)'!G218 -> 138683.8458
B74: CGR-control concurrente | F74: ='4.3. Pagos a CGR'!L44+'4.3. Pagos a CGR'!L45 -> 138481.2124
B75: Costo total | D75: =SUM(D67:D74) -> 20529465.27 | E75: =SUM(E67:E74) -> 20513231.91 | F75: =SUM(F67:F74) -> 28612148.89 | G75: =SUM(G67:G74) -> 31659299.53 | H75: =SUM(H67:H74) -> 32242262.18
B77: C. Aproximación
B78: Suministros y Materiales | D78: =VLOOKUP(B78,$B$30:$H$37,7,FALSE) -> 1187833.793 | E78: =VLOOKUP(B78,$B$30:$I$37,8,FALSE) -> 4502673.639 | F78: =J30*'10. Var-Sup-Gen'!I19 -> 2435865.496 | G78: =+F78*'10. Var-Sup-Gen'!J19 -> 2484582.806 | H78: =+G78*'10. Var-Sup-Gen'!K19 -> 2534274.462
B79: Gastos de Personal | D79: 29692596.61 | E79: =VLOOKUP(B79,$B$30:$I$37,8,FALSE) -> 30710125.83 | F79: ='4.1. OPEX (Personal)'!F127 -> 37489285.09 | G79: ='4.1. OPEX (Personal)'!G127 -> 42879598.83 | H79: ='4.1. OPEX (Personal)'!H127 -> 43627927.51
B80: Servicios prestados por terceros | D80: 11228710.84 | E80: 13285946.32 | F80: =J32*'10. Var-Sup-Gen'!I20 -> 13080173.95 | G80: =+F80*'10. Var-Sup-Gen'!J20 -> 13341777.42 | H80: =+G80*'10. Var-Sup-Gen'!K20 -> 13608612.97
B81: Mantenimiento | D81: 2410679.39 | E81: 2290692.605 | F81: =J33*'10. Var-Sup-Gen'!I21 -> 2106043.671 | G81: =+F81*'10. Var-Sup-Gen'!J21 -> 2148164.545 | H81: =+G81*'10. Var-Sup-Gen'!K21 -> 2191127.836
B82: Seguros y tributos | D82: 1760215.381 | E82: 2333374.337 | F82: =J36*'10. Var-Sup-Gen'!I22 -> 1814815.968 | G82: =+F82*'10. Var-Sup-Gen'!J22 -> 1851112.287 | H82: =+G82*'10. Var-Sup-Gen'!K22 -> 1888134.533
B83: Otros Costos | D83: 917789.4116 | E83: 1241302.205 | F83: =J37*'10. Var-Sup-Gen'!I23 -> 2252488.408 | G83: =+F83*'10. Var-Sup-Gen'!J23 -> 2297538.177 | H83: =+G83*'10. Var-Sup-Gen'!K23 -> 2343488.94
B84: Costos incrementales | F84: =+'4.2. OPEX (Incremental)'!E228 -> 1365768.749 | G84: =+'4.2. OPEX (Incremental)'!F228 -> 1932121.552 | H84: =+'4.2. OPEX (Incremental)'!G228 -> 2388581.583
B85: CGR-control concurrente | F85: ='4.3. Pagos a CGR'!M44+'4.3. Pagos a CGR'!M45 -> 119864.3875
B86: Costo total | D86: =SUM(D78:D85) -> 47197825.42 | E86: =SUM(E78:E85) -> 54364114.94 | F86: =SUM(F78:F85) -> 60664305.72 | G86: =SUM(G78:G85) -> 66934895.62 | H86: =SUM(H78:H85) -> 68582147.84
B88: D. Sobrevuelo
B89: Suministros y Materiales | D89: =VLOOKUP(B89,$B$41:$H$48,7,FALSE) -> 2435395.427 | E89: =VLOOKUP(B89,$B$41:$I$48,8,FALSE) -> 3207705.212 | F89: =J41*'10. Var-Sup-Gen'!I19 -> 1503615.997 | G89: =+F89*'10. Var-Sup-Gen'!J19 -> 1533688.317 | H89: =+G89*'10. Var-Sup-Gen'!K19 -> 1564362.083
B90: Gastos de Personal | D90: 20906579.2 | E90: =VLOOKUP(B90,$B$41:$I$48,8,FALSE) -> 23131281.49 | F90: ='4.1. OPEX (Personal)'!F128 -> 24990033.61 | G90: ='4.1. OPEX (Personal)'!G128 -> 28583170.19 | H90: ='4.1. OPEX (Personal)'!H128 -> 29081999.62
B91: Servicios prestados por terceros | D91: 3701216.39 | E91: 4186183.107 | F91: =J43*'10. Var-Sup-Gen'!I20 -> 4083735.114 | G91: =+F91*'10. Var-Sup-Gen'!J20 -> 4165409.816 | H91: =+G91*'10. Var-Sup-Gen'!K20 -> 4248718.012
B92: Mantenimiento | D92: 1101715.655 | E92: 991655.9266 | F92: =J44*'10. Var-Sup-Gen'!I21 -> 856802.1742 | G92: =+F92*'10. Var-Sup-Gen'!J21 -> 873938.2177 | H92: =+G92*'10. Var-Sup-Gen'!K21 -> 891416.982
B93: Seguros y tributos | D93: 1686822.111 | E93: 1334620.791 | F93: =J47*'10. Var-Sup-Gen'!I22 -> 1374910.23 | G93: =+F93*'10. Var-Sup-Gen'!J22 -> 1402408.435 | H93: =+G93*'10. Var-Sup-Gen'!K22 -> 1430456.603
B94: Otros Costos | D94: 610677.5857 | E94: 787686.7733 | F94: =J48*'10. Var-Sup-Gen'!I23 -> 1176875.006 | G94: =+F94*'10. Var-Sup-Gen'!J23 -> 1200412.506 | H94: =+G94*'10. Var-Sup-Gen'!K23 -> 1224420.756
B95: Costos incrementales | F95: =+'4.2. OPEX (Incremental)'!E238 -> 59472.55372 | G95: =+'4.2. OPEX (Incremental)'!F238 -> 146698.9658 | H95: =+'4.2. OPEX (Incremental)'!G238 -> 160796.1638
B96: CGR-control concurrente | F96: ='4.3. Pagos a CGR'!N44+'4.3. Pagos a CGR'!N45 -> 219114.525
B97: Costo total | D97: =SUM(D89:D96) -> 30442406.37 | E97: =SUM(E89:E96) -> 33639133.3 | F97: =SUM(F89:F96) -> 34264559.21 | G97: =SUM(G89:G96) -> 37905726.45 | H97: =SUM(H89:H96) -> 38602170.23

Sheet 4.1. OPEX (Personal)
B1: 4.1 Costos de operación (OPEX) - Gasto de Personal | U1: Índice
B3: I. Información histórica
B4: (Expresado en soles. Fuente: Contabilidad regulatoria de CORPAC S.A.)
D5: 2017 | E5: =+D5+1 -> 2018 | F5: =+E5+1 -> 2019 | G5: =+F5+1 -> 2020 | H5: =+G5+1 -> 2021
B6: SNAR Nacional | D6: =+'4. OPEX'!E9 -> 44982994.65 | E6: =+'4. OPEX'!F9 -> 43469412.72 | F6: =+'4. OPEX'!G9 -> 47572068.82 | G6: =+'4. OPEX'!H9 -> 33033225.59 | H6: =+'4. OPEX'!I9 -> 37503597.09
B7: SNAR Internacional | D7: =+'4. OPEX'!E20 -> 28616588.65 | E7: =+'4. OPEX'!F20 -> 22559704.08 | F7: =+'4. OPEX'!G20 -> 24415540.2 | G7: =+'4. OPEX'!H20 -> 13855129.54 | H7: =+'4. OPEX'!I20 -> 13779767.21
B8: Aproximación | D8: =+'4. OPEX'!E31 -> 40193356.01 | E8: =+'4. OPEX'!F31 -> 40666721.61 | F8: =+'4. OPEX'!G31 -> 43319229.27 | G8: =+'4. OPEX'!H31 -> 29692596.61 | H8: =+'4. OPEX'!I31 -> 30710125.83
B9: Sobrevuelo | D9: =+'4. OPEX'!E42 -> 27644886.08 | E9: =+'4. OPEX'!F42 -> 23813240.98 | F9: =+'4. OPEX'!G42 -> 26394622.14 | G9: =+'4. OPEX'!H42 -> 20906579.2 | H9: =+'4. OPEX'!I42 -> 23131281.49
B10: Servicios No Regulados de Navegación Aérea | D10: 183890.4403 | E10: 131117.9886 | F10: 140704.0742 | G10: 85654.83398 | H10: 89961.75357
B11: Total de Gastos de Personal - Aeronavegación | D11: =SUM(D6:D10) -> 141621715.8 | E11: =SUM(E6:E10) -> 130640197.4 | F11: =SUM(F6:F10) -> 141842164.5 | G11: =SUM(G6:G10) -> 97573185.78 | H11: =SUM(H6:H10) -> 105214733.4
B12: Total de Gastos de Personal - Total CORPAC | D12: 176172657.2 | E12: 170820430.2 | F12: 187290311.6 | G12: 130141214.7 | H12: 138280657
B13: % aeronavegación respecto Total CORPAC | D13: =D11/D$12 -> 0.8038802278 | E13: =E11/E$12 -> 0.7647808708 | F13: =F11/F$12 -> 0.7573385045 | G13: =G11/G$12 -> 0.7497485406 | H13: =H11/H$12 -> 0.7608781707
B15: * Participación del gasto de personal - Aeronavegación:
B16: (Fuente: CORPAC S.A.)
B17: Servicio | D17: 2017 | E17: =+D17+1 -> 2018 | F17: =+E17+1 -> 2019 | G17: =+F17+1 -> 2020 | H17: =+G17+1 -> 2021 | I17: Promedio
B18: SNAR Nacional | D18: =+D6/D$11 -> 0.3176278044 | E18: 0.3327414808 | F18: 0.3353873581 | G18: 0.3385481915 | H18: =+H6/H$11 -> 0.3564481502 | I18: =AVERAGE(D18:H18) -> 0.336150597
B19: SNAR Internacional | D19: =+D7/D$11 -> 0.202063564 | E19: 0.1726857777 | F19: 0.1721317514 | G19: 0.1419973063 | H19: =+H7/H$11 -> 0.1309680381 | I19: =AVERAGE(D19:H19) -> 0.1639692875
B20: Aproximación | D20: 0.2838078594 | E20: 0.3112879682 | F20: 0.3054044573 | G20: 0.3043110295 | H20: =+H8/H$11 -> 0.29188047 | I20: =AVERAGE(D20:H20) -> 0.2993383569
B21: Sobrevuelo | D21: =+D9/D$11 -> 0.19520231 | E21: 0.1822811161 | F21: 0.1860844569 | G21: 0.2142656206 | H21: =+H9/H$11 -> 0.2198483117 | I21: 0.199536363
B22: Servicios No Regulados de Navegación Aérea | D22: 0.001298462169 | E22: 0.001003657306 | F22: 0.0009919763615 | G22: 0.0008778521813 | H22: =+H10/H$11 -> 0.0008550300009 | I22: =AVERAGE(D22:H22) -> 0.001005395604
B23: Total de Gastos de Personal - Aeronavegación | D23: =SUM(D18:D22) -> 1 | E23: 1 | F23: 1 | G23: 1 | H23: =SUM(H18:H22) -> 1 | I23: 1
B25: II. Proyecciones por servicio de aeronavegación
B27: a. Proyección de Gastos de Personal Total - Periodo 2021-2024
B28: (Expresado en soles. Fuente: CORPAC S.A.)
B29: Tipo de gasto de personal | C29: Subdivisión | D29: Rubros | E29: ¿Se incluye en tarifa? | F29: 2021 | J29: 2022 | N29: 2023 | R29: 2024
F30: Total | G30: Aeronavegación | H30: Aeroportuario | I30: Mixto | J30: Total | K30: Aeronavegación | L30: Aeroportuario | M30: Mixto | N30: Total | O30: Aeronavegación | P30: Aeroportuario | Q30: Mixto | R30: Total | S30: Aeronavegación | T30: Aeroportuario | U30: Mixto
B31: Sueldos y salarios | C31: Básica | D31: Sueldo Básico | E31: Sí | F31: 56059004 | G31: 33887984 | H31: 8770182 | I31: 13400838 | J31: 62525932 | K31: 36879953 | L31: 10236219 | M31: 15409760 | N31: 78473667 | O31: 44601990 | P31: 16145847 | Q31: 17725830 | R31: 79628667 | S31: 45260760 | T31: 16384321 | U31: 17983586
B32: Sueldos y salarios | C32: Básica | D32: Sueldo Vacacional | E32: Sí | F32: 5049808 | G32: 3052637 | H32: 790020 | I32: 1207151 | J32: 5684175 | K32: 3352723 | L32: 930565 | M32: 1400887 | N32: 7134009 | O32: 4054749 | P32: 1467812 | Q32: 1611448 | R32: 7239009 | S32: 4114637 | T32: 1489492 | U32: 1634880
B33: Sueldos y salarios | C33: Básica | D33: Ejercicios Anteriores Basico | E33: Sí | F33: 472794 | G33: 285807 | H33: 73967 | I33: 113020 | J33: 1638987 | K33: 966731 | L33: 268321 | M33: 403935 | N33: 1638972 | O33: 931541 | P33: 337216 | Q33: 370215 | R33: 1638972 | S33: 931588 | T33: 337233 | U33: 370151
B34: Sueldos y salarios | C34: Bonificaciones | D34: Bonificacion por Retorno Vacacional | E34: Sí | F34: 5054606 | G34: 3055538 | H34: 790771 | I34: 1208297 | J34: 5684175 | K34: 3352723 | L34: 930565 | M34: 1400887 | N34: 7134009 | O34: 4054749 | P34: 1467812 | Q34: 1611448 | R34: 7239009 | S34: 4114637 | T34: 1489492 | U34: 1634880
B35: Sueldos y salarios | C35: Bonificaciones | D35: Quinquenio (Remuneracion por Tiempo de Servicio) | E35: Sí | F35: 9631254 | G35: 5822147 | H35: 1506767 | I35: 2302340 | J35: 10110094 | K35: 5963282 | L35: 1655140 | M35: 2491672 | N35: 11687758 | O35: 6642958 | P35: 2404740 | Q35: 2640060 | R35: 12353274 | S35: 7021574 | T35: 2541798 | U35: 2789902
B36: Sueldos y salarios | C36: Bonificaciones | D36: Bonificacion por Antigüedad 30% | E36: Sí | F36: 0 | G36: 0 | H36: 0 | I36: 0 | J36: 0 | K36: 0 | L36: 0 | M36: 0 | N36: 0 | O36: 0 | P36: 0 | Q36: 0 | R36: 0 | S36: 0 | T36: 0 | U36: 0
B37: Sueldos y salarios | C37: Bonificaciones | D37: Bonificacion Consolidada (Incremento 10.23 Remun) | E37: Sí | F37: 377537 | G37: 228223 | H37: 59064 | I37: 90250 | J37: 373429 | K37: 220261 | L37: 61135 | M37: 92033 | N37: 408447 | O37: 232149 | P37: 84037 | Q37: 92261 | R37: 408447 | S37: 232160 | T37: 84042 | U37: 92245
B38: Sueldos y salarios | C38: Bonificaciones | D38: Otras Bonificaciones (Bolsa de cierre y otro similares) | E38: No | F38: 7900000 | G38: 4972000 | H38: 1347500 | I38: 1580500 | J38: 0 | K38: 0 | L38: 0 | M38: 0 | N38: 0 | O38: 0 | P38: 0 | Q38: 0 | R38: 0 | S38: 0 | T38: 0 | U38: 0
B39: Sueldos y salarios | C39: Bonificaciones | D39: Bonificacion unica por productividad (por Norma Legal). | E39: Sí | F39: 0 | G39: 0 | H39: 0 | I39: 0 | J39: 0 | K39: 0 | L39: 0 | M39: 0 | N39: 0 | O39: 0 | P39: 0 | Q39: 0 | R39: 0 | S39: 0 | T39: 0 | U39: 0
B40: Sueldos y salarios | C40: Bonificaciones | D40: Bonificación Extraordinaria (Ley 29714) | E40: Sí | F40: 1178151 | G40: 712199 | H40: 184316 | I40: 281636 | J40: 1405675 | K40: 829116 | L40: 230125 | M40: 346434 | N40: 1781865 | O40: 1012757 | P40: 366616 | Q40: 402492 | R40: 1815291 | S40: 1031807 | T40: 373513 | U40: 409971
B41: Sueldos y salarios | C41: Bonificaciones | D41: Ejercicios Anteriores Bonificaciones | E41: Sí | F41: 16066 | G41: 9712 | H41: 2513 | I41: 3841 | J41: 415128 | K41: 244857 | L41: 67961 | M41: 102310 | N41: 415128 | O41: 235946 | P41: 85412 | Q41: 93770 | R41: 415128 | S41: 235958 | T41: 85416 | U41: 93754
B42: Sueldos y salarios | C42: Gratificaciones | D42: Gratificaciones Ordinarias (1er y 2do semestre) | E42: Sí | F42: 13435332 | G42: 8121734 | H42: 2101898 | I42: 3211700 | J42: 15618614 | K42: 9212398 | L42: 2556948 | M42: 3849268 | N42: 19798470 | O42: 11252834 | P42: 4073508 | Q42: 4472128 | R42: 20169874 | S42: 11464512 | T42: 4150135 | U42: 4555227
B43: Sueldos y salarios | C43: Gratificaciones | D43: Gratificacion Extraordinario por Antigüedad (Tiempo de Ss.) | E43: Sí | F43: 1262316 | G43: 763077 | H43: 197484 | I43: 301755 | J43: 882732 | K43: 520666 | L43: 144513 | M43: 217553 | N43: 1911003 | O43: 1086155 | P43: 393186 | Q43: 431662 | R43: 1724979 | S43: 980474 | T43: 354930 | U43: 389575
B44: Sueldos y salarios | C44: Gratificaciones | D44: Gratificacion por Balance | E44: Sí | F44: 157024 | G44: 94922 | H44: 24566 | I44: 37536 | J44: 190247 | K44: 112214 | L44: 31146 | M44: 46887 | N44: 183021 | O44: 104023 | P44: 37656 | Q44: 41342 | R44: 183021 | S44: 104029 | T44: 37658 | U44: 41334
B45: Sueldos y salarios | C45: Gratificaciones | D45: Ejercicios Anteriores Gratificaciones | E45: Sí | F45: 58936 | G45: 35627 | H45: 9220 | I45: 14089 | J45: 242312 | K45: 142924 | L45: 39669 | M45: 59719 | N45: 242308 | O45: 137720 | P45: 49855 | Q45: 54733 | R45: 242308 | S45: 137727 | T45: 49857 | U45: 54724
B46: Sueldos y salarios | C46: Asignaciones | D46: Asignacion Familiar | E46: Sí | F46: 800226 | G46: 483741 | H46: 125192 | I46: 191293 | J46: 891256 | K46: 525694 | L46: 145908 | M46: 219654 | N46: 1485549 | O46: 844340 | P46: 305650 | Q46: 335559 | R46: 1513449 | S46: 860241 | T46: 311406 | U46: 341802
B47: Sueldos y salarios | C47: Asignaciones | D47: Asignacion Escolar | E47: Sí | F47: 2435400 | G47: 1472213 | H47: 381008 | I47: 582179 | J47: 2548900 | K47: 1503429 | L47: 417285 | M47: 628186 | N47: 4507200 | O47: 2561752 | P47: 927350 | Q47: 1018098 | R47: 4897200 | S47: 2783558 | T47: 1007643 | U47: 1105999
B48: Sueldos y salarios | C48: Asignaciones | D48: Asignación por Diferencia Remunerativa (Encargaturas) | E48: Sí | F48: 600640 | G48: 363090 | H48: 93967 | I48: 143583 | J48: 600000 | K48: 353901 | L48: 98227 | M48: 147872 | N48: 254917 | O48: 144887 | P48: 52449 | Q48: 57581 | R48: 254917 | S48: 144894 | T48: 52451 | U48: 57572
B49: Sueldos y salarios | C49: Asignaciones | D49: Asignacion Sepelio y Luto | E49: Sí | F49: 304591 | G49: 184127 | H49: 47652 | I49: 72812 | J49: 239822 | K49: 141455 | L49: 39262 | M49: 59105 | N49: 248069 | O49: 140995 | P49: 51040 | Q49: 56034 | R49: 248069 | S49: 141002 | T49: 51042 | U49: 56025
B50: Sueldos y salarios | C50: Asignaciones | D50: Asignación por Día 31 trabajado para Grupo CTA | E50: Sí | F50: 99141 | G50: 59931 | H50: 15510 | I50: 23700 | J50: 565835 | K50: 333749 | L50: 92634 | M50: 139452 | N50: 2703701 | O50: 2703701 | P50: 0 | Q50: 0 | R50: 2804554 | S50: 2804554 | T50: 0 | U50: 0
B51: Sueldos y salarios | C51: Asignaciones | D51: Años Anteriores Asignaciones | E51: Sí | F51: 127528 | G51: 77091 | H51: 19951 | I51: 30486 | J51: 27528 | K51: 16237 | L51: 4507 | M51: 6784 | N51: 27524 | O51: 15644 | P51: 5663 | Q51: 6217 | R51: 27524 | S51: 15645 | T51: 5663 | U51: 6216
B52: Sueldos y salarios | C52: Horas extras | D52: Horas Extraordinarias (25% -35%) | E52: Sí | F52: 2264400 | G52: 1368843 | H52: 354255 | I52: 541302 | J52: 2223218 | K52: 1311331 | L52: 363966 | M52: 547921 | N52: 4540644 | O52: 2580761 | P52: 934231 | Q52: 1025652 | R52: 4582501 | S52: 2604684 | T52: 942891 | U52: 1034926
B53: Sueldos y salarios | C53: Horas extras | D53: Feriados Trabajados | E53: Sí | F53: 1186851 | G53: 717458 | H53: 185678 | I53: 283715 | J53: 964511 | K53: 568902 | L53: 157902 | M53: 237707 | N53: 1270277 | O53: 721986 | P53: 261358 | Q53: 286933 | R53: 1313207 | S53: 746424 | T53: 270204 | U53: 296579
B54: Sueldos y salarios | C54: Horas extras | D54: Horas Libres Laborados | E54: Sí | F54: 10514040 | G54: 6355796 | H54: 1644875 | I54: 2513369 | J54: 8400000 | K54: 4954610 | L54: 1375177 | M54: 2070213 | N54: 6306911 | O54: 3584652 | P54: 1297638 | Q54: 1424621 | R54: 6306911 | S54: 3584834 | T54: 1297704 | U54: 1424373
B55: Sueldos y salarios | C55: Horas extras | D55: Ejercicios Anteriores Horas Extras | E55: Sí | F55: 441600 | G55: 266950 | H55: 69086 | I55: 105564 | J55: 235780 | K55: 139071 | L55: 38600 | M55: 58109 | N55: 235780 | O55: 134010 | P55: 48511 | Q55: 53259 | R55: 235780 | S55: 134017 | T55: 48514 | U55: 53249
B56: CTS | C56: CTS | D56: Compensacion Tiempo Servicio Empleado Depositado | E56: Sí | F56: 7677129 | G56: 4640868 | H56: 1201053 | I56: 1835208 | J56: 8583601 | K56: 5062904 | L56: 1405235 | M56: 2115462 | N56: 11979314 | O56: 6808669 | P56: 2464727 | Q56: 2705918 | R56: 12206713 | S56: 6938269 | T56: 2511642 | U56: 2756802
B57: CTS | C57: CTS | D57: Ejercicios Anteriores CTS | E57: Sí | F57: 209784 | G57: 126816 | H57: 32820 | I57: 50148 | J57: 157314 | K57: 92789 | L57: 25754 | M57: 38771 | N57: 157298 | O57: 89403 | P57: 32364 | Q57: 35531 | R57: 157298 | S57: 89408 | T57: 32365 | U57: 35525
B58: Seguridad y previsión social | C58: Seguridad y previsión social | D58: Essalud - Seguro Social | E58: Sí | F58: 8656574 | G58: 5232948 | H58: 1354283 | I58: 2069343 | J58: 10504745 | K58: 6196061 | L58: 1719749 | M58: 2588935 | N58: 11719923 | O58: 6661239 | P58: 2411358 | Q58: 2647326 | R58: 11936461 | S58: 6784658 | T58: 2456035 | U58: 2695768
B59: Seguridad y previsión social | C59: Seguridad y previsión social | D59: Seguro de Vida Ley DL 688 | E59: Sí | F59: 307506 | G59: 185889 | H59: 48108 | I59: 73509 | J59: 800000 | K59: 471868 | L59: 130969 | M59: 197163 | N59: 552598 | O59: 314080 | P59: 113696 | Q59: 124822 | R59: 552598 | S59: 314095 | T59: 113702 | U59: 124801
B60: Seguridad y previsión social | C60: Seguridad y previsión social | D60: Seguro Accidente Personal (Seguro Accidente de Viaje) | E60: Sí | F60: 110539 | G60: 66821 | H60: 17293 | I60: 26425 | J60: 50000 | K60: 29492 | L60: 8185 | M60: 12323 | N60: 89262 | O60: 50734 | P60: 18366 | Q60: 20162 | R60: 89262 | S60: 50736 | T60: 18366 | U60: 20160
B61: Seguridad y previsión social | C61: Seguridad y previsión social | D61: Ejercicios Anteriores Seguridad y Prevision Social | E61: Sí | F61: 0 | G61: 0 | H61: 0 | I61: 0 | J61: 87456 | K61: 51585 | L61: 14317 | M61: 21554 | N61: 87456 | O61: 49707 | P61: 17994 | Q61: 19755 | R61: 87456 | S61: 49710 | T61: 17995 | U61: 19751
B62: Dietas del directorio | C62: Dietas del directorio | D62: Dietas del Directorio (Asignacion por Sesion) | E62: Sí | F62: 266250 | G62: 160950 | H62: 41654 | I62: 63646 | J62: 285000 | K62: 168103 | L62: 46658 | M62: 70239 | N62: 285000 | O62: 161985 | P62: 58638 | Q62: 64377 | R62: 285000 | S62: 161993 | T62: 58641 | U62: 64366
B63: Capacitación | C63: Capacitación | D63: Capacitacion Empleados (Personal Administrativo | E63: Sí | F63: 177740 | G63: 107445 | H63: 27807 | I63: 42488 | J63: 336000 | K63: 198184 | L63: 55007 | M63: 82809 | N63: 180004 | O63: 102309 | P63: 37036 | Q63: 40659 | R63: 180004 | S63: 102314 | T63: 37037 | U63: 40653
B64: Capacitación | C64: Capacitación | D64: Curso Basico Formacion C.T.A. | E64: Sí | F64: 711040 | G64: 429828 | H64: 111239 | I64: 169973 | J64: 4671625 | K64: 2755486 | L64: 764799 | M64: 1151340 | N64: 4205781 | O64: 4205781 | P64: 0 | Q64: 0 | R64: 4205781 | S64: 4205781 | T64: 0 | U64: 0
B65: Capacitación | C65: Capacitación | D65: Capacitacion Personal Tecnico | E65: Sí | F65: 689367 | G65: 416726 | H65: 107848 | I65: 164793 | J65: 2217525 | K65: 1307973 | L65: 363034 | M65: 546518 | N65: 800000 | O65: 454695 | P65: 164599 | Q65: 180706 | R65: 800000 | S65: 454718 | T65: 164607 | U65: 180675
B66: Capacitación | C66: Capacitación | D66: Curso de Formación y Entrenamiento para Personal DGAC | E66: Sí | F66: 0 | G66: 0 | H66: 0 | I66: 0 | J66: 50000 | K66: 29492 | L66: 8185 | M66: 12323 | N66: 49996 | O66: 28416 | P66: 10287 | Q66: 11293 | R66: 49996 | S66: 28418 | T66: 10287 | U66: 11291
B67: Capacitación | C67: Capacitación | D67: Ejercicios Anteriores Capacitacion | E67: Sí | F67: 78760 | G67: 47611 | H67: 12322 | I67: 18827 | J67: 78760 | K67: 46455 | L67: 12894 | M67: 19411 | N67: 78764 | O67: 44767 | P67: 16206 | Q67: 17791 | R67: 78764 | S67: 44769 | T67: 16206 | U67: 17789
B68: Jubilaciones y pensiones | C68: Jubilaciones y pensiones | D68: Pension y Jubilacion | E68: Sí | F68: 0 | G68: 0 | H68: 0 | I68: 0 | J68: 0 | K68: 0 | L68: 0 | M68: 0 | N68: 0 | O68: 0 | P68: 0 | Q68: 0 | R68: 0 | S68: 0 | T68: 0 | U68: 0
B69: Laudos que aplican a SITE-SITPRUCOPR y SUCTA | C69: Laudo | D69: Laudo | E69: Sí | F69: 0 | G69: 0 | H69: 0 | I69: 0 | J69: 8842048.074 | K69: 5955671.704 | L69: 1718709.399 | M69: 1167666.972 | N69: 2689459.554 | O69: 1791529.125 | P69: 511725.4453 | Q69: 386204.9843 | R69: 2689459.554 | S69: 1791529.125 | T69: 511725.4453 | U69: 386204.9843
B70: Otros gastos de personal | C70: Refrigerio | D70: Alimentos por Vales | E70: Sí | F70: 53647 | G70: 32430 | H70: 8393 | I70: 12824 | J70: 110000 | K70: 64882 | L70: 18008 | M70: 27110 | N70: 109996 | O70: 62518 | P70: 22632 | Q70: 24846 | R70: 109996 | S70: 62521 | T70: 22633 | U70: 24842
B71: Otros gastos de personal | C71: UNIFORMES (compensación económica) | D71: Asignacion Vestuarios y Otros Implementos | E71: Sí | F71: 2761500 | G71: 1669342 | H71: 432024 | I71: 660134 | J71: 2699200 | K71: 1592081 | L71: 441891 | M71: 665228 | N71: 3822500 | O71: 2172590 | P71: 786474 | Q71: 863436 | R71: 4012500 | S71: 2280696 | T71: 825608 | U71: 906196
B72: Otros gastos de personal | C72: UNIFORMES (compensación económica) | D72: Ejercicios Anteriores Uniforme | E72: Sí | F72: 6781 | G72: 4099 | H72: 1061 | I72: 1621 | J72: 6781 | K72: 4000 | L72: 1110 | M72: 1671 | N72: 6782 | O72: 3855 | P72: 1395 | Q72: 1532 | R72: 6782 | S72: 3855 | T72: 1395 | U72: 1532
B73: Otros gastos de personal | C73: Asistencia médica | D73: (Auto) Seguro de Asistencia Medica Trabajadores | E73: Sí | F73: 5335449 | G73: 3225309 | H73: 834707 | I73: 1275433 | J73: 6501200 | K73: 3834632 | L73: 1064322 | M73: 1602246 | N73: 9870400 | O73: 5610028 | P73: 2030821 | Q73: 2229551 | R73: 9990400 | S73: 5678521 | T73: 2055615 | U73: 2256264
B74: Otros gastos de personal | C74: Asistencia médica | D74: Seguro Medico Practicante | E74: Sí | F74: 71271 | G74: 43084 | H74: 11150 | I74: 17037 | J74: 144000 | K74: 84936 | L74: 23575 | M74: 35489 | N74: 421200 | O74: 239397 | P74: 86661 | Q74: 95142 | R74: 421200 | S74: 239409 | T74: 86666 | U74: 95125
B75: Otros gastos de personal | C75: Asistencia médica | D75: Servicio Médico Personal Aeronáutico | E75: Sí | F75: 167199 | G75: 101073 | H75: 26158 | I75: 39968 | J75: 300000 | K75: 176950 | L75: 49114 | M75: 73936 | N75: 292835 | O75: 292835 | P75: 0 | Q75: 0 | R75: 292835 | S75: 292835 | T75: 0 | U75: 0
B76: Otros gastos de personal | C76: Asistencia médica | D76: Habilitación y Renovacion Licencia Personal Aeronáutico | E76: Sí | F76: 39451 | G76: 23848 | H76: 6172 | I76: 9431 | J76: 54000 | K76: 31851 | L76: 8840 | M76: 13309 | N76: 51226 | O76: 51226 | P76: 0 | Q76: 0 | R76: 51226 | S76: 51226 | T76: 0 | U76: 0
B77: Otros gastos de personal | C77: Asistencia médica | D77: Examenes Médicos Ocupacionales Ley Nº 29783 | E77: Sí | F77: 171129 | G77: 103448 | H77: 26772 | I77: 40909 | J77: 312840 | K77: 184524 | L77: 51215 | M77: 77101 | N77: 450000 | O77: 255766 | P77: 92587 | Q77: 101647 | R77: 450000 | S77: 255779 | T77: 92592 | U77: 101629
B78: Otros gastos de personal | C78: Asistencia médica | D78: Programa Médico Oncologico (titulares) | E78: Sí | F78: 0 | G78: 0 | H78: 0 | I78: 0 | J78: 0 | K78: 0 | L78: 0 | M78: 0 | N78: 0 | O78: 0 | P78: 0 | Q78: 0 | R78: 0 | S78: 0 | T78: 0 | U78: 0
B79: Otros gastos de personal | C79: Asistencia médica | D79: Ejercicios Anteriores Asistencia Medica | E79: Sí | F79: 75000 | G79: 45338 | H79: 11733 | I79: 17929 | J79: 48181 | K79: 28419 | L79: 7888 | M79: 11874 | N79: 75000 | O79: 42628 | P79: 15431 | Q79: 16941 | R79: 75000 | S79: 42630 | T79: 15432 | U79: 16938
B80: Otros gastos de personal | C80: Asistencia médica | D80: Cobertura Seguro PIRV 2017 | E80: Sí | F80: 0 | G80: 0 | H80: 0 | I80: 0 | J80: 0 | K80: 0 | L80: 0 | M80: 0 | N80: 0 | O80: 0 | P80: 0 | Q80: 0 | R80: 0 | S80: 0 | T80: 0 | U80: 0
B81: Otros gastos de personal | C81: Seguro complementario de trabajo de riesgo | D81: Seguro Complementario de Trabajo de Alto Riesgo | E81: Sí | F81: 250000 | G81: 151126 | H81: 39111 | I81: 59763 | J81: 819062 | K81: 483111 | L81: 134090 | M81: 201861 | N81: 772903 | O81: 439294 | P81: 159024 | Q81: 174585 | R81: 785531 | S81: 446494 | T81: 161630 | U81: 177407
B82: Otros gastos de personal | C82: Seguro complementario de trabajo de riesgo | D82: Ejercicios Anteriores SCTR | E82: Sí | F82: 9980 | G82: 6033 | H82: 1561 | I82: 2386 | J82: 9980 | K82: 5887 | L82: 1633 | M82: 2460 | N82: 9976 | O82: 5670 | P82: 2053 | Q82: 2253 | R82: 9976 | S82: 5670 | T82: 2053 | U82: 2253
B83: Otros gastos de personal | C83: Pago de indemnización por cese de relación laboral | D83: Indemnizacion Especial según D.L. 728 | E83: No | F83: 104238 | G83: 63012 | H83: 16308 | I83: 24918 | J83: 0 | K83: 0 | L83: 0 | M83: 0 | N83: 0 | O83: 0 | P83: 0 | Q83: 0 | R83: 0 | S83: 0 | T83: 0 | U83: 0
B84: Otros gastos de personal | C84: Incentivos por retiro voluntario (GIP) | D84: Programa Retiro Voluntario con Incentivo | E84: Sí | F84: 0 | G84: 0 | H84: 0 | I84: 0 | J84: 1454350 | K84: 857826 | L84: 238094 | M84: 358430 | N84: 0 | O84: 0 | P84: 0 | Q84: 0 | R84: 0 | S84: 0 | T84: 0 | U84: 0
B85: Otros gastos de personal | C85: Celebraciones | D85: Celebracion | E85: Sí | F85: 33000 | G85: 19949 | H85: 5163 | I85: 7888 | J85: 29830 | K85: 17595 | L85: 4883 | M85: 7352 | N85: 66000 | O85: 37512 | P85: 13579 | Q85: 14909 | R85: 66000 | S85: 37514 | T85: 13580 | U85: 14906
B86: Otros gastos de personal | C86: Bonos de productividad (Convenio de Gestión) | D86: Bono de Productividad | E86: Sí | F86: 0 | G86: 0 | H86: 0 | I86: 0 | J86: 0 | K86: 0 | L86: 0 | M86: 0 | N86: 0 | O86: 0 | P86: 0 | Q86: 0 | R86: 0 | S86: 0 | T86: 0 | U86: 0
B87: Otros gastos de personal | C87: Participación de trabajadores | D87: Participacion de Trabajadores | E87: No | F87: 0 | G87: 0 | H87: 0 | I87: 0 | J87: 0 | K87: 0 | L87: 0 | M87: 0 | N87: 0 | O87: 0 | P87: 0 | Q87: 0 | R87: 0 | S87: 0 | T87: 0 | U87: 0
B88: Otros (GIP) | C88: Otros (GIP) | D88: Gastos Rehabilitacion y Becas Hijos Trabajadores | E88: Sí | F88: 18156 | G88: 10975 | H88: 2840 | I88: 4341 | J88: 55932 | K88: 32991 | L88: 9156 | M88: 13785 | N88: 42594 | O88: 24209 | P88: 8764 | Q88: 9621 | R88: 42594 | S88: 24210 | T88: 8764 | U88: 9620
B89: Otros (GIP) | C89: Otros (GIP) | D89: Indemnizacion Vacaciones No Disfrutadas | E89: Sí | F89: 0 | G89: 0 | H89: 0 | I89: 0 | J89: 0 | K89: 0 | L89: 0 | M89: 0 | N89: 0 | O89: 0 | P89: 0 | Q89: 0 | R89: 0 | S89: 0 | T89: 0 | U89: 0
B90: Otros (GIP) | C90: Otros (GIP) | D90: Reduccion Periodo Vacacional | E90: Sí | F90: 174424 | G90: 105440 | H90: 27288 | I90: 41696 | J90: 220000 | K90: 129764 | L90: 36016 | M90: 54220 | N90: 220004 | O90: 125043 | P90: 45266 | Q90: 49695 | R90: 220004 | S90: 125050 | T90: 45268 | U90: 49686
B91: Otros (GIP) | C91: Otros (GIP) | D91: Programa de Asistencia Social | E91: Sí | F91: 334339 | G91: 202110 | H91: 52306 | I91: 79923 | J91: 350000 | K91: 206442 | L91: 57299 | M91: 86259 | N91: 388002 | O91: 220528 | P91: 79831 | Q91: 87643 | R91: 388002 | S91: 220539 | T91: 79835 | U91: 87628
B92: Otros (GIP) | C92: Otros (GIP) | D92: Practicas Pro y Pre Profesionales | E92: Sí | F92: 905799 | G92: 547561 | H92: 141708 | I92: 216530 | J92: 2362200 | K92: 1393307 | L92: 386720 | M92: 582173 | N92: 2606700 | O92: 1481567 | P92: 536325 | Q92: 588808 | R92: 2606700 | S92: 1481643 | T92: 536352 | U92: 588705
B93: Otros (GIP) | C93: Otros (GIP) | D93: Canasta Navideña | E93: Sí | F93: 1450000 | G93: 904000 | H93: 261000 | I93: 285000 | J93: 1679000 | K93: 985000 | L93: 277000 | M93: 417000 | N93: 2142000 | O93: 1217446 | P93: 440714 | Q93: 483840 | R93: 2142000 | S93: 1217508 | T93: 440736 | U93: 483756
B94: Otros (GIP) | C94: Otros (GIP) | D94: Ejercicios Anteriores Otros | E94: Sí | F94: 25000 | G94: 15113 | H94: 3911 | I94: 5976 | J94: 25000 | K94: 14746 | L94: 4093 | M94: 6161 | N94: 25000 | O94: 14209 | P94: 5144 | Q94: 5647 | R94: 25000 | S94: 14210 | T94: 5144 | U94: 5646
B95: Otros (GIP) | C95: Otros (GIP) | D95: Vales de Prestación Alimentaria | E95: Sí | F95: 0 | G95: 0 | H95: 0 | I95: 0 | J95: 0 | K95: 0 | L95: 0 | M95: 0 | N95: 0 | O95: 0 | P95: 0 | Q95: 0 | R95: 0 | S95: 0 | T95: 0 | U95: 0
B96: Total | F96: =SUM(F31:F95) -> 150298297 | G96: =SUM(G31:G95) -> 91080039 | H96: =SUM(H31:H95) -> 23659235 | I96: 35559023 | J96: 175313980.1 | K96: 104141234.7 | L96: 28974217.4 | M96: 42198527.97 | N96: 206637202.6 | O96: 120839934.1 | P96: 40981284.45 | Q96: 44815983.98 | R96: 210256629.6 | S96: 122946424.1 | T96: 41707316.45 | U96: 45602888.98
B98: * Resumen de proyecciones:
E99: 2021 | F99: =+E99+1 -> 2022 | G99: =+F99+1 -> 2023 | H99: =+G99+1 -> 2024
B100: Aeronavegación | E100: =+G96 -> 91080039 | F100: =+K96 -> 104141234.7 | G100: =+O96 -> 120839934.1 | H100: =+S96 -> 122946424.1
B101: Aeroportuario | E101: =+H96 -> 23659235 | F101: =+L96 -> 28974217.4 | G101: =+P96 -> 40981284.45 | H101: =+T96 -> 41707316.45
B102: Mixto | E102: =+I96 -> 35559023 | F102: =+M96 -> 42198527.97 | G102: =+Q96 -> 44815983.98 | H102: =+U96 -> 45602888.98
B103: Total | E103: =SUM(E100:E102) -> 150298297 | F103: =SUM(F100:F102) -> 175313980.1 | G103: =SUM(G100:G102) -> 206637202.6 | H103: =SUM(H100:H102) -> 210256629.6
B105: b. Gastos de Personal a incluirse en las tarifas
B106: (Expresado en soles)
E107: 2021 | F107: =+E107+1 -> 2022 | G107: =+F107+1 -> 2023 | H107: =+G107+1 -> 2024
B108: Aeronavegación | E108: =SUMIF($E$31:$E$95,"Sí",G$31:G$95) -> 86045027 | F108: =SUMIF($E$31:$E$95,"Sí",K$31:K$95) -> 104141234.7 | G108: =SUMIF($E$31:$E$95,"Sí",O$31:O$95) -> 120839934.1 | H108: =SUMIF($E$31:$E$95,"Sí",S$31:S$95) -> 122946424.1
B109: Aeroportuario | E109: =SUMIF($E$31:$E$95,"Sí",H$31:H$95) -> 22295427 | F109: =SUMIF($E$31:$E$95,"Sí",L$31:L$95) -> 28974217.4 | G109: =SUMIF($E$31:$E$95,"Sí",P$31:P$95) -> 40981284.45 | H109: =SUMIF($E$31:$E$95,"Sí",T$31:T$95) -> 41707316.45
B110: Mixto | E110: =SUMIF($E$31:$E$95,"Sí",I$31:I$95) -> 33953605 | F110: =SUMIF($E$31:$E$95,"Sí",M$31:M$95) -> 42198527.97 | G110: =SUMIF($E$31:$E$95,"Sí",Q$31:Q$95) -> 44815983.98 | H110: =SUMIF($E$31:$E$95,"Sí",U$31:U$95) -> 45602888.98
B111: Total | E111: =SUM(E108:E110) -> 142294059 | F111: =SUM(F108:F110) -> 175313980.1 | G111: =SUM(G108:G110) -> 206637202.6 | H111: =SUM(H108:H110) -> 210256629.6
B113: c. Asignación de las proyecciones de gastos de personal a Aeronavegación
B114: (Expresado en soles)
E115: 2021 | F115: =+E115+1 -> 2022 | G115: =+F115+1 -> 2023 | H115: =+G115+1 -> 2024
B116: Aeronavegación | E116: =+E108 -> 86045027 | F116: =+F108 -> 104141234.7 | G116: =+G108 -> 120839934.1 | H116: =+H108 -> 122946424.1
B117: Mixto | E117: =+E110*'10. Var-Sup-Gen'!H25 -> 16976802.5 | F117: =+F110*'10. Var-Sup-Gen'!I25 -> 21099263.99 | G117: =+G110*'10. Var-Sup-Gen'!J25 -> 22407991.99 | H117: =+H110*'10. Var-Sup-Gen'!K25 -> 22801444.49
B118: Total | E118: =SUM(E116:E117) -> 103021829.5 | F118: =SUM(F116:F117) -> 125240498.7 | G118: =SUM(G116:G117) -> 143247926.1 | H118: =SUM(H116:H117) -> 145747868.6
B119: Nota: Se considera el 100% de los gastos de personal asignados a aeronavegación y el 50% de los considerados como mixtos.
B121: d. Gastos de personal - Total aeronavegación
B122: (En soles)
B123: Concepto | C123: % Asignación a Aeronavegación | E123: 2021 | F123: =E123+1 -> 2022 | G123: =F123+1 -> 2023 | H123: =G123+1 -> 2024
B124: Gastos de personal - Total aeronavegación | E124: =+E118 -> 103021829.5 | F124: =+F118 -> 125240498.7 | G124: =+G118 -> 143247926.1 | H124: =+H118 -> 145747868.6
B125: SNAR Nacional | C125: =+I18 -> 0.336150597 | E125: =+$C125*E$124 -> 34630849.49 | F125: =+$C125*F$124 -> 42099668.4 | G125: =+$C125*G$124 -> 48152875.88 | H125: =+$C125*H$124 -> 48993233.05
B126: SNAR Internacional | C126: =+I19 -> 0.1639692875 | E126: =+$C126*E$124 -> 16892415.98 | F126: 20535595.33 | G126: 23488260.38 | H126: 23898174.17
B127: Aproximación | C127: =+I20 -> 0.2993383569 | E127: 30838385.16 | F127: 37489285.09 | G127: 42879598.83 | H127: =+$C127*H$124 -> 43627927.51
B128: Sobrevuelo | C128: =+I21 -> 0.199536363 | E128: 20556601.17 | F128: 24990033.61 | G128: 28583170.19 | H128: =+$C128*H$124 -> 29081999.62
B129: Total Aeronavegación regulados | E129: =SUM(E125:E128) -> 102918251.8 | F129: =SUM(F125:F128) -> 125114582.4 | G129: =SUM(G125:G128) -> 143103905.3 | H129: =SUM(H125:H128) -> 145601334.4

Sheet 4.2. OPEX (Incremental)
B1: 4.2 Costos de operación (OPEX) Incremental | AA1: Índice
B3: I. Costos incrementales no relacionados con la ampliación del AIJCh
B5: a. Determinación del costo unitario de las actividades de mantenimiento
B7: i. Información histórica, año 2020
B8: (Expresado en soles. Fuente: Contabilidad regulatoria de CORPAC S.A.)
B9: Rubros | C9: 2017 | D9: 2018 | E9: 2019 | F9: 2020 | G9: 2021 | H9: Participación (%)
B10: Suministros y Materiales | C10: 1457892.958 | D10: 3308214.066 | E10: 2968335.035 | F10: 4671567.807 | G10: 8151346.008 | H10: =+AVERAGE(C10/C$13,D10/D$13,E10/E$13,F10/F$13,G10/G$13) -> 0.2301336123
B11: Mantenimiento | C11: 7700172.088 | D11: 4379845.88 | E11: 4412118.443 | F11: 6210557.208 | G11: 6368623.967 | H11: =+AVERAGE(C11/C$13,D11/D$13,E11/E$13,F11/F$13,G11/G$13) -> 0.3367044214
B12: Servicios prestados por terceros | C12: 9648092.437 | D12: 7405678.864 | E12: 5753210.416 | F12: 5393229.798 | G12: 9389519.401 | H12: =+AVERAGE(C12/C$13,D12/D$13,E12/E$13,F12/F$13,G12/G$13) -> 0.4331619663
B13: Costo total del mantenimiento | C13: =SUM(C10:C12) -> 18806157.48 | D13: =SUM(D10:D12) -> 15093738.81 | E13: 13133663.89 | F13: 16275354.81 | G13: 23909489.38 | H13: =+AVERAGE(C13/C$13,D13/D$13,E13/E$13,F13/F$13,G13/G$13) -> 1
B15: ii. Cantidades de mantenimiento realizadas en el periodo 2017-2021
B16: (Fuente: CORPAC)
C17: 2017 | D17: 2018 | E17: 2019 | F17: 2020 | G17: 2021
B18: Áreas de sistemas de comunicaciones aeronáuticas | C18: 9978 | D18: 9190 | E18: 8365 | F18: 5747 | G18: 7724
B20: iii. Costo unitario de las actividades de mantenimiento
B21: (Expresado en soles)
B22: Detalle | C22: 2017 | D22: 2018 | E22: 2019 | F22: 2020 | G22: 2021 | H22: Promedio
B23: Costo total de las actividades de mantenimiento en el año 2020 | C23: =+C13 -> 18806157.48 | D23: =+D13 -> 15093738.81 | E23: =+E13 -> 13133663.89 | F23: =+F13 -> 16275354.81 | G23: =+G13 -> 23909489.38
B24: Número de actividades de mantenimiento desarrolladas en el año 2020 | C24: =+C18 -> 9978 | D24: =+D18 -> 9190 | E24: =+E18 -> 8365 | F24: =+F18 -> 5747 | G24: =+G18 -> 7724
B25: Costo unitario de las actividades de mantenimiento, año base 2020 | C25: =+C23/C24 -> 1884.762225 | D25: =+D23/D24 -> 1642.409011 | E25: 1570.073388 | F25: 2831.974041 | G25: 3095.48024 | H25: =+AVERAGE(C25:G25) -> 2204.939781
B27: iv. Costo unitario de las actividades de mantenimiento por tipo de gasto
B28: (Expresado en soles)
B29: Costos unitarios | C29: Base
B30: Suministros y Materiales | C30: =$H$25*H10 -> 507.4307567
B31: Mantenimiento | C31: =$H$25*H11 -> 742.4129733
B32: Servicios Prestados por Terceros | C32: =$H$25*H12 -> 955.0960511
B33: Total | C33: =SUM(C30:C32) -> 2204.939781
B35: b. Actividades de mantenimiento incrementales proyectadas por CORPAC. Sin incluir la ampliación del AIJCh
B36: (Fuente: CORPAC)
D37: 2021 | E37: 2022 | F37: 2023 | G37: 2024
B38: Número de actividades de mantenimiento incrementales | D38: 403 | E38: 270 | F38: 666 | G38: 730
B40: c. Proyección de costos incrementales, sin incluir la ampliación del AIJCh
B41: (Expresado en soles)
B42: Costos incrementales | D42: 2021 | E42: 2022 | F42: 2023 | G42: 2024
B43: Suministros y Materiales | D43: =+$C30*D$38 -> 204494.595 | E43: 137006.3043 | F43: 337948.884 | G43: 370424.4524
B44: Mantenimiento | D44: 299192.4283 | E44: 200451.5028 | F44: 494447.0402 | G44: 541961.4705
B45: Servicios Prestados por Terceros | D45: 384903.7086 | E45: 257875.9338 | F45: 636093.97 | G45: 697220.1173
B46: Total | D46: =+SUM(D43:D45) -> 888590.7318 | E46: =+SUM(E43:E45) -> 595333.7409 | F46: =+SUM(F43:F45) -> 1468489.894 | G46: =+SUM(G43:G45) -> 1609606.04
B48: d. Participación de los servicios en los costos incrementales NO relacionados con la ampliación del AIJCh
B49: (Expresado en soles. Fuente: Contabilidad regulatoria de CORPAC S.A.)
B50: Detalle | C50: 2017 | H50: 2018 | M50: 2019 | R50: 2020 | W50: 2021
C51: SNAR nacional | D51: SNAR Internacional | E51: Aproximación | F51: Sobrevuelo | G51: Total | H51: SNAR nacional | I51: SNAR Internacional | J51: Aproximación | K51: Sobrevuelo | L51: Total | M51: SNAR nacional | N51: SNAR Internacional | O51: Aproximación | P51: Sobrevuelo | Q51: Total | R51: SNAR nacional | S51: SNAR Internacional | T51: Aproximación | U51: Sobrevuelo | V51: Total | W51: SNAR nacional | X51: SNAR Internacional | Y51: Aproximación | Z51: Sobrevuelo | AA51: Total
B52: Suministros y Materiales | C52: =+VLOOKUP(B52,'4. OPEX'!$B$7:$H$15,4,0) -> 3289056.576 | D52: =+VLOOKUP(B52,'4. OPEX'!$B$18:$H$26,4,0) -> 697692.9185 | E52: =+VLOOKUP(B52,'4. OPEX'!$B$29:$H$37,4,0) -> 2104704.063 | F52: =+VLOOKUP($B52,'4. OPEX'!B40:H48,4,0) -> 564375.0402 | G52: =+SUM(C52:F52) -> 6655828.597 | H52: =+VLOOKUP(B52,'4. OPEX'!$B$7:$H$15,5,0) -> 1577965.411 | I52: =+VLOOKUP(B52,'4. OPEX'!$B$18:$H$26,5,0) -> 726028.5137 | J52: =+VLOOKUP(B52,'4. OPEX'!$B$29:$H$37,5,0) -> 1554098.939 | K52: =+VLOOKUP($B52,'4. OPEX'!B40:H48,5,0) -> 752948.593 | L52: =+SUM(H52:K52) -> 4611041.457 | M52: =+VLOOKUP(B52,'4. OPEX'!$B$7:$H$15,6,0) -> 1155468.467 | N52: =+VLOOKUP(B52,'4. OPEX'!$B$18:$H$26,6,0) -> 398910.3457 | O52: =+VLOOKUP(B52,'4. OPEX'!$B$29:$H$37,6,0) -> 2591206.703 | P52: =+VLOOKUP($B52,'4. OPEX'!B40:H48,6,0) -> 410242.3799 | Q52: =+SUM(M52:P52) -> 4555827.896 | R52: =+VLOOKUP(B52,'4. OPEX'!$B$7:$H$15,7,0) -> 2340184.393 | S52: =+VLOOKUP(B52,'4. OPEX'!$B$18:$H$26,7,0) -> 1533497.356 | T52: =+VLOOKUP(B52,'4. OPEX'!$B$29:$H$37,7,0) -> 1187833.793 | U52: =+VLOOKUP($B52,'4. OPEX'!$B$40:$H$48,7,0) -> 2435395.427 | V52: =+SUM(R52:U52) -> 7496910.969 | W52: =+VLOOKUP(B52,'4. OPEX'!$B$7:$I$15,8,0) -> 7185955.799 | X52: =+VLOOKUP(B52,'4. OPEX'!$B$18:$I$26,8,0) -> 1925586.999 | Y52: =+VLOOKUP(B52,'4. OPEX'!$B$29:$I$37,8,0) -> 4502673.639 | Z52: =+VLOOKUP($B52,'4. OPEX'!$B$40:$I$48,8,0) -> 3207705.212 | AA52: =+SUM(W52:Z52) -> 16821921.65
B53: Servicios prestados por terceros | C53: =+VLOOKUP(B53,'4. OPEX'!$B$7:$H$15,4,0) -> 15668345.12 | D53: =+VLOOKUP(B53,'4. OPEX'!$B$18:$H$26,4,0) -> 4771371.041 | E53: =+VLOOKUP(B53,'4. OPEX'!$B$29:$H$37,4,0) -> 12913170.55 | F53: =+VLOOKUP($B53,'4. OPEX'!B41:H49,4,0) -> 4171236.129 | G53: =+SUM(C53:F53) -> 37524122.84 | H53: =+VLOOKUP(B53,'4. OPEX'!$B$7:$H$15,5,0) -> 16381705.98 | I53: =+VLOOKUP(B53,'4. OPEX'!$B$18:$H$26,5,0) -> 4218914.586 | J53: =+VLOOKUP(B53,'4. OPEX'!$B$29:$H$37,5,0) -> 13440364.98 | K53: =+VLOOKUP($B53,'4. OPEX'!B41:H49,5,0) -> 3934712.005 | L53: =+SUM(H53:K53) -> 37975697.55 | M53: =+VLOOKUP(B53,'4. OPEX'!$B$7:$H$15,6,0) -> 17445248 | N53: =+VLOOKUP(B53,'4. OPEX'!$B$18:$H$26,6,0) -> 4338777.859 | O53: =+VLOOKUP(B53,'4. OPEX'!$B$29:$H$37,6,0) -> 13250307.05 | P53: =+VLOOKUP($B53,'4. OPEX'!B41:H49,6,0) -> 4024961.75 | Q53: =+SUM(M53:P53) -> 39059294.66 | R53: =+VLOOKUP(B53,'4. OPEX'!$B$7:$H$15,7,0) -> 15552886.46 | S53: =+VLOOKUP(B53,'4. OPEX'!$B$18:$H$26,7,0) -> 2862225.183 | T53: =+VLOOKUP(B53,'4. OPEX'!$B$29:$H$37,7,0) -> 11228710.84 | U53: =+VLOOKUP($B53,'4. OPEX'!B41:H49,7,0) -> 3701216.39 | V53: =+SUM(R53:U53) -> 33345038.86 | W53: =+VLOOKUP(B53,'4. OPEX'!$B$7:$I$15,8,0) -> 18281068.59 | X53: =+VLOOKUP(B53,'4. OPEX'!$B$18:$I$26,8,0) -> 2909420.602 | Y53: =+VLOOKUP(B53,'4. OPEX'!$B$29:$I$37,8,0) -> 13285946.32 | Z53: =+VLOOKUP($B53,'4. OPEX'!$B$40:$I$48,8,0) -> 4186183.107 | AA53: =+SUM(W53:Z53) -> 38662618.62
B54: Mantenimiento | C54: =+VLOOKUP(B54,'4. OPEX'!$B$7:$H$15,4,0) -> 3333235.414 | D54: =+VLOOKUP(B54,'4. OPEX'!$B$18:$H$26,4,0) -> 932230.9842 | E54: =+VLOOKUP(B54,'4. OPEX'!$B$29:$H$37,4,0) -> 2584395.357 | F54: =+VLOOKUP($B54,'4. OPEX'!B42:H50,4,0) -> 850310.3331 | G54: =+SUM(C54:F54) -> 7700172.088 | H54: =+VLOOKUP(B54,'4. OPEX'!$B$7:$H$15,5,0) -> 1675655.664 | I54: =+VLOOKUP(B54,'4. OPEX'!$B$18:$H$26,5,0) -> 551253.9388 | J54: =+VLOOKUP(B54,'4. OPEX'!$B$29:$H$37,5,0) -> 1601774.357 | K54: =+VLOOKUP($B54,'4. OPEX'!B42:H50,5,0) -> 551161.9197 | L54: =+SUM(H54:K54) -> 4379845.88 | M54: =+VLOOKUP(B54,'4. OPEX'!$B$7:$H$15,6,0) -> 1591671.761 | N54: =+VLOOKUP(B54,'4. OPEX'!$B$18:$H$26,6,0) -> 679078.0808 | O54: =+VLOOKUP(B54,'4. OPEX'!$B$29:$H$37,6,0) -> 1436201.778 | P54: =+VLOOKUP($B54,'4. OPEX'!B42:H50,6,0) -> 705166.8236 | Q54: =+SUM(M54:P54) -> 4412118.443 | R54: =+VLOOKUP(B54,'4. OPEX'!$B$7:$H$15,7,0) -> 1968143.27 | S54: =+VLOOKUP(B54,'4. OPEX'!$B$18:$H$26,7,0) -> 730018.8934 | T54: =+VLOOKUP(B54,'4. OPEX'!$B$29:$H$37,7,0) -> 2410679.39 | U54: =+VLOOKUP($B54,'4. OPEX'!B42:H50,7,0) -> 1101715.655 | V54: =+SUM(R54:U54) -> 6210557.208 | W54: =+VLOOKUP(B54,'4. OPEX'!$B$7:$I$15,8,0) -> 2475459.882 | X54: =+VLOOKUP(B54,'4. OPEX'!$B$18:$I$26,8,0) -> 610815.5538 | Y54: =+VLOOKUP(B54,'4. OPEX'!$B$29:$I$37,8,0) -> 2290692.605 | Z54: =+VLOOKUP($B54,'4. OPEX'!$B$40:$I$48,8,0) -> 991655.9266 | AA54: =+SUM(W54:Z54) -> 6368623.967
B56: Detalle | C56: 2017 | H56: 2018 | M56: 2019 | R56: 2020 | W56: 2021
C57: SNAR nacional | D57: SNAR Internacional | E57: Aproximación | F57: Sobrevuelo | G57: Total | H57: SNAR nacional | I57: SNAR Internacional | J57: Aproximación | K57: Sobrevuelo | L57: Total | M57: SNAR nacional | N57: SNAR Internacional | O57: Aproximación | P57: Sobrevuelo | Q57: Total | R57: SNAR nacional | S57: SNAR Internacional | T57: Aproximación | U57: Sobrevuelo | V57: Total | W57: SNAR nacional | X57: SNAR Internacional | Y57: Aproximación | Z57: Sobrevuelo | AA57: Total
B58: Suministros y Materiales | C58: =+C52/$G52 -> 0.4941618505 | D58: 0.1048243518 | E58: 0.316219691 | F58: 0.0847941067 | G58: 1 | H58: =+H52/$L52 -> 0.3422145356 | I58: 0.1574543453 | J58: 0.3370385961 | K58: 0.163292523 | L58: 1 | M58: =+M52/$Q52 -> 0.2536242575 | N58: 0.0875604511 | O58: 0.5687674693 | P58: 0.09004782211 | Q58: 1 | R58: =+R52/$V52 -> 0.3121531525 | S58: 0.2045505626 | T58: 0.1584430971 | U58: 0.3248531878 | V58: 1 | W58: =IFERROR(W52/$AA52,"") -> 0.4271780567 | X58: =IFERROR(X52/$AA52,"") -> 0.1144689079 | Y58: 0.26766702 | Z58: 0.1906860155 | AA58: 1
B59: Servicios prestados por terceros | C59: 0.4175539342 | D59: 0.1271547655 | E59: 0.3441298443 | F59: 0.111161456 | G59: 1 | H59: 0.4313734056 | I59: 0.1110951176 | J59: 0.3539201606 | K59: 0.1036113162 | L59: 1 | M59: 0.4466349981 | N59: 0.1110818282 | O59: 0.3392356971 | P59: 0.1030474765 | Q59: 1 | R59: 0.4664228019 | S59: 0.08583661259 | T59: 0.3367430724 | U59: 0.1109975131 | V59: 1 | W59: =IFERROR(W53/$AA53,"") -> 0.4728357583 | X59: 0.07525151441 | Y59: 0.3436380357 | Z59: 0.1082746916 | AA59: 1
B60: Mantenimiento | C60: 0.4328780416 | D60: 0.1210662533 | E60: 0.3356282597 | F60: 0.1104274454 | G60: 1 | H60: 0.3825832483 | I60: 0.1258614924 | J60: 0.3657147766 | K60: 0.1258404827 | L60: 1 | M60: 0.3607500074 | N60: 0.1539120242 | O60: 0.3255129698 | P60: 0.1598249985 | Q60: 1 | R60: 0.3169028485 | S60: 0.1175448304 | T60: 0.3881583099 | U60: 0.1773940112 | V60: 1 | W60: =IFERROR(W54/$AA54,"") -> 0.3886961917 | X60: 0.09591013018 | Y60: 0.3596840725 | Z60: 0.1557096057 | AA60: 1
B62: * Participación promedio 2017-2021 gastos:
B63: Detalle | C63: SNAR nacional | D63: SNAR Internacional | E63: Aproximación | F63: Sobrevuelo
B64: Suministros y Materiales | C64: =+AVERAGE(C58,H58,M58,R58,W58) -> 0.3658663705 | D64: =+AVERAGE(D58,I58,N58,S58,X58) -> 0.1337717237 | E64: =+AVERAGE(E58,J58,O58,T58,Y58) -> 0.3296271747 | F64: =+AVERAGE(F58,K58,P58,U58,Z58) -> 0.170734731
B65: Servicios prestados por terceros | C65: =+AVERAGE(C59,H59,M59,R59,W59) -> 0.4469641796 | D65: 0.1020839677 | E65: 0.343533362 | F65: 0.1074184907
B66: Mantenimiento | C66: 0.3763620675 | D66: 0.1228589461 | E66: 0.3549396777 | F66: 0.1458393087
B68: e. Asignación de los costos incrementales no relacionados con la ampliación del AIJCh a los servicios de aeronavegación
B70: i. Para SNAR Nacional
B71: (Expresado en soles)
B72: Detalle | E72: 2022 | F72: 2023 | G72: 2024
B73: Suministros y Materiales | E73: =+E43*$C64 -> 50125.9993 | F73: =+F43*$C64 -> 123644.1316 | G73: =+G43*$C64 -> 135525.85
B74: Servicios prestados por terceros | E74: =+E45*$C65 -> 115261.3052 | F74: =+F45*$C65 -> 284311.2195 | G74: =+G45*$C65 -> 311632.4177
B75: Mantenimiento | E75: =+E44*$C66 -> 75442.34203 | F75: =+F44*$C66 -> 186091.1103 | G75: =+G44*$C66 -> 203973.7396
B76: Costos de operación y mantenimiento | E76: =+SUM(E73:E75) -> 240829.6465 | F76: 594046.4614 | G76: 651132.0073
B78: ii. Para SNAR Internacional
B79: (Expresado en soles)
B80: Detalle | E80: 2022 | F80: 2023 | G80: 2024
B81: Suministros y Materiales | E81: =+E43*$D64 -> 18327.56949 | F81: =+F43*$D64 -> 45208.00474 | G81: =+G43*$D64 -> 49552.31751
B82: Servicios prestados por terceros | E82: =+E45*$D65 -> 26324.99849 | F82: =+F45*$D65 -> 64934.99627 | G82: =+G45*$D65 -> 71174.99591
B83: Mantenimiento | E83: =+E44*$D66 -> 24627.26038 | F83: =+F44*$D66 -> 60747.24226 | G83: =+G44*$D66 -> 66584.81509
B84: Costos de operación y mantenimiento | E84: =+SUM(E81:E83) -> 69279.82835 | F84: =+SUM(F81:F83) -> 170890.2433 | G84: =+SUM(G81:G83) -> 187312.1285
B86: iii. Para Aproximación
B87: (Expresado en soles)
B88: Detalle | E88: 2022 | F88: 2023 | G88: 2024
B89: Suministros y Materiales | E89: =+E43*$E64 -> 45161.00101 | F89: =+F43*$E64 -> 111397.1358 | G89: =+G43*$E64 -> 122101.9657
B90: Servicios prestados por terceros | E90: =+E45*$E65 -> 88588.98652 | F90: =+F45*$E65 -> 218519.5001 | G90: =+G45*$E65 -> 239518.371
B91: Mantenimiento | E91: =+E44*$E66 -> 71148.1918 | F91: =+F44*$E66 -> 175498.8731 | G91: =+G44*$E66 -> 192363.6297
B92: Costos de operación y mantenimiento | E92: =+SUM(E89:E91) -> 204898.1793 | F92: =+SUM(F89:F91) -> 505415.509 | G92: =+SUM(G89:G91) -> 553983.9663
B94: iv. Para Sobrevuelo
B95: (Expresado en soles)
B96: Detalle | E96: 2022 | F96: 2023 | G96: 2024
B97: Suministros y Materiales | E97: =+E43*$F64 -> 23391.73451 | F97: =+F43*$F64 -> 57699.6118 | G97: =+G43*$F64 -> 63244.31924
B98: Servicios prestados por terceros | E98: =+E45*$F65 -> 27700.64359 | F98: =+F45*$F65 -> 68328.25419 | G98: =+G45*$F65 -> 74894.33267
B99: Mantenimiento | E99: =+E44*$F66 -> 29233.7086 | F99: =+F44*$F66 -> 72109.81454 | G99: =+G44*$F66 -> 79039.28621
B100: Costos de operación y mantenimiento | E100: =+SUM(E97:E99) -> 80326.0867 | F100: =+SUM(F97:F99) -> 198137.6805 | G100: =+SUM(G97:G99) -> 217177.9381
B102: f. Ajuste de los costos incrementales no relacionados con la ampliación del AIJCh a los servicios de aeronavegación
B104: i. Para SNAR Nacional
B105: (Expresado en soles)
B106: Detalle | E106: 2022 | F106: 2023 | G106: 2024
B107: Suministros y Materiales | E107: =+E73*'5.3. InvEjecutadas'!$H$77 -> 37112.74019 | F107: =+F73*'5.3. InvEjecutadas'!$H$77 -> 91544.75914 | G107: =+G73*'5.3. InvEjecutadas'!$H$77 -> 100341.8531
B108: Servicios prestados por terceros | E108: =+E74*'5.3. InvEjecutadas'!$H$77 -> 85338.20638 | F108: =+F74*'5.3. InvEjecutadas'!$H$77 -> 210500.9091 | G108: =+G74*'5.3. InvEjecutadas'!$H$77 -> 230729.2247
B109: Mantenimiento | E109: =+E75*'5.3. InvEjecutadas'!$H$77 -> 55856.68272 | F109: =+F75*'5.3. InvEjecutadas'!$H$77 -> 137779.8174 | G109: =+G75*'5.3. InvEjecutadas'!$H$77 -> 151019.92
B110: Costos de operación y mantenimiento | E110: =+SUM(E107:E109) -> 178307.6293 | F110: =+SUM(F107:F109) -> 439825.4856 | G110: =+SUM(G107:G109) -> 482090.9977
B112: ii. Para SNAR Internacional
B113: (Expresado en soles)
B114: Detalle | E114: 2022 | F114: 2023 | G114: 2024
B115: Suministros y Materiales | E115: =+E81*'5.3. InvEjecutadas'!$H$77 -> 13569.53147 | F115: =+F81*'5.3. InvEjecutadas'!$H$77 -> 33471.51095 | G115: =+G81*'5.3. InvEjecutadas'!$H$77 -> 36687.99248
B116: Servicios prestados por terceros | E116: =+E82*'5.3. InvEjecutadas'!$H$77 -> 19490.74019 | F116: =+F82*'5.3. InvEjecutadas'!$H$77 -> 48077.15915 | G116: =+G82*'5.3. InvEjecutadas'!$H$77 -> 52697.18645
B117: Mantenimiento | E117: =+E83*'5.3. InvEjecutadas'!$H$77 -> 18233.75351 | F117: =+F83*'5.3. InvEjecutadas'!$H$77 -> 44976.592 | G117: =+G83*'5.3. InvEjecutadas'!$H$77 -> 49298.66691
B118: Costos de operación y mantenimiento | E118: =+SUM(E115:E117) -> 51294.02518 | F118: =+SUM(F115:F117) -> 126525.2621 | G118: =+SUM(G115:G117) -> 138683.8458
B120: iii. Para Aproximación
B121: (Expresado en soles)
B122: Detalle | E122: 2022 | F122: 2023 | G122: 2024
B123: Suministros y Materiales | E123: =+E89*'5.3. InvEjecutadas'!$H$77 -> 33436.7099 | F123: =+F89*'5.3. InvEjecutadas'!$H$77 -> 82477.21776 | G123: =+G89*'5.3. InvEjecutadas'!$H$77 -> 90402.95641
B124: Servicios prestados por terceros | E124: =+E90*'5.3. InvEjecutadas'!$H$77 -> 65590.31414 | F124: =+F90*'5.3. InvEjecutadas'!$H$77 -> 161789.4415 | G124: =+G90*'5.3. InvEjecutadas'!$H$77 -> 177336.7753
B125: Mantenimiento | E125: =+E91*'5.3. InvEjecutadas'!$H$77 -> 52677.34098 | F125: =+F91*'5.3. InvEjecutadas'!$H$77 -> 129937.4411 | G125: =+G91*'5.3. InvEjecutadas'!$H$77 -> 142423.9219
B126: Costos de operación y mantenimiento | E126: =+SUM(E123:E125) -> 151704.365 | F126: =+SUM(F123:F125) -> 374204.1004 | G126: =+SUM(G123:G125) -> 410163.6536
B128: iv. Para Sobrevuelo
B129: (Expresado en soles)
B130: Detalle | E130: 2022 | F130: 2023 | G130: 2024
B131: Suministros y Materiales | E131: =+E97*'5.3. InvEjecutadas'!$H$77 -> 17318.98372 | F131: =+F97*'5.3. InvEjecutadas'!$H$77 -> 42720.15983 | G131: =+G97*'5.3. InvEjecutadas'!$H$77 -> 46825.40042
B132: Servicios prestados por terceros | E132: =+E98*'5.3. InvEjecutadas'!$H$77 -> 20509.25274 | F132: =+F98*'5.3. InvEjecutadas'!$H$77 -> 50589.4901 | G132: =+G98*'5.3. InvEjecutadas'!$H$77 -> 55450.9426
B133: Mantenimiento | E133: =+E99*'5.3. InvEjecutadas'!$H$77 -> 21644.31726 | F133: =+F99*'5.3. InvEjecutadas'!$H$77 -> 53389.31591 | G133: =+G99*'5.3. InvEjecutadas'!$H$77 -> 58519.82075
B134: Costos de operación y mantenimiento | E134: =+SUM(E131:E133) -> 59472.55372 | F134: =+SUM(F131:F133) -> 146698.9658 | G134: =+SUM(G131:G133) -> 160796.1638
B136: II. Costos incrementales relacionados con la ampliación del AIJCh
B138: a. Proyecciones de los costos incrementales relacionados con la ampliación del AIJCh
B140: (Expresado en soles)
B141: Detalle | E141: 2022 | F141: 2023 | G141: 2024
B142: Suministros y Materiales | E142: 607524.0536 | F142: 810115.5038 | G142: 1028775.328
B143: Servicios prestados por terceros | E143: 465075.3956 | F143: 620164.3972 | G143: 787554.1549
B144: Seguros y tributos | E144: 200634.0268 | F144: 267539.5892 | G144: 339751.711
B145: Otros Costos | E145: 251315.6693 | F145: 335122.0727 | G145: 425575.5118
B146: Costos de operación y mantenimiento | E146: =+SUM(E142:E145) -> 1524549.145 | F146: =+SUM(F142:F145) -> 2032941.563 | G146: =+SUM(G142:G145) -> 2581656.706
B148: b. Participación de los servicios en los costos incrementales relacionados con la ampliación del AIJCh
B149: (Expresado en soles)
D150: 2021 | E150: 2022 | F150: 2023 | G150: 2024
B151: Inversión ampliación AIJCh asignada a SNAR | D151: 1180018.935 | E151: 13560278.73 | F151: 12421448.17
B152: Inversión ampliación AIJCh asignada a Aproximación | D152: 2538936.741 | E152: 55098901.38 | F152: 31443446.16
B153: Inversión ampliación AIJCh | D153: =+D151+D152 -> 3718955.677 | E153: =+E151+E152 -> 68659180.11 | F153: =+F151+F152 -> 43864894.33
B154: Inversión acumulada ampliación AIJCh asignada a SNAR | D154: 1180018.935 | E154: =+D154+E151 -> 14740297.67 | F154: 27161745.84 | G154: =+F154+G151 -> 27161745.84
B155: Inversión acumulada ampliación AIJCh asignada a Aproximación | D155: 2538936.741 | E155: 57637838.12 | F155: 89081284.28 | G155: 89081284.28
B156: Inversión acumulada ampliación AIJCh | D156: =+D154+D155 -> 3718955.677 | E156: =+E154+E155 -> 72378135.79 | F156: =+F154+F155 -> 116243030.1 | G156: =+G154+G155 -> 116243030.1
B157: SNAR | D157: =+D154/D156 -> 0.3172984671 | E157: =+E154/E156 -> 0.2036567743 | F157: =+F154/F156 -> 0.2336634361 | G157: =+G154/G156 -> 0.2336634361
B158: Aproximación | D158: =+D155/D156 -> 0.6827015329 | E158: =+E155/E156 -> 0.7963432257 | F158: =+F155/F156 -> 0.7663365639 | G158: =+G155/G156 -> 0.7663365639
B160: c. Asignación de los costos incrementales relacionados con la ampliación del AIJCh a los servicios de aeronavegación
B162: i. Para los servicios de SNAR nacional-internacional y sobrevuelo
B163: (Expresado en soles)
B164: Detalle | E164: 2022 | F164: 2023 | G164: 2024
B165: Suministros y Materiales | E165: =+E142*E$157 -> 123726.3891 | F165: 189294.3722 | G165: 240387.178
B166: Servicios prestados por terceros | E166: 94715.75489 | F166: 144909.744 | G166: 184022.6099
B167: Seguros y tributos | E167: 40860.47872 | F167: 62514.21969 | G167: 79387.5522
B168: Otros Costos | E168: 51182.13855 | F168: 78305.77501 | G168: 99441.4364
B169: Costos de operación y mantenimiento | E169: =+SUM(E165:E168) -> 310484.7612 | F169: =+SUM(F165:F168) -> 475024.1109 | G169: =+SUM(G165:G168) -> 603238.7765
B171: ii. Para los servicios de SNAR internacional
B172: (Expresado en soles)
B173: Detalle | E173: 2022 | F173: 2023 | G173: 2024
B174: Suministros y Materiales
B175: Servicios prestados por terceros
B176: Seguros y tributos
B177: Otros Costos
B178: Costos de operación y mantenimiento | E178: =+SUM(E174:E177) -> 0 | F178: =+SUM(F174:F177) -> 0 | G178: =+SUM(G174:G177) -> 0
B180: iii. Para Aproximación
B181: (Expresado en soles)
B182: Detalle | E182: 2022 | F182: 2023 | G182: 2024
B183: Suministros y Materiales | E183: =+E142*E$158 -> 483797.6645 | F183: 620821.1316 | G183: 788388.1497
B184: Servicios prestados por terceros | E184: 370359.6407 | F184: 475254.6532 | G184: 603531.545
B185: Seguros y tributos | E185: 159773.5481 | F185: 205025.3695 | G185: 260364.1588
B186: Otros Costos | E186: 200133.5308 | F186: 256816.2977 | G186: 326134.0754
B187: Costos de operación y mantenimiento | E187: =+SUM(E183:E186) -> 1214064.384 | F187: =+SUM(F183:F186) -> 1557917.452 | G187: =+SUM(G183:G186) -> 1978417.929
B189: iv. Para Sobrevuelo
B190: (Expresado en soles)
B191: Detalle | E191: 2022 | F191: 2023 | G191: 2024
B192: Suministros y Materiales
B193: Servicios prestados por terceros
B194: Seguros y tributos
B195: Otros Costos
B196: Costos de operación y mantenimiento | E196: =+SUM(E192:E195) -> 0 | F196: =+SUM(F192:F195) -> 0 | G196: =+SUM(G192:G195) -> 0
B198: III. Costos incrementales totales (incluye el mantenimiento de equipos y la ampliación del AIJCh)
B200: a. Para SNAR nacional
B201: (Expresado en soles) | D201: 3 | E201: 4 | F201: 5 | G201: 6
B202: Detalle | E202: 2022 | F202: 2023 | G202: 2024
B203: Suministros y Materiales | E203: =IFERROR(VLOOKUP($B203,$B$106:$G$109,E$201,0),0)+IFERROR(VLOOKUP($B203,$B$164:$G$168,E$201,0),0) -> 160839.1293 | F203: 280839.1314 | G203: 340729.0311
B204: Servicios prestados por terceros | E204: 180053.9613 | F204: 355410.653 | G204: 414751.8346
B205: Mantenimiento | E205: 55856.68272 | F205: 137779.8174 | G205: 151019.92
B206: Seguros y tributos | E206: 40860.47872 | F206: 62514.21969 | G206: 79387.5522
B207: Otros Costos | E207: 51182.13855 | F207: 78305.77501 | G207: 99441.4364
B208: Costo total | E208: =SUM(E203:E207) -> 488792.3905 | F208: =SUM(F203:F207) -> 914849.5965 | G208: =SUM(G203:G207) -> 1085329.774
B210: b. Para SNAR internacional
B211: (Expresado en soles) | D211: 3 | E211: 4 | F211: 5 | G211: 6
B212: Detalle | E212: 2022 | F212: 2023 | G212: 2024
B213: Suministros y Materiales | E213: =IFERROR(VLOOKUP($B213,$B$114:$G$117,E$211,0),0)+IFERROR(VLOOKUP($B213,$B$173:$G$177,E$211,0),0) -> 13569.53147 | F213: 33471.51095 | G213: 36687.99248
B214: Servicios prestados por terceros | E214: 19490.74019 | F214: 48077.15915 | G214: 52697.18645
B215: Mantenimiento | E215: 18233.75351 | F215: 44976.592 | G215: 49298.66691
B216: Seguros y tributos | E216: 0 | F216: 0 | G216: 0
B217: Otros Costos | E217: 0 | F217: 0 | G217: 0
B218: Costo total | E218: =SUM(E213:E217) -> 51294.02518 | F218: =SUM(F213:F217) -> 126525.2621 | G218: =SUM(G213:G217) -> 138683.8458
B220: c. Para Aproximación
B221: (Expresado en soles) | D221: 3 | E221: 4 | F221: 5 | G221: 6
B222: Detalle | E222: 2022 | F222: 2023 | G222: 2024
B223: Suministros y Materiales | E223: =IFERROR(VLOOKUP($B223,$B$122:$G$125,E$221,0),0)+IFERROR(VLOOKUP($B223,$B$182:$G$186,E$221,0),0) -> 517234.3744 | F223: 703298.3494 | G223: 878791.1061
B224: Servicios prestados por terceros | E224: 435949.9549 | F224: 637044.0948 | G224: 780868.3202
B225: Mantenimiento | E225: 52677.34098 | F225: 129937.4411 | G225: 142423.9219
B226: Seguros y tributos | E226: 159773.5481 | F226: 205025.3695 | G226: 260364.1588
B227: Otros Costos | E227: 200133.5308 | F227: 256816.2977 | G227: 326134.0754
B228: Costo total | E228: =SUM(E223:E227) -> 1365768.749 | F228: =SUM(F223:F227) -> 1932121.552 | G228: =SUM(G223:G227) -> 2388581.583
B230: d. Para Sobrevuelo
B231: (Expresado en soles) | D231: 3 | E231: 4 | F231: 5 | G231: 6
B232: Detalle | E232: 2022 | F232: 2023 | G232: 2024
B233: Suministros y Materiales | E233: =IFERROR(VLOOKUP($B233,$B$130:$G$133,E$231,0),0)+IFERROR(VLOOKUP($B233,$B$191:$G$195,E$231,0),0) -> 17318.98372 | F233: 42720.15983 | G233: 46825.40042
B234: Servicios prestados por terceros | E234: 20509.25274 | F234: 50589.4901 | G234: 55450.9426
B235: Mantenimiento | E235: 21644.31726 | F235: 53389.31591 | G235: 58519.82075
... 3 more rows

Sheet 4.3. Pagos a CGR
B1: 4.3 Costos de operación (OPEX) - Pagos a la CGR | O1: Índice
B3: A. Información del Plan Anual de Contrataciones 2021 de CORPAC
B5: N° | C5: Tipo de Compra o selección | D5: Objeto de contratación | E5: Descripción de los bienes, servicios y obras a contratar | F5: Valor estimado de la contratación (USD) | G5: Valor estimado de la contratación (S/) | H5: Moneda del Control Concurrente | I5: Control Concurrente (2%) | J5: Aeronavegación | K5: Aeroportuario | L5: Mixto | M5: Control Concurrente 2% asignado a aeronavegación | N5: Tipo de servicios | O5: Drivers
B6: 1 | C6: Por encargo -OACI | D6: Servicio | E6: Contratación del servicio integral de inspección en vuelos de ayudas a la aeronavegación de CORPAC. Periodo 2021-2023 | F6: 4753508.61 | G6: =+F6*'10. Var-Sup-Gen'!I12 -> 18004990.14 | H6: S/ | I6: =+G6*2% -> 360099.8029 | J6: 1 | M6: =+I6*J6+I6*50%*L6 -> 360099.8029 | N6: SNAR-APROX-SV | O6: Por la participación de la depreciación y amortización
B7: 2 | C7: Por la entidad | D7: Servicios | E7: Contratación de seguros patrimoniales para CORPAC S.A. | F7: 4040326.97 | G7: =+F7*'10. Var-Sup-Gen'!I12 -> 15303653.2 | H7: S/ | I7: =+G7*2% -> 306073.0641 | J7: 0.77 | K7: 0.21 | L7: 0.02 | M7: =+I7*J7+I7*50%*L7 -> 238736.99 | N7: SNAR-APROX-SV | O7: Por la participación de los servicios de seguros en la Contabilidad Regulatoria
B8: 3 | C8: Por la entidad | D8: Bienes | E8: Adquisición de sistema de conmutación de mensajes para el servicio fijo aeronáutico | F8: 6174944.47 | G8: =+F8*'10. Var-Sup-Gen'!I12 -> 23389000.3 | H8: USD | I8: =+F8*2% -> 123498.8894 | J8: 1 | M8: =+I8*J8+I8*50%*L8 -> 123498.8894 | N8: SNAR-APROX-SV | O8: Por la participación de la depreciación y amortización
B10: B. Cálculo del pago por Control Concurrente
B12: 1. Drivers para asignar el Control Concurrente de las adquisiciones N° 1, por servicio:
B14: Servicio | E14: Driver
B15: SNAR Nacional | E15: =+'5.2. InvProgramadas'!I111 -> 0.2559733542
B16: SNAR Internacional | E16: =+'5.2. InvProgramadas'!I112 -> 0.2281817182
B17: Sobrevuelo | E17: =+'5.2. InvProgramadas'!I113 -> 0.1486478598
B18: Aproximación | E18: =+'5.2. InvProgramadas'!I114 -> 0.3671970678
B20: 2. Drivers para asignar el Control Concurrente de la adquisición N° 2, por servicio:
B22: a) Información histórica de costos en seguros:
B23: (Expresado en soles. Fuente: Contabilidad regulatoria de CORPAC S.A.)
B24: Servicio | E24: 2017 | F24: 2018 | G24: 2019 | H24: 2020 | I24: 2021
B25: SNAR Nacional | E25: =+'4. OPEX'!E14 -> 1906831.882 | F25: =+'4. OPEX'!F14 -> 1567839.956 | G25: =+'4. OPEX'!G14 -> 1628183.945 | H25: =+'4. OPEX'!H14 -> 1935379.45 | I25: =+'4. OPEX'!I14 -> 2940098.973
B26: SNAR Internacional | E26: =+'4. OPEX'!E25 -> 1350909.092 | F26: =+'4. OPEX'!F25 -> 1092669.096 | G26: =+'4. OPEX'!G25 -> 1214508.321 | H26: =+'4. OPEX'!H25 -> 1143183.153 | I26: =+'4. OPEX'!I25 -> 820295.1747
B27: Sobrevuelo | E27: =+'4. OPEX'!E47 -> 1339964.301 | F27: =+'4. OPEX'!F47 -> 1125307.993 | G27: =+'4. OPEX'!G47 -> 1253040.834 | H27: =+'4. OPEX'!H47 -> 1686822.111 | I27: =+'4. OPEX'!I47 -> 1334620.791
B28: Aproximación | E28: =+'4. OPEX'!E36 -> 1690828.444 | F28: =+'4. OPEX'!F36 -> 1622683.591 | G28: =+'4. OPEX'!G36 -> 1489054.951 | H28: =+'4. OPEX'!H36 -> 1760215.381 | I28: =+'4. OPEX'!I36 -> 2333374.337
B29: Total | E29: =+SUM(E25:E28) -> 6288533.719 | F29: =+SUM(F25:F28) -> 5408500.636 | G29: =+SUM(G25:G28) -> 5584788.051 | H29: =+SUM(H25:H28) -> 6525600.096 | I29: =+SUM(I25:I28) -> 7428389.277
B31: b) Participación de costos de seguros, por servicio:
B33: Servicio | E33: 2017 | F33: 2018 | G33: 2019 | H33: 2020 | I33: 2021 | J33: Promedio
B34: SNAR Nacional | E34: =+E25/E$29 -> 0.3032236077 | F34: 0.2898843989 | G34: 0.2915390755 | H34: 0.296582601 | I34: 0.3957922591 | J34: =+AVERAGE(E34:I34) -> 0.3154043885
B35: SNAR Internacional | E35: 0.2148209985 | F35: 0.2020280979 | G35: 0.217467218 | H35: 0.1751843718 | I35: 0.1104270582 | J35: =+AVERAGE(E35:I35) -> 0.1839855489
B36: Sobrevuelo | E36: 0.2130805623 | F36: 0.2080628382 | G36: 0.224366766 | H36: 0.2584930254 | I36: 0.1796648966 | J36: =+AVERAGE(E36:I36) -> 0.2167336177
B37: Aproximación | E37: 0.2688748315 | F37: 0.300024665 | G37: 0.2666269405 | H37: 0.2697400018 | I37: 0.3141157861 | J37: =+AVERAGE(E37:I37) -> 0.283876445
B38: Total | E38: 1 | F38: 1 | G38: 1 | H38: 1 | I38: 1 | J38: =+AVERAGE(E38:I38) -> 1
B40: 3. Asiganción de los montos de Control Concurrente a cada servicio:
C42: Descripción de los bienes, servicios y obras a contratar | E42: Moneda | F42: Control Concurrente 2% | G42: Drivers | K42: Control Concurrente por servicio a considerar en el 2022
B43: N° | G43: SNAR Nacional | H43: SNAR Internacional | I43: Sobrevuelo | J43: Aproximación | K43: SNAR Nacional | L43: SNAR Internacional | M43: Sobrevuelo | N43: Aproximación
B44: 1 | C44: Contratación del servicio integral de inspección en vuelos de ayudas a la aeronavegación de CORPAC. Periodo 2021-2023 | E44: S/ | F44: =+I6 -> 360099.8029 | G44: =+VLOOKUP(G$43,$B$14:$E$18,4,0) -> 0.2559733542 | H44: =+VLOOKUP(H$43,$B$14:$E$18,4,0) -> 0.2281817182 | I44: =+VLOOKUP(I$43,$B$14:$E$18,4,0) -> 0.1486478598 | J44: =+VLOOKUP(J$43,$B$14:$E$18,4,0) -> 0.3671970678 | K44: =+$F44*G44 -> 92175.95438 | L44: 82168.19174 | M44: 53528.06503 | N44: 132227.5917
B45: 2 | C45: Contratación de seguros patrimoniales para CORPAC S.A. | E45: S/ | F45: =+I7 -> 306073.0641 | G45: =+VLOOKUP(G$43,$B$33:$J$38,9,0) -> 0.3154043885 | H45: =+VLOOKUP(H$43,$B$33:$J$38,9,0) -> 0.1839855489 | I45: =+VLOOKUP(I$43,$B$33:$J$38,9,0) -> 0.2167336177 | J45: =+VLOOKUP(J$43,$B$33:$J$38,9,0) -> 0.283876445 | K45: 96536.7876 | L45: 56313.02069 | M45: 66336.32246 | N45: 86886.93333

Sheet 5. CAPEX
B1: 5. Gastos de Capital - CAPEX Total | F1: Índice
B3: A. Activos existentes e inversiones proyectadas
B5: A.1 Activos base al 2021, por servicio:
B6: (Expresado en miles de soles. Fuente: CORPAC S.A.)
B7: Servicio | C7: Aeronavegación | D7: Mixto | E7: Total
B8: SNAR nacional | C8: ='5.1. Activos Base'!D43 -> 96819.21574 | D8: ='5.1. Activos Base'!E43 -> 41912.28571 | E8: =SUM(C8:D8) -> 138731.5014
B9: SNAR internacional | C9: ='5.1. Activos Base'!D44 -> 27581.94457 | D9: ='5.1. Activos Base'!E44 -> 11940.00935 | E9: =SUM(C9:D9) -> 39521.95391
B10: Aproximación | C10: ='5.1. Activos Base'!D45 -> 94349.40146 | D10: ='5.1. Activos Base'!E45 -> 40843.12231 | E10: 135192.5238
B11: Sobrevuelo | C11: ='5.1. Activos Base'!D46 -> 38194.30446 | D11: ='5.1. Activos Base'!E46 -> 16534.01743 | E11: 54728.3219
B12: Total | C12: =SUM(C8:C11) -> 256944.8662 | D12: =SUM(D8:D11) -> 111229.4348 | E12: =SUM(E8:E11) -> 368174.301
B14: A.2 Activos 2022-2024 (Inversiones proyectadas), por servicio:
B15: (Expresado en miles de soles. Fuente: Proyecciones CORPAC S.A.)
B16: Servicio | D16: 2022 | E16: =D16+1 -> 2023 | F16: =E16+1 -> 2024
B17: SNAR nacional | D17: =+'5.2. InvProgramadas'!F163*'10. Var-Sup-Gen'!I$12 -> 5591.602757 | E17: =+'5.2. InvProgramadas'!G163*'10. Var-Sup-Gen'!J$12 -> 13545.23043 | F17: =+'5.2. InvProgramadas'!H163*'10. Var-Sup-Gen'!K$12 -> 8076.661843
B18: SNAR internacional | D18: =+'5.2. InvProgramadas'!F164*'10. Var-Sup-Gen'!I$12 -> 4984.509144 | E18: =+'5.2. InvProgramadas'!G164*'10. Var-Sup-Gen'!J$12 -> 12074.59254 | F18: =+'5.2. InvProgramadas'!H164*'10. Var-Sup-Gen'!K$12 -> 7199.759453
B19: Aproximación | D19: =+'5.2. InvProgramadas'!F165*'10. Var-Sup-Gen'!I$12 -> 8229.965754 | E19: =+'5.2. InvProgramadas'!G165*'10. Var-Sup-Gen'!J$12 -> 28502.13386 | F19: =+'5.2. InvProgramadas'!H165*'10. Var-Sup-Gen'!K$12 -> 14818.417
B20: Sobrevuelo | D20: =+'5.2. InvProgramadas'!F166*'10. Var-Sup-Gen'!I$12 -> 3247.134006 | E20: =+'5.2. InvProgramadas'!G166*'10. Var-Sup-Gen'!J$12 -> 6903.247482 | F20: =+'5.2. InvProgramadas'!H166*'10. Var-Sup-Gen'!K$12 -> 3751.285414
B21: Total | D21: =SUM(D17:D20) -> 22053.21166 | E21: =SUM(E17:E20) -> 61025.20431 | F21: =SUM(F17:F20) -> 33846.12371
B22: Nota: Los montos del año 2021 corresponden a lo efectivamente ejecutado, según CORPAC.
B24: B. Depreciación y amortización de activos existentes e inversiones proyectadas
B26: B.1 Depreciación de Activos base 2021, por servicio:
B27: (Expresado en miles de soles)
B28: Servicio | D28: 2022 | E28: =D28+1 -> 2023 | F28: =E28+1 -> 2024
B29: SNAR nacional | D29: ='5.1. Activos Base'!D53 -> 12796.32306 | E29: ='5.1. Activos Base'!E53 -> 12020.22907 | F29: ='5.1. Activos Base'!F53 -> 11501.62846
B30: SNAR internacional | D30: ='5.1. Activos Base'!D54 -> 3645.427931 | E30: ='5.1. Activos Base'!E54 -> 3424.333582 | F30: ='5.1. Activos Base'!F54 -> 3276.594178
B31: Aproximación | D31: ='5.1. Activos Base'!D55 -> 12469.89466 | E31: ='5.1. Activos Base'!E55 -> 11713.59848 | F31: ='5.1. Activos Base'!F55 -> 11208.22714
B32: Sobrevuelo | D32: ='5.1. Activos Base'!D56 -> 5048.03365 | E32: ='5.1. Activos Base'!E56 -> 4741.871593 | F32: ='5.1. Activos Base'!F56 -> 4537.288347
B33: Total | D33: =SUM(D29:D32) -> 33959.6793 | E33: =SUM(E29:E32) -> 31900.03272 | F33: =SUM(F29:F32) -> 30523.73812
B35: B.2 Depreciación de Activos 2022-2024 (Inversiones proyectadas), por servicio:
B36: (Expresado en miles de soles)
B37: Servicio | D37: 2022 | E37: 2023 | F37: =E37+1 -> 2024
B38: SNAR nacional | D38: ='5.2. InvProgramadas'!F212*'10. Var-Sup-Gen'!I$12 -> 0 | E38: ='5.2. InvProgramadas'!G212*'10. Var-Sup-Gen'!J$12 -> 566.8842568 | F38: ='5.2. InvProgramadas'!H212*'10. Var-Sup-Gen'!K$12 -> 1896.395051
B39: SNAR internacional | D39: ='5.2. InvProgramadas'!F213*'10. Var-Sup-Gen'!I$12 -> 0 | E39: ='5.2. InvProgramadas'!G213*'10. Var-Sup-Gen'!J$12 -> 505.3362845 | F39: ='5.2. InvProgramadas'!H213*'10. Var-Sup-Gen'!K$12 -> 1690.498929
B40: Aproximación | D40: ='5.2. InvProgramadas'!F214*'10. Var-Sup-Gen'!I$12 -> 0 | E40: ='5.2. InvProgramadas'!G214*'10. Var-Sup-Gen'!J$12 -> 834.424692 | F40: ='5.2. InvProgramadas'!H214*'10. Var-Sup-Gen'!K$12 -> 3841.623891
B41: Sobrevuelo | D41: ='5.2. InvProgramadas'!F215*'10. Var-Sup-Gen'!I$12 -> 0 | E41: ='5.2. InvProgramadas'!G215*'10. Var-Sup-Gen'!J$12 -> 329.1988411 | F41: ='5.2. InvProgramadas'!H215*'10. Var-Sup-Gen'!K$12 -> 1003.615123
B42: Total | D42: =SUM(D38:D41) -> 0 | E42: =SUM(E38:E41) -> 2235.844074 | F42: =SUM(F38:F41) -> 8432.132994
B44: C. Activo neto, por servicio:
B46: C.1 SNAR Nacional
B47: (Expresado en miles de soles)
C48: 2021 | D48: =C48+1 -> 2022 | E48: =D48+1 -> 2023 | F48: =E48+1 -> 2024
B49: Activo Existente | C49: =E8 -> 138731.5014
B50: Activo nuevo | D50: =D17 -> 5591.602757 | E50: =E17 -> 13545.23043 | F50: =F17 -> 8076.661843
B51: Activo total | C51: =SUM(C49:C50) -> 138731.5014 | D51: =SUM(D49:D50) -> 5591.602757 | E51: 13545.23043 | F51: 8076.661843
B52: Depreciación Activo Existente | D52: =D29 -> 12796.32306 | E52: =E29 -> 12020.22907 | F52: =F29 -> 11501.62846
B53: Depreciación Activo nuevo | D53: =D38 -> 0 | E53: =E38 -> 566.8842568 | F53: =F38 -> 1896.395051
B54: Depreciación Activo Total | D54: =SUM(D52:D53) -> 12796.32306 | E54: 12587.11333 | F54: 13398.02351
B55: Activo (CAPEX) Acumulado | C55: =C51 -> 138731.5014 | D55: =C55+D51 -> 144323.1042 | E55: =D55+E51 -> 157868.3346 | F55: =E55+F51 -> 165944.9965
B56: Depreciación Acumulada | D56: =C56+D54 -> 12796.32306 | E56: =D56+E54 -> 25383.43639 | F56: =E56+F54 -> 38781.4599
B57: CAPEX Neto | C57: =C55-C56 -> 138731.5014 | D57: =D55-D56 -> 131526.7811 | E57: 132484.8982 | F57: 127163.5366
B59: Inversiones realizadas | C59: =+C57 -> 138731.5014
B60: Plan de Inversiones | D60: =D50 -> 5591.602757 | E60: =E50 -> 13545.23043 | F60: =F50 -> 8076.661843
B61: Recuperación Inversión | F61: =F57 -> 127163.5366
B63: C.2 SNAR Internacional
B64: (Expresado en miles de soles)
B65: Servicio | C65: 2021 | D65: =C65+1 -> 2022 | E65: =D65+1 -> 2023 | F65: =E65+1 -> 2024
B66: Activo Existente | C66: =E9 -> 39521.95391
B67: Activo nuevo | D67: =D18 -> 4984.509144 | E67: =E18 -> 12074.59254 | F67: =F18 -> 7199.759453
B68: Activo total | C68: =SUM(C66:C67) -> 39521.95391 | D68: =SUM(D66:D67) -> 4984.509144 | E68: 12074.59254 | F68: 7199.759453
B69: Depreciación Activo Existente | D69: =D30 -> 3645.427931 | E69: =E30 -> 3424.333582 | F69: =F30 -> 3276.594178
B70: Depreciación Activo nuevo | D70: =D39 -> 0 | E70: =E39 -> 505.3362845 | F70: =F39 -> 1690.498929
B71: Depreciación Activo Total | D71: =SUM(D69:D70) -> 3645.427931 | E71: 3929.669866 | F71: 4967.093107
B72: Activo (CAPEX) Acumulado | C72: =C68 -> 39521.95391 | D72: =C72+D68 -> 44506.46306 | E72: =D72+E68 -> 56581.0556 | F72: =E72+F68 -> 63780.81505
B73: Depreciación Acumulada | D73: =C73+D71 -> 3645.427931 | E73: =D73+E71 -> 7575.097797 | F73: =E73+F71 -> 12542.1909
B74: CAPEX Neto | C74: =C72-C73 -> 39521.95391 | D74: =D72-D73 -> 40861.03513 | E74: 49005.9578 | F74: 51238.62414
B76: Inversiones realizadas | C76: =+C74 -> 39521.95391
B77: Plan de Inversiones | D77: =D67 -> 4984.509144 | E77: =E67 -> 12074.59254 | F77: =F67 -> 7199.759453
B78: Recuperación Inversión | F78: =F74 -> 51238.62414
B80: C.3 Aproximación
B81: (Expresado en miles de soles)
B82: Servicio | C82: 2021 | D82: =C82+1 -> 2022 | E82: =D82+1 -> 2023 | F82: =E82+1 -> 2024
B83: Activo Existente | C83: =E10 -> 135192.5238
B84: Activo nuevo | D84: =D19 -> 8229.965754 | E84: =E19 -> 28502.13386 | F84: =F19 -> 14818.417
B85: Activo total | C85: =SUM(C83:C84) -> 135192.5238 | D85: 8229.965754 | E85: 28502.13386 | F85: 14818.417
B86: Depreciación Activo Existente | D86: =D31 -> 12469.89466 | E86: =E31 -> 11713.59848 | F86: =F31 -> 11208.22714
B87: Depreciación Activo nuevo | D87: =D40 -> 0 | E87: =E40 -> 834.424692 | F87: =F40 -> 3841.623891
B88: Depreciación Activo Total | D88: =SUM(D86:D87) -> 12469.89466 | E88: 12548.02317 | F88: 15049.85103
B89: Activo (CAPEX) Acumulado | C89: =C85 -> 135192.5238 | D89: =C89+D85 -> 143422.4895 | E89: =D89+E85 -> 171924.6234 | F89: =E89+F85 -> 186743.0404
B90: Depreciación Acumulada | D90: =C90+D88 -> 12469.89466 | E90: =D90+E88 -> 25017.91783 | F90: =E90+F88 -> 40067.76886
B91: CAPEX Neto | C91: =C89-C90 -> 135192.5238 | D91: =D89-D90 -> 130952.5949 | E91: 146906.7055 | F91: 146675.2715
B93: Inversiones realizadas | C93: =+C91 -> 135192.5238
B94: Plan de Inversiones | D94: =D84 -> 8229.965754 | E94: =E84 -> 28502.13386 | F94: =F84 -> 14818.417
B95: Recuperación Inversión | F95: =F91 -> 146675.2715
B97: C.4 Sobrevuelo
B98: (Expresado en miles de soles)
B99: Servicio | C99: 2021 | D99: =C99+1 -> 2022 | E99: =D99+1 -> 2023 | F99: =E99+1 -> 2024
B100: Activo Existente | C100: =E11 -> 54728.3219
B101: Activo nuevo | D101: =D20 -> 3247.134006 | E101: =E20 -> 6903.247482 | F101: =F20 -> 3751.285414
B102: Activo total | C102: =SUM(C100:C101) -> 54728.3219 | D102: =SUM(D100:D101) -> 3247.134006 | E102: =SUM(E100:E101) -> 6903.247482 | F102: =SUM(F100:F101) -> 3751.285414
B103: Depreciación Activo Existente | D103: =D32 -> 5048.03365 | E103: =E32 -> 4741.871593 | F103: =F32 -> 4537.288347
B104: Depreciación Activo nuevo | D104: =D41 -> 0 | E104: =E41 -> 329.1988411 | F104: =F41 -> 1003.615123
B105: Depreciación Activo Total | D105: =SUM(D103:D104) -> 5048.03365 | E105: =SUM(E103:E104) -> 5071.070434 | F105: 5540.90347
B106: Activo (CAPEX) Acumulado | C106: =C102 -> 54728.3219 | D106: =C106+D102 -> 57975.4559 | E106: =D106+E102 -> 64878.70339 | F106: =E106+F102 -> 68629.9888
B107: Depreciación Acumulada | D107: =C107+D105 -> 5048.03365 | E107: =D107+E105 -> 10119.10408 | F107: =E107+F105 -> 15660.00755
B108: CAPEX Neto | C108: =C106-C107 -> 54728.3219 | D108: =D106-D107 -> 52927.42226 | E108: =E106-E107 -> 54759.5993 | F108: =F106-F107 -> 52969.98125
B110: Inversiones realizadas | C110: =+C108 -> 54728.3219
B111: Plan de Inversiones | D111: =D101 -> 3247.134006 | E111: =E101 -> 6903.247482 | F111: =F101 -> 3751.285414
B112: Recuperación Inversión | F112: =F108 -> 52969.98125

Sheet 5.1. Activos Base
B1: 5.1 Activos Fijos Base (Existentes) al 2021 | I1: Índice
B3: A. Factor de distribución de activos: Distribución según participación en la depreciación de activos de aeronavegación
B4: (Expresado en miles de soles. Fuente: Contabilidad regulatoria de CORPAC S.A.)
B5: Servicio | C5: Depreciación y amortización | H5: Promedio | I5: % del total
C6: 2017 | D6: =+C6+1 -> 2018 | E6: =+D6+1 -> 2019 | F6: 2020 | G6: 2021
B7: SNAR nacional | C7: ='4. OPEX'!E12+'4. OPEX'!E13 -> 7129772.016 | D7: ='4. OPEX'!F12+'4. OPEX'!F13 -> 12945251.26 | E7: ='4. OPEX'!G12+'4. OPEX'!G13 -> 11484207.77 | F7: ='4. OPEX'!H12+'4. OPEX'!H13 -> 12808539.74 | G7: ='4. OPEX'!I12+'4. OPEX'!I13 -> 12277684.01 | H7: =AVERAGE(C7:G7) -> 11329090.96 | I7: =+H7/$H$15 -> 0.3765792391
B8: SNAR internacional | C8: ='4. OPEX'!E23+'4. OPEX'!E24 -> 2452018.503 | D8: ='4. OPEX'!F23+'4. OPEX'!F24 -> 3787636.656 | E8: ='4. OPEX'!G23+'4. OPEX'!G24 -> 4118355.972 | F8: ='4. OPEX'!H23+'4. OPEX'!H24 -> 3625748.436 | G8: ='4. OPEX'!I23+'4. OPEX'!I24 -> 2153448.137 | H8: =AVERAGE(C8:G8) -> 3227441.541 | I8: =+H8/$H$15 -> 0.1072802296
B9: Aproximación | C9: ='4. OPEX'!E34+'4. OPEX'!E35 -> 7351690.518 | D9: ='4. OPEX'!F34+'4. OPEX'!F35 -> 12149849.95 | E9: ='4. OPEX'!G34+'4. OPEX'!G35 -> 10946483.71 | F9: ='4. OPEX'!H34+'4. OPEX'!H35 -> 13493845.77 | G9: ='4. OPEX'!I34+'4. OPEX'!I35 -> 11258584.98 | H9: 11040090.99 | I9: 0.3669728735
B10: Sobrevuelo | C10: ='4. OPEX'!E45+'4. OPEX'!E46 -> 2714963.615 | D10: ='4. OPEX'!F45+'4. OPEX'!F46 -> 4773755.545 | E10: ='4. OPEX'!G45+'4. OPEX'!G46 -> 4946087.518 | F10: ='4. OPEX'!H45+'4. OPEX'!H46 -> 6088586.156 | G10: ='4. OPEX'!I45+'4. OPEX'!I46 -> 3822726.481 | H10: 4469223.863 | I10: =+H10/$H$15 -> 0.1485571021
B11: Total servicios con tarifa regulada | C11: =SUM(C7:C10) -> 19648444.65 | D11: =SUM(D7:D10) -> 33656493.41 | E11: =SUM(E7:E10) -> 31495134.97 | F11: 36016720.1 | G11: =SUM(G7:G10) -> 29512443.61 | H11: =SUM(H7:H10) -> 30065847.35 | I11: 0.9993894444
B12: Servicios No Regulados de Navegación Aérea | C12: 17444.32555 | D12: 15956.54101 | E12: 28036.116 | F12: 16415.92046 | G12: 13987.52907 | H12: =AVERAGE(C12:G12) -> 18368.08642 | I12: 0.0006105556071
B13: Total de servicios no regulados | C13: =+SUM(C12) -> 17444.32555 | D13: =+SUM(D12) -> 15956.54101 | E13: =+SUM(E12) -> 28036.116 | F13: 16415.92046 | G13: =+SUM(G12) -> 13987.52907 | H13: =+SUM(H12) -> 18368.08642 | I13: 0.0006105556071
B15: Total Aeronavegación | C15: =+C11+C13 -> 19665888.98 | D15: =+D11+D13 -> 33672449.95 | E15: =+E11+E13 -> 31523171.08 | F15: 36033136.02 | G15: =+G11+G13 -> 29526431.14 | H15: =+H11+H13 -> 30084215.44 | I15: =+I11+I13 -> 1
B17: B. Valor de Activos de aeronavegación
B19: B.1 Resumen de activos existentes asignados a Aeronavegación:
B20: (Expresado en miles de soles)
B21: Tipo de activo | C21: Valor Histórico Neto al 2021 | D21: Depreciación del Ejercicio
D22: 2022 | E22: =D22+1 -> 2023 | F22: =E22+1 -> 2024
A23: AERONAVEGACIÓN | B23: A. Aeronavegación | C23: =SUM(C24:C29) -> 257101.8412 | D23: =SUM(D24:D29) -> 32677.07011 | E23: =SUM(E24:E29) -> 30731.31883 | F23: =SUM(F24:F29) -> 29433.72549
B24: Concesiones, licencias y otros derechos | C24: =SUMIFS('5.4. BD-AERONAV2021'!$O$5:$O$30124,'5.4. BD-AERONAV2021'!$B$5:$B$30124,'5.1. Activos Base'!$A$23,'5.4. BD-AERONAV2021'!$D$5:$D$30124,'5.1. Activos Base'!$B24)/1000 -> 0 | D24: =SUMIFS('5.4. BD-AERONAV2021'!R$5:R$30124,'5.4. BD-AERONAV2021'!$B$5:$B$30124,'5.1. Activos Base'!$A$23,'5.4. BD-AERONAV2021'!$D$5:$D$30124,'5.1. Activos Base'!$B24)/1000 -> 0 | E24: =SUMIFS('5.4. BD-AERONAV2021'!S$5:S$30124,'5.4. BD-AERONAV2021'!$B$5:$B$30124,'5.1. Activos Base'!$A$23,'5.4. BD-AERONAV2021'!$D$5:$D$30124,'5.1. Activos Base'!$B24)/1000 -> 0 | F24: =SUMIFS('5.4. BD-AERONAV2021'!T$5:T$30124,'5.4. BD-AERONAV2021'!$B$5:$B$30124,'5.1. Activos Base'!$A$23,'5.4. BD-AERONAV2021'!$D$5:$D$30124,'5.1. Activos Base'!$B24)/1000 -> 0
B25: Edificaciones y construcciones | C25: =SUMIFS('5.4. BD-AERONAV2021'!$O$5:$O$30124,'5.4. BD-AERONAV2021'!$B$5:$B$30124,'5.1. Activos Base'!$A$23,'5.4. BD-AERONAV2021'!$D$5:$D$30124,'5.1. Activos Base'!$B25)/1000 -> 38847.65638 | D25: =SUMIFS('5.4. BD-AERONAV2021'!R$5:R$30124,'5.4. BD-AERONAV2021'!$B$5:$B$30124,'5.1. Activos Base'!$A$23,'5.4. BD-AERONAV2021'!$D$5:$D$30124,'5.1. Activos Base'!$B25)/1000 -> 2788.0498 | E25: =SUMIFS('5.4. BD-AERONAV2021'!S$5:S$30124,'5.4. BD-AERONAV2021'!$B$5:$B$30124,'5.1. Activos Base'!$A$23,'5.4. BD-AERONAV2021'!$D$5:$D$30124,'5.1. Activos Base'!$B25)/1000 -> 2782.77532 | F25: =SUMIFS('5.4. BD-AERONAV2021'!T$5:T$30124,'5.4. BD-AERONAV2021'!$B$5:$B$30124,'5.1. Activos Base'!$A$23,'5.4. BD-AERONAV2021'!$D$5:$D$30124,'5.1. Activos Base'!$B25)/1000 -> 2409.91653
B26: Maquinaria y Equipo | C26: =SUMIFS('5.4. BD-AERONAV2021'!$O$5:$O$30124,'5.4. BD-AERONAV2021'!$B$5:$B$30124,'5.1. Activos Base'!$A$23,'5.4. BD-AERONAV2021'!$D$5:$D$30124,'5.1. Activos Base'!$B26)/1000 -> 67391.49642 | D26: =SUMIFS('5.4. BD-AERONAV2021'!R$5:R$30124,'5.4. BD-AERONAV2021'!$B$5:$B$30124,'5.1. Activos Base'!$A$23,'5.4. BD-AERONAV2021'!$D$5:$D$30124,'5.1. Activos Base'!$B26)/1000 -> 11331.60705 | E26: =SUMIFS('5.4. BD-AERONAV2021'!S$5:S$30124,'5.4. BD-AERONAV2021'!$B$5:$B$30124,'5.1. Activos Base'!$A$23,'5.4. BD-AERONAV2021'!$D$5:$D$30124,'5.1. Activos Base'!$B26)/1000 -> 10549.81609 | F26: =SUMIFS('5.4. BD-AERONAV2021'!T$5:T$30124,'5.4. BD-AERONAV2021'!$B$5:$B$30124,'5.1. Activos Base'!$A$23,'5.4. BD-AERONAV2021'!$D$5:$D$30124,'5.1. Activos Base'!$B26)/1000 -> 10166.93869
B27: Otros | C27: =SUMIFS('5.4. BD-AERONAV2021'!$O$5:$O$30124,'5.4. BD-AERONAV2021'!$B$5:$B$30124,'5.1. Activos Base'!$A$23,'5.4. BD-AERONAV2021'!$D$5:$D$30124,'5.1. Activos Base'!$B27)/1000 -> 130186.519 | D27: =SUMIFS('5.4. BD-AERONAV2021'!R$5:R$30124,'5.4. BD-AERONAV2021'!$B$5:$B$30124,'5.1. Activos Base'!$A$23,'5.4. BD-AERONAV2021'!$D$5:$D$30124,'5.1. Activos Base'!$B27)/1000 -> 17296.34785 | E27: =SUMIFS('5.4. BD-AERONAV2021'!S$5:S$30124,'5.4. BD-AERONAV2021'!$B$5:$B$30124,'5.1. Activos Base'!$A$23,'5.4. BD-AERONAV2021'!$D$5:$D$30124,'5.1. Activos Base'!$B27)/1000 -> 16613.29579 | F27: =SUMIFS('5.4. BD-AERONAV2021'!T$5:T$30124,'5.4. BD-AERONAV2021'!$B$5:$B$30124,'5.1. Activos Base'!$A$23,'5.4. BD-AERONAV2021'!$D$5:$D$30124,'5.1. Activos Base'!$B27)/1000 -> 16113.31326
B28: Programas de computadora (software) | C28: =SUMIFS('5.4. BD-AERONAV2021'!$O$5:$O$30124,'5.4. BD-AERONAV2021'!$B$5:$B$30124,'5.1. Activos Base'!$A$23,'5.4. BD-AERONAV2021'!$D$5:$D$30124,'5.1. Activos Base'!$B28)/1000 -> 9884.95668 | D28: =SUMIFS('5.4. BD-AERONAV2021'!R$5:R$30124,'5.4. BD-AERONAV2021'!$B$5:$B$30124,'5.1. Activos Base'!$A$23,'5.4. BD-AERONAV2021'!$D$5:$D$30124,'5.1. Activos Base'!$B28)/1000 -> 1261.06541 | E28: =SUMIFS('5.4. BD-AERONAV2021'!S$5:S$30124,'5.4. BD-AERONAV2021'!$B$5:$B$30124,'5.1. Activos Base'!$A$23,'5.4. BD-AERONAV2021'!$D$5:$D$30124,'5.1. Activos Base'!$B28)/1000 -> 785.43163 | F28: =SUMIFS('5.4. BD-AERONAV2021'!T$5:T$30124,'5.4. BD-AERONAV2021'!$B$5:$B$30124,'5.1. Activos Base'!$A$23,'5.4. BD-AERONAV2021'!$D$5:$D$30124,'5.1. Activos Base'!$B28)/1000 -> 743.55701
B29: Terrenos | C29: =SUMIFS('5.4. BD-AERONAV2021'!$O$5:$O$30124,'5.4. BD-AERONAV2021'!$B$5:$B$30124,'5.1. Activos Base'!$A$23,'5.4. BD-AERONAV2021'!$D$5:$D$30124,'5.1. Activos Base'!$B29)/1000 -> 10791.21272 | D29: =SUMIFS('5.4. BD-AERONAV2021'!R$5:R$30124,'5.4. BD-AERONAV2021'!$B$5:$B$30124,'5.1. Activos Base'!$A$23,'5.4. BD-AERONAV2021'!$D$5:$D$30124,'5.1. Activos Base'!$B29)/1000 -> 0 | E29: =SUMIFS('5.4. BD-AERONAV2021'!S$5:S$30124,'5.4. BD-AERONAV2021'!$B$5:$B$30124,'5.1. Activos Base'!$A$23,'5.4. BD-AERONAV2021'!$D$5:$D$30124,'5.1. Activos Base'!$B29)/1000 -> 0 | F29: =SUMIFS('5.4. BD-AERONAV2021'!T$5:T$30124,'5.4. BD-AERONAV2021'!$B$5:$B$30124,'5.1. Activos Base'!$A$23,'5.4. BD-AERONAV2021'!$D$5:$D$30124,'5.1. Activos Base'!$B29)/1000 -> 0
A30: AERONAVEGACIÓN/AEROPORTUARIO | B30: B. Aeronavegación/Aeroportuarios (Mixto) | C30: =SUM(C31:C36) -> 111297.388 | D30: =SUM(D31:D36) -> 1303.356135 | E30: =SUM(E31:E36) -> 1188.202535 | F30: =SUM(F31:F36) -> 1108.66046
B31: Concesiones, licencias y otros derechos | C31: =SUMIFS('5.4. BD-AERONAV2021'!$O$5:$O$30124,'5.4. BD-AERONAV2021'!$B$5:$B$30124,'5.1. Activos Base'!$A$30,'5.4. BD-AERONAV2021'!$D$5:$D$30124,'5.1. Activos Base'!$B31)/1000 -> 0 | D31: =SUMIFS('5.4. BD-AERONAV2021'!R$5:R$30124,'5.4. BD-AERONAV2021'!$B$5:$B$30124,'5.1. Activos Base'!$A$30,'5.4. BD-AERONAV2021'!$D$5:$D$30124,'5.1. Activos Base'!$B31)/1000 -> 0 | E31: =SUMIFS('5.4. BD-AERONAV2021'!S$5:S$30124,'5.4. BD-AERONAV2021'!$B$5:$B$30124,'5.1. Activos Base'!$A$30,'5.4. BD-AERONAV2021'!$D$5:$D$30124,'5.1. Activos Base'!$B31)/1000 -> 0 | F31: =SUMIFS('5.4. BD-AERONAV2021'!T$5:T$30124,'5.4. BD-AERONAV2021'!$B$5:$B$30124,'5.1. Activos Base'!$A$30,'5.4. BD-AERONAV2021'!$D$5:$D$30124,'5.1. Activos Base'!$B31)/1000 -> 0
B32: Edificaciones y construcciones | C32: =SUMIFS('5.4. BD-AERONAV2021'!$O$5:$O$30124,'5.4. BD-AERONAV2021'!$B$5:$B$30124,'5.1. Activos Base'!$A$30,'5.4. BD-AERONAV2021'!$D$5:$D$30124,'5.1. Activos Base'!$B32)/1000 -> 4678.817695 | D32: =SUMIFS('5.4. BD-AERONAV2021'!R$5:R$30124,'5.4. BD-AERONAV2021'!$B$5:$B$30124,'5.1. Activos Base'!$A$30,'5.4. BD-AERONAV2021'!$D$5:$D$30124,'5.1. Activos Base'!$B32)/1000 -> 245.992835 | E32: =SUMIFS('5.4. BD-AERONAV2021'!S$5:S$30124,'5.4. BD-AERONAV2021'!$B$5:$B$30124,'5.1. Activos Base'!$A$30,'5.4. BD-AERONAV2021'!$D$5:$D$30124,'5.1. Activos Base'!$B32)/1000 -> 245.992835 | F32: =SUMIFS('5.4. BD-AERONAV2021'!T$5:T$30124,'5.4. BD-AERONAV2021'!$B$5:$B$30124,'5.1. Activos Base'!$A$30,'5.4. BD-AERONAV2021'!$D$5:$D$30124,'5.1. Activos Base'!$B32)/1000 -> 245.992835
B33: Maquinaria y Equipo | C33: =SUMIFS('5.4. BD-AERONAV2021'!$O$5:$O$30124,'5.4. BD-AERONAV2021'!$B$5:$B$30124,'5.1. Activos Base'!$A$30,'5.4. BD-AERONAV2021'!$D$5:$D$30124,'5.1. Activos Base'!$B33)/1000 -> 1491.03995 | D33: =SUMIFS('5.4. BD-AERONAV2021'!R$5:R$30124,'5.4. BD-AERONAV2021'!$B$5:$B$30124,'5.1. Activos Base'!$A$30,'5.4. BD-AERONAV2021'!$D$5:$D$30124,'5.1. Activos Base'!$B33)/1000 -> 246.308155 | E33: =SUMIFS('5.4. BD-AERONAV2021'!S$5:S$30124,'5.4. BD-AERONAV2021'!$B$5:$B$30124,'5.1. Activos Base'!$A$30,'5.4. BD-AERONAV2021'!$D$5:$D$30124,'5.1. Activos Base'!$B33)/1000 -> 245.220955 | F33: =SUMIFS('5.4. BD-AERONAV2021'!T$5:T$30124,'5.4. BD-AERONAV2021'!$B$5:$B$30124,'5.1. Activos Base'!$A$30,'5.4. BD-AERONAV2021'!$D$5:$D$30124,'5.1. Activos Base'!$B33)/1000 -> 237.031735
B34: Otros | C34: =SUMIFS('5.4. BD-AERONAV2021'!$O$5:$O$30124,'5.4. BD-AERONAV2021'!$B$5:$B$30124,'5.1. Activos Base'!$A$30,'5.4. BD-AERONAV2021'!$D$5:$D$30124,'5.1. Activos Base'!$B34)/1000 -> 3659.887545 | D34: =SUMIFS('5.4. BD-AERONAV2021'!R$5:R$30124,'5.4. BD-AERONAV2021'!$B$5:$B$30124,'5.1. Activos Base'!$A$30,'5.4. BD-AERONAV2021'!$D$5:$D$30124,'5.1. Activos Base'!$B34)/1000 -> 811.055145 | E34: =SUMIFS('5.4. BD-AERONAV2021'!S$5:S$30124,'5.4. BD-AERONAV2021'!$B$5:$B$30124,'5.1. Activos Base'!$A$30,'5.4. BD-AERONAV2021'!$D$5:$D$30124,'5.1. Activos Base'!$B34)/1000 -> 696.988745 | F34: =SUMIFS('5.4. BD-AERONAV2021'!T$5:T$30124,'5.4. BD-AERONAV2021'!$B$5:$B$30124,'5.1. Activos Base'!$A$30,'5.4. BD-AERONAV2021'!$D$5:$D$30124,'5.1. Activos Base'!$B34)/1000 -> 625.63589
B35: Programas de computadora (software) | C35: =SUMIFS('5.4. BD-AERONAV2021'!$O$5:$O$30124,'5.4. BD-AERONAV2021'!$B$5:$B$30124,'5.1. Activos Base'!$A$30,'5.4. BD-AERONAV2021'!$D$5:$D$30124,'5.1. Activos Base'!$B35)/1000 -> 96.148885 | D35: =SUMIFS('5.4. BD-AERONAV2021'!R$5:R$30124,'5.4. BD-AERONAV2021'!$B$5:$B$30124,'5.1. Activos Base'!$A$30,'5.4. BD-AERONAV2021'!$D$5:$D$30124,'5.1. Activos Base'!$B35)/1000 -> 0 | E35: =SUMIFS('5.4. BD-AERONAV2021'!S$5:S$30124,'5.4. BD-AERONAV2021'!$B$5:$B$30124,'5.1. Activos Base'!$A$30,'5.4. BD-AERONAV2021'!$D$5:$D$30124,'5.1. Activos Base'!$B35)/1000 -> 0 | F35: =SUMIFS('5.4. BD-AERONAV2021'!T$5:T$30124,'5.4. BD-AERONAV2021'!$B$5:$B$30124,'5.1. Activos Base'!$A$30,'5.4. BD-AERONAV2021'!$D$5:$D$30124,'5.1. Activos Base'!$B35)/1000 -> 0
B36: Terrenos | C36: =SUMIFS('5.4. BD-AERONAV2021'!$O$5:$O$30124,'5.4. BD-AERONAV2021'!$B$5:$B$30124,'5.1. Activos Base'!$A$30,'5.4. BD-AERONAV2021'!$D$5:$D$30124,'5.1. Activos Base'!$B36)/1000 -> 101371.494 | D36: =SUMIFS('5.4. BD-AERONAV2021'!R$5:R$30124,'5.4. BD-AERONAV2021'!$B$5:$B$30124,'5.1. Activos Base'!$A$30,'5.4. BD-AERONAV2021'!$D$5:$D$30124,'5.1. Activos Base'!$B36)/1000 -> 0 | E36: =SUMIFS('5.4. BD-AERONAV2021'!S$5:S$30124,'5.4. BD-AERONAV2021'!$B$5:$B$30124,'5.1. Activos Base'!$A$30,'5.4. BD-AERONAV2021'!$D$5:$D$30124,'5.1. Activos Base'!$B36)/1000 -> 0 | F36: =SUMIFS('5.4. BD-AERONAV2021'!T$5:T$30124,'5.4. BD-AERONAV2021'!$B$5:$B$30124,'5.1. Activos Base'!$A$30,'5.4. BD-AERONAV2021'!$D$5:$D$30124,'5.1. Activos Base'!$B36)/1000 -> 0
B37: Total general | C37: =C23+C30 -> 368399.2292 | D37: =D23+D30 -> 33980.42624 | E37: =E23+E30 -> 31919.52136 | F37: =F23+F30 -> 30542.38595
B39: B.2 Distribución de valor histórico neto, año 2021, por servicio regulado:
B40: (Expresado en miles de soles)
B41: Servicio | C41: % de asignación | D41: Año 2021
D42: Aeronavegación | E42: Mixto | F42: Total
B43: SNAR nacional | C43: =I7 -> 0.3765792391 | D43: =$C$23*$C43 -> 96819.21574 | E43: =$C$30*$C43 -> 41912.28571 | F43: =D43+E43 -> 138731.5014
B44: SNAR internacional | C44: =I8 -> 0.1072802296 | D44: =$C$23*$C44 -> 27581.94457 | E44: =$C$30*$C44 -> 11940.00935 | F44: =D44+E44 -> 39521.95391
B45: Aproximación | C45: =I9 -> 0.3669728735 | D45: =$C$23*$C45 -> 94349.40146 | E45: =$C$30*$C45 -> 40843.12231 | F45: 135192.5238
B46: Sobrevuelo | C46: =I10 -> 0.1485571021 | D46: =$C$23*$C46 -> 38194.30446 | E46: =$C$30*$C46 -> 16534.01743 | F46: 54728.3219
B47: Total | C47: =SUM(C43:C46) -> 0.9993894444 | D47: =SUM(D43:D46) -> 256944.8662 | E47: =SUM(E43:E46) -> 111229.4348 | F47: =SUM(F43:F46) -> 368174.301
B49: B.3 Distribución de Depreciación y Amortización, por servicio:
B50: (Expresado en miles de soles)
B51: Servicio | C51: % de asignación | D51: Depreciación del Ejercicio
D52: 2022 | E52: =D52+1 -> 2023 | F52: =E52+1 -> 2024
B53: SNAR nacional | C53: =C43 -> 0.3765792391 | D53: =$C53*D$37 -> 12796.32306 | E53: 12020.22907 | F53: 11501.62846
B54: SNAR internacional | C54: =C44 -> 0.1072802296 | D54: 3645.427931 | E54: 3424.333582 | F54: 3276.594178
B55: Aproximación | C55: =C45 -> 0.3669728735 | D55: 12469.89466 | E55: 11713.59848 | F55: 11208.22714
B56: Sobrevuelo | C56: =C46 -> 0.1485571021 | D56: 5048.03365 | E56: 4741.871593 | F56: 4537.288347
B57: Total | C57: =SUM(C53:C56) -> 0.9993894444 | D57: 33959.6793 | E57: 31900.03272 | F57: 30523.73812

Sheet 5.2. InvProgramadas
B1: 5.2 Inversiones Programadas | V1: Índice
B3: I. PLAN DE INVERSIONES DE CORPAC, Periodo 2022-2024
B4: (Expresado en dólares. Fuente: CORPAC)
B5: Descripción | C5: Categoria | D5: Tipo | F5: Servicios asignados | G5: Tipo de inversión | H5: Año de adquisición | I5: Valor de adquisición (USD) | J5: % de ejecución objetivo | K5: Valor de adquisición ajustado (USD) | L5: Vida Útil (años) | M5: Factor de depreciación | N5: Depreciación anual | P5: Plan de inversiones | T5: Depreciación
P6: 2022 | Q6: 2023 | R6: 2024 | T6: 2022 | U6: 2023 | V6: 2024 | W6: 2025
B7: - Equipos de radio VHF TWR -Dual - Nivel nacional | C7: Inversiones no ligadas a proyectos (Reposiciones) | D7: Equipos de comunicaciones | F7: SV-SNAR-APROX | G7: Maquinaria y equipo | H7: 2022 | I7: 2872675.696 | J7: =+'5.3. InvEjecutadas'!$H$77 -> 0.7403890338 | K7: =I7*J7 -> 2126897.583 | L7: =VLOOKUP($G7,$B$81:$C$86,2,FALSE) -> 10 | M7: =1/L7 -> 0.1 | N7: =K7/L7 -> 212689.7583 | P7: =IF(P$6=$H7,$K7,0) -> 2126897.583 | Q7: 0 | R7: 0 | T7: =+IF(T$6>$H7,$N7,0) -> 0 | U7: 212689.7583 | V7: 212689.7583 | W7: 212689.7583
B8: 1.1.2 Ampliación de los Servicios de Navegación Aérea para la segunda pista del Aeropuerto Internacional Jorge Chàvez. | C8: Inversiones ligadas a proyectos | D8: Proyectos de inversión | F8: SNAR-APROX | G8: Maquinaria y equipo | H8: 2023 | I8: 0 | J8: =+'5.3. InvEjecutadas'!$H$77 -> 0.7403890338 | K8: =I8*J8 -> 0 | L8: 10 | M8: =1/L8 -> 0.1 | N8: =K8/L8 -> 0 | P8: =IF(P$6=$H8,$K8,0) -> 0 | Q8: 0 | R8: 0 | T8: =+IF(T$6>$H8,$N8,0) -> 0 | U8: 0 | V8: 0
B9: 1.1.2 Ampliación de los Servicios de Navegación Aérea para la segunda pista del Aeropuerto Internacional Jorge Chàvez. | C9: Inversiones ligadas a proyectos | D9: Proyectos de inversión | F9: SNAR-APROX | G9: Maquinaria y equipo | H9: 2023 | I9: 0 | J9: =+'5.3. InvEjecutadas'!$H$77 -> 0.7403890338 | K9: =I9*J9 -> 0 | L9: 10 | M9: =1/L9 -> 0.1 | N9: =K9/L9 -> 0 | P9: 0 | Q9: 0 | R9: 0 | T9: 0 | U9: 0 | V9: 0
B10: 1.1.2 Ampliación de los Servicios de Navegación Aérea para la segunda pista del Aeropuerto Internacional Jorge Chàvez. | C10: Inversiones ligadas a proyectos | D10: Proyectos de inversión | F10: SNAR-APROX | G10: Maquinaria y equipo | H10: 2023 | I10: 0 | J10: =+'5.3. InvEjecutadas'!$H$77 -> 0.7403890338 | K10: =I10*J10 -> 0 | L10: 10 | M10: =1/L10 -> 0.1 | N10: =K10/L10 -> 0 | P10: 0 | Q10: 0 | R10: 0 | T10: 0 | U10: 0 | V10: 0
B11: - Sistemas de grabaciòn - Nivel nacional. | C11: Inversiones no ligadas a proyectos (Reposiciones) | D11: Equipos de comunicaciones | F11: SV-SNAR-APROX | G11: Maquinaria y equipo | H11: 2023 | I11: 1227860.976 | J11: =+'5.3. InvEjecutadas'!$H$77 -> 0.7403890338 | K11: 909094.8014 | L11: 10 | M11: 0.1 | N11: 90909.48014 | P11: 0 | Q11: 909094.8014 | R11: 0 | T11: 0 | U11: 0 | V11: 90909.48014 | W11: 90909.48014
B12: - Sistemas ATIS | C12: Inversiones no ligadas a proyectos (Reposiciones) | D12: Equipos de comunicaciones | F12: SV-SNAR-APROX | G12: Maquinaria y equipo | H12: 2023 | I12: 241105.6098 | J12: =+'5.3. InvEjecutadas'!$H$77 -> 0.7403890338 | K12: 178511.9495 | L12: 10 | M12: 0.1 | N12: 17851.19495 | P12: 0 | Q12: 178511.9495 | R12: 0 | T12: 0 | U12: 0 | V12: 17851.19495 | W12: 17851.19495
B13: - Estaciones de una Red de radio HF-SSB para el servicio ATS y de mensajería AMHS del servicio fijo aeronáutico | C13: Inversiones no ligadas a proyectos (Reposiciones) | D13: Equipos de comunicaciones | F13: SV-SNAR-APROX | G13: Maquinaria y equipo | H13: 2024 | I13: 838390 | J13: =+'5.3. InvEjecutadas'!$H$77 -> 0.7403890338 | K13: 620734.762 | L13: 10 | M13: 0.1 | N13: 62073.4762 | P13: =IF(P$6=$H13,$K13,0) -> 0 | Q13: 0 | R13: 620734.762 | T13: 0 | U13: 0 | V13: 0 | W13: 62073.4762
B14: - Reposición del sistema de mensajería aeronáutica AMHS | C14: Inversiones no ligadas a proyectos (Reposiciones) | D14: Equipos de comunicaciones | F14: SV-SNAR-APROX | G14: Maquinaria y equipo | H14: 2022 | I14: =521975.443037975+2%*'4.3. Pagos a CGR'!F8 -> 645474.3324 | J14: =+'5.3. InvEjecutadas'!$H$77 -> 0.7403890338 | K14: 477902.1173 | L14: 10 | M14: 0.1 | N14: 47790.21173 | P14: =IF(P$6=$H14,$K14,0) -> 477902.1173 | Q14: 0 | R14: 0 | T14: 0 | U14: 47790.21173 | V14: 47790.21173 | W14: 47790.21173
B15: - Reposición del sistema de mensajería aeronáutica AMHS | C15: Inversiones no ligadas a proyectos (Reposiciones) | D15: Equipos de comunicaciones | F15: SV-SNAR-APROX | G15: Maquinaria y equipo | H15: 2023 | I15: =+'4.3. Pagos a CGR'!F8-521975 -> 5652969.47 | J15: =+'5.3. InvEjecutadas'!$H$77 -> 0.7403890338 | K15: 4185396.604 | L15: 10 | M15: 0.1 | N15: 418539.6604 | P15: 0 | Q15: 4185396.604 | R15: 0 | T15: 0 | U15: 0 | V15: 418539.6604 | W15: 418539.6604
B16: - Radioenlaces digitales de microondas | C16: Inversiones no ligadas a proyectos (Reposiciones) | D16: Equipos de comunicaciones | F16: SV-SNAR-APROX | G16: Maquinaria y equipo | H16: 2022 | I16: 2297938.228 | J16: =+'5.3. InvEjecutadas'!$H$77 -> 0.7403890338 | K16: 1701368.264 | L16: 10 | M16: 0.1 | N16: 170136.8264 | P16: 1701368.264 | Q16: 0 | R16: 0 | T16: =+IF(T$6>$H16,$N16,0) -> 0 | U16: 170136.8264 | V16: 170136.8264 | W16: 170136.8264
B17: - Modernizaciòn de sistemas Conmutaciòn oral ATS 15 aeròdromos no controlados | C17: Inversiones no ligadas a proyectos (Reposiciones) | D17: Equipos de comunicaciones | F17: SV-SNAR-APROX | G17: Maquinaria y equipo | H17: 2024 | I17: 278296.8293 | J17: =+'5.3. InvEjecutadas'!$H$77 -> 0.7403890338 | K17: 206047.9205 | L17: 10 | M17: 0.1 | N17: 20604.79205 | P17: 0 | Q17: 0 | R17: 206047.9205 | T17: 0 | U17: 0 | V17: 0 | W17: 20604.79205
B18: - Equipos diversos, Estudios- Nivel Nacional. | C18: Inversiones no ligadas a proyectos (Reposiciones) | D18: Equipos de comunicaciones | F18: SV-SNAR-APROX | G18: Maquinaria y equipo | H18: 2022 | I18: 165026.8354 | J18: =+'5.3. InvEjecutadas'!$H$77 -> 0.7403890338 | K18: 122184.0592 | L18: 10 | M18: 0.1 | N18: 12218.40592 | P18: 122184.0592 | Q18: 0 | R18: 0 | T18: 0 | U18: 12218.40592 | V18: 12218.40592 | W18: 12218.40592
B19: - Equipos diversos, Estudios- Nivel Nacional. | C19: Inversiones no ligadas a proyectos (Reposiciones) | D19: Equipos de comunicaciones | F19: SV-SNAR-APROX | G19: Maquinaria y equipo | H19: 2023 | I19: 145428.5366 | J19: =+'5.3. InvEjecutadas'!$H$77 -> 0.7403890338 | K19: 107673.6937 | L19: 10 | M19: 0.1 | N19: 10767.36937 | P19: 0 | Q19: 107673.6937 | R19: 0 | T19: 0 | U19: 0 | V19: 10767.36937 | W19: 10767.36937
B20: - Equipos diversos, Estudios- Nivel Nacional. | C20: Inversiones no ligadas a proyectos (Reposiciones) | D20: Equipos de comunicaciones | F20: SV-SNAR-APROX | G20: Maquinaria y equipo | H20: 2024 | I20: 195121.9512 | J20: =+'5.3. InvEjecutadas'!$H$77 -> 0.7403890338 | K20: 144466.1529 | L20: 10 | M20: 0.1 | N20: 14446.61529 | P20: 0 | Q20: 0 | R20: 144466.1529 | T20: 0 | U20: 0 | V20: 0 | W20: 14446.61529
B21: - Sistemas UPS para protección de equipos de aeronavegación Nivel nacional. | C21: Inversiones no ligadas a proyectos (Reposiciones) | D21: Equipo de electricidad | F21: SV-SNAR-APROX | G21: Maquinaria y equipo | H21: 2022 | I21: 95417.72152 | J21: =+'5.3. InvEjecutadas'!$H$77 -> 0.7403890338 | K21: 70646.23464 | L21: 10 | M21: 0.1 | N21: 7064.623464 | P21: 70646.23464 | Q21: 0 | R21: 0 | T21: 0 | U21: 7064.623464 | V21: 7064.623464 | W21: 7064.623464
B22: - Sistemas UPS para protección de equipos de aeronavegación Nivel nacional. | C22: Inversiones no ligadas a proyectos (Reposiciones) | D22: Equipo de electricidad | F22: SV-SNAR-APROX | G22: Maquinaria y equipo | H22: 2023 | I22: 827341.4634 | J22: =+'5.3. InvEjecutadas'!$H$77 -> 0.7403890338 | K22: 612554.5467 | L22: 10 | M22: 0.1 | N22: 61255.45467 | P22: 0 | Q22: 612554.5467 | R22: 0 | T22: 0 | U22: 0 | V22: 61255.45467 | W22: 61255.45467
B23: - Sistemas UPS para protección de equipos de aeronavegación Nivel nacional. | C23: Inversiones no ligadas a proyectos (Reposiciones) | D23: Equipo de electricidad | F23: SV-SNAR-APROX | G23: Maquinaria y equipo | H23: 2024 | I23: 197268.2927 | J23: =+'5.3. InvEjecutadas'!$H$77 -> 0.7403890338 | K23: 146055.2806 | L23: 10 | M23: 0.1 | N23: 14605.52806 | P23: 0 | Q23: 0 | R23: 146055.2806 | T23: 0 | U23: 0 | V23: 0 | W23: 14605.52806
B24: - Equipos de aire acondicionado para estaciones - Nivel nacional | C24: Inversiones no ligadas a proyectos (Reposiciones) | D24: Equipo de electricidad | F24: SV-SNAR-APROX | G24: Maquinaria y equipo | H24: 2022 | I24: 29268.86076 | J24: =+'5.3. InvEjecutadas'!$H$77 -> 0.7403890338 | K24: 21670.34354 | L24: 10 | M24: 0.1 | N24: 2167.034354 | P24: 21670.34354 | Q24: 0 | R24: 0 | T24: 0 | U24: 2167.034354 | V24: 2167.034354 | W24: 2167.034354
B25: - Equipos de aire acondicionado para estaciones - Nivel nacional | C25: Inversiones no ligadas a proyectos (Reposiciones) | D25: Equipo de electricidad | F25: SV-SNAR-APROX | G25: Maquinaria y equipo | H25: 2023 | I25: 736673.1707 | J25: =+'5.3. InvEjecutadas'!$H$77 -> 0.7403890338 | K25: 545424.7371 | L25: 10 | M25: 0.1 | N25: 54542.47371 | P25: 0 | Q25: 545424.7371 | R25: 0 | T25: 0 | U25: 0 | V25: 54542.47371 | W25: 54542.47371
B26: - Equipos de aire acondicionado para estaciones - Nivel nacional | C26: Inversiones no ligadas a proyectos (Reposiciones) | D26: Equipo de electricidad | F26: SV-SNAR-APROX | G26: Maquinaria y equipo | H26: 2024 | I26: 236829.2683 | J26: =+'5.3. InvEjecutadas'!$H$77 -> 0.7403890338 | K26: 175345.7931 | L26: 10 | M26: 0.1 | N26: 17534.57931 | P26: 0 | Q26: 0 | R26: 175345.7931 | T26: 0 | U26: 0 | V26: 0 | W26: 17534.57931
B27: - Luces de Aproximación | C27: Inversiones no ligadas a proyectos (Reposiciones) | D27: Equipo de electricidad | F27: APROX | G27: Maquinaria y equipo | H27: 2023 | I27: 276973.9024 | J27: =+'5.3. InvEjecutadas'!$H$77 -> 0.7403890338 | K27: 205068.44 | L27: 10 | M27: 0.1 | N27: 20506.844 | P27: 0 | Q27: 205068.44 | R27: 0 | T27: 0 | U27: 0 | V27: 20506.844 | W27: 20506.844
B28: - Sistema de Ayudas Luminosas - Reposición (Pto Maldonado, Tacna, Tarapoto, Pucallpa, Talara,Tumbes) | C28: Inversiones no ligadas a proyectos (Reposiciones) | D28: Equipo de electricidad | F28: APROX | G28: Maquinaria y equipo | H28: 2023 | I28: 929967.0732 | J28: =+'5.3. InvEjecutadas'!$H$77 -> 0.7403890338 | K28: 688537.4228 | L28: 10 | M28: 0.1 | N28: 68853.74228 | P28: 0 | Q28: 688537.4228 | R28: 0 | T28: 0 | U28: 0 | V28: 68853.74228 | W28: 68853.74228
B29: - Sistema de Ayudas Luminosas - Reposición (Pto Maldonado, Tacna, Tarapoto, Pucallpa, Talara,Tumbes) | C29: Inversiones no ligadas a proyectos (Reposiciones) | D29: Equipo de electricidad | F29: APROX | G29: Maquinaria y equipo | H29: 2024 | I29: 1038666.341 | J29: =+'5.3. InvEjecutadas'!$H$77 -> 0.7403890338 | K29: 769017.169 | L29: 10 | M29: 0.1 | N29: 76901.7169 | P29: 0 | Q29: 0 | R29: 769017.169 | T29: 0 | U29: 0 | V29: 0 | W29: 76901.7169
B30: - 03 Sistema computarizado control remoto de los sistemas ayudas luminosas | C30: Inversiones no ligadas a proyectos (Reposiciones) | D30: Equipo de electricidad | F30: APROX | G30: Equipos de informática | H30: 2023 | I30: 413826.8293 | J30: =+'5.3. InvEjecutadas'!$H$77 -> 0.7403890338 | K30: 306392.8463 | L30: 4 | M30: 0.25 | N30: 76598.21157 | P30: 0 | Q30: 306392.8463 | R30: 0 | T30: =+IF(T$6>$H30,$N30,0) -> 0 | U30: 0 | V30: 76598.21157 | W30: 76598.21157
B31: - Renovaciòn y mejoramiento de sub estaciones electricas. | C31: Inversiones no ligadas a proyectos (Reposiciones) | D31: Equipo de electricidad | F31: SV-SNAR-APROX | G31: Maquinaria y equipo | H31: 2023 | I31: 289375.8537 | J31: =+'5.3. InvEjecutadas'!$H$77 -> 0.7403890338 | K31: 214250.7087 | L31: 10 | M31: 0.1 | N31: 21425.07087 | P31: 0 | Q31: 214250.7087 | R31: 0 | T31: 0 | U31: 0 | V31: 21425.07087 | W31: 21425.07087
B32: - Renovaciòn y mejoramiento de sub estaciones electricas. | C32: Inversiones no ligadas a proyectos (Reposiciones) | D32: Equipo de electricidad | F32: SV-SNAR-APROX | G32: Maquinaria y equipo | H32: 2024 | I32: 303090.9756 | J32: =+'5.3. InvEjecutadas'!$H$77 -> 0.7403890338 | K32: 224405.2346 | L32: 10 | M32: 0.1 | N32: 22440.52346 | P32: 0 | Q32: 0 | R32: 224405.2346 | T32: 0 | U32: 0 | V32: 0 | W32: 22440.52346
B33: - Luces de calle de rodaje Arpto. Jorge Chávez | C33: Inversiones no ligadas a proyectos (Reposiciones) | D33: Equipo de electricidad | F33: APROX | G33: Maquinaria y equipo | H33: 2023 | I33: 425291.2195 | J33: =+'5.3. InvEjecutadas'!$H$77 -> 0.7403890338 | K33: 314880.9551 | L33: 10 | M33: 0.1 | N33: 31488.09551 | P33: 0 | Q33: 314880.9551 | R33: 0 | T33: 0 | U33: 0 | V33: 31488.09551 | W33: 31488.09551
B34: - Adquisición e instalación letreros de señalizaciòn vertical Aeropuerto Jorge Chàvez | C34: Inversiones no ligadas a proyectos (Reposiciones) | D34: Equipo de electricidad | F34: APROX | G34: Maquinaria y equipo | H34: 2022 | I34: 19204.55696 | J34: =+'5.3. InvEjecutadas'!$H$77 -> 0.7403890338 | K34: 14218.84337 | L34: 10 | M34: 0.1 | N34: 1421.884337 | P34: 14218.84337 | Q34: 0 | R34: 0 | T34: 0 | U34: 1421.884337 | V34: 1421.884337 | W34: 1421.884337
B35: - Adquisición e instalación letreros de señalizaciòn vertical Aeropuerto Jorge Chàvez | C35: Inversiones no ligadas a proyectos (Reposiciones) | D35: Equipo de electricidad | F35: APROX | G35: Maquinaria y equipo | H35: 2023 | I35: 166517.561 | J35: =+'5.3. InvEjecutadas'!$H$77 -> 0.7403890338 | K35: 123287.7761 | L35: 10 | M35: 0.1 | N35: 12328.77761 | P35: 0 | Q35: 123287.7761 | R35: 0 | T35: 0 | U35: 0 | V35: 12328.77761 | W35: 12328.77761
B36: - Estudios, equipos diversos,obras e instalación - Nivel nacional. | C36: Inversiones no ligadas a proyectos (Reposiciones) | D36: Equipo de electricidad | F36: SV-SNAR-APROX | G36: Maquinaria y equipo | H36: 2022 | I36: 161039.7468 | J36: =+'5.3. InvEjecutadas'!$H$77 -> 0.7403890338 | K36: 119232.0626 | L36: 10 | M36: 0.1 | N36: 11923.20626 | P36: 119232.0626 | Q36: 0 | R36: 0 | T36: 0 | U36: 11923.20626 | V36: 11923.20626 | W36: 11923.20626
B37: - Estudios, equipos diversos,obras e instalación - Nivel nacional. | C37: Inversiones no ligadas a proyectos (Reposiciones) | D37: Equipo de electricidad | F37: SV-SNAR-APROX | G37: Maquinaria y equipo | H37: 2023 | I37: 524090.7317 | J37: =+'5.3. InvEjecutadas'!$H$77 -> 0.7403890338 | K37: 388031.0305 | L37: 10 | M37: 0.1 | N37: 38803.10305 | P37: 0 | Q37: 388031.0305 | R37: 0 | T37: 0 | U37: 0 | V37: 38803.10305 | W37: 38803.10305
B38: - Estudios, equipos diversos,obras e instalación - Nivel nacional. | C38: Inversiones no ligadas a proyectos (Reposiciones) | D38: Equipo de electricidad | F38: SV-SNAR-APROX | G38: Maquinaria y equipo | H38: 2024 | I38: 731707.3171 | J38: =+'5.3. InvEjecutadas'!$H$77 -> 0.7403890338 | K38: 541748.0735 | L38: 10 | M38: 0.1 | N38: 54174.80735 | P38: 0 | Q38: 0 | R38: 541748.0735 | T38: 0 | U38: 0 | V38: 0 | W38: 54174.80735
B39: - Renovación de Sistemas de Radioayudas (Grupo 1): | C39: Inversiones no ligadas a proyectos (Reposiciones) | D39: Equipo de radioayudas | F39: SNAR-APROX | G39: Maquinaria y equipo | H39: 2023 | I39: =1859446.09756098+2%*(1859446.09756098+1859446.09756098) -> 1933823.941 | J39: =+'5.3. InvEjecutadas'!$H$77 -> 0.7403890338 | K39: 1431782.04 | L39: =VLOOKUP($G39,$B$81:$C$86,2,FALSE) -> 10 | M39: 0.1 | N39: 143178.204 | P39: 0 | Q39: 1431782.04 | R39: 0 | T39: 0 | U39: 0 | V39: 143178.204 | W39: 143178.204
B40: - Renovación de Sistemas de Radioayudas (Grupo 1): | C40: Inversiones no ligadas a proyectos (Reposiciones) | D40: Equipo de radioayudas | F40: SNAR-APROX | G40: Maquinaria y equipo | H40: 2024 | I40: 1859446.098 | J40: =+'5.3. InvEjecutadas'!$H$77 -> 0.7403890338 | K40: 1376713.5 | L40: 10 | M40: 0.1 | N40: 137671.35 | P40: 0 | Q40: 0 | R40: 1376713.5 | T40: 0 | U40: 0 | V40: 0 | W40: 137671.35
B41: - Unidad mòvil integrada para ensayos de tierra de sistemas de aeronavegación | C41: Inversiones no ligadas a proyectos (Reposiciones) | D41: Equipo de radioayudas | F41: APROX | G41: Maquinaria y equipo | H41: 2023 | I41: 921118.7805 | J41: =+'5.3. InvEjecutadas'!$H$77 -> 0.7403890338 | K41: 681986.2439 | L41: 10 | M41: 0.1 | N41: 68198.62439 | P41: 0 | Q41: 681986.2439 | R41: 0 | T41: 0 | U41: 0 | V41: 68198.62439 | W41: 68198.62439
B42: - Equipos diversos, obras e instalación - Nivel nacional. | C42: Inversiones no ligadas a proyectos (Reposiciones) | D42: Equipo de radioayudas | F42: APROX | G42: Maquinaria y equipo | H42: 2022 | I42: 55228.60759 | J42: =+'5.3. InvEjecutadas'!$H$77 -> 0.7403890338 | K42: 40890.65542 | L42: 10 | M42: 0.1 | N42: 4089.065542 | P42: 40890.65542 | Q42: 0 | R42: 0 | T42: 0 | U42: 4089.065542 | V42: 4089.065542 | W42: 4089.065542
B43: - Equipos diversos, obras e instalación - Nivel nacional. | C43: Inversiones no ligadas a proyectos (Reposiciones) | D43: Equipo de radioayudas | F43: APROX | G43: Maquinaria y equipo | H43: 2023 | I43: 47953.65854 | J43: =+'5.3. InvEjecutadas'!$H$77 -> 0.7403890338 | K43: 35504.36291 | L43: 10 | M43: 0.1 | N43: 3550.436291 | P43: 0 | Q43: 35504.36291 | R43: 0 | T43: 0 | U43: 0 | V43: 3550.436291 | W43: 3550.436291
B44: - Equipos diversos, obras e instalación - Nivel nacional. | C44: Inversiones no ligadas a proyectos (Reposiciones) | D44: Equipo de radioayudas | F44: APROX | G44: Maquinaria y equipo | H44: 2024 | I44: 78973.90244 | J44: =+'5.3. InvEjecutadas'!$H$77 -> 0.7403890338 | K44: 58471.41132 | L44: 10 | M44: 0.1 | N44: 5847.141132 | P44: 0 | Q44: 0 | R44: 58471.41132 | T44: =+IF(T$6>$H44,$N44,0) -> 0 | U44: 0 | V44: 0 | W44: 5847.141132
B45: - Grupos electrógenos -uso continuo Nivel nacional. | C45: Inversiones no ligadas a proyectos (Reposiciones) | D45: Equipos de grupos electrógenos | F45: SV-SNAR-APROX | G45: Maquinaria y equipo | H45: 2022 | I45: 102886.0759 | J45: =+'5.3. InvEjecutadas'!$H$77 -> 0.7403890338 | K45: 76175.72236 | L45: 10 | M45: 0.1 | N45: 7617.572236 | P45: 76175.72236 | Q45: 0 | R45: 0 | T45: 0 | U45: 7617.572236 | V45: 7617.572236 | W45: 7617.572236
B46: - Grupos electrógenos -uso continuo Nivel nacional. | C46: Inversiones no ligadas a proyectos (Reposiciones) | D46: Equipos de grupos electrógenos | F46: SV-SNAR-APROX | G46: Maquinaria y equipo | H46: 2023 | I46: 231285.122 | J46: =+'5.3. InvEjecutadas'!$H$77 -> 0.7403890338 | K46: 171240.968 | L46: 10 | M46: 0.1 | N46: 17124.0968 | P46: 0 | Q46: 171240.968 | R46: 0 | T46: 0 | U46: 0 | V46: 17124.0968 | W46: 17124.0968
B47: - Grupos electrógenos -uso continuo Nivel nacional. | C47: Inversiones no ligadas a proyectos (Reposiciones) | D47: Equipos de grupos electrógenos | F47: SV-SNAR-APROX | G47: Maquinaria y equipo | H47: 2024 | I47: 647844.6341 | J47: =+'5.3. InvEjecutadas'!$H$77 -> 0.7403890338 | K47: 479657.0627 | L47: 10 | M47: =1/L47 -> 0.1 | N47: 47965.70627 | P47: 0 | Q47: 0 | R47: 479657.0627 | T47: 0 | U47: 0 | V47: 0 | W47: 47965.70627
B48: - Obras, equipos diversos y gastos de instalación. | C48: Inversiones no ligadas a proyectos (Reposiciones) | D48: Equipos de grupos electrógenos | F48: SV-SNAR-APROX | G48: Edificaciones y construcciones | H48: 2022 | I48: 30010.88608 | J48: =+'5.3. InvEjecutadas'!$H$77 -> 0.7403890338 | K48: =I48*J48 -> 22219.73095 | L48: 33.3 | M48: 0.03003003003 | N48: =K48/L48 -> 667.2591875 | P48: 22219.73095 | Q48: 0 | R48: 0 | T48: 0 | U48: 667.2591875 | V48: 667.2591875 | W48: 667.2591875
B49: - Obras, equipos diversos y gastos de instalación. | C49: Inversiones no ligadas a proyectos (Reposiciones) | D49: Equipos de grupos electrógenos | F49: SV-SNAR-APROX | G49: Edificaciones y construcciones | H49: 2023 | I49: 63720 | J49: =+'5.3. InvEjecutadas'!$H$77 -> 0.7403890338 | K49: 47177.58923 | L49: 33.3 | M49: 0.03003003003 | N49: 1416.744421 | P49: =IF(P$6=$H49,$K49,0) -> 0 | Q49: 47177.58923 | R49: 0 | T49: 0 | U49: 0 | V49: 1416.744421 | W49: 1416.744421
B50: - Obras, equipos diversos y gastos de instalación. | C50: Inversiones no ligadas a proyectos (Reposiciones) | D50: Equipos de grupos electrógenos | F50: SV-SNAR-APROX | G50: Edificaciones y construcciones | H50: 2024 | I50: 32088.29268 | J50: =+'5.3. InvEjecutadas'!$H$77 -> 0.7403890338 | K50: 23757.82002 | L50: 33.3 | M50: 0.03003003003 | N50: 713.4480485 | P50: 0 | Q50: 0 | R50: 23757.82002 | T50: 0 | U50: 0 | V50: 0 | W50: 713.4480485
B51: - Renovaciòn de REDAP y RED de VHF-AA del ACC(Sectorizaciòn PROESA) Incluye VHF-AA frecuencia Emergencia 121.5Mhz | C51: Inversiones no ligadas a proyectos (Reposiciones) | D51: Sistema VHF-AA y medios de transmisión | F51: SV-SNAR-APROX | G51: Maquinaria y equipo | H51: 2023 | I51: 1895582.927 | J51: =+'5.3. InvEjecutadas'!$H$77 -> 0.7403890338 | K51: 1403468.812 | L51: 10 | M51: 0.1 | N51: 140346.8812 | P51: 0 | Q51: 1403468.812 | R51: 0 | T51: 0 | U51: 0 | V51: 140346.8812 | W51: 140346.8812
B52: - Renovación sistema AWOS de Cusco,Arequipa, Iquitos, Trujillo y Arptos. Controlados. | C52: Inversiones no ligadas a proyectos (Reposiciones) | D52: Equipos de meteorología | F52: SV-SNAR-APROX | G52: Maquinaria y equipo | H52: 2022 | I52: 152658.481 | J52: =+'5.3. InvEjecutadas'!$H$77 -> 0.7403890338 | K52: 113026.6653 | L52: 10 | M52: 0.1 | N52: 11302.66653 | P52: 113026.6653 | Q52: 0 | R52: 0 | T52: 0 | U52: 11302.66653 | V52: 11302.66653 | W52: 11302.66653
B53: - Renovación sistema AWOS de Cusco,Arequipa, Iquitos, Trujillo y Arptos. Controlados. | C53: Inversiones no ligadas a proyectos (Reposiciones) | D53: Equipos de meteorología | F53: SV-SNAR-APROX | G53: Maquinaria y equipo | H53: 2023 | I53: 464379.2683 | J53: =+'5.3. InvEjecutadas'!$H$77 -> 0.7403890338 | K53: 343821.3178 | L53: 10 | M53: 0.1 | N53: 34382.13178 | P53: 0 | Q53: 343821.3178 | R53: 0 | T53: 0 | U53: 0 | V53: 34382.13178 | W53: 34382.13178
B54: - Implementación de Sistemas Automáticas de Observaciones Meteorológicas (AWOS) en Aeropuertos Controlados | C54: Inversiones no ligadas a proyectos (Reposiciones) | D54: Equipos de meteorología | F54: SV-SNAR-APROX | G54: Maquinaria y equipo | H54: 2024 | I54: 928758.7805 | J54: =+'5.3. InvEjecutadas'!$H$77 -> 0.7403890338 | K54: 687642.8161 | L54: 10 | M54: 0.1 | N54: 68764.28161 | P54: 0 | Q54: 0 | R54: 687642.8161 | T54: =+IF(T$6>$H54,$N54,0) -> 0 | U54: 0 | V54: 0 | W54: 68764.28161
B55: - Receptor de Imágenes de satélite geoestacionario de alta resolución | C55: Inversiones no ligadas a proyectos (Reposiciones) | D55: Equipos de meteorología | F55: SV-SNAR-APROX | G55: Maquinaria y equipo | H55: 2023 | I55: 172782.439 | J55: =+'5.3. InvEjecutadas'!$H$77 -> 0.7403890338 | K55: 127926.2231 | L55: 10 | M55: 0.1 | N55: 12792.62231 | P55: 0 | Q55: 127926.2231 | R55: 0 | T55: 0 | U55: 0 | V55: 12792.62231 | W55: 12792.62231
B56: - Sistema automàtico Radiosondaje (Piura,Iquitos,Pto. Maldonado) | C56: Inversiones no ligadas a proyectos (Reposiciones) | D56: Equipos de meteorología | F56: SV-SNAR-APROX | G56: Maquinaria y equipo | H56: 2024 | I56: 255541.9512 | J56: =+'5.3. InvEjecutadas'!$H$77 -> 0.7403890338 | K56: 189200.4584 | L56: 10 | M56: 0.1 | N56: 18920.04584 | P56: 0 | Q56: 0 | R56: 189200.4584 | T56: 0 | U56: 0 | V56: 0 | W56: 18920.04584
B57: - Equipos diversos de meteorologìa y gastos de instalación - Nivel nacional. | C57: Inversiones no ligadas a proyectos (Reposiciones) | D57: Equipos de meteorología | F57: SV-SNAR-APROX | G57: Maquinaria y equipo | H57: 2022 | I57: 486940.7595 | J57: =+'5.3. InvEjecutadas'!$H$77 -> 0.7403890338 | K57: 360525.5984 | L57: 10 | M57: 0.1 | N57: 36052.55984 | P57: 360525.5984 | Q57: 0 | R57: 0 | T57: 0 | U57: 36052.55984 | V57: 36052.55984 | W57: 36052.55984
B58: - Equipos diversos de meteorologìa y gastos de instalación - Nivel nacional. | C58: Inversiones no ligadas a proyectos (Reposiciones) | D58: Equipos de meteorología | F58: SV-SNAR-APROX | G58: Maquinaria y equipo | H58: 2023 | I58: 827021.2195 | J58: =+'5.3. InvEjecutadas'!$H$77 -> 0.7403890338 | K58: 612317.4416 | L58: 10 | M58: 0.1 | N58: 61231.74416 | P58: 0 | Q58: 612317.4416 | R58: 0 | T58: 0 | U58: 0 | V58: 61231.74416 | W58: 61231.74416
B59: - Equipos diversos de meteorologìa y gastos de instalación - Nivel nacional. | C59: Inversiones no ligadas a proyectos (Reposiciones) | D59: Equipos de meteorología | F59: SV-SNAR-APROX | G59: Maquinaria y equipo | H59: 2024 | I59: 965981.7073 | J59: =+'5.3. InvEjecutadas'!$H$77 -> 0.7403890338 | K59: 715202.2629 | L59: 10 | M59: 0.1 | N59: 71520.22629 | P59: 0 | Q59: 0 | R59: 715202.2629 | T59: 0 | U59: 0 | V59: 0 | W59: 71520.22629
B60: - Renovaciòn de equipos y sistemas del Centro de Control de Lima. | C60: Inversiones no ligadas a proyectos (Reposiciones) | D60: Equipos de vigilancia aérea | F60: SV-SNAR-APROX | G60: Maquinaria y equipo | H60: 2024 | I60: 1972682.927 | J60: =+'5.3. InvEjecutadas'!$H$77 -> 0.7403890338 | K60: 1460552.806 | L60: 10 | M60: 0.1 | N60: 146055.2806 | P60: 0 | Q60: 0 | R60: 1460552.806 | T60: 0 | U60: 0 | V60: 0 | W60: 146055.2806
B61: - Estaciones ADS-B (Trujillo, Jauja, Yurimaguas, Pto Maldonado, Pisco) | C61: Inversiones no ligadas a proyectos (Reposiciones) | D61: Equipos de vigilancia aérea | F61: SV-SNAR-APROX | G61: Maquinaria y equipo | H61: 2023 | I61: 1043612.927 | J61: =+'5.3. InvEjecutadas'!$H$77 -> 0.7403890338 | K61: 772679.5666 | L61: 10 | M61: 0.1 | N61: 77267.95666 | P61: 0 | Q61: 772679.5666 | R61: 0 | T61: 0 | U61: 0 | V61: 77267.95666 | W61: 77267.95666
B62: - Radomo | C62: Inversiones no ligadas a proyectos (Reposiciones) | D62: Equipos de vigilancia aérea | F62: SV-SNAR-APROX | G62: Maquinaria y equipo | H62: 2023 | I62: 481557.0732 | J62: =+'5.3. InvEjecutadas'!$H$77 -> 0.7403890338 | K62: 356539.5761 | L62: 10 | M62: 0.1 | N62: 35653.95761 | P62: 0 | Q62: 356539.5761 | R62: 0 | T62: 0 | U62: 0 | V62: 35653.95761 | W62: 35653.95761
B63: - Equipos diversos (Estación Radar y Centro de Control). | C63: Inversiones no ligadas a proyectos (Reposiciones) | D63: Equipos de vigilancia aérea | F63: SV-SNAR-APROX | G63: Maquinaria y equipo | H63: 2022 | I63: 232542.2785 | J63: =+'5.3. InvEjecutadas'!$H$77 -> 0.7403890338 | K63: 172171.7529 | L63: 10 | M63: 0.1 | N63: 17217.17529 | P63: 172171.7529 | Q63: 0 | R63: 0 | T63: 0 | U63: 17217.17529 | V63: 17217.17529 | W63: 17217.17529
B64: - Equipos diversos (Estación Radar y Centro de Control). | C64: Inversiones no ligadas a proyectos (Reposiciones) | D64: Equipos de vigilancia aérea | F64: SV-SNAR-APROX | G64: Maquinaria y equipo | H64: 2023 | I64: 182926.8293 | J64: =+'5.3. InvEjecutadas'!$H$77 -> 0.7403890338 | K64: 135437.0184 | L64: 10 | M64: 0.1 | N64: 13543.70184 | P64: 0 | Q64: 135437.0184 | R64: 0 | T64: 0 | U64: 0 | V64: 13543.70184 | W64: 13543.70184
B65: - Equipos diversos (Estación Radar y Centro de Control). | C65: Inversiones no ligadas a proyectos (Reposiciones) | D65: Equipos de vigilancia aérea | F65: SV-SNAR-APROX | G65: Maquinaria y equipo | H65: 2024 | I65: 494814.3902 | J65: =+'5.3. InvEjecutadas'!$H$77 -> 0.7403890338 | K65: 366355.1483 | L65: 10 | M65: 0.1 | N65: 36635.51483 | P65: 0 | Q65: 0 | R65: 366355.1483 | T65: 0 | U65: 0 | V65: 0 | W65: 36635.51483
B66: - Construcción y/o mejoramiento de torres de control de Pisco (2022-2023), Iquitos (2023), Tarapoto (2024), Puerto Maldonado (2023), Jaén (2024), Jauja(2023), Nazca(2023), Mazamari (2024), Huánuco(2025), Tocache(2027), Atalaya (2026) | C66: Inversiones no ligadas a proyectos (Reposiciones) | D66: Torres de control | F66: SV-SNAR-APROX | G66: Edificaciones y construcciones | H66: 2023 | I66: 171088.0488 | J66: =+'5.3. InvEjecutadas'!$H$77 -> 0.7403890338 | K66: 126671.7151 | L66: 33.3 | M66: 0.03003003003 | N66: 3803.955409 | P66: 0 | Q66: 126671.7151 | R66: 0 | T66: =+IF(T$6>$H66,$N66,0) -> 0 | U66: 0 | V66: 3803.955409 | W66: 3803.955409
B67: - Construcción y/o mejoramiento de torres de control de Pisco (2022-2023), Iquitos (2023), Tarapoto (2024), Puerto Maldonado (2023), Jaén (2024), Jauja(2023), Nazca(2023), Mazamari (2024), Huánuco(2025), Tocache(2027), Atalaya (2026) | C67: Inversiones no ligadas a proyectos (Reposiciones) | D67: Torres de control | F67: SV-SNAR-APROX | G67: Edificaciones y construcciones | H67: 2024 | I67: =764839.024390244-365634 -> 399205.0244 | J67: =+'5.3. InvEjecutadas'!$H$77 -> 0.7403890338 | K67: 295567.0223 | L67: 33.3 | M67: 0.03003003003 | N67: 8875.886555 | P67: 0 | Q67: 0 | R67: 295567.0223 | T67: 0 | U67: 0 | V67: 0 | W67: 8875.886555
B68: - Sistema de interfase para grabación y reproducción del Centro de Control y TWR | C68: Inversiones no ligadas a proyectos (Reposiciones) | D68: Otras inversiones | F68: SV-SNAR-APROX | G68: Maquinaria y equipo | H68: 2022 | I68: 139214.1772 | J68: =+'5.3. InvEjecutadas'!$H$77 -> 0.7403890338 | K68: 103072.6502 | L68: 10 | M68: 0.1 | N68: 10307.26502 | P68: 103072.6502 | Q68: 0 | R68: 0 | T68: 0 | U68: 10307.26502 | V68: 10307.26502 | W68: 10307.26502
B69: - Investigación,capacitación y actualización tecnológica | C69: Inversiones no ligadas a proyectos (Reposiciones) | D69: Otras inversiones | F69: SV-SNAR-APROX | G69: Otros | H69: 2022 | I69: 25316.4557 | J69: =+'5.3. InvEjecutadas'!$H$77 -> 0.7403890338 | K69: 18744.02617 | L69: 10 | M69: 0.1 | N69: 1874.402617 | P69: 18744.02617 | Q69: 0 | R69: 0 | T69: 0 | U69: 1874.402617 | V69: 1874.402617 | W69: 1874.402617
B70: - Investigación,capacitación y actualización tecnológica | C70: Inversiones no ligadas a proyectos (Reposiciones) | D70: Otras inversiones | F70: SV-SNAR-APROX | G70: Otros | H70: 2023 | I70: 24390.2439 | J70: =+'5.3. InvEjecutadas'!$H$77 -> 0.7403890338 | K70: 18058.26912 | L70: 10 | M70: 0.1 | N70: 1805.826912 | P70: 0 | Q70: 18058.26912 | R70: 0 | T70: 0 | U70: 0 | V70: 1805.826912 | W70: 1805.826912
B71: - Investigación,capacitación y actualización tecnológica | C71: Inversiones no ligadas a proyectos (Reposiciones) | D71: Otras inversiones | F71: SV-SNAR-APROX | G71: Otros | H71: 2024 | I71: 148099.2683 | J71: =+'5.3. InvEjecutadas'!$H$77 -> 0.7403890338 | K71: 109651.0742 | L71: =VLOOKUP($G71,$B$81:$C$86,2,FALSE) -> 10 | M71: 0.1 | N71: 10965.10742 | P71: 0 | Q71: 0 | R71: 109651.0742 | T71: 0 | U71: 0 | V71: 0 | W71: 10965.10742
B72: - Inversiones varias a nivel nacional | C72: Inversiones no ligadas a proyectos (Reposiciones) | D72: Otras inversiones | F72: SV-SNAR-APROX | G72: Maquinaria y equipo | H72: 2022 | I72: 351705.0633 | J72: =+'5.3. InvEjecutadas'!$H$77 -> 0.7403890338 | K72: 260398.572 | L72: 10 | M72: 0.1 | N72: 26039.8572 | P72: 260398.572 | Q72: 0 | R72: 0 | T72: 0 | U72: 26039.8572 | V72: 26039.8572 | W72: 26039.8572
B73: - Inversiones varias a nivel nacional | C73: Inversiones no ligadas a proyectos (Reposiciones) | D73: Otras inversiones | F73: SV-SNAR-APROX | G73: Maquinaria y equipo | H73: 2023 | I73: 304003.4146 | J73: =+'5.3. InvEjecutadas'!$H$77 -> 0.7403890338 | K73: 225080.7944 | L73: 10 | M73: 0.1 | N73: 22508.07944 | P73: 0 | Q73: 225080.7944 | R73: 0 | T73: 0 | U73: 0 | V73: 22508.07944 | W73: 22508.07944
B74: - Inversiones varias a nivel nacional | C74: Inversiones no ligadas a proyectos (Reposiciones) | D74: Otras inversiones | F74: SV-SNAR-APROX | G74: Maquinaria y equipo | H74: 2024 | I74: 100097.561 | J74: =+'5.3. InvEjecutadas'!$H$77 -> 0.7403890338 | K74: 74111.13646 | L74: 10 | M74: 0.1 | N74: 7411.113646 | P74: 0 | Q74: 0 | R74: 74111.13646 | T74: 0 | U74: 0 | V74: 0 | W74: 7411.113646
B75: - Inversiones sistema de navegación aérea y torres de control Arpto. Ilo, Moquegua (DU-006-2018) | C75: Inversiones no ligadas a proyectos (Reposiciones) | D75: Otras inversiones | F75: SV-SNAR-APROX | G75: Edificaciones y construcciones | H75: 2022 | I75: 1265.822785 | J75: =+'5.3. InvEjecutadas'!$H$77 -> 0.7403890338 | K75: 937.2013086 | L75: 33.3 | M75: 0.03003003003 | N75: 28.14418344 | P75: 937.2013086 | Q75: 0 | R75: 0 | T75: 0 | U75: 28.14418344 | V75: 28.14418344 | W75: 28.14418344
B76: - Inversiones sistema de navegación aérea y torres de control Arpto. Ilo, Moquegua (DU-006-2018) | C76: Inversiones no ligadas a proyectos (Reposiciones) | D76: Otras inversiones | F76: SV-SNAR-APROX | G76: Edificaciones y construcciones | H76: 2023 | I76: 781122.9268 | J76: =+'5.3. InvEjecutadas'!$H$77 -> 0.7403890338 | K76: 578334.8491 | L76: 33.3 | M76: 0.03003003003 | N76: 17367.41289 | P76: 0 | Q76: 578334.8491 | R76: 0 | T76: 0 | U76: 0 | V76: 17367.41289 | W76: 17367.41289
B77: Total | I77: =SUM(I7:I76) -> 40970511.31 | K77: =SUM(K7:K76) -> 30334117.29 | N77: =SUM(N7:N76) -> 3002776.913 | P77: =SUM(P7:P76) -> 5822282.083 | Q77: 15847132.3 | R77: 8664702.905 | S77: 0 | T77: 0 | U77: 580607.9184 | V77: 2158649.773 | W77: 3002776.913
B79: * Vida útil de los activos:
B80: Concepto | C80: Vida útil (años)
B81: Maquinaria y equipo | C81: 10
B82: Edificaciones y construcciones | C82: 33.3
B83: Otros | C83: 10
B84: Equipos de informática | C84: 4
B85: Red | C85: 10
B86: Equipos | C86: 10
B88: II. INVERSIONES PROYECTADAS, por clasificación
B90: A. Factor de distribución de inversiones:
B92: i.1 Gasto en Depreciación y Amortización, según CR (en soles):
B93: (Driver 1: Gasto en Depreciación + Amortización, según CR)
B94: Servicio | D94: Depreciación y amortización | I94: Promedio
D95: 2017 | E95: =+D95+1 -> 2018 | F95: =+E95+1 -> 2019 | G95: 2020 | H95: 2021
B96: SNAR nacional | D96: =+'5.1. Activos Base'!C7 -> 7129772.016 | E96: =+'5.1. Activos Base'!D7 -> 12945251.26 | F96: =+'5.1. Activos Base'!E7 -> 11484207.77 | G96: =+'5.1. Activos Base'!F7 -> 12808539.74 | H96: =+'5.1. Activos Base'!G7 -> 12277684.01 | I96: =AVERAGE(D96:H96) -> 11329090.96
B97: SNAR internacional | D97: =+'5.1. Activos Base'!C8 -> 2452018.503 | E97: =+'5.1. Activos Base'!D8 -> 3787636.656 | F97: =+'5.1. Activos Base'!E8 -> 4118355.972 | G97: =+'5.1. Activos Base'!F8 -> 3625748.436 | H97: =+'5.1. Activos Base'!G8 -> 2153448.137 | I97: =AVERAGE(D97:H97) -> 3227441.541
B98: Aproximación | D98: =+'5.1. Activos Base'!C9 -> 7351690.518 | E98: =+'5.1. Activos Base'!D9 -> 12149849.95 | F98: =+'5.1. Activos Base'!E9 -> 10946483.71 | G98: =+'5.1. Activos Base'!F9 -> 13493845.77 | H98: =+'5.1. Activos Base'!G9 -> 11258584.98 | I98: 11040090.99
B99: Sobrevuelo | D99: =+'5.1. Activos Base'!C10 -> 2714963.615 | E99: =+'5.1. Activos Base'!D10 -> 4773755.545 | F99: =+'5.1. Activos Base'!E10 -> 4946087.518 | G99: =+'5.1. Activos Base'!F10 -> 6088586.156 | H99: =+'5.1. Activos Base'!G10 -> 3822726.481 | I99: 4469223.863
B100: Total servicios con tarifa regulada | D100: =SUM(D96:D99) -> 19648444.65 | E100: =SUM(E96:E99) -> 33656493.41 | F100: =SUM(F96:F99) -> 31495134.97 | G100: 36016720.1 | H100: =SUM(H96:H99) -> 29512443.61 | I100: =SUM(I96:I99) -> 30065847.35
B102: i.2 Distribución para Inversiones asignadas a SNAR:
B103: (Driver 2: Kilómetro recorrido, usuarios atribuibles)
B104: Servicio | D104: 2017 | E104: =D104+1 -> 2018 | F104: =E104+1 -> 2019 | G104: 2020 | H104: 2021 | I104: Promedio
B105: SNAR Nacional (Kilómetros recorridos) | D105: =+'1. Demanda'!C9 -> 75128319.21 | E105: =+'1. Demanda'!D9 -> 80835290.16 | F105: =+'1. Demanda'!E9 -> 86859755.46 | G105: =+'1. Demanda'!F9 -> 32977805.86 | H105: =+'1. Demanda'!G9 -> 52195747.65 | I105: =AVERAGE(D105:H105) -> 65599383.67
B106: SNAR Internacional (Kilómetros recorridos) | D106: =+'1. Demanda'!C26 -> 76765499.64 | E106: =+'1. Demanda'!D26 -> 80424520.97 | F106: =+'1. Demanda'!E26 -> 80707610.26 | G106: =+'1. Demanda'!F26 -> 24869238.11 | H106: =+'1. Demanda'!G26 -> 29618643.68 | I106: =AVERAGE(D106:H106) -> 58477102.53
B107: Total SNAR (Kilómetros recorridos) | D107: =SUM(D105:D106) -> 151893818.8 | E107: =SUM(E105:E106) -> 161259811.1 | F107: 167567365.7 | G107: 57847043.97 | H107: 81814391.33 | I107: =SUM(I105:I106) -> 124076486.2
B109: ii. Asignación por combinación de servicios (%):
B110: Combinación | C110: Servicio | D110: 2017 | E110: =D110+1 -> 2018 | F110: =E110+1 -> 2019 | G110: 2020 | H110: 2021 | I110: Promedio
B111: SV-SNAR-APROX | C111: SNAR Nacional | D111: =SUM(D$96:D$97)/D100*D105/D$107 -> 0.2412026449 | E111: =SUM(E$96:E$97)/E100*E105/E$107 -> 0.2492165564 | F111: 0.2567920958 | G111: =SUM(G$96:G$97)/G100*G105/G$107 -> 0.2601281325 | H111: =SUM(H$96:H$97)/H100*H105/H$107 -> 0.3119612503 | I111: =SUM(I$96:I$97)/I100*I105/I$107 -> 0.2559733542
B112: SV-SNAR-APROX | C112: SNAR Internacional | D112: =SUM(D$96:D$97)/D100*D106/D$107 -> 0.2464588819 | E112: =SUM(E$96:E$97)/E100*E106/E$107 -> 0.2479501481 | F112: 0.2386038998 | G112: 0.1961679468 | H112: =SUM(H$96:H$97)/H100*H106/H$107 -> 0.1770234077 | I112: =SUM(I$96:I$97)/I100*I106/I$107 -> 0.2281817182
B113: SV-SNAR-APROX | C113: Sobrevuelo | D113: =D99/D100 -> 0.1381770244 | E113: =E99/E100 -> 0.141837579 | F113: 0.1570429059 | G113: 0.1690488789 | H113: =H99/H100 -> 0.1295293108 | I113: =I99/I100 -> 0.1486478598
B114: SV-SNAR-APROX | C114: Aproximación | D114: =D98/D100 -> 0.3741614488 | E114: =E98/E100 -> 0.3609957164 | F114: 0.3475610985 | G114: 0.3746550417 | H114: =H98/H100 -> 0.3814860312 | I114: =I98/I100 -> 0.3671970678
B115: SNAR-APROX | C115: Aproximación | D115: =D98/SUM(D96,D97,D98) -> 0.4341511649 | E115: =E98/SUM(E96,E97,E98) -> 0.4206612962 | F115: 0.4123117309 | G115: 0.4508749459 | H115: =H98/SUM(H96,H97,H98) -> 0.4382525867 | I115: =I98/SUM(I96,I97,I98) -> 0.4313104419
B116: SNAR-APROX | C116: SNAR Nacional | D116: =SUM(D96:D97)/SUM(D96,D97,D98)*D105/D$107 -> 0.2798749299 | E116: =SUM(E96:E97)/SUM(E96,E97,E98)*E105/E$107 -> 0.2904072124 | F116: 0.304632463 | G116: 0.313048657 | H116: =SUM(H96:H97)/SUM(H96,H97,H98)*H105/H$107 -> 0.3583822571 | I116: =SUM(I96:I97)/SUM(I96,I97,I98)*I105/I$107 -> 0.3006668359
B117: SNAR-APROX | C117: SNAR Internacional | D117: =SUM(D96:D97)/SUM(D96,D97,D98)*D106/D$107 -> 0.2859739052 | E117: =SUM(E96:E97)/SUM(E96,E97,E98)*E106/E$107 -> 0.2889314914 | F117: 0.2830558061 | G117: 0.2360763971 | H117: =SUM(H96:H97)/SUM(H96,H97,H98)*H106/H$107 -> 0.2033651562 | I117: =SUM(I96:I97)/SUM(I96,I97,I98)*I106/I$107 -> 0.2680227223
B118: APROX | C118: Aproximación | D118: =D98/D98 -> 1 | E118: =E98/E98 -> 1 | F118: 1 | G118: 1 | H118: =H98/H98 -> 1 | I118: =I98/I98 -> 1
B120: B. Distribución de inversiones
B122: i. Inversiones, según combinación de servicios:
B123: (Expresado en dólares)
B124: Combinación | C124: Tipo de inversión | F124: 2022 | G124: =F124+1 -> 2023 | H124: =G124+1 -> 2024
B125: SV-SNAR-APROX | C125: Edificaciones y construcciones | F125: =SUMIFS(P$7:P$76,$F$7:$F$76,$B125,$G$7:$G$76,$C125) -> 23156.93225 | G125: =SUMIFS(Q$7:Q$76,$F$7:$F$76,$B125,$G$7:$G$76,$C125) -> 752184.1534 | H125: =SUMIFS(R$7:R$76,$F$7:$F$76,$B125,$G$7:$G$76,$C125) -> 319324.8423
B126: SV-SNAR-APROX | C126: Equipos de informática | F126: 0 | G126: 0 | H126: 0
B127: SV-SNAR-APROX | C127: Maquinaria y equipo | F127: 5725271.626 | G127: 11289449.79 | H127: 6031524.908
B128: SV-SNAR-APROX | C128: Otros | F128: 18744.02617 | G128: 18058.26912 | H128: 109651.0742
B129: SNAR-APROX | C129: Edificaciones y construcciones | F129: 0 | G129: 0 | H129: 0
B130: SNAR-APROX | C130: Equipos de informática | F130: 0 | G130: 0 | H130: 0
B131: SNAR-APROX | C131: Maquinaria y equipo | F131: 0 | G131: 1431782.04 | H131: 1376713.5
B132: SNAR-APROX | C132: Otros | F132: 0 | G132: 0 | H132: 0
B133: APROX | C133: Edificaciones y construcciones | F133: 0 | G133: 0 | H133: 0
B134: APROX | C134: Equipos de informática | F134: 0 | G134: 306392.8463 | H134: 0
B135: APROX | C135: Maquinaria y equipo | F135: 55109.49879 | G135: 2049265.201 | H135: 827488.5803
B136: APROX | C136: Otros | F136: 0 | G136: 0 | H136: 0
B137: Total | F137: =SUM(F125:F136) -> 5822282.083 | G137: =SUM(G125:G136) -> 15847132.3 | H137: =SUM(H125:H136) -> 8664702.905
B139: ii. Inversiones por servicio de aeronavegación, según tipo de inversión:
B140: (Expresado en dólares)
B141: Servicio | C141: Tipo de inversión | F141: 2022 | G141: =F141+1 -> 2023 | H141: =G141+1 -> 2024
B142: SNAR Nacional | C142: Edificaciones y construcciones | F142: =SUMIF($C$125:$C$128,$C142,F$125:F$128)*SUMIFS($I$111:$I$114,$B$111:$B$114,$B125,$C$111:$C$114,$B142)+SUMIF($C$129:$C$132,$C142,F$129:F$132)*SUMIFS($I$115:$I$117,$B$115:$B$117,$B129,$C$115:$C$117,$B142)+SUMIF($C$133:$C$136,$C142,F$133:F$136)*SUMIFS($I$118,$B$118,$B133,$C$118,$B142) -> 5927.557622 | G142: 192539.1007 | H142: 81738.65096
B143: SNAR Nacional | C143: Equipos de informática | F143: 0 | G143: 0 | H143: 0
B144: SNAR Nacional | C144: Maquinaria y equipo | F144: 1465516.982 | G144: 3320287.705 | H144: 1957841.753
B145: SNAR Nacional | C145: Otros | F145: 4797.97125 | G145: 4622.435717 | H145: 28067.75324
B146: SNAR Internacional | C146: Edificaciones y construcciones | F146: =SUMIF($C$125:$C$128,$C146,F$125:F$128)*SUMIFS($I$111:$I$114,$B$111:$B$114,$B125,$C$111:$C$114,$B146)+SUMIF($C$129:$C$132,$C146,F$129:F$132)*SUMIFS($I$115:$I$117,$B$115:$B$117,$B129,$C$115:$C$117,$B146)+SUMIF($C$133:$C$136,$C146,F$133:F$136)*SUMIFS($I$118,$B$118,$B133,$C$118,$B146) -> 5283.98859 | G146: 171634.6725 | H146: 72864.09118
B147: SNAR Internacional | C147: Equipos de informática | F147: 0 | G147: 0 | H147: 0
B148: SNAR Internacional | C148: Maquinaria y equipo | F148: 1306402.317 | G148: 2959796.17 | H148: 1745274.217
B149: SNAR Internacional | C149: Otros | F149: 4277.044098 | G149: 4120.566875 | H149: 25020.3705
B150: Aproximación | C150: Edificaciones y construcciones | F150: =SUMIF($C$125:$C$128,$C150,F$125:F$128)*SUMIFS($I$111:$I$114,$B$111:$B$114,$B125,$C$111:$C$114,$B150)+SUMIF($C$129:$C$132,$C150,F$129:F$132)*SUMIFS($I$115:$I$117,$B$115:$B$117,$B129,$C$115:$C$117,$B150)+SUMIF($C$133:$C$136,$C150,F$133:F$136)*SUMIFS($I$118,$B$118,$B133,$C$118,$B150) -> 8503.157622 | G150: 276199.8156 | H150: 117255.1458
B151: Aproximación | C151: Equipos de informática | F151: 0 | G151: 306392.8463 | H151: 0
B152: Aproximación | C152: Maquinaria y equipo | F152: 2157412.452 | G152: 6812260.604 | H152: 3636037.749
B153: Aproximación | C153: Otros | F153: 6882.751449 | G153: 6630.943469 | H153: 40263.55291
B154: Sobrevuelo | C154: Edificaciones y construcciones | F154: =SUMIF($C$125:$C$128,$C154,F$125:F$128)*SUMIFS($I$111:$I$114,$B$111:$B$114,$B125,$C$111:$C$114,$B154)+SUMIF($C$129:$C$132,$C154,F$129:F$132)*SUMIFS($I$115:$I$117,$B$115:$B$117,$B129,$C$115:$C$117,$B154)+SUMIF($C$133:$C$136,$C154,F$133:F$136)*SUMIFS($I$118,$B$118,$B133,$C$118,$B154) -> 3442.22842 | G154: 111810.5646 | H154: 47466.95441
B155: Sobrevuelo | C155: Equipos de informática | F155: 0 | G155: 0 | H155: 0
B156: Sobrevuelo | C156: Maquinaria y equipo | F156: 851049.3742 | G156: 1678152.55 | H156: 896573.2693
B157: Sobrevuelo | C157: Otros | F157: 2786.259375 | G157: 2684.323057 | H157: 16299.3975
B158: Total Aeronavegación | F158: =SUM(F142:F157) -> 5822282.083 | G158: =SUM(G142:G157) -> 15847132.3 | H158: =SUM(H142:H157) -> 8664702.905
B160: iii. Resumen de Inversiones por servicio de aeronavegación:
B161: (Expresado en miles de dólares)
B162: Servicio | F162: 2022 | G162: =F162+1 -> 2023 | H162: =G162+1 -> 2024
B163: SNAR nacional | F163: =SUMIF($B$142:$B$157,$B163,F$142:F$157)/1000 -> 1476.242511 | G163: 3517.449241 | H163: 2067.648158
B164: SNAR internacional | F164: 1315.963349 | G164: 3135.55141 | H164: 1843.158679
B165: Aproximación | F165: 2172.798361 | G165: 7401.48421 | H165: 3793.556447
B166: Sobrevuelo | F166: 857.277862 | G166: 1792.647438 | H166: 960.3396212
B167: Total | F167: =SUM(F163:F166) -> 5822.282083 | G167: 15847.1323 | H167: 8664.702905
B169: C. Depreciación y amortización
B171: i. Depreciación: Por combinación de servicios
B172: (Expresado en dólares)
B173: Combinación | C173: Tipo de inversión | F173: 2022 | G173: =F173+1 -> 2023 | H173: =G173+1 -> 2024
B174: SV-SNAR-APROX | C174: Edificaciones y construcciones | F174: =SUMIFS(T$7:T$76,$F$7:$F$76,$B174,$G$7:$G$76,$C174) -> 0 | G174: =SUMIFS(U$7:U$76,$F$7:$F$76,$B174,$G$7:$G$76,$C174) -> 695.403371 | H174: 23283.51609
B175: SV-SNAR-APROX | C175: Equipos de informática | F175: =SUMIFS(T$7:T$76,$F$7:$F$76,$B175,$G$7:$G$76,$C175) -> 0 | G175: =SUMIFS(U$7:U$76,$F$7:$F$76,$B175,$G$7:$G$76,$C175) -> 0 | H175: =SUMIFS(V$7:V$76,$F$7:$F$76,$B175,$G$7:$G$76,$C175) -> 0
B176: SV-SNAR-APROX | C176: Maquinaria y equipo | F176: 0 | G176: 572527.1626 | H176: 1701472.141
B177: SV-SNAR-APROX | C177: Otros | F177: 0 | G177: 1874.402617 | H177: 3680.229529
B178: SNAR-APROX | C178: Edificaciones y construcciones | F178: 0 | G178: 0 | H178: 0
B179: SNAR-APROX | C179: Equipos de informática | F179: 0 | G179: 0 | H179: 0
B180: SNAR-APROX | C180: Maquinaria y equipo | F180: 0 | G180: 0 | H180: 143178.204
B181: SNAR-APROX | C181: Otros | F181: 0 | G181: 0 | H181: 0
B182: APROX | C182: Edificaciones y construcciones | F182: 0 | G182: 0 | H182: 0
B183: APROX | C183: Equipos de informática | F183: 0 | G183: 0 | H183: 76598.21157
B184: APROX | C184: Maquinaria y equipo | F184: 0 | G184: 5510.949879 | H184: 210437.47
B185: APROX | C185: Otros | F185: 0 | G185: 0 | H185: =SUMIFS(V$7:V$76,$F$7:$F$76,$B185,$G$7:$G$76,$C185) -> 0
B186: Total | F186: =SUM(F174:F185) -> 0 | G186: =SUM(G174:G185) -> 580607.9184 | H186: =SUM(H174:H185) -> 2158649.773
B188: ii. Depreciación: Según tipo de inversión
B189: (Expresado en dólares)
B190: Servicio | C190: Tipo de inversión | F190: 2022 | G190: =F190+1 -> 2023 | H190: =G190+1 -> 2024
B191: SNAR Nacional | C191: Edificaciones y construcciones | F191: =SUMIF($C$174:$C$177,$C191,F$174:F$177)*SUMIFS($I$111:$I$114,$B$111:$B$114,$B174,$C$111:$C$114,$B191)+SUMIF($C$178:$C$181,$C191,F$178:F$181)*SUMIFS($I$115:$I$117,$B$115:$B$117,$B178,$C$115:$C$117,$B191)+SUMIF($C$182:$C$185,$C191,F$182:F$185)*SUMIFS($I$118,$B$118,$B182,$C$118,$B191) -> 0 | G191: =SUMIF($C$174:$C$177,$C191,G$174:G$177)*SUMIFS($I$111:$I$114,$B$111:$B$114,$B174,$C$111:$C$114,$B191)+SUMIF($C$178:$C$181,$C191,G$178:G$181)*SUMIFS($I$115:$I$117,$B$115:$B$117,$B178,$C$115:$C$117,$B191)+SUMIF($C$182:$C$185,$C191,G$182:G$185)*SUMIFS($I$118,$B$118,$B182,$C$118,$B191) -> 178.0047334 | H191: =SUMIF($C$174:$C$177,$C191,H$174:H$177)*SUMIFS($I$111:$I$114,$B$111:$B$114,$B174,$C$111:$C$114,$B191)+SUMIF($C$178:$C$181,$C191,H$178:H$181)*SUMIFS($I$115:$I$117,$B$115:$B$117,$B178,$C$115:$C$117,$B191)+SUMIF($C$182:$C$185,$C191,H$182:H$185)*SUMIFS($I$118,$B$118,$B182,$C$118,$B191) -> 5959.95971
B192: SNAR Nacional | C192: Equipos de informática | F192: 0 | G192: 0 | H192: 0
B193: SNAR Nacional | C193: Maquinaria y equipo | F193: 0 | G193: 146551.6982 | H193: 478580.4687
B194: SNAR Nacional | C194: Otros | F194: 0 | G194: 479.797125 | H194: 942.0406967
B195: SNAR Internacional | C195: Edificaciones y construcciones | F195: =SUMIF($C$174:$C$177,$C195,F$174:F$177)*SUMIFS($I$111:$I$114,$B$111:$B$114,$B174,$C$111:$C$114,$B195)+SUMIF($C$178:$C$181,$C195,F$178:F$181)*SUMIFS($I$115:$I$117,$B$115:$B$117,$B178,$C$115:$C$117,$B195)+SUMIF($C$182:$C$185,$C195,F$182:F$185)*SUMIFS($I$118,$B$118,$B182,$C$118,$B195) -> 0 | G195: 158.678336 | H195: 5312.872706
B196: SNAR Internacional | C196: Equipos de informática | F196: 0 | G196: 0 | H196: 0
B197: SNAR Internacional | C197: Maquinaria y equipo | F197: 0 | G197: 130640.2317 | H197: 426619.8487
B198: SNAR Internacional | C198: Otros | F198: 0 | G198: 427.7044098 | H198: 839.7610973
B199: Aproximación | C199: Edificaciones y construcciones | F199: =SUMIF($C$174:$C$177,$C199,F$174:F$177)*SUMIFS($I$111:$I$114,$B$111:$B$114,$B174,$C$111:$C$114,$B199)+SUMIF($C$178:$C$181,$C199,F$178:F$181)*SUMIFS($I$115:$I$117,$B$115:$B$117,$B178,$C$115:$C$117,$B199)+SUMIF($C$182:$C$185,$C199,F$182:F$185)*SUMIFS($I$118,$B$118,$B182,$C$118,$B199) -> 0 | G199: 255.3500787 | H199: 8549.638834
B200: Aproximación | C200: Equipos de informática | F200: 0 | G200: 0 | H200: 76598.21157
B201: Aproximación | C201: Maquinaria y equipo | F201: 0 | G201: 215741.2452 | H201: 896967.3056
B202: Aproximación | C202: Otros | F202: 0 | G202: 688.2751449 | H202: 1351.369492
B203: Sobrevuelo | C203: Edificaciones y construcciones | F203: =SUMIF($C$174:$C$177,$C203,F$174:F$177)*SUMIFS($I$111:$I$114,$B$111:$B$114,$B174,$C$111:$C$114,$B203)+SUMIF($C$178:$C$181,$C203,F$178:F$181)*SUMIFS($I$115:$I$117,$B$115:$B$117,$B178,$C$115:$C$117,$B203)+SUMIF($C$182:$C$185,$C203,F$182:F$185)*SUMIFS($I$118,$B$118,$B182,$C$118,$B203) -> 0 | G203: 103.3702228 | H203: 3461.044836
B204: Sobrevuelo | C204: Equipos de informática | F204: 0 | G204: 0 | H204: 0
B205: Sobrevuelo | C205: Maquinaria y equipo | F205: 0 | G205: 85104.93742 | H205: 252920.1924
B206: Sobrevuelo | C206: Otros | F206: 0 | G206: 278.6259375 | H206: 547.0582432
B207: Total Aeronavegación | F207: =SUM(F191:F206) -> 0 | G207: =SUM(G191:G206) -> 580607.9184 | H207: =SUM(H191:H206) -> 2158649.773
B209: iii. Resumen de Depreciación por servicio de aeronavegación
B210: (Expresado en miles de dólares)
B211: Servicio | F211: 2022 | G211: 2023 | H211: =G211+1 -> 2024
B212: SNAR nacional | F212: =SUMIF($B$191:$B$206,$B212,F$191:F$206)/1000 -> 0 | G212: 147.2095 | H212: =SUMIF($B$191:$B$206,$B212,H$191:H$206)/1000 -> 485.4824691
B213: SNAR internacional | F213: 0 | G213: 131.2266144 | H213: 432.7724825
B214: Aproximación | F214: 0 | G214: 216.6848704 | H214: 983.4665255
B215: Sobrevuelo | F215: 0 | G215: 85.48693358 | H215: 256.9282955
... 1 more rows

Sheet 5.3. InvEjecutadas
B1: 5.3. EJECUCIÓN DE INVERSIONES - PERIODO 2017 - 2021 | O1: Índice
B2: Fuente: CORPAC S.A.
B3: (Expresado en dólares)
B4: Descripción | C4: 2017 | E4: 2018 | G4: 2019 | I4: 2020 | K4: 2021 | M4: Total 2017-2021
C5: Programado | D5: Ejecutado | E5: Programado | F5: Ejecutado | G5: Programado | H5: Ejecutado | I5: Programado | J5: Ejecutado | K5: Programado | L5: Ejecutado | M5: Programado | N5: Ejecutado | O5: % Ejecutado
B6: Proyecto de Comunicaciones Satelitales VSAT (Mejoramiento de la Conectividad de la Red de Comunicaciones Aeronáuticas de CORPAC S.A.) | C6: 509839.2 | D6: 516473 | E6: 2601470.3 | G6: 2067980 | I6: 329926 | K6: 2969337 | M6: =C6+E6+G6+I6+K6 -> 8478552.5 | N6: =D6+F6+H6+J6+L6 -> 516473 | O6: =IFERROR(N6/M6,1) -> 0.06091523288
B7: Modernización de Sistemas de Ayudas Luminosas en Aeropuertos del Perú (III Etapa) | C7: 0 | E7: 780000 | G7: 845000 | I7: 650000 | K7: 650000 | M7: =C7+E7+G7+I7+K7 -> 2925000 | N7: =D7+F7+H7+J7+L7 -> 0 | O7: =IFERROR(N7/M7,1) -> 0
B8: Implantación de Estaciones Automáticas de Observaciones Meteorológicas (AWOS) | C8: 0 | E8: 244432.5 | G8: 439979 | I8: 659968 | K8: 1099946 | M8: 2444325.5 | N8: 0 | O8: 0
B9: Nuevo Centro de Gestión de Tránsito Aéreo y Sistemas de Vigilancia y Comunicaciones | C9: 0 | E9: 3093450.75 | G9: 4640176 | I9: 6186902 | K9: 1546726 | M9: 15467254.75 | N9: 0 | O9: 0
B10: Sistemas GVAR (Arequipa, Cusco, Iquitos) | C10: 0 | E10: 39000 | G10: 351000 | M10: 390000 | N10: 0 | O10: 0
B11: Construcción de la torre de control del Aeropuerto de Ilo | C11: 0 | E11: 224138.2 | J11: 275051.216 | L11: 159652.5907 | M11: 224138.2 | N11: 434703.8067 | O11: 1.939445426
B12: Construcción de la torre de control del Aeropuerto de Nasca | C12: 0 | E12: 219718.2 | M12: 219718.2 | N12: 0 | O12: 0
B13: Adquisición de un Sistema de Vigilancia Aérea para el Espacio Aéreo Inferior (ADSB) | C13: 0 | E13: 0 | G13: 585000 | I13: 682500 | K13: 682500 | M13: 1950000 | N13: 0 | O13: 0
B14: Sistemas de Aeronavegación para la Segunda Pista del Arpto. Jorge Chávez (*) | C14: 0 | E14: 0 | G14: 810724 | I14: 3242896 | J14: 127546.495 | K14: 4053620 | L14: 692359.8446 | M14: 8107240 | N14: 819906.3396 | O14: 0.1011326098
B15: Sistemas de Aeronavegación para el Aeropuerto de Chinchero - Cusco | C15: 0 | E15: 0 | G15: 1002575 | I15: 4010299 | K15: 5012873 | M15: 10025747 | N15: 0 | O15: 0
B16: Construcción de la torre de control del Aeropuerto de Juanjui | C16: 0 | E16: 0 | G16: 219718 | M16: 219718 | N16: 0 | O16: 0
B17: Construcción de la torre de control del Aeropuerto de Chimbote | C17: 0 | E17: 0 | I17: 219718 | M17: 219718 | N17: 0 | O17: 0
B18: Construcción de la torre de control del Aeropuerto de Tingo María | C18: 0 | E18: 0 | K18: 219718 | M18: 219718 | N18: 0 | O18: 0
B19: Equipos de radio VHF TWR - Dual - Nivel nacional (*) | C19: 240797.05 | E19: 2407972.45 | I19: 2237424 | J19: 175178.2546 | K19: 2372552 | L19: 2010303.886 | M19: 7258745.5 | N19: 2185482.141 | O19: 0.3010826238
B20: Sistemas ATIS (Pisco, Piura, Trujillo, Iquitos y Nasca) | C20: 394598.75 | E20: 0 | F20: 438261 | I20: 19473 | K20: 175257 | M20: 589328.75 | N20: 438261 | O20: 0.7436613266
B21: Equipos HF tierra-aire | C21: 175115.85 | E21: 700463.4 | F21: 390919 | G21: 701771 | H21: =1206287/3.31 -> 364437.1601 | I21: 488186 | K21: 488186 | M21: 2553722.25 | N21: 755356.1601 | O21: 0.2957863409
B22: 06 Radioenlaces (Lima, Iquitos, Yurimaguas, Urcos) | C22: 21813.35 | E22: 208858 | M22: 230671.35 | N22: 0 | O22: 0
B23: Paneles de radiocomunicaciones TWR Aeropuertos no controlados | C23: 5603.65 | E23: 50432.85 | M23: 56036.5 | N23: 0 | O23: 0
B24: Multiplexores REDAP/VSAT | C24: 54925 | E24: 494325 | M24: 549250 | N24: 0 | O24: 0
B25: Equipos diversos - Nivel Nacional | C25: 66431.95 | D25: 68459 | E25: 65000 | F25: 75611 | G25: 65000 | H25: 241197 | I25: 65000 | J25: 3231.187411 | K25: 65000 | L25: 13442.74611 | M25: 326431.95 | N25: 401940.9335 | O25: 1.231316155
B26: Sistemas de grabación - Nivel nacional | C26: 0 | E26: 478263.5 | I26: 434785 | J26: 1689300.715 | M26: 913048.5 | N26: 1689300.715 | O26: 1.850176322
B27: Terminales AMHS | C27: 0 | E27: 10400 | G27: 93600 | M27: 104000 | N27: 0 | O27: 0
B28: Interfase para sistemas AMHS | C28: 0 | E28: 75624.9 | M28: 75624.9 | N28: 0 | O28: 0
B29: Reposición del sistema de mensajería aeronáutica AMHS | C29: 0 | E29: 260000 | G29: 1040000 | M29: 1300000 | N29: 0 | O29: 0
B30: Sistemas UPS para Torres de Control de arptos. controlados Nivel nacional | C30: 210749.5 | D30: 255700 | E30: 142890.15 | M30: 353639.65 | N30: 255700 | O30: 0.7230524066
B31: Renovación luces de aproximación y letreros de señalización vertical Arpto. Jorge Chávez | C31: 70363.15 | D31: 310562 | E31: 633268.35 | F31: 1261071 | L31: 259558.8083 | M31: 703631.5 | N31: 1831191.808 | O31: 2.602486967
B32: Sistema PAPI Jaén y Mazamari | C32: 104306.8 | D32: 197870 | E32: 0 | M32: 104306.8 | N32: 197870 | O32: 1.897000004
B33: Estudios, equipos diversos, obras e instalación - Nivel nacional | C33: 413589.15 | D33: 257261 | E33: 188991.4 | F33: 541025 | G33: 180439 | H33: 171842 | I33: 682500 | J33: 1299.570815 | K33: 682500 | L33: 14424.87047 | M33: 2148019.55 | N33: 985852.4413 | O33: 0.4589587843
B34: Instalación de sistemas APAPI (Chachapoyas) | C34: 0 | E34: 24895.65 | F34: 40776 | M34: 24895.65 | N34: 40776 | O34: 1.637876496
B35: Sistemas UPS para equipos de comunicaciones a nivel nacional | C35: 0 | E35: 27977.95 | F35: 132310 | G35: =167431+97923 -> 265354 | M35: 293331.95 | N35: 132310 | O35: 0.4510589453
B36: Equipos de aire acondicionado para estaciones - Nivel nacional | C36: 0 | D36: 54992 | E36: 146430.7 | G36: 270514 | H36: =1203452/3.31 -> 363580.6647 | I36: 180000 | K36: 396500 | L36: 327564.7668 | M36: 993444.7 | N36: 746137.4315 | O36: 0.7510608608
B37: Luces de borde de calle de rodaje de Jorge Chávez | C37: 0 | E37: 0 | G37: 304498 | M37: 304498 | N37: 0 | O37: 0
B38: Sistema APAPI (Anta Huaraz, Ilo) | C38: 0 | E38: 0 | G38: 145237 | H38: =997406/3.31 -> 301331.1178 | M38: 145237 | N38: 301331.1178 | O38: 2.07475449
B39: Instalación Sistemas de Radioayudas | C39: 476113.3 | D39: 294883 | E39: 0 | F39: 352346 | M39: 476113.3 | N39: 647229 | O39: 1.359401218
B40: Reposición Sistema DVOR/DME - Jorge Chávez | C40: 497429.4 | D40: 727285 | E40: 0 | L40: 269730.5699 | M40: 497429.4 | N40: 997015.5699 | O40: 2.004335831
B41: Equipos diversos, obras e instalación - Nivel nacional | C41: 17744.35 | D41: 37643 | E41: 154728.6 | F41: 31228 | G41: 130000 | H41: 81280 | I41: 65000 | J41: 1229.470672 | K41: 65000 | L41: 237215.285 | M41: 432472.95 | N41: 388595.7556 | O41: 0.8985434942
B42: Renovación de Sistemas de Radioayudas (Grupo 1) | C42: 0 | E42: 567417.5 | G42: 5183862 | I42: 693931 | M42: 6445210.5 | N42: 0 | O42: 0
B43: Sistema radioayudas - Rioja (saldo 90%) | C43: 0 | E43: 66569.1 | G43: 599122 | K43: 585000 | M43: 1250691.1 | N43: 0 | O43: 0
B44: Sistema VOR/DME portátil | C44: 0 | E44: 0 | G44: 84500 | I44: 760500 | M44: 845000 | N44: 0 | O44: 0
B45: Unidad móvil integrada para ensayos de tierra de sistemas de aeronavegación | C45: 0 | E45: 0 | G45: 70125 | I45: 631123 | M45: 701248 | N45: 0 | O45: 0
B46: Grupos electrógenos - uso continuo Nivel nacional | C46: 19345.3 | D46: 239705 | E46: 367561.35 | H46: =755811/3.31 -> 228341.6918 | J46: 195875.2504 | M46: 386906.65 | N46: 663921.9422 | O46: 1.715974492
B47: Equipos diversos y gastos de instalación | C47: 42386.5 | D47: 64379 | E47: 201500 | F47: 34186 | G47: 164450 | H47: =137355/3.31 -> 41496.97885 | I47: 89050 | J47: 1384.835479 | K47: 151450 | L47: 695.5958549 | M47: 648836.5 | N47: 142142.4102 | O47: 0.2190727713
B48: Construcción y/o remodelacion casa de fuerza - Nivel nacional | C48: 0 | E48: 32500 | I48: 32500 | M48: 65000 | N48: 0 | O48: 0
B49: Obras e instalación | C49: 2241.2 | D49: 2894 | E49: 32500 | G49: 32500 | H49: =14001/3.31 -> 4229.909366 | I49: 32500 | J49: 8317.02432 | K49: 32500 | M49: 132241.2 | N49: 15440.93369 | O49: 0.1167634118
B50: Renovación de REDAP y RED de VHF-AA del ACC (Sectorización PROESA) Incluye VHF-AA frecuencia Emergencia 121.5Mhz | C50: 0 | E50: 167916.45 | G50: 1511250 | M50: 1679166.45 | N50: 0 | O50: 0
B51: Renovación sistema AWOS de Cusco, Arequipa, Iquitos y Trujillo (*) | C51: 715000 | E51: 260000 | M51: 975000 | N51: 0 | O51: 0
B52: Equipos diversos de meteorología y gastos de instalación - Nivel nacional | C52: 47329.75 | D52: 74692 | E52: 65000 | F52: 44761 | G52: 65000 | H52: =39110/3.31 -> 11815.70997 | I52: 113750 | J52: 224327.3247 | K52: 568750 | L52: 54024.87047 | M52: 859829.75 | N52: 409620.9052 | O52: 0.4763976882
B53: Renovación sistema GVAR (Lima) | C53: 0 | E53: 41241.2 | G53: 96230 | M53: 137471.2 | N53: 0 | O53: 0
B54: Equipos diversos (Estación Radar y Centro de Control) | C54: 25102.35 | D54: 18918 | E54: 74389.9 | F54: 200151 | G54: 83678 | H54: =1057063/3.31 -> 319354.3807 | I54: 97500 | J54: 102861.5165 | K54: 877500 | L54: 1989916.062 | M54: 1158170.25 | N54: 2631200.959 | O54: 2.271860255
B55: Radomo | C55: 0 | E55: 54988.7 | G55: 494896 | M55: 549884.7 | N55: 0 | O55: 0
B56: Adquisición de equipos, hardware y software | C56: 569459.15 | D56: 137806 | E56: 1711815.95 | F56: 1661593 | G56: 1358126 | H56: =10428798/3.31 -> 3150694.26 | I56: 1666391 | J56: 1205079.828 | K56: 1666391 | L56: 519837.8238 | M56: 6972183.1 | N56: 6675010.912 | O56: 0.957377455
B57: Modernización de Estaciones de Trabajo de Torres de Control en los Aeropuertos Controlados - Nivel nacional | C57: 773498.7 | D57: 1357068 | E57: 0 | M57: 773498.7 | N57: 1357068 | O57: 1.754454145
B58: Sistema radar primario | C58: 1579514.95 | D58: =8345824/3.255 -> 2564001.229 | E58: 0 | M58: 1579514.95 | N58: 2564001.229 | O58: 1.623283926
B59: Actualización del Centro de Control ACC Lima | C59: 351078 | D59: 1746398 | E59: 1320722 | M59: 1671800 | N59: 1746398 | O59: 1.044621366
B60: Torres de control Móvil | C60: 637000 | D60: 992276 | E60: 845135.2 | F60: 591923 | H60: =46674/3.31 -> 14100.90634 | I60: 1212497 | J60: 1374474.964 | M60: 2694632.2 | N60: 2972774.871 | O60: 1.103221015
B61: Investigación, capacitación y actualización tecnológica GREPECAS | C61: 112069.1 | D61: 12975 | E61: 204534.2 | G61: 216464 | H61: =209656/3.31 -> 63340.18127 | I61: 215554 | K61: 201904 | L61: 9897.668394 | M61: 950525.3 | N61: 86212.84966 | O61: 0.09070021562
B62: Inversiones varias a nivel nacional | C62: 717757.95 | D62: 385405 | E62: 162998.55 | G62: 141549 | H62: =1961243/3.31 -> 592520.5438 | I62: 159306 | J62: 285658.9413 | K62: 630961 | L62: 12733.93782 | M62: 1812572.5 | N62: 1276318.423 | O62: 0.7041475157
B63: Up Grade VCS TWR/APP- Cusco | C63: =564067/'10. Var-Sup-Gen'!$D$11 -> 172967.8762 | D63: =563115/'10. Var-Sup-Gen'!$D$11 -> 172675.951 | M63: 172967.8762 | N63: 172675.951 | O63: 0.9983122572
B64: Renovación y modernización de enlaces de interconexión entre estaciones de comunicaciones aeropuertos de provincias | C64: 0 | E64: 292500 | G64: 0 | I64: 292500 | K64: 321750 | M64: 906750 | N64: 0 | O64: 0
B65: Sistema de Gestión Administrativa de mantenimiento de equipos | C65: 0 | E65: 0 | G65: 49155 | I65: 442395 | M65: 491550 | N65: 0 | O65: 0
B66: Luces de balizamiento portátil de emergencia | C66: 0 | E66: 0 | G66: 117000 | I66: 1053000 | J66: 1515482.117 | M66: 1170000 | N66: 1515482.117 | O66: 1.295283861
B67: Renovación y acondicionamiento sistema electrico sede Central y Cusco | C67: 0 | E67: =21870867/'10. Var-Sup-Gen'!$E$11 -> 6655282.193 | F67: =37180474/'10. Var-Sup-Gen'!$E$11 -> 11313979.76 | G67: =30755412/'10. Var-Sup-Gen'!$F$11 -> 9216712.858 | H67: =35747288/'10. Var-Sup-Gen'!$F$11 -> 10712667.06 | M67: 15871995.05 | N67: 22026646.82 | O67: 1.387767999
B68: Repotenciación de la Red de Radares secundarios | C68: 0 | E68: =3762000/'10. Var-Sup-Gen'!$E$11 -> 1144772.707 | F68: =7830472/'10. Var-Sup-Gen'!$E$11 -> 2382804.526 | G68: =3105498/'10. Var-Sup-Gen'!$F$11 -> 930648.6724 | H68: =3632295/'10. Var-Sup-Gen'!$F$11 -> 1088518.015 | I68: =6950867/'10. Var-Sup-Gen'!$G$11 -> 1988196.205 | J68: =3870658/'10. Var-Sup-Gen'!$G$11 -> 1107146.424 | K68: =12695027/'10. Var-Sup-Gen'!$H$11 -> 3269698.296 | L68: =12703627/'10. Var-Sup-Gen'!$H$11 -> 3271913.289 | M68: 7333315.879 | N68: 7850382.255 | O68: 1.070509219
B69: Modernización de sistemas Conmutación oral ATS para 15 aeródromos no controlados | C69: 0 | K69: 156000 | M69: 156000 | N69: 0 | O69: 0
B70: Total | C70: =SUM(C6:C69) -> 9024171.276 | D70: =SUM(D6:D69) -> 10490321.18 | E70: =+SUM(E6:E69) -> 27542077.85 | F70: 19492945.28 | G70: 34573833.53 | H70: 17750747.58 | I70: =+SUM(I6:I69) -> 29635270.2 | J70: =+SUM(J6:J69) -> 8293445.137 | K70: =+SUM(K6:K69) -> 28941619.3 | L70: =+SUM(L6:L69) -> 9843272.616 | M70: =SUM(M6:M69) -> 129716972.2 | N70: =+SUM(N6:N69) -> 65870731.79 | O70: 0.5078034948
B71: (*) En ejecución contractual
C73: 2017 | D73: 2018 | E73: 2019 | F73: 2020 | G73: 2021 | H73: Promedio
B74: Programado para el año | C74: =+C70 -> 9024171.276 | D74: =+E70 -> 27542077.85 | E74: =+G70 -> 34573833.53 | F74: =+I70 -> 29635270.2 | G74: =+K70 -> 28941619.3
B75: Ejecución en el año | C75: =+D70 -> 10490321.18 | D75: =+F70 -> 19492945.28 | E75: =+H70 -> 17750747.58 | F75: =+J70 -> 8293445.137 | G75: =+L70 -> 9843272.616
B76: % de ejecución | C76: =+C75/C74 -> 1.162469202 | D76: 0.7077514409 | E76: 0.5134156604 | F76: 0.2798504984 | G76: 0.3401078742
B77: % de ejecución ajustado | C77: =IF(C76>100%,100%,C76) -> 1 | D77: =IF(D76>100%,100%,D76) -> 0.7077514409 | E77: 0.5134156604 | H77: =AVERAGE(C77:G77) -> 0.7403890338

Sheet 5.4. BD-AERONAV2021
B1: 5.4. BASE DE ACTIVOS DE AERONAVEGACIÓN AL CIERRE DEL EJERCICIO 2021: AERONAVEGACIÓN Y MIXTOS | T1: Índice
B2: Fuente: CORPAC S.A.
B3: (Expresado en soles)
B4: Servicio | C4: DESCRIPCIÓN DEL ACTIVO | D4: TIPO DE ACTIVO | E4: Fecha de adquisición | F4: Fecha de puesta en uso | G4: Valor histórico del activo fijo al 31.12.2021 | H4: Depreciación del Ejercicio 2021 | I4: Bajas | J4: Ajustes | L4: DETERIORO al 31.12.2021 | M4: VALOR NETO al 31.12.2021 | N4: Driver de asignación a aeronavegación | O4: VALOR NETO al 31.12.2021 (asignado a aeronavegación) | P4: Depreciación + deterioro del ejercicio asignada a aeronavegación | Q4: Depreciación: | R4: 2022 | S4: 2023 | T4: 2024
B5: AERONAVEGACIÓN/AEROPORTUARIO | C5: TERRENOS INSCRITOS | D5: TERRENOS | E5: 1950-12-01 | F5: 1950-12-01 | G5: 20572005.46 | H5: 0 | I5: 0 | L5: 0 | M5: =+G5-H5-I5-J5-L5 -> 20572005.46 | N5: 0.33 | O5: =+M5*N5 -> 6788761.802 | P5: =+(H5+L5)*N5 -> 0 | R5: =IF($O5<=0,0,IF(($O5-SUM($Q5:Q5))<$P5,$O5-SUM($Q5:Q5),IF(SUM($Q5:Q5)<$O5,$P5,0))) -> 0 | S5: =IF($O5<=0,0,IF(($O5-SUM($Q5:R5))<$P5,$O5-SUM($Q5:R5),IF(SUM($Q5:R5)<$O5,$P5,0))) -> 0 | T5: =IF($O5<=0,0,IF(($O5-SUM($Q5:S5))<$P5,$O5-SUM($Q5:S5),IF(SUM($Q5:S5)<$O5,$P5,0))) -> 0
B6: AERONAVEGACIÓN/AEROPORTUARIO | C6: TERRENOS INSCRITOS | D6: TERRENOS | E6: 1950-12-01 | F6: 1950-12-01 | G6: 21227574.21 | H6: 0 | I6: 0 | L6: 0 | M6: =+G6-H6-I6-J6-L6 -> 21227574.21 | N6: 0.33 | O6: =+M6*N6 -> 7005099.489 | P6: =+(H6+L6)*N6 -> 0 | R6: =IF($O6<=0,0,IF(($O6-SUM($Q6:Q6))<$P6,$O6-SUM($Q6:Q6),IF(SUM($Q6:Q6)<$O6,$P6,0))) -> 0 | S6: =IF($O6<=0,0,IF(($O6-SUM($Q6:R6))<$P6,$O6-SUM($Q6:R6),IF(SUM($Q6:R6)<$O6,$P6,0))) -> 0 | T6: =IF($O6<=0,0,IF(($O6-SUM($Q6:S6))<$P6,$O6-SUM($Q6:S6),IF(SUM($Q6:S6)<$O6,$P6,0))) -> 0
B7: AERONAVEGACIÓN | C7: TERRENOS INSCRITOS | D7: TERRENOS | E7: 1950-12-01 | F7: 1950-12-01 | G7: 70326.13 | H7: 0 | I7: 0 | L7: 0 | M7: 70326.13 | N7: =+IF(B7=$B$7,100%,50%) -> 1 | O7: 70326.13 | P7: 0 | R7: =IF($O7<=0,0,IF(($O7-SUM($Q7:Q7))<$P7,$O7-SUM($Q7:Q7),IF(SUM($Q7:Q7)<$O7,$P7,0))) -> 0 | S7: =IF($O7<=0,0,IF(($O7-SUM($Q7:R7))<$P7,$O7-SUM($Q7:R7),IF(SUM($Q7:R7)<$O7,$P7,0))) -> 0 | T7: =IF($O7<=0,0,IF(($O7-SUM($Q7:S7))<$P7,$O7-SUM($Q7:S7),IF(SUM($Q7:S7)<$O7,$P7,0))) -> 0
B8: AERONAVEGACIÓN | C8: TERRENOS INSCRITOS | D8: TERRENOS | E8: 1950-12-01 | F8: 1950-12-01 | G8: 514235.74 | H8: 0 | I8: 0 | L8: 0 | M8: 514235.74 | N8: 1 | O8: 514235.74 | P8: 0 | R8: =IF($O8<=0,0,IF(($O8-SUM($Q8:Q8))<$P8,$O8-SUM($Q8:Q8),IF(SUM($Q8:Q8)<$O8,$P8,0))) -> 0 | S8: =IF($O8<=0,0,IF(($O8-SUM($Q8:R8))<$P8,$O8-SUM($Q8:R8),IF(SUM($Q8:R8)<$O8,$P8,0))) -> 0 | T8: =IF($O8<=0,0,IF(($O8-SUM($Q8:S8))<$P8,$O8-SUM($Q8:S8),IF(SUM($Q8:S8)<$O8,$P8,0))) -> 0
B9: AERONAVEGACIÓN | C9: TERRENOS INSCRITOS | D9: TERRENOS | E9: 1950-12-01 | F9: 1950-12-01 | G9: 518837.1 | H9: 0 | I9: 0 | L9: 0 | M9: 518837.1 | N9: 1 | O9: 518837.1 | P9: 0 | R9: =IF($O9<=0,0,IF(($O9-SUM($Q9:Q9))<$P9,$O9-SUM($Q9:Q9),IF(SUM($Q9:Q9)<$O9,$P9,0))) -> 0 | S9: =IF($O9<=0,0,IF(($O9-SUM($Q9:R9))<$P9,$O9-SUM($Q9:R9),IF(SUM($Q9:R9)<$O9,$P9,0))) -> 0 | T9: =IF($O9<=0,0,IF(($O9-SUM($Q9:S9))<$P9,$O9-SUM($Q9:S9),IF(SUM($Q9:S9)<$O9,$P9,0))) -> 0
B10: AERONAVEGACIÓN/AEROPORTUARIO | C10: TERRENOS INSCRITOS | D10: TERRENOS | E10: 1950-12-01 | F10: 1950-12-01 | G10: 371378.25 | H10: 0 | I10: 0 | L10: 0 | M10: 371378.25 | N10: 0.5 | O10: 185689.125 | P10: 0 | R10: =IF($O10<=0,0,IF(($O10-SUM($Q10:Q10))<$P10,$O10-SUM($Q10:Q10),IF(SUM($Q10:Q10)<$O10,$P10,0))) -> 0 | S10: =IF($O10<=0,0,IF(($O10-SUM($Q10:R10))<$P10,$O10-SUM($Q10:R10),IF(SUM($Q10:R10)<$O10,$P10,0))) -> 0 | T10: =IF($O10<=0,0,IF(($O10-SUM($Q10:S10))<$P10,$O10-SUM($Q10:S10),IF(SUM($Q10:S10)<$O10,$P10,0))) -> 0
B11: AERONAVEGACIÓN | C11: TERRENOS INSCRITOS | D11: TERRENOS | E11: 1950-12-01 | F11: 1950-12-01 | G11: 41687.71 | H11: 0 | I11: 0 | L11: 0 | M11: 41687.71 | N11: 1 | O11: 41687.71 | P11: 0 | R11: =IF($O11<=0,0,IF(($O11-SUM($Q11:Q11))<$P11,$O11-SUM($Q11:Q11),IF(SUM($Q11:Q11)<$O11,$P11,0))) -> 0 | S11: =IF($O11<=0,0,IF(($O11-SUM($Q11:R11))<$P11,$O11-SUM($Q11:R11),IF(SUM($Q11:R11)<$O11,$P11,0))) -> 0 | T11: =IF($O11<=0,0,IF(($O11-SUM($Q11:S11))<$P11,$O11-SUM($Q11:S11),IF(SUM($Q11:S11)<$O11,$P11,0))) -> 0
B12: AERONAVEGACIÓN | C12: TERRENOS INSCRITOS | D12: TERRENOS | E12: 1950-12-01 | F12: 1950-12-01 | G12: 4736906.04 | H12: 0 | I12: 0 | L12: 0 | M12: 4736906.04 | N12: 1 | O12: 4736906.04 | P12: 0 | R12: =IF($O12<=0,0,IF(($O12-SUM($Q12:Q12))<$P12,$O12-SUM($Q12:Q12),IF(SUM($Q12:Q12)<$O12,$P12,0))) -> 0 | S12: =IF($O12<=0,0,IF(($O12-SUM($Q12:R12))<$P12,$O12-SUM($Q12:R12),IF(SUM($Q12:R12)<$O12,$P12,0))) -> 0 | T12: =IF($O12<=0,0,IF(($O12-SUM($Q12:S12))<$P12,$O12-SUM($Q12:S12),IF(SUM($Q12:S12)<$O12,$P12,0))) -> 0
B13: AERONAVEGACIÓN/AEROPORTUARIO | C13: TERRENOS INSCRITOS | D13: TERRENOS | E13: 1950-12-01 | F13: 1950-12-01 | G13: 1102643 | H13: 0 | I13: 0 | L13: 0 | M13: 1102643 | N13: 0.5 | O13: 551321.5 | P13: 0 | R13: =IF($O13<=0,0,IF(($O13-SUM($Q13:Q13))<$P13,$O13-SUM($Q13:Q13),IF(SUM($Q13:Q13)<$O13,$P13,0))) -> 0 | S13: =IF($O13<=0,0,IF(($O13-SUM($Q13:R13))<$P13,$O13-SUM($Q13:R13),IF(SUM($Q13:R13)<$O13,$P13,0))) -> 0 | T13: =IF($O13<=0,0,IF(($O13-SUM($Q13:S13))<$P13,$O13-SUM($Q13:S13),IF(SUM($Q13:S13)<$O13,$P13,0))) -> 0
B14: AERONAVEGACIÓN/AEROPORTUARIO | C14: TERRENOS INSCRITOS | D14: TERRENOS | E14: 1950-12-01 | F14: 1950-12-01 | G14: 478694.35 | H14: 0 | I14: 0 | L14: 0 | M14: 478694.35 | N14: 0.11 | O14: 52656.3785 | P14: 0 | R14: =IF($O14<=0,0,IF(($O14-SUM($Q14:Q14))<$P14,$O14-SUM($Q14:Q14),IF(SUM($Q14:Q14)<$O14,$P14,0))) -> 0 | S14: =IF($O14<=0,0,IF(($O14-SUM($Q14:R14))<$P14,$O14-SUM($Q14:R14),IF(SUM($Q14:R14)<$O14,$P14,0))) -> 0 | T14: =IF($O14<=0,0,IF(($O14-SUM($Q14:S14))<$P14,$O14-SUM($Q14:S14),IF(SUM($Q14:S14)<$O14,$P14,0))) -> 0
B15: AERONAVEGACIÓN/AEROPORTUARIO | C15: TERRENOS INSCRITOS | D15: TERRENOS | E15: 1950-12-01 | F15: 1950-12-01 | G15: 879.46 | H15: 0 | I15: 0 | L15: 0 | M15: 879.46 | N15: 0.11 | O15: 96.7406 | P15: 0 | R15: =IF($O15<=0,0,IF(($O15-SUM($Q15:Q15))<$P15,$O15-SUM($Q15:Q15),IF(SUM($Q15:Q15)<$O15,$P15,0))) -> 0 | S15: =IF($O15<=0,0,IF(($O15-SUM($Q15:R15))<$P15,$O15-SUM($Q15:R15),IF(SUM($Q15:R15)<$O15,$P15,0))) -> 0 | T15: =IF($O15<=0,0,IF(($O15-SUM($Q15:S15))<$P15,$O15-SUM($Q15:S15),IF(SUM($Q15:S15)<$O15,$P15,0))) -> 0
B16: AERONAVEGACIÓN | C16: TERRENOS INSCRITOS | D16: TERRENOS | E16: 1950-12-01 | F16: 1950-12-01 | G16: 1219781.77 | H16: 0 | I16: 0 | L16: 0 | M16: 1219781.77 | N16: =+IF(B16=$B$7,100%,50%) -> 1 | O16: 1219781.77 | P16: 0 | R16: =IF($O16<=0,0,IF(($O16-SUM($Q16:Q16))<$P16,$O16-SUM($Q16:Q16),IF(SUM($Q16:Q16)<$O16,$P16,0))) -> 0 | S16: =IF($O16<=0,0,IF(($O16-SUM($Q16:R16))<$P16,$O16-SUM($Q16:R16),IF(SUM($Q16:R16)<$O16,$P16,0))) -> 0 | T16: =IF($O16<=0,0,IF(($O16-SUM($Q16:S16))<$P16,$O16-SUM($Q16:S16),IF(SUM($Q16:S16)<$O16,$P16,0))) -> 0
B17: AERONAVEGACIÓN | C17: TERRENOS INSCRITOS | D17: TERRENOS | E17: 1950-12-01 | F17: 1950-12-01 | G17: 592125.47 | H17: 0 | I17: 0 | L17: 0 | M17: 592125.47 | N17: =+IF(B17=$B$7,100%,50%) -> 1 | O17: 592125.47 | P17: 0 | R17: =IF($O17<=0,0,IF(($O17-SUM($Q17:Q17))<$P17,$O17-SUM($Q17:Q17),IF(SUM($Q17:Q17)<$O17,$P17,0))) -> 0 | S17: =IF($O17<=0,0,IF(($O17-SUM($Q17:R17))<$P17,$O17-SUM($Q17:R17),IF(SUM($Q17:R17)<$O17,$P17,0))) -> 0 | T17: =IF($O17<=0,0,IF(($O17-SUM($Q17:S17))<$P17,$O17-SUM($Q17:S17),IF(SUM($Q17:S17)<$O17,$P17,0))) -> 0
B18: AERONAVEGACIÓN/AEROPORTUARIO | C18: TERRENOS INSCRITOS | D18: TERRENOS | E18: 1950-12-01 | F18: 1950-12-01 | G18: 390734.32 | H18: 0 | I18: 0 | L18: 0 | M18: 390734.32 | N18: =+IF(B18=$B$7,100%,50%) -> 0.5 | O18: 195367.16 | P18: 0 | R18: =IF($O18<=0,0,IF(($O18-SUM($Q18:Q18))<$P18,$O18-SUM($Q18:Q18),IF(SUM($Q18:Q18)<$O18,$P18,0))) -> 0 | S18: =IF($O18<=0,0,IF(($O18-SUM($Q18:R18))<$P18,$O18-SUM($Q18:R18),IF(SUM($Q18:R18)<$O18,$P18,0))) -> 0 | T18: =IF($O18<=0,0,IF(($O18-SUM($Q18:S18))<$P18,$O18-SUM($Q18:S18),IF(SUM($Q18:S18)<$O18,$P18,0))) -> 0
B19: AERONAVEGACIÓN/AEROPORTUARIO | C19: TERRENOS INSCRITOS | D19: TERRENOS | E19: 1950-12-01 | F19: 1950-12-01 | G19: 3946.81 | H19: 0 | I19: 0 | L19: 0 | M19: 3946.81 | N19: =+IF(B19=$B$7,100%,50%) -> 0.5 | O19: 1973.405 | P19: 0 | R19: =IF($O19<=0,0,IF(($O19-SUM($Q19:Q19))<$P19,$O19-SUM($Q19:Q19),IF(SUM($Q19:Q19)<$O19,$P19,0))) -> 0 | S19: =IF($O19<=0,0,IF(($O19-SUM($Q19:R19))<$P19,$O19-SUM($Q19:R19),IF(SUM($Q19:R19)<$O19,$P19,0))) -> 0 | T19: =IF($O19<=0,0,IF(($O19-SUM($Q19:S19))<$P19,$O19-SUM($Q19:S19),IF(SUM($Q19:S19)<$O19,$P19,0))) -> 0
B20: AERONAVEGACIÓN | C20: TERRENOS INSCRITOS | D20: TERRENOS | E20: 1950-12-01 | F20: 1950-12-01 | G20: 570025.3 | H20: 0 | I20: 0 | L20: 0 | M20: 570025.3 | N20: =+IF(B20=$B$7,100%,50%) -> 1 | O20: 570025.3 | P20: 0 | R20: =IF($O20<=0,0,IF(($O20-SUM($Q20:Q20))<$P20,$O20-SUM($Q20:Q20),IF(SUM($Q20:Q20)<$O20,$P20,0))) -> 0 | S20: =IF($O20<=0,0,IF(($O20-SUM($Q20:R20))<$P20,$O20-SUM($Q20:R20),IF(SUM($Q20:R20)<$O20,$P20,0))) -> 0 | T20: =IF($O20<=0,0,IF(($O20-SUM($Q20:S20))<$P20,$O20-SUM($Q20:S20),IF(SUM($Q20:S20)<$O20,$P20,0))) -> 0
B21: AERONAVEGACIÓN/AEROPORTUARIO | C21: TERRENOS INSCRITOS | D21: TERRENOS | E21: 1950-12-01 | F21: 1950-12-01 | G21: 101290471.8 | H21: 0 | I21: 0 | L21: 0 | M21: 101290471.8 | N21: 0.51 | O21: 51658140.64 | P21: 0 | R21: =IF($O21<=0,0,IF(($O21-SUM($Q21:Q21))<$P21,$O21-SUM($Q21:Q21),IF(SUM($Q21:Q21)<$O21,$P21,0))) -> 0 | S21: =IF($O21<=0,0,IF(($O21-SUM($Q21:R21))<$P21,$O21-SUM($Q21:R21),IF(SUM($Q21:R21)<$O21,$P21,0))) -> 0 | T21: =IF($O21<=0,0,IF(($O21-SUM($Q21:S21))<$P21,$O21-SUM($Q21:S21),IF(SUM($Q21:S21)<$O21,$P21,0))) -> 0
B22: AERONAVEGACIÓN/AEROPORTUARIO | C22: TERRENOS INSCRITOS | D22: TERRENOS | E22: 1950-12-01 | F22: 1950-12-01 | G22: 19758.09 | H22: 0 | I22: 0 | L22: 0 | M22: 19758.09 | N22: 0.51 | O22: 10076.6259 | P22: 0 | R22: =IF($O22<=0,0,IF(($O22-SUM($Q22:Q22))<$P22,$O22-SUM($Q22:Q22),IF(SUM($Q22:Q22)<$O22,$P22,0))) -> 0 | S22: =IF($O22<=0,0,IF(($O22-SUM($Q22:R22))<$P22,$O22-SUM($Q22:R22),IF(SUM($Q22:R22)<$O22,$P22,0))) -> 0 | T22: =IF($O22<=0,0,IF(($O22-SUM($Q22:S22))<$P22,$O22-SUM($Q22:S22),IF(SUM($Q22:S22)<$O22,$P22,0))) -> 0
B23: AERONAVEGACIÓN/AEROPORTUARIO | C23: TERRENOS INSCRITOS | D23: TERRENOS | E23: 1950-12-01 | F23: 1950-12-01 | G23: 17479.95 | H23: 0 | I23: 0 | L23: 0 | M23: 17479.95 | N23: =+IF(B23=$B$7,100%,50%) -> 0.5 | O23: 8739.975 | P23: 0 | R23: =IF($O23<=0,0,IF(($O23-SUM($Q23:Q23))<$P23,$O23-SUM($Q23:Q23),IF(SUM($Q23:Q23)<$O23,$P23,0))) -> 0 | S23: =IF($O23<=0,0,IF(($O23-SUM($Q23:R23))<$P23,$O23-SUM($Q23:R23),IF(SUM($Q23:R23)<$O23,$P23,0))) -> 0 | T23: =IF($O23<=0,0,IF(($O23-SUM($Q23:S23))<$P23,$O23-SUM($Q23:S23),IF(SUM($Q23:S23)<$O23,$P23,0))) -> 0
B24: AERONAVEGACIÓN | C24: TERRENOS INSCRITOS | D24: TERRENOS | E24: 1950-12-01 | F24: 1950-12-01 | G24: 327648.44 | H24: 0 | I24: 0 | L24: 0 | M24: 327648.44 | N24: =+IF(B24=$B$7,100%,50%) -> 1 | O24: 327648.44 | P24: 0 | R24: =IF($O24<=0,0,IF(($O24-SUM($Q24:Q24))<$P24,$O24-SUM($Q24:Q24),IF(SUM($Q24:Q24)<$O24,$P24,0))) -> 0 | S24: =IF($O24<=0,0,IF(($O24-SUM($Q24:R24))<$P24,$O24-SUM($Q24:R24),IF(SUM($Q24:R24)<$O24,$P24,0))) -> 0 | T24: =IF($O24<=0,0,IF(($O24-SUM($Q24:S24))<$P24,$O24-SUM($Q24:S24),IF(SUM($Q24:S24)<$O24,$P24,0))) -> 0
B25: AERONAVEGACIÓN/AEROPORTUARIO | C25: TERRENOS INSCRITOS | D25: TERRENOS | E25: 1950-12-01 | F25: 1950-12-01 | G25: 859588.24 | H25: 0 | I25: 0 | L25: 0 | M25: 859588.24 | N25: 0.76 | O25: 653287.0624 | P25: 0 | R25: =IF($O25<=0,0,IF(($O25-SUM($Q25:Q25))<$P25,$O25-SUM($Q25:Q25),IF(SUM($Q25:Q25)<$O25,$P25,0))) -> 0 | S25: =IF($O25<=0,0,IF(($O25-SUM($Q25:R25))<$P25,$O25-SUM($Q25:R25),IF(SUM($Q25:R25)<$O25,$P25,0))) -> 0 | T25: =IF($O25<=0,0,IF(($O25-SUM($Q25:S25))<$P25,$O25-SUM($Q25:S25),IF(SUM($Q25:S25)<$O25,$P25,0))) -> 0
B26: AERONAVEGACIÓN/AEROPORTUARIO | C26: TERRENOS INSCRITOS | D26: TERRENOS | E26: 1950-12-01 | F26: 1950-12-01 | G26: 167.85 | H26: 0 | I26: 0 | L26: 0 | M26: 167.85 | N26: 0.76 | O26: 127.566 | P26: 0 | R26: =IF($O26<=0,0,IF(($O26-SUM($Q26:Q26))<$P26,$O26-SUM($Q26:Q26),IF(SUM($Q26:Q26)<$O26,$P26,0))) -> 0 | S26: =IF($O26<=0,0,IF(($O26-SUM($Q26:R26))<$P26,$O26-SUM($Q26:R26),IF(SUM($Q26:R26)<$O26,$P26,0))) -> 0 | T26: =IF($O26<=0,0,IF(($O26-SUM($Q26:S26))<$P26,$O26-SUM($Q26:S26),IF(SUM($Q26:S26)<$O26,$P26,0))) -> 0
B27: AERONAVEGACIÓN | C27: TERRENOS INSCRITOS | D27: TERRENOS | E27: 1950-12-01 | F27: 1950-12-01 | G27: 28184.7 | H27: 0 | I27: 0 | L27: 0 | M27: 28184.7 | N27: =+IF(B27=$B$7,100%,50%) -> 1 | O27: 28184.7 | P27: 0 | R27: =IF($O27<=0,0,IF(($O27-SUM($Q27:Q27))<$P27,$O27-SUM($Q27:Q27),IF(SUM($Q27:Q27)<$O27,$P27,0))) -> 0 | S27: =IF($O27<=0,0,IF(($O27-SUM($Q27:R27))<$P27,$O27-SUM($Q27:R27),IF(SUM($Q27:R27)<$O27,$P27,0))) -> 0 | T27: =IF($O27<=0,0,IF(($O27-SUM($Q27:S27))<$P27,$O27-SUM($Q27:S27),IF(SUM($Q27:S27)<$O27,$P27,0))) -> 0
B28: AERONAVEGACIÓN | C28: TERRENOS INSCRITOS | D28: TERRENOS | E28: 1950-12-01 | F28: 1950-12-01 | G28: 19700.44 | H28: 0 | I28: 0 | L28: 0 | M28: 19700.44 | N28: 1 | O28: 19700.44 | P28: 0 | R28: =IF($O28<=0,0,IF(($O28-SUM($Q28:Q28))<$P28,$O28-SUM($Q28:Q28),IF(SUM($Q28:Q28)<$O28,$P28,0))) -> 0 | S28: =IF($O28<=0,0,IF(($O28-SUM($Q28:R28))<$P28,$O28-SUM($Q28:R28),IF(SUM($Q28:R28)<$O28,$P28,0))) -> 0 | T28: =IF($O28<=0,0,IF(($O28-SUM($Q28:S28))<$P28,$O28-SUM($Q28:S28),IF(SUM($Q28:S28)<$O28,$P28,0))) -> 0
B29: AERONAVEGACIÓN | C29: TERRENOS INSCRITOS | D29: TERRENOS | E29: 1950-12-01 | F29: 1950-12-01 | G29: 144927.02 | H29: 0 | I29: 0 | L29: 0 | M29: 144927.02 | N29: 1 | O29: 144927.02 | P29: 0 | R29: =IF($O29<=0,0,IF(($O29-SUM($Q29:Q29))<$P29,$O29-SUM($Q29:Q29),IF(SUM($Q29:Q29)<$O29,$P29,0))) -> 0 | S29: =IF($O29<=0,0,IF(($O29-SUM($Q29:R29))<$P29,$O29-SUM($Q29:R29),IF(SUM($Q29:R29)<$O29,$P29,0))) -> 0 | T29: =IF($O29<=0,0,IF(($O29-SUM($Q29:S29))<$P29,$O29-SUM($Q29:S29),IF(SUM($Q29:S29)<$O29,$P29,0))) -> 0
B30: AERONAVEGACIÓN/AEROPORTUARIO | C30: TERRENOS INSCRITOS | D30: TERRENOS | E30: 1950-12-01 | F30: 1950-12-01 | G30: 728892.89 | H30: 0 | I30: 0 | L30: 0 | M30: 728892.89 | N30: 0.5 | O30: 364446.445 | P30: 0 | R30: =IF($O30<=0,0,IF(($O30-SUM($Q30:Q30))<$P30,$O30-SUM($Q30:Q30),IF(SUM($Q30:Q30)<$O30,$P30,0))) -> 0 | S30: =IF($O30<=0,0,IF(($O30-SUM($Q30:R30))<$P30,$O30-SUM($Q30:R30),IF(SUM($Q30:R30)<$O30,$P30,0))) -> 0 | T30: =IF($O30<=0,0,IF(($O30-SUM($Q30:S30))<$P30,$O30-SUM($Q30:S30),IF(SUM($Q30:S30)<$O30,$P30,0))) -> 0
B31: AERONAVEGACIÓN/AEROPORTUARIO | C31: TERRENOS INSCRITOS | D31: TERRENOS | E31: 1950-12-01 | F31: 1950-12-01 | G31: 40990.62 | H31: 0 | I31: 0 | L31: 0 | M31: 40990.62 | N31: 0.5 | O31: 20495.31 | P31: 0 | R31: =IF($O31<=0,0,IF(($O31-SUM($Q31:Q31))<$P31,$O31-SUM($Q31:Q31),IF(SUM($Q31:Q31)<$O31,$P31,0))) -> 0 | S31: =IF($O31<=0,0,IF(($O31-SUM($Q31:R31))<$P31,$O31-SUM($Q31:R31),IF(SUM($Q31:R31)<$O31,$P31,0))) -> 0 | T31: =IF($O31<=0,0,IF(($O31-SUM($Q31:S31))<$P31,$O31-SUM($Q31:S31),IF(SUM($Q31:S31)<$O31,$P31,0))) -> 0
B32: AERONAVEGACIÓN | C32: TERRENOS INSCRITOS | D32: TERRENOS | E32: 1950-12-01 | F32: 1950-12-01 | G32: 2521.76 | H32: 0 | I32: 0 | L32: 0 | M32: 2521.76 | N32: 1 | O32: 2521.76 | P32: 0 | R32: =IF($O32<=0,0,IF(($O32-SUM($Q32:Q32))<$P32,$O32-SUM($Q32:Q32),IF(SUM($Q32:Q32)<$O32,$P32,0))) -> 0 | S32: =IF($O32<=0,0,IF(($O32-SUM($Q32:R32))<$P32,$O32-SUM($Q32:R32),IF(SUM($Q32:R32)<$O32,$P32,0))) -> 0 | T32: =IF($O32<=0,0,IF(($O32-SUM($Q32:S32))<$P32,$O32-SUM($Q32:S32),IF(SUM($Q32:S32)<$O32,$P32,0))) -> 0
B33: AERONAVEGACIÓN/AEROPORTUARIO | C33: TERRENOS INSCRITOS | D33: TERRENOS | E33: 1950-12-01 | F33: 1950-12-01 | G33: 8749544.36 | H33: 0 | I33: 0 | L33: 0 | M33: 8749544.36 | N33: 0.42 | O33: 3674808.631 | P33: 0 | R33: =IF($O33<=0,0,IF(($O33-SUM($Q33:Q33))<$P33,$O33-SUM($Q33:Q33),IF(SUM($Q33:Q33)<$O33,$P33,0))) -> 0 | S33: =IF($O33<=0,0,IF(($O33-SUM($Q33:R33))<$P33,$O33-SUM($Q33:R33),IF(SUM($Q33:R33)<$O33,$P33,0))) -> 0 | T33: =IF($O33<=0,0,IF(($O33-SUM($Q33:S33))<$P33,$O33-SUM($Q33:S33),IF(SUM($Q33:S33)<$O33,$P33,0))) -> 0
B34: AERONAVEGACIÓN/AEROPORTUARIO | C34: TERRENOS INSCRITOS | D34: TERRENOS | E34: 1950-12-01 | F34: 1950-12-01 | G34: 1893.23 | H34: 0 | I34: 0 | L34: 0 | M34: 1893.23 | N34: 0.42 | O34: 795.1566 | P34: 0 | R34: =IF($O34<=0,0,IF(($O34-SUM($Q34:Q34))<$P34,$O34-SUM($Q34:Q34),IF(SUM($Q34:Q34)<$O34,$P34,0))) -> 0 | S34: =IF($O34<=0,0,IF(($O34-SUM($Q34:R34))<$P34,$O34-SUM($Q34:R34),IF(SUM($Q34:R34)<$O34,$P34,0))) -> 0 | T34: =IF($O34<=0,0,IF(($O34-SUM($Q34:S34))<$P34,$O34-SUM($Q34:S34),IF(SUM($Q34:S34)<$O34,$P34,0))) -> 0
B35: AERONAVEGACIÓN | C35: TERRENOS INSCRITOS | D35: TERRENOS | E35: 1950-12-01 | F35: 1950-12-01 | G35: 411322.9 | H35: 0 | I35: 0 | L35: 0 | M35: 411322.9 | N35: =+IF(B35=$B$7,100%,50%) -> 1 | O35: 411322.9 | P35: 0 | R35: =IF($O35<=0,0,IF(($O35-SUM($Q35:Q35))<$P35,$O35-SUM($Q35:Q35),IF(SUM($Q35:Q35)<$O35,$P35,0))) -> 0 | S35: =IF($O35<=0,0,IF(($O35-SUM($Q35:R35))<$P35,$O35-SUM($Q35:R35),IF(SUM($Q35:R35)<$O35,$P35,0))) -> 0 | T35: =IF($O35<=0,0,IF(($O35-SUM($Q35:S35))<$P35,$O35-SUM($Q35:S35),IF(SUM($Q35:S35)<$O35,$P35,0))) -> 0
B36: AERONAVEGACIÓN/AEROPORTUARIO | C36: TERRENOS INSCRITOS | D36: TERRENOS | E36: 1950-12-01 | F36: 1950-12-01 | G36: 29888887.53 | H36: 0 | I36: 0 | L36: 0 | M36: 29888887.53 | N36: 0.27 | O36: 8069999.633 | P36: 0 | R36: =IF($O36<=0,0,IF(($O36-SUM($Q36:Q36))<$P36,$O36-SUM($Q36:Q36),IF(SUM($Q36:Q36)<$O36,$P36,0))) -> 0 | S36: =IF($O36<=0,0,IF(($O36-SUM($Q36:R36))<$P36,$O36-SUM($Q36:R36),IF(SUM($Q36:R36)<$O36,$P36,0))) -> 0 | T36: =IF($O36<=0,0,IF(($O36-SUM($Q36:S36))<$P36,$O36-SUM($Q36:S36),IF(SUM($Q36:S36)<$O36,$P36,0))) -> 0
B37: AERONAVEGACIÓN/AEROPORTUARIO | C37: TERRENOS INSCRITOS | D37: TERRENOS | E37: 1950-12-01 | F37: 1950-12-01 | G37: 5245.33 | H37: 0 | I37: 0 | L37: 0 | M37: 5245.33 | N37: 0.27 | O37: 1416.2391 | P37: 0 | R37: =IF($O37<=0,0,IF(($O37-SUM($Q37:Q37))<$P37,$O37-SUM($Q37:Q37),IF(SUM($Q37:Q37)<$O37,$P37,0))) -> 0 | S37: =IF($O37<=0,0,IF(($O37-SUM($Q37:R37))<$P37,$O37-SUM($Q37:R37),IF(SUM($Q37:R37)<$O37,$P37,0))) -> 0 | T37: =IF($O37<=0,0,IF(($O37-SUM($Q37:S37))<$P37,$O37-SUM($Q37:S37),IF(SUM($Q37:S37)<$O37,$P37,0))) -> 0
B38: AERONAVEGACIÓN/AEROPORTUARIO | C38: TERRENOS INSCRITOS | D38: TERRENOS | E38: 1950-12-01 | F38: 1950-12-01 | G38: 2864563.56 | H38: 0 | I38: 0 | L38: 0 | M38: 2864563.56 | N38: 0.23 | O38: 658849.6188 | P38: 0 | R38: =IF($O38<=0,0,IF(($O38-SUM($Q38:Q38))<$P38,$O38-SUM($Q38:Q38),IF(SUM($Q38:Q38)<$O38,$P38,0))) -> 0 | S38: =IF($O38<=0,0,IF(($O38-SUM($Q38:R38))<$P38,$O38-SUM($Q38:R38),IF(SUM($Q38:R38)<$O38,$P38,0))) -> 0 | T38: =IF($O38<=0,0,IF(($O38-SUM($Q38:S38))<$P38,$O38-SUM($Q38:S38),IF(SUM($Q38:S38)<$O38,$P38,0))) -> 0
B39: AERONAVEGACIÓN/AEROPORTUARIO | C39: TERRENOS INSCRITOS | D39: TERRENOS | E39: 1950-12-01 | F39: 1950-12-01 | G39: 2280.88 | H39: 0 | I39: 0 | L39: 0 | M39: 2280.88 | N39: 0.23 | O39: 524.6024 | P39: 0 | R39: =IF($O39<=0,0,IF(($O39-SUM($Q39:Q39))<$P39,$O39-SUM($Q39:Q39),IF(SUM($Q39:Q39)<$O39,$P39,0))) -> 0 | S39: =IF($O39<=0,0,IF(($O39-SUM($Q39:R39))<$P39,$O39-SUM($Q39:R39),IF(SUM($Q39:R39)<$O39,$P39,0))) -> 0 | T39: =IF($O39<=0,0,IF(($O39-SUM($Q39:S39))<$P39,$O39-SUM($Q39:S39),IF(SUM($Q39:S39)<$O39,$P39,0))) -> 0
B40: AERONAVEGACIÓN/AEROPORTUARIO | C40: TERRENOS INSCRITOS | D40: TERRENOS | E40: 1950-12-01 | F40: 1950-12-01 | G40: 3989529.7 | H40: 0 | I40: 0 | L40: 0 | M40: 3989529.7 | N40: 0.5 | O40: 1994764.85 | P40: 0 | R40: =IF($O40<=0,0,IF(($O40-SUM($Q40:Q40))<$P40,$O40-SUM($Q40:Q40),IF(SUM($Q40:Q40)<$O40,$P40,0))) -> 0 | S40: =IF($O40<=0,0,IF(($O40-SUM($Q40:R40))<$P40,$O40-SUM($Q40:R40),IF(SUM($Q40:R40)<$O40,$P40,0))) -> 0 | T40: =IF($O40<=0,0,IF(($O40-SUM($Q40:S40))<$P40,$O40-SUM($Q40:S40),IF(SUM($Q40:S40)<$O40,$P40,0))) -> 0
B41: AERONAVEGACIÓN/AEROPORTUARIO | C41: TERRENOS INSCRITOS | D41: TERRENOS | E41: 1950-12-01 | F41: 1950-12-01 | G41: 52419.49 | H41: 0 | I41: 0 | L41: 0 | M41: 52419.49 | N41: 0.5 | O41: 26209.745 | P41: 0 | R41: =IF($O41<=0,0,IF(($O41-SUM($Q41:Q41))<$P41,$O41-SUM($Q41:Q41),IF(SUM($Q41:Q41)<$O41,$P41,0))) -> 0 | S41: =IF($O41<=0,0,IF(($O41-SUM($Q41:R41))<$P41,$O41-SUM($Q41:R41),IF(SUM($Q41:R41)<$O41,$P41,0))) -> 0 | T41: =IF($O41<=0,0,IF(($O41-SUM($Q41:S41))<$P41,$O41-SUM($Q41:S41),IF(SUM($Q41:S41)<$O41,$P41,0))) -> 0
B42: AERONAVEGACIÓN/AEROPORTUARIO | C42: TERRENOS INSCRITOS | D42: TERRENOS | E42: 1950-12-01 | F42: 1950-12-01 | G42: 6592926.05 | H42: 0 | I42: 0 | L42: 0 | M42: 6592926.05 | N42: 0.52 | O42: 3428321.546 | P42: 0 | R42: =IF($O42<=0,0,IF(($O42-SUM($Q42:Q42))<$P42,$O42-SUM($Q42:Q42),IF(SUM($Q42:Q42)<$O42,$P42,0))) -> 0 | S42: =IF($O42<=0,0,IF(($O42-SUM($Q42:R42))<$P42,$O42-SUM($Q42:R42),IF(SUM($Q42:R42)<$O42,$P42,0))) -> 0 | T42: =IF($O42<=0,0,IF(($O42-SUM($Q42:S42))<$P42,$O42-SUM($Q42:S42),IF(SUM($Q42:S42)<$O42,$P42,0))) -> 0
B43: AERONAVEGACIÓN/AEROPORTUARIO | C43: TERRENOS INSCRITOS | D43: TERRENOS | E43: 1950-12-01 | F43: 1950-12-01 | G43: 306655.17 | H43: 0 | I43: 0 | L43: 0 | M43: 306655.17 | N43: 0.52 | O43: 159460.6884 | P43: 0 | R43: =IF($O43<=0,0,IF(($O43-SUM($Q43:Q43))<$P43,$O43-SUM($Q43:Q43),IF(SUM($Q43:Q43)<$O43,$P43,0))) -> 0 | S43: =IF($O43<=0,0,IF(($O43-SUM($Q43:R43))<$P43,$O43-SUM($Q43:R43),IF(SUM($Q43:R43)<$O43,$P43,0))) -> 0 | T43: =IF($O43<=0,0,IF(($O43-SUM($Q43:S43))<$P43,$O43-SUM($Q43:S43),IF(SUM($Q43:S43)<$O43,$P43,0))) -> 0
B44: AERONAVEGACIÓN | C44: TERRENOS INSCRITOS | D44: TERRENOS | E44: 1950-12-01 | F44: 1950-12-01 | G44: 228391.98 | H44: 0 | I44: 0 | L44: 0 | M44: 228391.98 | N44: =+IF(B44=$B$7,100%,50%) -> 1 | O44: 228391.98 | P44: 0 | R44: =IF($O44<=0,0,IF(($O44-SUM($Q44:Q44))<$P44,$O44-SUM($Q44:Q44),IF(SUM($Q44:Q44)<$O44,$P44,0))) -> 0 | S44: =IF($O44<=0,0,IF(($O44-SUM($Q44:R44))<$P44,$O44-SUM($Q44:R44),IF(SUM($Q44:R44)<$O44,$P44,0))) -> 0 | T44: =IF($O44<=0,0,IF(($O44-SUM($Q44:S44))<$P44,$O44-SUM($Q44:S44),IF(SUM($Q44:S44)<$O44,$P44,0))) -> 0
B45: AERONAVEGACIÓN | C45: TERRENOS INSCRITOS | D45: TERRENOS | E45: 1950-12-01 | F45: 1950-12-01 | G45: 338204.35 | H45: 0 | I45: 0 | L45: 0 | M45: 338204.35 | N45: =+IF(B45=$B$7,100%,50%) -> 1 | O45: 338204.35 | P45: 0 | R45: =IF($O45<=0,0,IF(($O45-SUM($Q45:Q45))<$P45,$O45-SUM($Q45:Q45),IF(SUM($Q45:Q45)<$O45,$P45,0))) -> 0 | S45: =IF($O45<=0,0,IF(($O45-SUM($Q45:R45))<$P45,$O45-SUM($Q45:R45),IF(SUM($Q45:R45)<$O45,$P45,0))) -> 0 | T45: =IF($O45<=0,0,IF(($O45-SUM($Q45:S45))<$P45,$O45-SUM($Q45:S45),IF(SUM($Q45:S45)<$O45,$P45,0))) -> 0
B46: AERONAVEGACIÓN/AEROPORTUARIO | C46: TERRENOS INSCRITOS | D46: TERRENOS | E46: 1950-12-01 | F46: 1950-12-01 | G46: 628773.19 | H46: 0 | I46: 0 | L46: 0 | M46: 628773.19 | N46: 0.51 | O46: 320674.3269 | P46: 0 | R46: =IF($O46<=0,0,IF(($O46-SUM($Q46:Q46))<$P46,$O46-SUM($Q46:Q46),IF(SUM($Q46:Q46)<$O46,$P46,0))) -> 0 | S46: =IF($O46<=0,0,IF(($O46-SUM($Q46:R46))<$P46,$O46-SUM($Q46:R46),IF(SUM($Q46:R46)<$O46,$P46,0))) -> 0 | T46: =IF($O46<=0,0,IF(($O46-SUM($Q46:S46))<$P46,$O46-SUM($Q46:S46),IF(SUM($Q46:S46)<$O46,$P46,0))) -> 0
B47: AERONAVEGACIÓN/AEROPORTUARIO | C47: TERRENOS INSCRITOS | D47: TERRENOS | E47: 1950-12-01 | F47: 1950-12-01 | G47: 582109.81 | H47: 0 | I47: 0 | L47: 0 | M47: 582109.81 | N47: 0.53 | O47: 308518.1993 | P47: 0 | R47: =IF($O47<=0,0,IF(($O47-SUM($Q47:Q47))<$P47,$O47-SUM($Q47:Q47),IF(SUM($Q47:Q47)<$O47,$P47,0))) -> 0 | S47: =IF($O47<=0,0,IF(($O47-SUM($Q47:R47))<$P47,$O47-SUM($Q47:R47),IF(SUM($Q47:R47)<$O47,$P47,0))) -> 0 | T47: =IF($O47<=0,0,IF(($O47-SUM($Q47:S47))<$P47,$O47-SUM($Q47:S47),IF(SUM($Q47:S47)<$O47,$P47,0))) -> 0
B48: AERONAVEGACIÓN/AEROPORTUARIO | C48: TERRENOS INSCRITOS | D48: TERRENOS | E48: 1950-12-01 | F48: 1950-12-01 | G48: 44197.09 | H48: 0 | I48: 0 | L48: 0 | M48: 44197.09 | N48: 0.53 | O48: 23424.4577 | P48: 0 | R48: =IF($O48<=0,0,IF(($O48-SUM($Q48:Q48))<$P48,$O48-SUM($Q48:Q48),IF(SUM($Q48:Q48)<$O48,$P48,0))) -> 0 | S48: =IF($O48<=0,0,IF(($O48-SUM($Q48:R48))<$P48,$O48-SUM($Q48:R48),IF(SUM($Q48:R48)<$O48,$P48,0))) -> 0 | T48: =IF($O48<=0,0,IF(($O48-SUM($Q48:S48))<$P48,$O48-SUM($Q48:S48),IF(SUM($Q48:S48)<$O48,$P48,0))) -> 0
B49: AERONAVEGACIÓN | C49: TERRENOS INSCRITOS | D49: TERRENOS | E49: 1950-12-01 | F49: 1950-12-01 | G49: 307631.24 | H49: 0 | I49: 0 | L49: 0 | M49: 307631.24 | N49: =+IF(B49=$B$7,100%,50%) -> 1 | O49: 307631.24 | P49: 0 | R49: =IF($O49<=0,0,IF(($O49-SUM($Q49:Q49))<$P49,$O49-SUM($Q49:Q49),IF(SUM($Q49:Q49)<$O49,$P49,0))) -> 0 | S49: =IF($O49<=0,0,IF(($O49-SUM($Q49:R49))<$P49,$O49-SUM($Q49:R49),IF(SUM($Q49:R49)<$O49,$P49,0))) -> 0 | T49: =IF($O49<=0,0,IF(($O49-SUM($Q49:S49))<$P49,$O49-SUM($Q49:S49),IF(SUM($Q49:S49)<$O49,$P49,0))) -> 0
B50: AERONAVEGACIÓN/AEROPORTUARIO | C50: TERRENOS INSCRITOS | D50: TERRENOS | E50: 1950-12-01 | F50: 1950-12-01 | G50: 6976642.46 | H50: 0 | I50: 0 | L50: 0 | M50: 6976642.46 | N50: 0.46 | O50: 3209255.532 | P50: 0 | R50: =IF($O50<=0,0,IF(($O50-SUM($Q50:Q50))<$P50,$O50-SUM($Q50:Q50),IF(SUM($Q50:Q50)<$O50,$P50,0))) -> 0 | S50: =IF($O50<=0,0,IF(($O50-SUM($Q50:R50))<$P50,$O50-SUM($Q50:R50),IF(SUM($Q50:R50)<$O50,$P50,0))) -> 0 | T50: =IF($O50<=0,0,IF(($O50-SUM($Q50:S50))<$P50,$O50-SUM($Q50:S50),IF(SUM($Q50:S50)<$O50,$P50,0))) -> 0
B51: AERONAVEGACIÓN/AEROPORTUARIO | C51: TERRENOS INSCRITOS | D51: TERRENOS | E51: 1950-12-01 | F51: 1950-12-01 | G51: 571.37 | H51: 0 | I51: 0 | L51: 0 | M51: 571.37 | N51: 0.46 | O51: 262.8302 | P51: 0 | R51: =IF($O51<=0,0,IF(($O51-SUM($Q51:Q51))<$P51,$O51-SUM($Q51:Q51),IF(SUM($Q51:Q51)<$O51,$P51,0))) -> 0 | S51: =IF($O51<=0,0,IF(($O51-SUM($Q51:R51))<$P51,$O51-SUM($Q51:R51),IF(SUM($Q51:R51)<$O51,$P51,0))) -> 0 | T51: =IF($O51<=0,0,IF(($O51-SUM($Q51:S51))<$P51,$O51-SUM($Q51:S51),IF(SUM($Q51:S51)<$O51,$P51,0))) -> 0
B52: AERONAVEGACIÓN/AEROPORTUARIO | C52: TERRENOS INSCRITOS | D52: TERRENOS | E52: 1950-12-01 | F52: 1950-12-01 | G52: 10811591.84 | H52: 0 | I52: 0 | L52: 0 | M52: 10811591.84 | N52: 0.51 | O52: 5513911.838 | P52: 0 | R52: =IF($O52<=0,0,IF(($O52-SUM($Q52:Q52))<$P52,$O52-SUM($Q52:Q52),IF(SUM($Q52:Q52)<$O52,$P52,0))) -> 0 | S52: =IF($O52<=0,0,IF(($O52-SUM($Q52:R52))<$P52,$O52-SUM($Q52:R52),IF(SUM($Q52:R52)<$O52,$P52,0))) -> 0 | T52: =IF($O52<=0,0,IF(($O52-SUM($Q52:S52))<$P52,$O52-SUM($Q52:S52),IF(SUM($Q52:S52)<$O52,$P52,0))) -> 0
B53: AERONAVEGACIÓN/AEROPORTUARIO | C53: TERRENOS INSCRITOS | D53: TERRENOS | E53: 1950-12-01 | F53: 1950-12-01 | G53: 12473.9 | H53: 0 | I53: 0 | L53: 0 | M53: 12473.9 | N53: 0.51 | O53: 6361.689 | P53: 0 | R53: =IF($O53<=0,0,IF(($O53-SUM($Q53:Q53))<$P53,$O53-SUM($Q53:Q53),IF(SUM($Q53:Q53)<$O53,$P53,0))) -> 0 | S53: =IF($O53<=0,0,IF(($O53-SUM($Q53:R53))<$P53,$O53-SUM($Q53:R53),IF(SUM($Q53:R53)<$O53,$P53,0))) -> 0 | T53: =IF($O53<=0,0,IF(($O53-SUM($Q53:S53))<$P53,$O53-SUM($Q53:S53),IF(SUM($Q53:S53)<$O53,$P53,0))) -> 0
B54: AERONAVEGACIÓN | C54: TERRENOS INSCRITOS | D54: TERRENOS | E54: 1950-12-01 | F54: 1950-12-01 | G54: 45228.39 | H54: 0 | I54: 0 | L54: 0 | M54: 45228.39 | N54: =+IF(B54=$B$7,100%,50%) -> 1 | O54: 45228.39 | P54: 0 | R54: =IF($O54<=0,0,IF(($O54-SUM($Q54:Q54))<$P54,$O54-SUM($Q54:Q54),IF(SUM($Q54:Q54)<$O54,$P54,0))) -> 0 | S54: =IF($O54<=0,0,IF(($O54-SUM($Q54:R54))<$P54,$O54-SUM($Q54:R54),IF(SUM($Q54:R54)<$O54,$P54,0))) -> 0 | T54: =IF($O54<=0,0,IF(($O54-SUM($Q54:S54))<$P54,$O54-SUM($Q54:S54),IF(SUM($Q54:S54)<$O54,$P54,0))) -> 0
B55: AERONAVEGACIÓN | C55: TERRENOS INSCRITOS | D55: TERRENOS | E55: 1950-12-01 | F55: 1950-12-01 | G55: 2543.5 | H55: 0 | I55: 0 | L55: 0 | M55: 2543.5 | N55: 1 | O55: 2543.5 | P55: 0 | R55: =IF($O55<=0,0,IF(($O55-SUM($Q55:Q55))<$P55,$O55-SUM($Q55:Q55),IF(SUM($Q55:Q55)<$O55,$P55,0))) -> 0 | S55: =IF($O55<=0,0,IF(($O55-SUM($Q55:R55))<$P55,$O55-SUM($Q55:R55),IF(SUM($Q55:R55)<$O55,$P55,0))) -> 0 | T55: =IF($O55<=0,0,IF(($O55-SUM($Q55:S55))<$P55,$O55-SUM($Q55:S55),IF(SUM($Q55:S55)<$O55,$P55,0))) -> 0
B56: AERONAVEGACIÓN | C56: TERRENOS INSCRITOS | D56: TERRENOS | E56: 1950-12-01 | F56: 1950-12-01 | G56: 32412.03 | H56: 0 | I56: 0 | L56: 0 | M56: 32412.03 | N56: 1 | O56: 32412.03 | P56: 0 | R56: =IF($O56<=0,0,IF(($O56-SUM($Q56:Q56))<$P56,$O56-SUM($Q56:Q56),IF(SUM($Q56:Q56)<$O56,$P56,0))) -> 0 | S56: =IF($O56<=0,0,IF(($O56-SUM($Q56:R56))<$P56,$O56-SUM($Q56:R56),IF(SUM($Q56:R56)<$O56,$P56,0))) -> 0 | T56: =IF($O56<=0,0,IF(($O56-SUM($Q56:S56))<$P56,$O56-SUM($Q56:S56),IF(SUM($Q56:S56)<$O56,$P56,0))) -> 0
B57: AERONAVEGACIÓN | C57: TERRENOS INSCRITOS | D57: TERRENOS | E57: 1950-12-01 | F57: 1950-12-01 | G57: 1822.75 | H57: 0 | I57: 0 | L57: 0 | M57: 1822.75 | N57: 1 | O57: 1822.75 | P57: 0 | R57: =IF($O57<=0,0,IF(($O57-SUM($Q57:Q57))<$P57,$O57-SUM($Q57:Q57),IF(SUM($Q57:Q57)<$O57,$P57,0))) -> 0 | S57: =IF($O57<=0,0,IF(($O57-SUM($Q57:R57))<$P57,$O57-SUM($Q57:R57),IF(SUM($Q57:R57)<$O57,$P57,0))) -> 0 | T57: =IF($O57<=0,0,IF(($O57-SUM($Q57:S57))<$P57,$O57-SUM($Q57:S57),IF(SUM($Q57:S57)<$O57,$P57,0))) -> 0
B58: AERONAVEGACIÓN/AEROPORTUARIO | C58: TERRENOS INSCRITOS | D58: TERRENOS | E58: 1950-12-01 | F58: 1950-12-01 | G58: 213244.69 | H58: 0 | I58: 0 | L58: 0 | M58: 213244.69 | N58: 0.5 | O58: 106622.345 | P58: 0 | R58: =IF($O58<=0,0,IF(($O58-SUM($Q58:Q58))<$P58,$O58-SUM($Q58:Q58),IF(SUM($Q58:Q58)<$O58,$P58,0))) -> 0 | S58: =IF($O58<=0,0,IF(($O58-SUM($Q58:R58))<$P58,$O58-SUM($Q58:R58),IF(SUM($Q58:R58)<$O58,$P58,0))) -> 0 | T58: =IF($O58<=0,0,IF(($O58-SUM($Q58:S58))<$P58,$O58-SUM($Q58:S58),IF(SUM($Q58:S58)<$O58,$P58,0))) -> 0
B59: AERONAVEGACIÓN/AEROPORTUARIO | C59: TERRENOS INSCRITOS | D59: TERRENOS | E59: 1950-12-01 | F59: 1950-12-01 | G59: 5228369.1 | H59: 0 | I59: 0 | L59: 0 | M59: 5228369.1 | N59: 0.5 | O59: 2614184.55 | P59: 0 | R59: =IF($O59<=0,0,IF(($O59-SUM($Q59:Q59))<$P59,$O59-SUM($Q59:Q59),IF(SUM($Q59:Q59)<$O59,$P59,0))) -> 0 | S59: =IF($O59<=0,0,IF(($O59-SUM($Q59:R59))<$P59,$O59-SUM($Q59:R59),IF(SUM($Q59:R59)<$O59,$P59,0))) -> 0 | T59: =IF($O59<=0,0,IF(($O59-SUM($Q59:S59))<$P59,$O59-SUM($Q59:S59),IF(SUM($Q59:S59)<$O59,$P59,0))) -> 0
B60: AERONAVEGACIÓN/AEROPORTUARIO | C60: TERRENOS INSCRITOS | D60: TERRENOS | E60: 1950-12-01 | F60: 1950-12-01 | G60: 17603.94 | H60: 0 | I60: 0 | L60: 0 | M60: 17603.94 | N60: 0.5 | O60: 8801.97 | P60: 0 | R60: =IF($O60<=0,0,IF(($O60-SUM($Q60:Q60))<$P60,$O60-SUM($Q60:Q60),IF(SUM($Q60:Q60)<$O60,$P60,0))) -> 0 | S60: =IF($O60<=0,0,IF(($O60-SUM($Q60:R60))<$P60,$O60-SUM($Q60:R60),IF(SUM($Q60:R60)<$O60,$P60,0))) -> 0 | T60: =IF($O60<=0,0,IF(($O60-SUM($Q60:S60))<$P60,$O60-SUM($Q60:S60),IF(SUM($Q60:S60)<$O60,$P60,0))) -> 0
B61: AERONAVEGACIÓN | C61: TERRENOS INSCRITOS | D61: TERRENOS | E61: 1950-12-01 | F61: 1950-12-01 | G61: 512640.71 | H61: 0 | I61: 0 | L61: 0 | M61: 512640.71 | N61: 1 | O61: 512640.71 | P61: 0 | R61: =IF($O61<=0,0,IF(($O61-SUM($Q61:Q61))<$P61,$O61-SUM($Q61:Q61),IF(SUM($Q61:Q61)<$O61,$P61,0))) -> 0 | S61: =IF($O61<=0,0,IF(($O61-SUM($Q61:R61))<$P61,$O61-SUM($Q61:R61),IF(SUM($Q61:R61)<$O61,$P61,0))) -> 0 | T61: =IF($O61<=0,0,IF(($O61-SUM($Q61:S61))<$P61,$O61-SUM($Q61:S61),IF(SUM($Q61:S61)<$O61,$P61,0))) -> 0
B62: AERONAVEGACIÓN | C62: TERRENOS INSCRITOS | D62: TERRENOS | E62: 1950-12-01 | F62: 1950-12-01 | G62: 823.85 | H62: 0 | I62: 0 | L62: 0 | M62: 823.85 | N62: 1 | O62: 823.85 | P62: 0 | R62: =IF($O62<=0,0,IF(($O62-SUM($Q62:Q62))<$P62,$O62-SUM($Q62:Q62),IF(SUM($Q62:Q62)<$O62,$P62,0))) -> 0 | S62: =IF($O62<=0,0,IF(($O62-SUM($Q62:R62))<$P62,$O62-SUM($Q62:R62),IF(SUM($Q62:R62)<$O62,$P62,0))) -> 0 | T62: =IF($O62<=0,0,IF(($O62-SUM($Q62:S62))<$P62,$O62-SUM($Q62:S62),IF(SUM($Q62:S62)<$O62,$P62,0))) -> 0
B63: AERONAVEGACIÓN/AEROPORTUARIO | C63: TERRENOS INSCRITOS | D63: TERRENOS | E63: 1950-12-01 | F63: 1950-12-01 | G63: 7566459.57 | H63: 0 | I63: 0 | L63: 0 | M63: 7566459.57 | N63: 0.33 | O63: 2496931.658 | P63: 0 | R63: =IF($O63<=0,0,IF(($O63-SUM($Q63:Q63))<$P63,$O63-SUM($Q63:Q63),IF(SUM($Q63:Q63)<$O63,$P63,0))) -> 0 | S63: =IF($O63<=0,0,IF(($O63-SUM($Q63:R63))<$P63,$O63-SUM($Q63:R63),IF(SUM($Q63:R63)<$O63,$P63,0))) -> 0 | T63: =IF($O63<=0,0,IF(($O63-SUM($Q63:S63))<$P63,$O63-SUM($Q63:S63),IF(SUM($Q63:S63)<$O63,$P63,0))) -> 0
B64: AERONAVEGACIÓN/AEROPORTUARIO | C64: TERRENOS INSCRITOS | D64: TERRENOS | E64: 1950-12-01 | F64: 1950-12-01 | G64: 777.71 | H64: 0 | I64: 0 | L64: 0 | M64: 777.71 | N64: 0.33 | O64: 256.6443 | P64: 0 | R64: =IF($O64<=0,0,IF(($O64-SUM($Q64:Q64))<$P64,$O64-SUM($Q64:Q64),IF(SUM($Q64:Q64)<$O64,$P64,0))) -> 0 | S64: =IF($O64<=0,0,IF(($O64-SUM($Q64:R64))<$P64,$O64-SUM($Q64:R64),IF(SUM($Q64:R64)<$O64,$P64,0))) -> 0 | T64: =IF($O64<=0,0,IF(($O64-SUM($Q64:S64))<$P64,$O64-SUM($Q64:S64),IF(SUM($Q64:S64)<$O64,$P64,0))) -> 0
B65: AERONAVEGACIÓN/AEROPORTUARIO | C65: TERRENOS INSCRITOS | D65: TERRENOS | E65: 1950-12-01 | F65: 1950-12-01 | G65: 1147758.12 | H65: 0 | I65: 0 | L65: 0 | M65: 1147758.12 | N65: 0.5 | O65: 573879.06 | P65: 0 | R65: =IF($O65<=0,0,IF(($O65-SUM($Q65:Q65))<$P65,$O65-SUM($Q65:Q65),IF(SUM($Q65:Q65)<$O65,$P65,0))) -> 0 | S65: =IF($O65<=0,0,IF(($O65-SUM($Q65:R65))<$P65,$O65-SUM($Q65:R65),IF(SUM($Q65:R65)<$O65,$P65,0))) -> 0 | T65: =IF($O65<=0,0,IF(($O65-SUM($Q65:S65))<$P65,$O65-SUM($Q65:S65),IF(SUM($Q65:S65)<$O65,$P65,0))) -> 0
B66: AERONAVEGACIÓN/AEROPORTUARIO | C66: TERRENOS INSCRITOS | D66: TERRENOS | E66: 1950-12-01 | F66: 1950-12-01 | G66: 60408.32 | H66: 0 | I66: 0 | L66: 0 | M66: 60408.32 | N66: 0.5 | O66: 30204.16 | P66: 0 | R66: =IF($O66<=0,0,IF(($O66-SUM($Q66:Q66))<$P66,$O66-SUM($Q66:Q66),IF(SUM($Q66:Q66)<$O66,$P66,0))) -> 0 | S66: =IF($O66<=0,0,IF(($O66-SUM($Q66:R66))<$P66,$O66-SUM($Q66:R66),IF(SUM($Q66:R66)<$O66,$P66,0))) -> 0 | T66: =IF($O66<=0,0,IF(($O66-SUM($Q66:S66))<$P66,$O66-SUM($Q66:S66),IF(SUM($Q66:S66)<$O66,$P66,0))) -> 0
B67: AERONAVEGACIÓN/AEROPORTUARIO | C67: TERRENOS INSCRITOS | D67: TERRENOS | E67: 1950-12-01 | F67: 1950-12-01 | G67: 260420.14 | H67: 0 | I67: 0 | L67: 0 | M67: 260420.14 | N67: 0.5 | O67: 130210.07 | P67: 0 | R67: =IF($O67<=0,0,IF(($O67-SUM($Q67:Q67))<$P67,$O67-SUM($Q67:Q67),IF(SUM($Q67:Q67)<$O67,$P67,0))) -> 0 | S67: =IF($O67<=0,0,IF(($O67-SUM($Q67:R67))<$P67,$O67-SUM($Q67:R67),IF(SUM($Q67:R67)<$O67,$P67,0))) -> 0 | T67: =IF($O67<=0,0,IF(($O67-SUM($Q67:S67))<$P67,$O67-SUM($Q67:S67),IF(SUM($Q67:S67)<$O67,$P67,0))) -> 0
B68: AERONAVEGACIÓN/AEROPORTUARIO | C68: TERRENOS INSCRITOS | D68: TERRENOS | E68: 1950-12-01 | F68: 1950-12-01 | G68: 2630.51 | H68: 0 | I68: 0 | L68: 0 | M68: 2630.51 | N68: 0.5 | O68: 1315.255 | P68: 0 | R68: =IF($O68<=0,0,IF(($O68-SUM($Q68:Q68))<$P68,$O68-SUM($Q68:Q68),IF(SUM($Q68:Q68)<$O68,$P68,0))) -> 0 | S68: =IF($O68<=0,0,IF(($O68-SUM($Q68:R68))<$P68,$O68-SUM($Q68:R68),IF(SUM($Q68:R68)<$O68,$P68,0))) -> 0 | T68: =IF($O68<=0,0,IF(($O68-SUM($Q68:S68))<$P68,$O68-SUM($Q68:S68),IF(SUM($Q68:S68)<$O68,$P68,0))) -> 0
B69: AERONAVEGACIÓN | C69: TERRENOS INSCRITOS | D69: TERRENOS | E69: 1950-12-01 | F69: 1950-12-01 | G69: 1661.87 | H69: 0 | I69: 0 | L69: 0 | M69: 1661.87 | N69: =+IF(B69=$B$7,100%,50%) -> 1 | O69: 1661.87 | P69: 0 | R69: =IF($O69<=0,0,IF(($O69-SUM($Q69:Q69))<$P69,$O69-SUM($Q69:Q69),IF(SUM($Q69:Q69)<$O69,$P69,0))) -> 0 | S69: =IF($O69<=0,0,IF(($O69-SUM($Q69:R69))<$P69,$O69-SUM($Q69:R69),IF(SUM($Q69:R69)<$O69,$P69,0))) -> 0 | T69: =IF($O69<=0,0,IF(($O69-SUM($Q69:S69))<$P69,$O69-SUM($Q69:S69),IF(SUM($Q69:S69)<$O69,$P69,0))) -> 0
B70: AERONAVEGACIÓN | C70: TERRENOS INSCRITOS | D70: TERRENOS | E70: 1950-12-01 | F70: 1950-12-01 | G70: 93.46 | H70: 0 | I70: 0 | L70: 0 | M70: =+G70-H70-I70-J70-L70 -> 93.46 | N70: 1 | O70: =+M70*N70 -> 93.46 | P70: =+(H70+L70)*N70 -> 0 | R70: =IF($O70<=0,0,IF(($O70-SUM($Q70:Q70))<$P70,$O70-SUM($Q70:Q70),IF(SUM($Q70:Q70)<$O70,$P70,0))) -> 0 | S70: =IF($O70<=0,0,IF(($O70-SUM($Q70:R70))<$P70,$O70-SUM($Q70:R70),IF(SUM($Q70:R70)<$O70,$P70,0))) -> 0 | T70: =IF($O70<=0,0,IF(($O70-SUM($Q70:S70))<$P70,$O70-SUM($Q70:S70),IF(SUM($Q70:S70)<$O70,$P70,0))) -> 0
B71: AERONAVEGACIÓN | C71: TERRENOS INSCRITOS | D71: TERRENOS | E71: 1950-12-01 | F71: 1950-12-01 | G71: 42329.63 | H71: 0 | I71: 0 | L71: 0 | M71: 42329.63 | N71: 1 | O71: 42329.63 | P71: 0 | R71: =IF($O71<=0,0,IF(($O71-SUM($Q71:Q71))<$P71,$O71-SUM($Q71:Q71),IF(SUM($Q71:Q71)<$O71,$P71,0))) -> 0 | S71: =IF($O71<=0,0,IF(($O71-SUM($Q71:R71))<$P71,$O71-SUM($Q71:R71),IF(SUM($Q71:R71)<$O71,$P71,0))) -> 0 | T71: =IF($O71<=0,0,IF(($O71-SUM($Q71:S71))<$P71,$O71-SUM($Q71:S71),IF(SUM($Q71:S71)<$O71,$P71,0))) -> 0
B72: AERONAVEGACIÓN | C72: TERRENOS INSCRITOS | D72: TERRENOS | E72: 1950-12-01 | F72: 1950-12-01 | G72: 576.73 | H72: 0 | I72: 0 | L72: 0 | M72: 576.73 | N72: 1 | O72: 576.73 | P72: 0 | R72: =IF($O72<=0,0,IF(($O72-SUM($Q72:Q72))<$P72,$O72-SUM($Q72:Q72),IF(SUM($Q72:Q72)<$O72,$P72,0))) -> 0 | S72: =IF($O72<=0,0,IF(($O72-SUM($Q72:R72))<$P72,$O72-SUM($Q72:R72),IF(SUM($Q72:R72)<$O72,$P72,0))) -> 0 | T72: =IF($O72<=0,0,IF(($O72-SUM($Q72:S72))<$P72,$O72-SUM($Q72:S72),IF(SUM($Q72:S72)<$O72,$P72,0))) -> 0
B73: AERONAVEGACIÓN | C73: TERRENOS INSCRITOS | D73: TERRENOS | E73: 1950-12-01 | F73: 1950-12-01 | G73: 48427.44 | H73: 0 | I73: 0 | L73: 0 | M73: 48427.44 | N73: 1 | O73: 48427.44 | P73: 0 | R73: =IF($O73<=0,0,IF(($O73-SUM($Q73:Q73))<$P73,$O73-SUM($Q73:Q73),IF(SUM($Q73:Q73)<$O73,$P73,0))) -> 0 | S73: =IF($O73<=0,0,IF(($O73-SUM($Q73:R73))<$P73,$O73-SUM($Q73:R73),IF(SUM($Q73:R73)<$O73,$P73,0))) -> 0 | T73: =IF($O73<=0,0,IF(($O73-SUM($Q73:S73))<$P73,$O73-SUM($Q73:S73),IF(SUM($Q73:S73)<$O73,$P73,0))) -> 0
B74: AERONAVEGACIÓN | C74: TERRENOS INSCRITOS | D74: TERRENOS | E74: 1950-12-01 | F74: 1950-12-01 | G74: 489.17 | H74: 0 | I74: 0 | L74: 0 | M74: 489.17 | N74: 1 | O74: 489.17 | P74: 0 | R74: =IF($O74<=0,0,IF(($O74-SUM($Q74:Q74))<$P74,$O74-SUM($Q74:Q74),IF(SUM($Q74:Q74)<$O74,$P74,0))) -> 0 | S74: =IF($O74<=0,0,IF(($O74-SUM($Q74:R74))<$P74,$O74-SUM($Q74:R74),IF(SUM($Q74:R74)<$O74,$P74,0))) -> 0 | T74: =IF($O74<=0,0,IF(($O74-SUM($Q74:S74))<$P74,$O74-SUM($Q74:S74),IF(SUM($Q74:S74)<$O74,$P74,0))) -> 0
B75: AERONAVEGACIÓN | C75: TERRENOS INSCRITOS | D75: TERRENOS | E75: 1950-12-01 | F75: 1950-12-01 | G75: 7596.65 | H75: 0 | I75: 0 | L75: 0 | M75: 7596.65 | N75: 1 | O75: 7596.65 | P75: 0 | R75: =IF($O75<=0,0,IF(($O75-SUM($Q75:Q75))<$P75,$O75-SUM($Q75:Q75),IF(SUM($Q75:Q75)<$O75,$P75,0))) -> 0 | S75: =IF($O75<=0,0,IF(($O75-SUM($Q75:R75))<$P75,$O75-SUM($Q75:R75),IF(SUM($Q75:R75)<$O75,$P75,0))) -> 0 | T75: =IF($O75<=0,0,IF(($O75-SUM($Q75:S75))<$P75,$O75-SUM($Q75:S75),IF(SUM($Q75:S75)<$O75,$P75,0))) -> 0
B76: AERONAVEGACIÓN | C76: TERRENOS INSCRITOS | D76: TERRENOS | E76: 1950-12-01 | F76: 1950-12-01 | G76: 427.21 | H76: 0 | I76: 0 | L76: 0 | M76: 427.21 | N76: 1 | O76: 427.21 | P76: 0 | R76: =IF($O76<=0,0,IF(($O76-SUM($Q76:Q76))<$P76,$O76-SUM($Q76:Q76),IF(SUM($Q76:Q76)<$O76,$P76,0))) -> 0 | S76: =IF($O76<=0,0,IF(($O76-SUM($Q76:R76))<$P76,$O76-SUM($Q76:R76),IF(SUM($Q76:R76)<$O76,$P76,0))) -> 0 | T76: =IF($O76<=0,0,IF(($O76-SUM($Q76:S76))<$P76,$O76-SUM($Q76:S76),IF(SUM($Q76:S76)<$O76,$P76,0))) -> 0
B77: AERONAVEGACIÓN/AEROPORTUARIO | C77: TERRENOS INSCRITOS | D77: TERRENOS | E77: 1950-12-01 | F77: 1950-12-01 | G77: 986886.48 | H77: 0 | I77: 0 | L77: 0 | M77: 986886.48 | N77: 0.5 | O77: 493443.24 | P77: 0 | R77: =IF($O77<=0,0,IF(($O77-SUM($Q77:Q77))<$P77,$O77-SUM($Q77:Q77),IF(SUM($Q77:Q77)<$O77,$P77,0))) -> 0 | S77: =IF($O77<=0,0,IF(($O77-SUM($Q77:R77))<$P77,$O77-SUM($Q77:R77),IF(SUM($Q77:R77)<$O77,$P77,0))) -> 0 | T77: =IF($O77<=0,0,IF(($O77-SUM($Q77:S77))<$P77,$O77-SUM($Q77:S77),IF(SUM($Q77:S77)<$O77,$P77,0))) -> 0
B78: AERONAVEGACIÓN/AEROPORTUARIO | C78: TERRENOS INSCRITOS | D78: TERRENOS | E78: 1950-12-01 | F78: 1950-12-01 | G78: 43612.41 | H78: 0 | I78: 0 | L78: 0 | M78: 43612.41 | N78: 0.5 | O78: 21806.205 | P78: 0 | R78: =IF($O78<=0,0,IF(($O78-SUM($Q78:Q78))<$P78,$O78-SUM($Q78:Q78),IF(SUM($Q78:Q78)<$O78,$P78,0))) -> 0 | S78: =IF($O78<=0,0,IF(($O78-SUM($Q78:R78))<$P78,$O78-SUM($Q78:R78),IF(SUM($Q78:R78)<$O78,$P78,0))) -> 0 | T78: =IF($O78<=0,0,IF(($O78-SUM($Q78:S78))<$P78,$O78-SUM($Q78:S78),IF(SUM($Q78:S78)<$O78,$P78,0))) -> 0
B79: AERONAVEGACIÓN/AEROPORTUARIO | C79: EDIFICIOS EN AEROPUERTOS-Administrativas | D79: EDIFICACIONES Y CONSTRUCCIONES | E79: 1977-01-31 | F79: 1977-01-31 | G79: 104131.31 | H79: 4752.02 | I79: 0 | L79: 0 | M79: 99379.29 | N79: 0.5 | O79: 49689.645 | P79: 2376.01 | R79: =IF($O79<=0,0,IF(($O79-SUM($Q79:Q79))<$P79,$O79-SUM($Q79:Q79),IF(SUM($Q79:Q79)<$O79,$P79,0))) -> 2376.01 | S79: =IF($O79<=0,0,IF(($O79-SUM($Q79:R79))<$P79,$O79-SUM($Q79:R79),IF(SUM($Q79:R79)<$O79,$P79,0))) -> 2376.01 | T79: =IF($O79<=0,0,IF(($O79-SUM($Q79:S79))<$P79,$O79-SUM($Q79:S79),IF(SUM($Q79:S79)<$O79,$P79,0))) -> 2376.01
B80: AERONAVEGACIÓN | C80: EDIFICIOS EN AEROPUERTOS-Administrativas | D80: EDIFICACIONES Y CONSTRUCCIONES | E80: 1977-12-31 | F80: 1977-12-31 | G80: 104131.31 | H80: 4752.02 | I80: 0 | L80: 0 | M80: 99379.29 | N80: 1 | O80: 99379.29 | P80: 4752.02 | R80: =IF($O80<=0,0,IF(($O80-SUM($Q80:Q80))<$P80,$O80-SUM($Q80:Q80),IF(SUM($Q80:Q80)<$O80,$P80,0))) -> 4752.02 | S80: =IF($O80<=0,0,IF(($O80-SUM($Q80:R80))<$P80,$O80-SUM($Q80:R80),IF(SUM($Q80:R80)<$O80,$P80,0))) -> 4752.02 | T80: =IF($O80<=0,0,IF(($O80-SUM($Q80:S80))<$P80,$O80-SUM($Q80:S80),IF(SUM($Q80:S80)<$O80,$P80,0))) -> 4752.02
B81: AERONAVEGACIÓN/AEROPORTUARIO | C81: EDIFICIOS EN AEROPUERTOS-Administrativas | D81: EDIFICACIONES Y CONSTRUCCIONES | E81: 1977-01-31 | F81: 1977-01-31 | G81: 328589.89 | H81: 14995.17 | I81: 0 | L81: 0 | M81: 313594.72 | N81: 0.5 | O81: 156797.36 | P81: 7497.585 | R81: =IF($O81<=0,0,IF(($O81-SUM($Q81:Q81))<$P81,$O81-SUM($Q81:Q81),IF(SUM($Q81:Q81)<$O81,$P81,0))) -> 7497.585 | S81: =IF($O81<=0,0,IF(($O81-SUM($Q81:R81))<$P81,$O81-SUM($Q81:R81),IF(SUM($Q81:R81)<$O81,$P81,0))) -> 7497.585 | T81: =IF($O81<=0,0,IF(($O81-SUM($Q81:S81))<$P81,$O81-SUM($Q81:S81),IF(SUM($Q81:S81)<$O81,$P81,0))) -> 7497.585
B82: AERONAVEGACIÓN | C82: EDIFICIOS EN AEROPUERTOS-Administrativas | D82: EDIFICACIONES Y CONSTRUCCIONES | E82: 1979-12-31 | F82: 1979-12-31 | G82: 19962.72 | H82: 1180.39 | I82: 0 | L82: 0 | M82: 18782.33 | N82: 1 | O82: 18782.33 | P82: 1180.39 | R82: =IF($O82<=0,0,IF(($O82-SUM($Q82:Q82))<$P82,$O82-SUM($Q82:Q82),IF(SUM($Q82:Q82)<$O82,$P82,0))) -> 1180.39 | S82: =IF($O82<=0,0,IF(($O82-SUM($Q82:R82))<$P82,$O82-SUM($Q82:R82),IF(SUM($Q82:R82)<$O82,$P82,0))) -> 1180.39 | T82: =IF($O82<=0,0,IF(($O82-SUM($Q82:S82))<$P82,$O82-SUM($Q82:S82),IF(SUM($Q82:S82)<$O82,$P82,0))) -> 1180.39
B83: AERONAVEGACIÓN/AEROPORTUARIO | C83: EDIFICIOS EN AEROPUERTOS-Administrativas | D83: EDIFICACIONES Y CONSTRUCCIONES | E83: 1977-01-31 | F83: 1977-01-31 | G83: 104131.31 | H83: 4752.02 | I83: 0 | L83: 0 | M83: 99379.29 | N83: 0.5 | O83: 49689.645 | P83: 2376.01 | R83: =IF($O83<=0,0,IF(($O83-SUM($Q83:Q83))<$P83,$O83-SUM($Q83:Q83),IF(SUM($Q83:Q83)<$O83,$P83,0))) -> 2376.01 | S83: =IF($O83<=0,0,IF(($O83-SUM($Q83:R83))<$P83,$O83-SUM($Q83:R83),IF(SUM($Q83:R83)<$O83,$P83,0))) -> 2376.01 | T83: =IF($O83<=0,0,IF(($O83-SUM($Q83:S83))<$P83,$O83-SUM($Q83:S83),IF(SUM($Q83:S83)<$O83,$P83,0))) -> 2376.01
B84: AERONAVEGACIÓN/AEROPORTUARIO | C84: EDIFICIOS EN AEROPUERTOS-Administrativas | D84: EDIFICACIONES Y CONSTRUCCIONES | E84: 1977-01-31 | F84: 1977-01-31 | G84: 104131.31 | H84: 4752.02 | I84: 0 | L84: 0 | M84: 99379.29 | N84: 0.5 | O84: 49689.645 | P84: 2376.01 | R84: =IF($O84<=0,0,IF(($O84-SUM($Q84:Q84))<$P84,$O84-SUM($Q84:Q84),IF(SUM($Q84:Q84)<$O84,$P84,0))) -> 2376.01 | S84: =IF($O84<=0,0,IF(($O84-SUM($Q84:R84))<$P84,$O84-SUM($Q84:R84),IF(SUM($Q84:R84)<$O84,$P84,0))) -> 2376.01 | T84: =IF($O84<=0,0,IF(($O84-SUM($Q84:S84))<$P84,$O84-SUM($Q84:S84),IF(SUM($Q84:S84)<$O84,$P84,0))) -> 2376.01
B85: AERONAVEGACIÓN | C85: EDIFICIOS EN AEROPUERTOS-Administrativas | D85: EDIFICACIONES Y CONSTRUCCIONES | E85: 1977-01-31 | F85: 1977-01-31 | G85: 0 | H85: 0 | I85: 0 | L85: 0 | M85: 0 | N85: 1 | O85: 0 | P85: 0 | R85: =IF($O85<=0,0,IF(($O85-SUM($Q85:Q85))<$P85,$O85-SUM($Q85:Q85),IF(SUM($Q85:Q85)<$O85,$P85,0))) -> 0 | S85: =IF($O85<=0,0,IF(($O85-SUM($Q85:R85))<$P85,$O85-SUM($Q85:R85),IF(SUM($Q85:R85)<$O85,$P85,0))) -> 0 | T85: =IF($O85<=0,0,IF(($O85-SUM($Q85:S85))<$P85,$O85-SUM($Q85:S85),IF(SUM($Q85:S85)<$O85,$P85,0))) -> 0
B86: AERONAVEGACIÓN | C86: PISTAS DE ATERRIZAJE Y CALLES DE RODAJE | D86: EDIFICACIONES Y CONSTRUCCIONES | E86: 1975-12-31 | F86: 1975-12-31 | G86: 189.95 | H86: 21.33 | I86: 0 | L86: 0 | M86: 168.62 | N86: 1 | O86: 168.62 | P86: 21.33 | R86: =IF($O86<=0,0,IF(($O86-SUM($Q86:Q86))<$P86,$O86-SUM($Q86:Q86),IF(SUM($Q86:Q86)<$O86,$P86,0))) -> 21.33 | S86: =IF($O86<=0,0,IF(($O86-SUM($Q86:R86))<$P86,$O86-SUM($Q86:R86),IF(SUM($Q86:R86)<$O86,$P86,0))) -> 21.33 | T86: =IF($O86<=0,0,IF(($O86-SUM($Q86:S86))<$P86,$O86-SUM($Q86:S86),IF(SUM($Q86:S86)<$O86,$P86,0))) -> 21.33
B87: AERONAVEGACIÓN/AEROPORTUARIO | C87: EDIFICIOS EN AEROPUERTOS-Administrativas | D87: EDIFICACIONES Y CONSTRUCCIONES | E87: 1981-12-31 | F87: 1981-12-31 | G87: 41104.46 | H87: 1875.8 | I87: 0 | L87: 0 | M87: 39228.66 | N87: 0.5 | O87: 19614.33 | P87: 937.9 | R87: =IF($O87<=0,0,IF(($O87-SUM($Q87:Q87))<$P87,$O87-SUM($Q87:Q87),IF(SUM($Q87:Q87)<$O87,$P87,0))) -> 937.9 | S87: =IF($O87<=0,0,IF(($O87-SUM($Q87:R87))<$P87,$O87-SUM($Q87:R87),IF(SUM($Q87:R87)<$O87,$P87,0))) -> 937.9 | T87: =IF($O87<=0,0,IF(($O87-SUM($Q87:S87))<$P87,$O87-SUM($Q87:S87),IF(SUM($Q87:S87)<$O87,$P87,0))) -> 937.9
B88: AERONAVEGACIÓN/AEROPORTUARIO | C88: EDIFICIOS EN AEROPUERTOS-Administrativas | D88: EDIFICACIONES Y CONSTRUCCIONES | E88: 1979-12-31 | F88: 1979-12-31 | G88: 104131.31 | H88: 4752.02 | I88: 0 | L88: 0 | M88: 99379.29 | N88: 0.5 | O88: 49689.645 | P88: 2376.01 | R88: =IF($O88<=0,0,IF(($O88-SUM($Q88:Q88))<$P88,$O88-SUM($Q88:Q88),IF(SUM($Q88:Q88)<$O88,$P88,0))) -> 2376.01 | S88: =IF($O88<=0,0,IF(($O88-SUM($Q88:R88))<$P88,$O88-SUM($Q88:R88),IF(SUM($Q88:R88)<$O88,$P88,0))) -> 2376.01 | T88: =IF($O88<=0,0,IF(($O88-SUM($Q88:S88))<$P88,$O88-SUM($Q88:S88),IF(SUM($Q88:S88)<$O88,$P88,0))) -> 2376.01
B89: AERONAVEGACIÓN | C89: EQUIPOS DE BALIZAJE E ILUMINACION DE PISTA(333610, 333910 Y | D89: MAQUINARIA Y EQUIPO | E89: 1991-12-31 | F89: 1991-12-31 | G89: 0 | H89: 0 | I89: 0 | L89: 0 | M89: 0 | N89: 1 | O89: 0 | P89: 0 | R89: =IF($O89<=0,0,IF(($O89-SUM($Q89:Q89))<$P89,$O89-SUM($Q89:Q89),IF(SUM($Q89:Q89)<$O89,$P89,0))) -> 0 | S89: =IF($O89<=0,0,IF(($O89-SUM($Q89:R89))<$P89,$O89-SUM($Q89:R89),IF(SUM($Q89:R89)<$O89,$P89,0))) -> 0 | T89: =IF($O89<=0,0,IF(($O89-SUM($Q89:S89))<$P89,$O89-SUM($Q89:S89),IF(SUM($Q89:S89)<$O89,$P89,0))) -> 0
B90: AERONAVEGACIÓN/AEROPORTUARIO | C90: EDIFICIOS EN AEROPUERTOS-Administrativas | D90: EDIFICACIONES Y CONSTRUCCIONES | E90: 1979-12-31 | F90: 1979-12-31 | G90: 104131.31 | H90: 4752.02 | I90: 0 | L90: 0 | M90: 99379.29 | N90: 0.5 | O90: 49689.645 | P90: 2376.01 | R90: =IF($O90<=0,0,IF(($O90-SUM($Q90:Q90))<$P90,$O90-SUM($Q90:Q90),IF(SUM($Q90:Q90)<$O90,$P90,0))) -> 2376.01 | S90: =IF($O90<=0,0,IF(($O90-SUM($Q90:R90))<$P90,$O90-SUM($Q90:R90),IF(SUM($Q90:R90)<$O90,$P90,0))) -> 2376.01 | T90: =IF($O90<=0,0,IF(($O90-SUM($Q90:S90))<$P90,$O90-SUM($Q90:S90),IF(SUM($Q90:S90)<$O90,$P90,0))) -> 2376.01
B91: AERONAVEGACIÓN/AEROPORTUARIO | C91: Instalaciones | D91: EDIFICACIONES Y CONSTRUCCIONES | E91: 2000-03-02 | F91: 2000-03-02 | G91: 6194.71 | H91: 695.47 | I91: 0 | L91: 0 | M91: 5499.24 | N91: 0.5 | O91: 2749.62 | P91: 347.735 | R91: =IF($O91<=0,0,IF(($O91-SUM($Q91:Q91))<$P91,$O91-SUM($Q91:Q91),IF(SUM($Q91:Q91)<$O91,$P91,0))) -> 347.735 | S91: =IF($O91<=0,0,IF(($O91-SUM($Q91:R91))<$P91,$O91-SUM($Q91:R91),IF(SUM($Q91:R91)<$O91,$P91,0))) -> 347.735 | T91: =IF($O91<=0,0,IF(($O91-SUM($Q91:S91))<$P91,$O91-SUM($Q91:S91),IF(SUM($Q91:S91)<$O91,$P91,0))) -> 347.735
B92: AERONAVEGACIÓN/AEROPORTUARIO | C92: EDIFICIOS EN AEROPUERTOS-Administrativas | D92: EDIFICACIONES Y CONSTRUCCIONES | E92: 1995-08-15 | F92: 1995-08-15 | G92: 4886.65 | H92: 223 | I92: 0 | L92: 0 | M92: 4663.65 | N92: 0.5 | O92: 2331.825 | P92: 111.5 | R92: =IF($O92<=0,0,IF(($O92-SUM($Q92:Q92))<$P92,$O92-SUM($Q92:Q92),IF(SUM($Q92:Q92)<$O92,$P92,0))) -> 111.5 | S92: =IF($O92<=0,0,IF(($O92-SUM($Q92:R92))<$P92,$O92-SUM($Q92:R92),IF(SUM($Q92:R92)<$O92,$P92,0))) -> 111.5 | T92: =IF($O92<=0,0,IF(($O92-SUM($Q92:S92))<$P92,$O92-SUM($Q92:S92),IF(SUM($Q92:S92)<$O92,$P92,0))) -> 111.5
B93: AERONAVEGACIÓN/AEROPORTUARIO | C93: Instalaciones | D93: EDIFICACIONES Y CONSTRUCCIONES | E93: 1995-08-28 | F93: 1995-08-28 | G93: 32047.74 | H93: 1462.5 | I93: 0 | L93: 0 | M93: 30585.24 | N93: 0.5 | O93: 15292.62 | P93: 731.25 | R93: =IF($O93<=0,0,IF(($O93-SUM($Q93:Q93))<$P93,$O93-SUM($Q93:Q93),IF(SUM($Q93:Q93)<$O93,$P93,0))) -> 731.25 | S93: =IF($O93<=0,0,IF(($O93-SUM($Q93:R93))<$P93,$O93-SUM($Q93:R93),IF(SUM($Q93:R93)<$O93,$P93,0))) -> 731.25 | T93: =IF($O93<=0,0,IF(($O93-SUM($Q93:S93))<$P93,$O93-SUM($Q93:S93),IF(SUM($Q93:S93)<$O93,$P93,0))) -> 731.25
B94: AERONAVEGACIÓN/AEROPORTUARIO | C94: EDIFICIOS EN AEROPUERTOS-Administrativas | D94: EDIFICACIONES Y CONSTRUCCIONES | E94: 1995-09-05 | F94: 1995-09-05 | G94: 28163.46 | H94: 1285.24 | I94: 0 | L94: 0 | M94: 26878.22 | N94: 0.5 | O94: 13439.11 | P94: 642.62 | R94: =IF($O94<=0,0,IF(($O94-SUM($Q94:Q94))<$P94,$O94-SUM($Q94:Q94),IF(SUM($Q94:Q94)<$O94,$P94,0))) -> 642.62 | S94: =IF($O94<=0,0,IF(($O94-SUM($Q94:R94))<$P94,$O94-SUM($Q94:R94),IF(SUM($Q94:R94)<$O94,$P94,0))) -> 642.62 | T94: =IF($O94<=0,0,IF(($O94-SUM($Q94:S94))<$P94,$O94-SUM($Q94:S94),IF(SUM($Q94:S94)<$O94,$P94,0))) -> 642.62
B95: AERONAVEGACIÓN | C95: OTRAS EDIFICACIONES (NUEVO) | D95: EDIFICACIONES Y CONSTRUCCIONES | E95: 2001-01-29 | F95: 2001-01-29 | G95: 17076.35 | H95: 953.34 | I95: 0 | L95: 0 | M95: 16123.01 | N95: 1 | O95: 16123.01 | P95: 953.34 | R95: =IF($O95<=0,0,IF(($O95-SUM($Q95:Q95))<$P95,$O95-SUM($Q95:Q95),IF(SUM($Q95:Q95)<$O95,$P95,0))) -> 953.34 | S95: =IF($O95<=0,0,IF(($O95-SUM($Q95:R95))<$P95,$O95-SUM($Q95:R95),IF(SUM($Q95:R95)<$O95,$P95,0))) -> 953.34 | T95: =IF($O95<=0,0,IF(($O95-SUM($Q95:S95))<$P95,$O95-SUM($Q95:S95),IF(SUM($Q95:S95)<$O95,$P95,0))) -> 953.34
B96: AERONAVEGACIÓN | C96: EDIFICIOS EN AEROPUERTOS-Administrativas | D96: EDIFICACIONES Y CONSTRUCCIONES | E96: 2000-08-19 | F96: 2000-08-19 | G96: 14184.21 | H96: 891.44 | I96: 0 | L96: 0 | M96: 13292.77 | N96: 1 | O96: 13292.77 | P96: 891.44 | R96: =IF($O96<=0,0,IF(($O96-SUM($Q96:Q96))<$P96,$O96-SUM($Q96:Q96),IF(SUM($Q96:Q96)<$O96,$P96,0))) -> 891.44 | S96: =IF($O96<=0,0,IF(($O96-SUM($Q96:R96))<$P96,$O96-SUM($Q96:R96),IF(SUM($Q96:R96)<$O96,$P96,0))) -> 891.44 | T96: =IF($O96<=0,0,IF(($O96-SUM($Q96:S96))<$P96,$O96-SUM($Q96:S96),IF(SUM($Q96:S96)<$O96,$P96,0))) -> 891.44
B97: AERONAVEGACIÓN | C97: PISTAS DE ATERRIZAJE Y CALLES DE RODAJE | D97: EDIFICACIONES Y CONSTRUCCIONES | E97: 1995-10-09 | F97: 1995-10-09 | G97: 22695.31 | H97: 1035.7 | I97: 0 | L97: 0 | M97: 21659.61 | N97: 1 | O97: 21659.61 | P97: 1035.7 | R97: =IF($O97<=0,0,IF(($O97-SUM($Q97:Q97))<$P97,$O97-SUM($Q97:Q97),IF(SUM($Q97:Q97)<$O97,$P97,0))) -> 1035.7 | S97: =IF($O97<=0,0,IF(($O97-SUM($Q97:R97))<$P97,$O97-SUM($Q97:R97),IF(SUM($Q97:R97)<$O97,$P97,0))) -> 1035.7 | T97: =IF($O97<=0,0,IF(($O97-SUM($Q97:S97))<$P97,$O97-SUM($Q97:S97),IF(SUM($Q97:S97)<$O97,$P97,0))) -> 1035.7
B98: AERONAVEGACIÓN | C98: CERCOS PERIMETRICOS DE AEROPUERTOS Y AERODROMOS | D98: EDIFICACIONES Y CONSTRUCCIONES | E98: 1996-01-14 | F98: 1996-01-14 | G98: 16544.73 | H98: 1109.55 | I98: 0 | L98: 0 | M98: 15435.18 | N98: 1 | O98: 15435.18 | P98: 1109.55 | R98: =IF($O98<=0,0,IF(($O98-SUM($Q98:Q98))<$P98,$O98-SUM($Q98:Q98),IF(SUM($Q98:Q98)<$O98,$P98,0))) -> 1109.55 | S98: =IF($O98<=0,0,IF(($O98-SUM($Q98:R98))<$P98,$O98-SUM($Q98:R98),IF(SUM($Q98:R98)<$O98,$P98,0))) -> 1109.55 | T98: =IF($O98<=0,0,IF(($O98-SUM($Q98:S98))<$P98,$O98-SUM($Q98:S98),IF(SUM($Q98:S98)<$O98,$P98,0))) -> 1109.55
B99: AERONAVEGACIÓN | C99: CERCOS PERIMETRICOS DE AEROPUERTOS Y AERODROMOS | D99: EDIFICACIONES Y CONSTRUCCIONES | E99: 2000-04-07 | F99: 2000-04-07 | G99: 12977.88 | H99: 865.19 | I99: 0 | L99: 0 | M99: 12112.69 | N99: 1 | O99: 12112.69 | P99: 865.19 | R99: =IF($O99<=0,0,IF(($O99-SUM($Q99:Q99))<$P99,$O99-SUM($Q99:Q99),IF(SUM($Q99:Q99)<$O99,$P99,0))) -> 865.19 | S99: =IF($O99<=0,0,IF(($O99-SUM($Q99:R99))<$P99,$O99-SUM($Q99:R99),IF(SUM($Q99:R99)<$O99,$P99,0))) -> 865.19 | T99: =IF($O99<=0,0,IF(($O99-SUM($Q99:S99))<$P99,$O99-SUM($Q99:S99),IF(SUM($Q99:S99)<$O99,$P99,0))) -> 865.19
B100: AERONAVEGACIÓN | C100: CERCOS PERIMETRICOS DE AEROPUERTOS Y AERODROMOS | D100: EDIFICACIONES Y CONSTRUCCIONES | E100: 2000-12-15 | F100: 2000-12-15 | G100: 12977.88 | H100: 865.19 | I100: 0 | L100: 0 | M100: 12112.69 | N100: 1 | O100: 12112.69 | P100: 865.19 | R100: =IF($O100<=0,0,IF(($O100-SUM($Q100:Q100))<$P100,$O100-SUM($Q100:Q100),IF(SUM($Q100:Q100)<$O100,$P100,0))) -> 865.19 | S100: =IF($O100<=0,0,IF(($O100-SUM($Q100:R100))<$P100,$O100-SUM($Q100:R100),IF(SUM($Q100:R100)<$O100,$P100,0))) -> 865.19 | T100: =IF($O100<=0,0,IF(($O100-SUM($Q100:S100))<$P100,$O100-SUM($Q100:S100),IF(SUM($Q100:S100)<$O100,$P100,0))) -> 865.19
B101: AERONAVEGACIÓN | C101: OTRAS EDIFICACIONES (NUEVO) | D101: EDIFICACIONES Y CONSTRUCCIONES | E101: 1995-03-31 | F101: 1995-03-31 | G101: 10558.18 | H101: 589.44 | I101: 0 | L101: 0 | M101: 9968.74 | N101: 1 | O101: 9968.74 | P101: 589.44 | R101: =IF($O101<=0,0,IF(($O101-SUM($Q101:Q101))<$P101,$O101-SUM($Q101:Q101),IF(SUM($Q101:Q101)<$O101,$P101,0))) -> 589.44 | S101: =IF($O101<=0,0,IF(($O101-SUM($Q101:R101))<$P101,$O101-SUM($Q101:R101),IF(SUM($Q101:R101)<$O101,$P101,0))) -> 589.44 | T101: =IF($O101<=0,0,IF(($O101-SUM($Q101:S101))<$P101,$O101-SUM($Q101:S101),IF(SUM($Q101:S101)<$O101,$P101,0))) -> 589.44
B102: AERONAVEGACIÓN/AEROPORTUARIO | C102: CERCOS PERIMETRICOS DE AEROPUERTOS Y AERODROMOS | D102: EDIFICACIONES Y CONSTRUCCIONES | E102: 2001-07-11 | F102: 2001-07-11 | G102: 13658.39 | H102: 623.3 | I102: 0 | L102: 0 | M102: 13035.09 | N102: 0.5 | O102: 6517.545 | P102: 311.65 | R102: =IF($O102<=0,0,IF(($O102-SUM($Q102:Q102))<$P102,$O102-SUM($Q102:Q102),IF(SUM($Q102:Q102)<$O102,$P102,0))) -> 311.65 | S102: =IF($O102<=0,0,IF(($O102-SUM($Q102:R102))<$P102,$O102-SUM($Q102:R102),IF(SUM($Q102:R102)<$O102,$P102,0))) -> 311.65 | T102: =IF($O102<=0,0,IF(($O102-SUM($Q102:S102))<$P102,$O102-SUM($Q102:S102),IF(SUM($Q102:S102)<$O102,$P102,0))) -> 311.65
B103: AERONAVEGACIÓN | C103: OTRAS EDIFICACIONES (NUEVO) | D103: EDIFICACIONES Y CONSTRUCCIONES | E103: 2000-04-14 | F103: 2000-04-14 | G103: 82723.65 | H103: 5547.74 | I103: 0 | L103: 0 | M103: 77175.91 | N103: 1 | O103: 77175.91 | P103: 5547.74 | R103: =IF($O103<=0,0,IF(($O103-SUM($Q103:Q103))<$P103,$O103-SUM($Q103:Q103),IF(SUM($Q103:Q103)<$O103,$P103,0))) -> 5547.74 | S103: =IF($O103<=0,0,IF(($O103-SUM($Q103:R103))<$P103,$O103-SUM($Q103:R103),IF(SUM($Q103:R103)<$O103,$P103,0))) -> 5547.74 | T103: =IF($O103<=0,0,IF(($O103-SUM($Q103:S103))<$P103,$O103-SUM($Q103:S103),IF(SUM($Q103:S103)<$O103,$P103,0))) -> 5547.74
B104: AERONAVEGACIÓN | C104: OTRAS EDIFICACIONES (NUEVO) | D104: EDIFICACIONES Y CONSTRUCCIONES | E104: 2000-07-17 | F104: 2000-07-17 | G104: 3465.13 | H104: 315.01 | I104: 0 | L104: 0 | M104: 3150.12 | N104: 1 | O104: 3150.12 | P104: 315.01 | R104: =IF($O104<=0,0,IF(($O104-SUM($Q104:Q104))<$P104,$O104-SUM($Q104:Q104),IF(SUM($Q104:Q104)<$O104,$P104,0))) -> 315.01 | S104: =IF($O104<=0,0,IF(($O104-SUM($Q104:R104))<$P104,$O104-SUM($Q104:R104),IF(SUM($Q104:R104)<$O104,$P104,0))) -> 315.01 | T104: =IF($O104<=0,0,IF(($O104-SUM($Q104:S104))<$P104,$O104-SUM($Q104:S104),IF(SUM($Q104:S104)<$O104,$P104,0))) -> 315.01
B105: AERONAVEGACIÓN | C105: EQUIPOS DE BALIZAJE E ILUMINACION DE PISTA(333610, 333910 Y | D105: MAQUINARIA Y EQUIPO | E105: 1991-12-31 | F105: 1991-12-31 | G105: 0 | H105: 0 | I105: 0 | L105: 0 | M105: 0 | N105: 1 | O105: 0 | P105: 0 | R105: =IF($O105<=0,0,IF(($O105-SUM($Q105:Q105))<$P105,$O105-SUM($Q105:Q105),IF(SUM($Q105:Q105)<$O105,$P105,0))) -> 0 | S105: =IF($O105<=0,0,IF(($O105-SUM($Q105:R105))<$P105,$O105-SUM($Q105:R105),IF(SUM($Q105:R105)<$O105,$P105,0))) -> 0 | T105: =IF($O105<=0,0,IF(($O105-SUM($Q105:S105))<$P105,$O105-SUM($Q105:S105),IF(SUM($Q105:S105)<$O105,$P105,0))) -> 0
B106: AERONAVEGACIÓN | C106: OTRAS EDIFICACIONES (NUEVO) | D106: EDIFICACIONES Y CONSTRUCCIONES | E106: 2000-09-29 | F106: 2000-09-29 | G106: 33089.46 | H106: 2219.09 | I106: 0 | L106: 0 | M106: 30870.37 | N106: 1 | O106: 30870.37 | P106: 2219.09 | R106: =IF($O106<=0,0,IF(($O106-SUM($Q106:Q106))<$P106,$O106-SUM($Q106:Q106),IF(SUM($Q106:Q106)<$O106,$P106,0))) -> 2219.09 | S106: =IF($O106<=0,0,IF(($O106-SUM($Q106:R106))<$P106,$O106-SUM($Q106:R106),IF(SUM($Q106:R106)<$O106,$P106,0))) -> 2219.09 | T106: =IF($O106<=0,0,IF(($O106-SUM($Q106:S106))<$P106,$O106-SUM($Q106:S106),IF(SUM($Q106:S106)<$O106,$P106,0))) -> 2219.09
B107: AERONAVEGACIÓN/AEROPORTUARIO | C107: Almacenes-Costo (NUEVO) | D107: EDIFICACIONES Y CONSTRUCCIONES | E107: 1995-06-30 | F107: 1995-06-30 | G107: 6639.35 | H107: 745.39 | I107: 0 | L107: 0 | M107: 5893.96 | N107: 0.5 | O107: 2946.98 | P107: 372.695 | R107: =IF($O107<=0,0,IF(($O107-SUM($Q107:Q107))<$P107,$O107-SUM($Q107:Q107),IF(SUM($Q107:Q107)<$O107,$P107,0))) -> 372.695 | S107: =IF($O107<=0,0,IF(($O107-SUM($Q107:R107))<$P107,$O107-SUM($Q107:R107),IF(SUM($Q107:R107)<$O107,$P107,0))) -> 372.695 | T107: =IF($O107<=0,0,IF(($O107-SUM($Q107:S107))<$P107,$O107-SUM($Q107:S107),IF(SUM($Q107:S107)<$O107,$P107,0))) -> 372.695
B108: AERONAVEGACIÓN | C108: OTRAS EDIFICACIONES (NUEVO) | D108: EDIFICACIONES Y CONSTRUCCIONES | E108: 2001-04-04 | F108: 2001-04-04 | G108: 5905.87 | H108: 298.03 | I108: 0 | L108: 0 | M108: 5607.84 | N108: 1 | O108: 5607.84 | P108: 298.03 | R108: =IF($O108<=0,0,IF(($O108-SUM($Q108:Q108))<$P108,$O108-SUM($Q108:Q108),IF(SUM($Q108:Q108)<$O108,$P108,0))) -> 298.03 | S108: =IF($O108<=0,0,IF(($O108-SUM($Q108:R108))<$P108,$O108-SUM($Q108:R108),IF(SUM($Q108:R108)<$O108,$P108,0))) -> 298.03 | T108: =IF($O108<=0,0,IF(($O108-SUM($Q108:S108))<$P108,$O108-SUM($Q108:S108),IF(SUM($Q108:S108)<$O108,$P108,0))) -> 298.03
B109: AERONAVEGACIÓN | C109: OTRAS EDIFICACIONES (NUEVO) | D109: EDIFICACIONES Y CONSTRUCCIONES | E109: 2001-04-04 | F109: 2001-04-04 | G109: 2475.54 | H109: 124.92 | I109: 0 | L109: 0 | M109: 2350.62 | N109: 1 | O109: 2350.62 | P109: 124.92 | R109: =IF($O109<=0,0,IF(($O109-SUM($Q109:Q109))<$P109,$O109-SUM($Q109:Q109),IF(SUM($Q109:Q109)<$O109,$P109,0))) -> 124.92 | S109: =IF($O109<=0,0,IF(($O109-SUM($Q109:R109))<$P109,$O109-SUM($Q109:R109),IF(SUM($Q109:R109)<$O109,$P109,0))) -> 124.92 | T109: =IF($O109<=0,0,IF(($O109-SUM($Q109:S109))<$P109,$O109-SUM($Q109:S109),IF(SUM($Q109:S109)<$O109,$P109,0))) -> 124.92
B110: AERONAVEGACIÓN | C110: EDIFICIOS EN AEROPUERTOS-Administrativas | D110: EDIFICACIONES Y CONSTRUCCIONES | E110: 2002-03-13 | F110: 2002-03-13 | G110: 3414.6 | H110: 155.83 | I110: 0 | L110: 0 | M110: 3258.77 | N110: 1 | O110: 3258.77 | P110: 155.83 | R110: =IF($O110<=0,0,IF(($O110-SUM($Q110:Q110))<$P110,$O110-SUM($Q110:Q110),IF(SUM($Q110:Q110)<$O110,$P110,0))) -> 155.83 | S110: =IF($O110<=0,0,IF(($O110-SUM($Q110:R110))<$P110,$O110-SUM($Q110:R110),IF(SUM($Q110:R110)<$O110,$P110,0))) -> 155.83 | T110: =IF($O110<=0,0,IF(($O110-SUM($Q110:S110))<$P110,$O110-SUM($Q110:S110),IF(SUM($Q110:S110)<$O110,$P110,0))) -> 155.83
B111: AERONAVEGACIÓN/AEROPORTUARIO | C111: Instalaciones | D111: EDIFICACIONES Y CONSTRUCCIONES | E111: 2002-02-08 | F111: 2002-02-08 | G111: 6807.47 | H111: 310.66 | I111: 0 | L111: 0 | M111: 6496.81 | N111: 0.5 | O111: 3248.405 | P111: 155.33 | R111: =IF($O111<=0,0,IF(($O111-SUM($Q111:Q111))<$P111,$O111-SUM($Q111:Q111),IF(SUM($Q111:Q111)<$O111,$P111,0))) -> 155.33 | S111: =IF($O111<=0,0,IF(($O111-SUM($Q111:R111))<$P111,$O111-SUM($Q111:R111),IF(SUM($Q111:R111)<$O111,$P111,0))) -> 155.33 | T111: =IF($O111<=0,0,IF(($O111-SUM($Q111:S111))<$P111,$O111-SUM($Q111:S111),IF(SUM($Q111:S111)<$O111,$P111,0))) -> 155.33
B112: AERONAVEGACIÓN/AEROPORTUARIO | C112: ACCESO AL AEROPUERTO PARA VEHICULOS | D112: EDIFICACIONES Y CONSTRUCCIONES | E112: 2002-02-09 | F112: 2002-02-09 | G112: 4097.52 | H112: 186.99 | I112: 0 | L112: 0 | M112: 3910.53 | N112: 0.5 | O112: 1955.265 | P112: 93.495 | R112: =IF($O112<=0,0,IF(($O112-SUM($Q112:Q112))<$P112,$O112-SUM($Q112:Q112),IF(SUM($Q112:Q112)<$O112,$P112,0))) -> 93.495 | S112: =IF($O112<=0,0,IF(($O112-SUM($Q112:R112))<$P112,$O112-SUM($Q112:R112),IF(SUM($Q112:R112)<$O112,$P112,0))) -> 93.495 | T112: =IF($O112<=0,0,IF(($O112-SUM($Q112:S112))<$P112,$O112-SUM($Q112:S112),IF(SUM($Q112:S112)<$O112,$P112,0))) -> 93.495
B113: AERONAVEGACIÓN | C113: OTRAS EDIFICACIONES (NUEVO) | D113: EDIFICACIONES Y CONSTRUCCIONES | E113: 2002-02-12 | F113: 2002-02-12 | G113: 10560.24 | H113: 589.56 | I113: 0 | L113: 0 | M113: 9970.68 | N113: 1 | O113: 9970.68 | P113: 589.56 | R113: =IF($O113<=0,0,IF(($O113-SUM($Q113:Q113))<$P113,$O113-SUM($Q113:Q113),IF(SUM($Q113:Q113)<$O113,$P113,0))) -> 589.56 | S113: =IF($O113<=0,0,IF(($O113-SUM($Q113:R113))<$P113,$O113-SUM($Q113:R113),IF(SUM($Q113:R113)<$O113,$P113,0))) -> 589.56 | T113: =IF($O113<=0,0,IF(($O113-SUM($Q113:S113))<$P113,$O113-SUM($Q113:S113),IF(SUM($Q113:S113)<$O113,$P113,0))) -> 589.56
B114: AERONAVEGACIÓN | C114: EDIFICIOS EN AEROPUERTOS-Administrativas | D114: EDIFICACIONES Y CONSTRUCCIONES | E114: 2002-02-08 | F114: 2002-02-08 | G114: 11732.1 | H114: 419 | I114: 0 | L114: 0 | M114: 11313.1 | N114: 1 | O114: 11313.1 | P114: 419 | R114: =IF($O114<=0,0,IF(($O114-SUM($Q114:Q114))<$P114,$O114-SUM($Q114:Q114),IF(SUM($Q114:Q114)<$O114,$P114,0))) -> 419 | S114: =IF($O114<=0,0,IF(($O114-SUM($Q114:R114))<$P114,$O114-SUM($Q114:R114),IF(SUM($Q114:R114)<$O114,$P114,0))) -> 419 | T114: =IF($O114<=0,0,IF(($O114-SUM($Q114:S114))<$P114,$O114-SUM($Q114:S114),IF(SUM($Q114:S114)<$O114,$P114,0))) -> 419
B115: AERONAVEGACIÓN | C115: EDIFICIOS EN AEROPUERTOS-Administrativas | D115: EDIFICACIONES Y CONSTRUCCIONES | E115: 2002-09-20 | F115: 2002-09-20 | G115: 1923.92 | H115: 174.9 | I115: 0 | L115: 0 | M115: 1749.02 | N115: 1 | O115: 1749.02 | P115: 174.9 | R115: =IF($O115<=0,0,IF(($O115-SUM($Q115:Q115))<$P115,$O115-SUM($Q115:Q115),IF(SUM($Q115:Q115)<$O115,$P115,0))) -> 174.9 | S115: =IF($O115<=0,0,IF(($O115-SUM($Q115:R115))<$P115,$O115-SUM($Q115:R115),IF(SUM($Q115:R115)<$O115,$P115,0))) -> 174.9 | T115: =IF($O115<=0,0,IF(($O115-SUM($Q115:S115))<$P115,$O115-SUM($Q115:S115),IF(SUM($Q115:S115)<$O115,$P115,0))) -> 174.9
B116: AERONAVEGACIÓN | C116: EDIFICIOS EN AEROPUERTOS-Administrativas | D116: EDIFICACIONES Y CONSTRUCCIONES | E116: 2002-01-18 | F116: 2002-01-18 | G116: 396093.28 | H116: 18075.69 | I116: 0 | L116: 0 | M116: 378017.59 | N116: 1 | O116: 378017.59 | P116: 18075.69 | R116: =IF($O116<=0,0,IF(($O116-SUM($Q116:Q116))<$P116,$O116-SUM($Q116:Q116),IF(SUM($Q116:Q116)<$O116,$P116,0))) -> 18075.69 | S116: =IF($O116<=0,0,IF(($O116-SUM($Q116:R116))<$P116,$O116-SUM($Q116:R116),IF(SUM($Q116:R116)<$O116,$P116,0))) -> 18075.69 | T116: =IF($O116<=0,0,IF(($O116-SUM($Q116:S116))<$P116,$O116-SUM($Q116:S116),IF(SUM($Q116:S116)<$O116,$P116,0))) -> 18075.69
B117: AERONAVEGACIÓN | C117: EDIFICIOS EN AEROPUERTOS-Administrativas | D117: EDIFICACIONES Y CONSTRUCCIONES | E117: 2000-12-12 | F117: 2000-12-12 | G117: 7375.78 | H117: 463.55 | I117: 0 | L117: 0 | M117: 6912.23 | N117: 1 | O117: 6912.23 | P117: 463.55 | R117: =IF($O117<=0,0,IF(($O117-SUM($Q117:Q117))<$P117,$O117-SUM($Q117:Q117),IF(SUM($Q117:Q117)<$O117,$P117,0))) -> 463.55 | S117: =IF($O117<=0,0,IF(($O117-SUM($Q117:R117))<$P117,$O117-SUM($Q117:R117),IF(SUM($Q117:R117)<$O117,$P117,0))) -> 463.55 | T117: =IF($O117<=0,0,IF(($O117-SUM($Q117:S117))<$P117,$O117-SUM($Q117:S117),IF(SUM($Q117:S117)<$O117,$P117,0))) -> 463.55
B118: AERONAVEGACIÓN/AEROPORTUARIO | C118: EDIFICIOS EN AEROPUERTOS-Administrativas | D118: EDIFICACIONES Y CONSTRUCCIONES | E118: 1979-12-31 | F118: 1979-12-31 | G118: 104131.31 | H118: 4752.02 | I118: 0 | L118: 0 | M118: 99379.29 | N118: 0.5 | O118: 49689.645 | P118: 2376.01 | R118: =IF($O118<=0,0,IF(($O118-SUM($Q118:Q118))<$P118,$O118-SUM($Q118:Q118),IF(SUM($Q118:Q118)<$O118,$P118,0))) -> 2376.01 | S118: =IF($O118<=0,0,IF(($O118-SUM($Q118:R118))<$P118,$O118-SUM($Q118:R118),IF(SUM($Q118:R118)<$O118,$P118,0))) -> 2376.01 | T118: =IF($O118<=0,0,IF(($O118-SUM($Q118:S118))<$P118,$O118-SUM($Q118:S118),IF(SUM($Q118:S118)<$O118,$P118,0))) -> 2376.01
B119: AERONAVEGACIÓN | C119: EDIFICIOS EN AEROPUERTOS-Administrativas | D119: EDIFICACIONES Y CONSTRUCCIONES | E119: 1982-12-31 | F119: 1982-12-31 | G119: 5970.79 | H119: 398.05 | I119: 0 | L119: 0 | M119: 5572.74 | N119: 1 | O119: 5572.74 | P119: 398.05 | R119: =IF($O119<=0,0,IF(($O119-SUM($Q119:Q119))<$P119,$O119-SUM($Q119:Q119),IF(SUM($Q119:Q119)<$O119,$P119,0))) -> 398.05 | S119: =IF($O119<=0,0,IF(($O119-SUM($Q119:R119))<$P119,$O119-SUM($Q119:R119),IF(SUM($Q119:R119)<$O119,$P119,0))) -> 398.05 | T119: =IF($O119<=0,0,IF(($O119-SUM($Q119:S119))<$P119,$O119-SUM($Q119:S119),IF(SUM($Q119:S119)<$O119,$P119,0))) -> 398.05
B120: AERONAVEGACIÓN | C120: EDIFICIOS EN AEROPUERTOS-Administrativas | D120: EDIFICACIONES Y CONSTRUCCIONES | E120: 1982-12-31 | F120: 1982-12-31 | G120: 5970.79 | H120: 398.05 | I120: 0 | L120: 0 | M120: 5572.74 | N120: 1 | O120: 5572.74 | P120: 398.05 | R120: =IF($O120<=0,0,IF(($O120-SUM($Q120:Q120))<$P120,$O120-SUM($Q120:Q120),IF(SUM($Q120:Q120)<$O120,$P120,0))) -> 398.05 | S120: =IF($O120<=0,0,IF(($O120-SUM($Q120:R120))<$P120,$O120-SUM($Q120:R120),IF(SUM($Q120:R120)<$O120,$P120,0))) -> 398.05 | T120: =IF($O120<=0,0,IF(($O120-SUM($Q120:S120))<$P120,$O120-SUM($Q120:S120),IF(SUM($Q120:S120)<$O120,$P120,0))) -> 398.05
B121: AERONAVEGACIÓN/AEROPORTUARIO | C121: EDIFICIOS EN AEROPUERTOS-Administrativas | D121: EDIFICACIONES Y CONSTRUCCIONES | E121: 1982-12-31 | F121: 1982-12-31 | G121: 4691.21 | H121: 363.37 | I121: 0 | L121: 0 | M121: 4327.84 | N121: 0.5 | O121: 2163.92 | P121: 181.685 | R121: =IF($O121<=0,0,IF(($O121-SUM($Q121:Q121))<$P121,$O121-SUM($Q121:Q121),IF(SUM($Q121:Q121)<$O121,$P121,0))) -> 181.685 | S121: =IF($O121<=0,0,IF(($O121-SUM($Q121:R121))<$P121,$O121-SUM($Q121:R121),IF(SUM($Q121:R121)<$O121,$P121,0))) -> 181.685 | T121: =IF($O121<=0,0,IF(($O121-SUM($Q121:S121))<$P121,$O121-SUM($Q121:S121),IF(SUM($Q121:S121)<$O121,$P121,0))) -> 181.685
B122: AERONAVEGACIÓN | C122: EDIFICIOS EN AEROPUERTOS-Administrativas | D122: EDIFICACIONES Y CONSTRUCCIONES | E122: 1987-05-30 | F122: 1987-05-30 | G122: 22921.98 | H122: 1046.04 | I122: 0 | L122: 0 | M122: 21875.94 | N122: 1 | O122: 21875.94 | P122: 1046.04 | R122: =IF($O122<=0,0,IF(($O122-SUM($Q122:Q122))<$P122,$O122-SUM($Q122:Q122),IF(SUM($Q122:Q122)<$O122,$P122,0))) -> 1046.04 | S122: =IF($O122<=0,0,IF(($O122-SUM($Q122:R122))<$P122,$O122-SUM($Q122:R122),IF(SUM($Q122:R122)<$O122,$P122,0))) -> 1046.04 | T122: =IF($O122<=0,0,IF(($O122-SUM($Q122:S122))<$P122,$O122-SUM($Q122:S122),IF(SUM($Q122:S122)<$O122,$P122,0))) -> 1046.04
B123: AERONAVEGACIÓN | C123: EQUIPOS DE BALIZAJE E ILUMINACION DE PISTA(333610, 333910 Y | D123: MAQUINARIA Y EQUIPO | E123: 2001-02-28 | F123: 2001-02-28 | G123: 429837.14 | H123: 78152.21 | I123: 0 | L123: 0 | M123: 351684.93 | N123: 1 | O123: 351684.93 | P123: 78152.21 | R123: =IF($O123<=0,0,IF(($O123-SUM($Q123:Q123))<$P123,$O123-SUM($Q123:Q123),IF(SUM($Q123:Q123)<$O123,$P123,0))) -> 78152.21 | S123: =IF($O123<=0,0,IF(($O123-SUM($Q123:R123))<$P123,$O123-SUM($Q123:R123),IF(SUM($Q123:R123)<$O123,$P123,0))) -> 78152.21 | T123: =IF($O123<=0,0,IF(($O123-SUM($Q123:S123))<$P123,$O123-SUM($Q123:S123),IF(SUM($Q123:S123)<$O123,$P123,0))) -> 78152.21
B124: AERONAVEGACIÓN/AEROPORTUARIO | C124: EDIFICIOS EN AEROPUERTOS-Administrativas | D124: EDIFICACIONES Y CONSTRUCCIONES | E124: 1988-12-31 | F124: 1988-12-31 | G124: 1854.2 | H124: 84.62 | I124: 0 | L124: 0 | M124: 1769.58 | N124: 0.5 | O124: 884.79 | P124: 42.31 | R124: =IF($O124<=0,0,IF(($O124-SUM($Q124:Q124))<$P124,$O124-SUM($Q124:Q124),IF(SUM($Q124:Q124)<$O124,$P124,0))) -> 42.31 | S124: =IF($O124<=0,0,IF(($O124-SUM($Q124:R124))<$P124,$O124-SUM($Q124:R124),IF(SUM($Q124:R124)<$O124,$P124,0))) -> 42.31 | T124: =IF($O124<=0,0,IF(($O124-SUM($Q124:S124))<$P124,$O124-SUM($Q124:S124),IF(SUM($Q124:S124)<$O124,$P124,0))) -> 42.31
B125: AERONAVEGACIÓN/AEROPORTUARIO | C125: EDIFICIOS EN AEROPUERTOS-Administrativas | D125: EDIFICACIONES Y CONSTRUCCIONES | E125: 1988-12-31 | F125: 1988-12-31 | G125: 1767.53 | H125: 80.66 | I125: 0 | L125: 0 | M125: 1686.87 | N125: 0.5 | O125: 843.435 | P125: 40.33 | R125: =IF($O125<=0,0,IF(($O125-SUM($Q125:Q125))<$P125,$O125-SUM($Q125:Q125),IF(SUM($Q125:Q125)<$O125,$P125,0))) -> 40.33 | S125: =IF($O125<=0,0,IF(($O125-SUM($Q125:R125))<$P125,$O125-SUM($Q125:R125),IF(SUM($Q125:R125)<$O125,$P125,0))) -> 40.33 | T125: =IF($O125<=0,0,IF(($O125-SUM($Q125:S125))<$P125,$O125-SUM($Q125:S125),IF(SUM($Q125:S125)<$O125,$P125,0))) -> 40.33
B126: AERONAVEGACIÓN/AEROPORTUARIO | C126: EDIFICIOS EN AEROPUERTOS-Administrativas | D126: EDIFICACIONES Y CONSTRUCCIONES | E126: 1989-09-30 | F126: 1989-09-30 | G126: 11386.29 | H126: 519.61 | I126: 0 | L126: 0 | M126: 10866.68 | N126: 0.5 | O126: 5433.34 | P126: 259.805 | R126: =IF($O126<=0,0,IF(($O126-SUM($Q126:Q126))<$P126,$O126-SUM($Q126:Q126),IF(SUM($Q126:Q126)<$O126,$P126,0))) -> 259.805 | S126: =IF($O126<=0,0,IF(($O126-SUM($Q126:R126))<$P126,$O126-SUM($Q126:R126),IF(SUM($Q126:R126)<$O126,$P126,0))) -> 259.805 | T126: =IF($O126<=0,0,IF(($O126-SUM($Q126:S126))<$P126,$O126-SUM($Q126:S126),IF(SUM($Q126:S126)<$O126,$P126,0))) -> 259.805
B127: AERONAVEGACIÓN/AEROPORTUARIO | C127: EDIFICIOS EN AEROPUERTOS-Administrativas | D127: EDIFICACIONES Y CONSTRUCCIONES | E127: 1989-09-30 | F127: 1989-09-30 | G127: 11386.29 | H127: 519.61 | I127: 0 | L127: 0 | M127: 10866.68 | N127: 0.5 | O127: 5433.34 | P127: 259.805 | R127: =IF($O127<=0,0,IF(($O127-SUM($Q127:Q127))<$P127,$O127-SUM($Q127:Q127),IF(SUM($Q127:Q127)<$O127,$P127,0))) -> 259.805 | S127: =IF($O127<=0,0,IF(($O127-SUM($Q127:R127))<$P127,$O127-SUM($Q127:R127),IF(SUM($Q127:R127)<$O127,$P127,0))) -> 259.805 | T127: =IF($O127<=0,0,IF(($O127-SUM($Q127:S127))<$P127,$O127-SUM($Q127:S127),IF(SUM($Q127:S127)<$O127,$P127,0))) -> 259.805
